Workbook

Sheet Summary Nominal $
B2: Modelled Price (cents) per Light per day - Nominal $'s | I2: Modelled Revenue ($m) - Nominal $'s | P2: Volumes | X2: Revised Price Path Prices - Nominal $'s | AE2: Revised Revenues ($M) - Nominal $'s
I3: ='Cost data inputs'!C183 -> 366 | J3: ='Annuity Prices'!I2 -> 365 | K3: ='Annuity Prices'!J2 -> 365 | L3: ='Annuity Prices'!K2 -> 365 | M3: ='Annuity Prices'!L2 -> 366 | N3: ='Annuity Prices'!M2 -> 365
A4: Private Contract Lights | B4: 2011/12 | C4: 2012-13 | D4: 2013-14 | E4: 2014-15 | F4: 2015-16 | G4: 2016-17 | I4: 2011/12 | J4: 2012-13 | K4: 2013-14 | L4: 2014-15 | M4: 2015-16 | N4: 2016-17 | P4: 2011/12 | Q4: 2012-13 | R4: 2013-14 | S4: 2014-15 | T4: 2015-16 | U4: 2016-17 | X4: 2011/12 | Y4: 2012-13 | Z4: 2013-14 | AA4: 2014-15 | AB4: 2015-16 | AC4: 2016-17 | AE4: 2011/12 | AF4: 2012-13 | AG4: 2013-14 | AH4: 2014-15 | AI4: 2015-16 | AJ4: 2016-17 | AL4: Nominal Dollars | AM4: 2011/12 | AN4: 2012-13 | AO4: 2013-14 | AP4: 2014-15 | AQ4: 2015-16 | AR4: 2016-17
A5: ='Annuity Prices'!A6 -> 50W Mercury Vapour | B5: ='Cost data inputs'!B188 -> 33.27 | C5: ='Summary Real $2011-12'!C5*'Cost data inputs'!E$6 -> 22.8048275 | D5: ='Summary Real $2011-12'!D5*'Cost data inputs'!F$6 -> 22.93998175 | E5: ='Summary Real $2011-12'!E5*'Cost data inputs'!G$6 -> 22.64783458 | F5: ='Summary Real $2011-12'!F5*'Cost data inputs'!H$6 -> 20.67336278 | G5: ='Summary Real $2011-12'!G5*'Cost data inputs'!I$6 -> 19.95477635 | I5: =B5*P5*I$3/100/10^6 -> 0.0314161956 | J5: =C5*Q5*J$3/100/10^6 -> 0.02147530606 | K5: 0.02160258081 | L5: 0.02132746583 | M5: 0.01952144301 | N5: 0.01879141289 | P5: ='PL Volumes data inputs'!D3 -> 258 | Q5: ='PL Volumes data inputs'!E3 -> 258 | R5: ='PL Volumes data inputs'!F3 -> 258 | S5: ='PL Volumes data inputs'!G3 -> 258 | T5: ='PL Volumes data inputs'!H3 -> 258 | U5: ='PL Volumes data inputs'!I3 -> 258 | X5: =B5 -> 33.27 | Y5: =C5*(1+$AM$15) -> 22.45623324 | Z5: =Y5*(1-AO$8)*(1+'Cost data inputs'!F$4) -> 23.02284597 | AA5: =Z5*(1-AP$8)*(1+'Cost data inputs'!G$4) -> 23.83440129 | AB5: =AA5*(1-AQ$8)*(1+'Cost data inputs'!H$4) -> 23.80728966 | AC5: =AB5*(1-AR$8)*(1+'Cost data inputs'!I$4) -> 23.07253718 | AE5: =X5*P5*I$3/100/10^6 -> 0.0314161956 | AF5: =Y5*Q5*J$3/100/10^6 -> 0.02114703485 | AG5: =Z5*R5*K$3/100/10^6 -> 0.02168061405 | AH5: 0.0224448557 | AI5: 0.02248074748 | AJ5: 0.02172740827 | AL5: Unsmoothed Revenue ($M) | AM5: =SUM(I26,I46) -> 5.793559587 | AN5: 6.718250071 | AO5: 6.903906554 | AP5: 6.999877712 | AQ5: 6.776297543 | AR5: 6.763775091
A6: ='Annuity Prices'!A14 -> 80W Mercury Vapour Aeroscreen | B6: ='Cost data inputs'!B189 -> 37.809 | C6: ='Summary Real $2011-12'!C6*'Cost data inputs'!E$6 -> 22.791405 | D6: ='Summary Real $2011-12'!D6*'Cost data inputs'!F$6 -> 22.92622369 | E6: ='Summary Real $2011-12'!E6*'Cost data inputs'!G$6 -> 22.63373257 | F6: ='Summary Real $2011-12'!F6*'Cost data inputs'!H$6 -> 20.66002011 | G6: ='Summary Real $2011-12'!G6*'Cost data inputs'!I$6 -> 19.93996042 | I6: =B6*P6*I$3/100/10^6 -> 0.055352376 | J6: 0.0332754513 | K6: 0.03347228658 | L6: 0.03304524955 | M6: 0.03024626944 | N6: 0.02911234221 | P6: ='PL Volumes data inputs'!D4 -> 400 | Q6: ='PL Volumes data inputs'!E4 -> 400 | R6: ='PL Volumes data inputs'!F4 -> 400 | S6: ='PL Volumes data inputs'!G4 -> 400 | T6: ='PL Volumes data inputs'!H4 -> 400 | U6: ='PL Volumes data inputs'!I4 -> 400 | X6: =B6 -> 37.809 | Y6: 22.44301592 | Z6: =Y6*(1-AO$8)*(1+'Cost data inputs'!F$4) -> 23.00929515 | AA6: =Z6*(1-AP$8)*(1+'Cost data inputs'!G$4) -> 23.82037281 | AB6: =AA6*(1-AQ$8)*(1+'Cost data inputs'!H$4) -> 23.79327713 | AC6: =AB6*(1-AR$8)*(1+'Cost data inputs'!I$4) -> 23.05895712 | AE6: =X6*P6*I$3/100/10^6 -> 0.055352376 | AF6: =Y6*Q6*J$3/100/10^6 -> 0.03276680324 | AG6: =Z6*R6*K$3/100/10^6 -> 0.03359357092 | AH6: =AA6*S6*L$3/100/10^6 -> 0.0347777443 | AI6: =AB6*T6*M$3/100/10^6 -> 0.03483335772 | AJ6: =AC6*U6*N$3/100/10^6 -> 0.03366607739 | AL6: Smoothed Revenue ($M) | AM6: =I48 -> 5.793559587 | AN6: =AM6*(1+'Cost data inputs'!E4)*(1-AN8) -> 6.615555 | AO6: =AN6*(1+'Cost data inputs'!F4)*(1-AO8) -> 6.782477815 | AP6: =AO6*(1+'Cost data inputs'!G4)*(1-AP8) -> 7.021560158 | AQ6: =AP6*(1+'Cost data inputs'!H4)*(1-AQ8) -> 7.013573133 | AR6: =AQ6*(1+'Cost data inputs'!I4)*(1-AR8) -> 6.797116732
A7: ='Annuity Prices'!A22 -> 125W Mercury Vapour | B7: ='Cost data inputs'!B190 -> 33.153 | C7: ='Summary Real $2011-12'!C7*'Cost data inputs'!E$6 -> 23.8517825 | D7: ='Summary Real $2011-12'!D7*'Cost data inputs'!F$6 -> 23.98241956 | E7: ='Summary Real $2011-12'!E7*'Cost data inputs'!G$6 -> 23.67945115 | F7: ='Summary Real $2011-12'!F7*'Cost data inputs'!H$6 -> 21.6840704 | G7: ='Summary Real $2011-12'!G7*'Cost data inputs'!I$6 -> 20.94288481 | I7: 0.03895013358 | J7: 0.02794594097 | K7: 0.02809900188 | L7: 0.02774402894 | M7: 0.02547574695 | N7: 0.02453773099 | P7: ='PL Volumes data inputs'!D5 -> 321 | Q7: ='PL Volumes data inputs'!E5 -> 321 | R7: ='PL Volumes data inputs'!F5 -> 321 | S7: ='PL Volumes data inputs'!G5 -> 321 | T7: ='PL Volumes data inputs'!H5 -> 321 | U7: ='PL Volumes data inputs'!I5 -> 321 | X7: 33.153 | Y7: 23.48718451 | Z7: =Y7*(1-AO$8)*(1+'Cost data inputs'!F$4) -> 24.07981006 | AA7: =Z7*(1-AP$8)*(1+'Cost data inputs'!G$4) -> 24.92862337 | AB7: =AA7*(1-AQ$8)*(1+'Cost data inputs'!H$4) -> 24.90026706 | AC7: =AB7*(1-AR$8)*(1+'Cost data inputs'!I$4) -> 24.13178256 | AE7: 0.03895013358 | AF7: 0.02751875973 | AG7: 0.02821310946 | AH7: 0.02920762157 | AI7: 0.02925432775 | AJ7: 0.02827400304 | AN7: P_0 | AO7: X_1 | AP7: X_2 | AQ7: X_3 | AR7: X_4
A8: ='Annuity Prices'!A30 -> 250W Mercury Vapour | B8: ='Cost data inputs'!B191 -> 99.153 | C8: ='Summary Real $2011-12'!C8*'Cost data inputs'!E$6 -> 23.935415 | D8: ='Summary Real $2011-12'!D8*'Cost data inputs'!F$6 -> 24.06814287 | E8: ='Summary Real $2011-12'!E8*'Cost data inputs'!G$6 -> 23.76731755 | F8: ='Summary Real $2011-12'!F8*'Cost data inputs'!H$6 -> 21.77413346 | G8: ='Summary Real $2011-12'!G8*'Cost data inputs'!I$6 -> 21.03633913 | I8: 0.0163304991 | J8: 0.003931391914 | K8: 0.003953192467 | L8: 0.003903781907 | M8: 0.00358619978 | N8: 0.003455218702 | P8: ='PL Volumes data inputs'!D6 -> 45 | Q8: ='PL Volumes data inputs'!E6 -> 45 | R8: ='PL Volumes data inputs'!F6 -> 45 | S8: ='PL Volumes data inputs'!G6 -> 45 | T8: ='PL Volumes data inputs'!H6 -> 45 | U8: ='PL Volumes data inputs'!I6 -> 45 | X8: 99.153 | Y8: 23.5695386 | Z8: =Y8*(1-AO$8)*(1+'Cost data inputs'!F$4) -> 24.1642421 | AA8: =Z8*(1-AP$8)*(1+'Cost data inputs'!G$4) -> 25.01603164 | AB8: =AA8*(1-AQ$8)*(1+'Cost data inputs'!H$4) -> 24.9875759 | AC8: =AB8*(1-AR$8)*(1+'Cost data inputs'!I$4) -> 24.21639684 | AE8: 0.0163304991 | AF8: 0.003871296715 | AG8: 0.003968976766 | AH8: 0.004108883197 | AI8: 0.004115453751 | AJ8: 0.003977543181 | AL8: P_0 and X_1 - 4 | AN8: -0.1059379116 | AO8: -0.0002262133752 | AP8: -0.01 | AQ8: 0.0255 | AR8: 0.0545
A9: ='Annuity Prices'!A38 -> 400W Mercury Vapour | B9: ='Cost data inputs'!B192 -> 152.137 | C9: ='Summary Real $2011-12'!C9*'Cost data inputs'!E$6 -> 23.9983975 | D9: ='Summary Real $2011-12'!D9*'Cost data inputs'!F$6 -> 24.13375825 | E9: ='Summary Real $2011-12'!E9*'Cost data inputs'!G$6 -> 23.83457331 | F9: ='Summary Real $2011-12'!F9*'Cost data inputs'!H$6 -> 21.84195872 | G9: ='Summary Real $2011-12'!G9*'Cost data inputs'!I$6 -> 21.10586003 | I9: 0.02115921396 | J9: 0.003328577733 | K9: 0.003347352269 | L9: 0.003305855318 | M9: 0.003037779619 | N9: 0.002927382786 | P9: ='PL Volumes data inputs'!D7 -> 38 | Q9: ='PL Volumes data inputs'!E7 -> 38 | R9: ='PL Volumes data inputs'!F7 -> 38 | S9: ='PL Volumes data inputs'!G7 -> 38 | T9: ='PL Volumes data inputs'!H7 -> 38 | U9: ='PL Volumes data inputs'!I7 -> 38 | X9: 152.137 | Y9: 23.63155835 | Z9: =Y9*(1-AO$8)*(1+'Cost data inputs'!F$4) -> 24.22782673 | AA9: =Z9*(1-AP$8)*(1+'Cost data inputs'!G$4) -> 25.08185762 | AB9: =AA9*(1-AQ$8)*(1+'Cost data inputs'!H$4) -> 25.05332701 | AC9: =AB9*(1-AR$8)*(1+'Cost data inputs'!I$4) -> 24.2801187 | AE9: 0.02115921396 | AF9: 0.003277697143 | AG9: 0.003360399567 | AH9: 0.003478853652 | AI9: 0.00348441672 | AJ9: 0.003367652464
A10: ='Annuity Prices'!A46 -> 70W Sodium Vapour | B10: ='Cost data inputs'!B193 -> 49.415 | C10: ='Summary Real $2011-12'!C10*'Cost data inputs'!E$6 -> 23.018555 | D10: ='Summary Real $2011-12'!D10*'Cost data inputs'!F$6 -> 23.16011075 | E10: ='Summary Real $2011-12'!E10*'Cost data inputs'!G$6 -> 22.87238204 | F10: ='Summary Real $2011-12'!F10*'Cost data inputs'!H$6 -> 20.90463581 | G10: ='Summary Real $2011-12'!G10*'Cost data inputs'!I$6 -> 20.19183121 | I10: 0.0124792641 | J10: 0.005797223077 | K10: 0.005832873892 | L10: 0.005760409417 | M10: 0.005279256728 | N10: 0.005085312689 | P10: ='PL Volumes data inputs'!D8 -> 69 | Q10: ='PL Volumes data inputs'!E8 -> 69 | R10: ='PL Volumes data inputs'!F8 -> 69 | S10: ='PL Volumes data inputs'!G8 -> 69 | T10: ='PL Volumes data inputs'!H8 -> 69 | U10: ='PL Volumes data inputs'!I8 -> 69 | X10: 49.415 | Y10: 22.66669371 | Z10: =Y10*(1-AO$8)*(1+'Cost data inputs'!F$4) -> 23.23861675 | AA10: =Z10*(1-AP$8)*(1+'Cost data inputs'!G$4) -> 24.05777799 | AB10: =AA10*(1-AQ$8)*(1+'Cost data inputs'!H$4) -> 24.03041227 | AC10: =AB10*(1-AR$8)*(1+'Cost data inputs'!I$4) -> 23.28877367 | AE10: 0.0124792641 | AF10: 0.005708606811 | AG10: 0.005852645628 | AH10: 0.006058951386 | AI10: 0.006068640314 | AJ10: 0.005865277648 | AL10: Checks
A11: ='Annuity Prices'!A54 -> 150W Sodium Vapour | B11: ='Cost data inputs'!B194 -> 68.183 | C11: ='Summary Real $2011-12'!C11*'Cost data inputs'!E$6 -> 24.6736525 | D11: ='Summary Real $2011-12'!D11*'Cost data inputs'!F$6 -> 24.82483631 | E11: ='Summary Real $2011-12'!E11*'Cost data inputs'!G$6 -> 24.54292832 | F11: ='Summary Real $2011-12'!F11*'Cost data inputs'!H$6 -> 22.56802261 | G11: ='Summary Real $2011-12'!G11*'Cost data inputs'!I$6 -> 21.85349457 | I11: 0.04417031106 | J11: 0.0159404132 | K11: 0.0160380855 | L11: 0.01585595884 | M11: 0.01462001641 | N11: 0.01411845017 | P11: ='PL Volumes data inputs'!D9 -> 177 | Q11: ='PL Volumes data inputs'!E9 -> 177 | R11: ='PL Volumes data inputs'!F9 -> 177 | S11: ='PL Volumes data inputs'!G9 -> 177 | T11: ='PL Volumes data inputs'!H9 -> 177 | U11: ='PL Volumes data inputs'!I9 -> 177 | X11: 68.183 | Y11: 24.29649141 | Z11: =Y11*(1-AO$8)*(1+'Cost data inputs'!F$4) -> 24.90953729 | AA11: =Z11*(1-AP$8)*(1+'Cost data inputs'!G$4) -> 25.78759848 | AB11: =AA11*(1-AQ$8)*(1+'Cost data inputs'!H$4) -> 25.75826509 | AC11: =AB11*(1-AR$8)*(1+'Cost data inputs'!I$4) -> 24.96330063 | AE11: 0.04417031106 | AF11: 0.01569674828 | AG11: 0.01609280657 | AH11: 0.016660078 | AI11: 0.01668671929 | AJ11: 0.01612754037 | AL11: Unsmoothed NPV Revenue | AM11: =NPV(AM17,AN5:AR5) -> 25.12442392
A12: ='Annuity Prices'!A62 -> 250W Sodium Vapour | B12: ='Cost data inputs'!B195 -> 98.828 | C12: ='Summary Real $2011-12'!C12*'Cost data inputs'!E$6 -> 24.63545 | D12: ='Summary Real $2011-12'!D12*'Cost data inputs'!F$6 -> 24.78567875 | E12: ='Summary Real $2011-12'!E12*'Cost data inputs'!G$6 -> 24.50279182 | F12: ='Summary Real $2011-12'!F12*'Cost data inputs'!H$6 -> 22.52688269 | G12: ='Summary Real $2011-12'!G12*'Cost data inputs'!I$6 -> 21.81132616 | I12: 0.07632091128 | J12: 0.01897299182 | K12: 0.01908869049 | L12: 0.01887082512 | M12: 0.01739661043 | N12: 0.01679799284 | P12: ='PL Volumes data inputs'!D10 -> 211 | Q12: ='PL Volumes data inputs'!E10 -> 211 | R12: ='PL Volumes data inputs'!F10 -> 211 | S12: ='PL Volumes data inputs'!G10 -> 211 | T12: ='PL Volumes data inputs'!H10 -> 211 | U12: ='PL Volumes data inputs'!I10 -> 211 | X12: 98.828 | Y12: 24.25887288 | Z12: =Y12*(1-AO$8)*(1+'Cost data inputs'!F$4) -> 24.87096957 | AA12: =Z12*(1-AP$8)*(1+'Cost data inputs'!G$4) -> 25.74767125 | AB12: =AA12*(1-AQ$8)*(1+'Cost data inputs'!H$4) -> 25.71838327 | AC12: =AB12*(1-AR$8)*(1+'Cost data inputs'!I$4) -> 24.92464967 | AE12: 0.07632091128 | AF12: 0.01868297095 | AG12: 0.01915437722 | AH12: 0.01982956901 | AI12: 0.01986127867 | AJ12: 0.01919571894 | AL12: Smoothed NPV Revenue | AM12: =NPV(AM17,AN6:AR6) -> 25.12442392
A13: ='Annuity Prices'!A70 -> 400W Sodium Vapour | B13: ='Cost data inputs'!B196 -> 153.56 | C13: ='Summary Real $2011-12'!C13*'Cost data inputs'!E$6 -> 24.720115 | D13: ='Summary Real $2011-12'!D13*'Cost data inputs'!F$6 -> 24.87351869 | E13: ='Summary Real $2011-12'!E13*'Cost data inputs'!G$6 -> 24.59282775 | F13: ='Summary Real $2011-12'!F13*'Cost data inputs'!H$6 -> 22.61805764 | G13: ='Summary Real $2011-12'!G13*'Cost data inputs'!I$6 -> 21.90592017 | I13: 0.0685676112 | J13: 0.01100786721 | K13: 0.01107617787 | L13: 0.0109511862 | M13: 0.0100994151 | N13: 0.00975470625 | P13: ='PL Volumes data inputs'!D11 -> 122 | Q13: ='PL Volumes data inputs'!E11 -> 122 | R13: ='PL Volumes data inputs'!F11 -> 122 | S13: ='PL Volumes data inputs'!G11 -> 122 | T13: ='PL Volumes data inputs'!H11 -> 122 | U13: ='PL Volumes data inputs'!I11 -> 122 | X13: 153.56 | Y13: 24.34224369 | Z13: =Y13*(1-AO$8)*(1+'Cost data inputs'!F$4) -> 24.95644398 | AA13: =Z13*(1-AP$8)*(1+'Cost data inputs'!G$4) -> 25.83615863 | AB13: =AA13*(1-AQ$8)*(1+'Cost data inputs'!H$4) -> 25.80677 | AC13: =AB13*(1-AR$8)*(1+'Cost data inputs'!I$4) -> 25.01030857 | AE13: 0.0685676112 | AF13: 0.01083960111 | AG13: 0.01111310451 | AH13: 0.01150484144 | AI13: 0.01152323894 | AJ13: 0.0111370904 | AL13: Difference in NPVs | AM13: =AM12-AM11 -> 0
A14: ='Annuity Prices'!A78 -> 150W Metal Halide | B14: ='Cost data inputs'!B197 -> 80.443 | C14: ='Summary Real $2011-12'!C14*'Cost data inputs'!E$6 -> 24.6736525 | D14: ='Summary Real $2011-12'!D14*'Cost data inputs'!F$6 -> 24.82483631 | E14: ='Summary Real $2011-12'!E14*'Cost data inputs'!G$6 -> 24.54292832 | F14: ='Summary Real $2011-12'!F14*'Cost data inputs'!H$6 -> 22.56802261 | G14: ='Summary Real $2011-12'!G14*'Cost data inputs'!I$6 -> 21.85349457 | I14: 0.0073605345 | J14: 0.002251470791 | K14: 0.002265266314 | L14: 0.002239542209 | M14: 0.002064974069 | N14: 0.00199413138 | P14: ='PL Volumes data inputs'!D12 -> 25 | Q14: ='PL Volumes data inputs'!E12 -> 25 | R14: ='PL Volumes data inputs'!F12 -> 25 | S14: ='PL Volumes data inputs'!G12 -> 25 | T14: ='PL Volumes data inputs'!H12 -> 25 | U14: ='PL Volumes data inputs'!I12 -> 25 | X14: 80.443 | Y14: 24.29649141 | Z14: =Y14*(1-AO$8)*(1+'Cost data inputs'!F$4) -> 24.90953729 | AA14: =Z14*(1-AP$8)*(1+'Cost data inputs'!G$4) -> 25.78759848 | AB14: =AA14*(1-AQ$8)*(1+'Cost data inputs'!H$4) -> 25.75826509 | AC14: =AB14*(1-AR$8)*(1+'Cost data inputs'!I$4) -> 24.96330063 | AE14: 0.0073605345 | AF14: 0.002217054841 | AG14: 0.002272995278 | AH14: 0.002353118362 | AI14: 0.002356881256 | AJ14: 0.002277901183 | AL14: Difference in Final year Revenues | AM14: =AR5/AR6-1 -> -0.004905262428
A15: ='Annuity Prices'!A86 -> 250W Metal Halide | B15: ='Cost data inputs'!B198 -> 107.352 | C15: ='Summary Real $2011-12'!C15*'Cost data inputs'!E$6 -> 24.63545 | D15: ='Summary Real $2011-12'!D15*'Cost data inputs'!F$6 -> 24.78567875 | E15: ='Summary Real $2011-12'!E15*'Cost data inputs'!G$6 -> 24.50279182 | F15: ='Summary Real $2011-12'!F15*'Cost data inputs'!H$6 -> 22.52688269 | G15: ='Summary Real $2011-12'!G15*'Cost data inputs'!I$6 -> 21.81132616 | I15: 0.00275035824 | J15: 0.0006294357475 | K15: 0.0006332740921 | L15: 0.000626046331 | M15: 0.0005771387346 | N15: 0.0005572793834 | P15: ='PL Volumes data inputs'!D13 -> 7 | Q15: ='PL Volumes data inputs'!E13 -> 7 | R15: ='PL Volumes data inputs'!F13 -> 7 | S15: ='PL Volumes data inputs'!G13 -> 7 | T15: ='PL Volumes data inputs'!H13 -> 7 | U15: ='PL Volumes data inputs'!I13 -> 7 | X15: 107.352 | Y15: 24.25887288 | Z15: =Y15*(1-AO$8)*(1+'Cost data inputs'!F$4) -> 24.87096957 | AA15: =Z15*(1-AP$8)*(1+'Cost data inputs'!G$4) -> 25.74767125 | AB15: =AA15*(1-AQ$8)*(1+'Cost data inputs'!H$4) -> 25.71838327 | AC15: =AB15*(1-AR$8)*(1+'Cost data inputs'!I$4) -> 24.92464967 | AE15: 0.00275035824 | AF15: 0.000619814202 | AG15: 0.0006354532725 | AH15: 0.0006578530004 | AI15: 0.0006589049794 | AJ15: 0.000636824799 | AL15: % Change Year 1 | AM15: =(AN6-AN5)/AN5 -> -0.01528598521
A16: ='Annuity Prices'!A94 -> 400W Metal Halide | B16: ='Cost data inputs'!B199 -> 145.15 | C16: ='Summary Real $2011-12'!C16*'Cost data inputs'!E$6 -> 24.63545 | D16: ='Summary Real $2011-12'!D16*'Cost data inputs'!F$6 -> 24.78567875 | E16: ='Summary Real $2011-12'!E16*'Cost data inputs'!G$6 -> 24.50279182 | F16: ='Summary Real $2011-12'!F16*'Cost data inputs'!H$6 -> 22.52688269 | G16: ='Summary Real $2011-12'!G16*'Cost data inputs'!I$6 -> 21.81132616 | I16: 0.004781241 | J16: 0.0008092745325 | K16: 0.0008142095469 | L16: 0.0008049167112 | M16: 0.000742035516 | N16: 0.0007165020644 | P16: ='PL Volumes data inputs'!D14 -> 9 | Q16: ='PL Volumes data inputs'!E14 -> 9 | R16: ='PL Volumes data inputs'!F14 -> 9 | S16: ='PL Volumes data inputs'!G14 -> 9 | T16: ='PL Volumes data inputs'!H14 -> 9 | U16: ='PL Volumes data inputs'!I14 -> 9 | X16: 145.15 | Y16: 24.25887288 | Z16: =Y16*(1-AO$8)*(1+'Cost data inputs'!F$4) -> 24.87096957 | AA16: =Z16*(1-AP$8)*(1+'Cost data inputs'!G$4) -> 25.74767125 | AB16: =AA16*(1-AQ$8)*(1+'Cost data inputs'!H$4) -> 25.71838327 | AC16: =AB16*(1-AR$8)*(1+'Cost data inputs'!I$4) -> 24.92464967 | AE16: 0.004781241 | AF16: 0.000796903974 | AG16: 0.0008170113504 | AH16: 0.0008458110005 | AI16: 0.000847163545 | AJ16: 0.0008187747416 | AL16: Pre Tax Real WACC | AM16: ='Cost data inputs'!B8 -> 0.08347419038
A17: ='Annuity Prices'!A102 -> 1x20W Fluorescent | B17: ='Cost data inputs'!B200 -> 20.374 | C17: ='Summary Real $2011-12'!C17*'Cost data inputs'!E$6 -> 22.8667775 | D17: ='Summary Real $2011-12'!D17*'Cost data inputs'!F$6 -> 23.0034805 | E17: ='Summary Real $2011-12'!E17*'Cost data inputs'!G$6 -> 22.7129208 | F17: ='Summary Real $2011-12'!F17*'Cost data inputs'!H$6 -> 20.74007616 | G17: ='Summary Real $2011-12'!G17*'Cost data inputs'!I$6 -> 20.02315756 | I17: 0.00253534056 | J17: 0.002837767088 | K17: 0.00285473193 | L17: 0.002818673472 | M17: 0.002580895077 | N17: 0.002484873853 | P17: ='PL Volumes data inputs'!D15 -> 34 | Q17: ='PL Volumes data inputs'!E15 -> 34 | R17: ='PL Volumes data inputs'!F15 -> 34 | S17: ='PL Volumes data inputs'!G15 -> 34 | T17: ='PL Volumes data inputs'!H15 -> 34 | U17: ='PL Volumes data inputs'!I15 -> 34 | X17: 20.374 | Y17: 22.51723628 | Z17: =Y17*(1-AO$8)*(1+'Cost data inputs'!F$4) -> 23.08538823 | AA17: =Z17*(1-AP$8)*(1+'Cost data inputs'!G$4) -> 23.89914816 | AB17: =AA17*(1-AQ$8)*(1+'Cost data inputs'!H$4) -> 23.87196288 | AC17: =AB17*(1-AR$8)*(1+'Cost data inputs'!I$4) -> 23.13521443 | AE17: 0.00253534056 | AF17: 0.002794389022 | AG17: 0.002864896679 | AH17: 0.002965884287 | AI17: 0.002970627061 | AJ17: 0.00287108011 | AL17: Pre Tax Nominal WACC | AM17: =(1+AM16)*(1+'Cost data inputs'!E7)-1 -> 0.1120129006
A18: ='Annuity Prices'!A110 -> 2x20W Fluorescent | B18: ='Cost data inputs'!B201 -> 29.62 | C18: ='Summary Real $2011-12'!C18*'Cost data inputs'!E$6 -> 23.0030675 | D18: ='Summary Real $2011-12'!D18*'Cost data inputs'!F$6 -> 23.14423606 | E18: ='Summary Real $2011-12'!E18*'Cost data inputs'!G$6 -> 22.85611048 | F18: ='Summary Real $2011-12'!F18*'Cost data inputs'!H$6 -> 20.88795747 | G18: ='Summary Real $2011-12'!G18*'Cost data inputs'!I$6 -> 20.1747359 | I18: 0.0052036416 | J18: 0.004030137426 | K18: 0.004054870158 | L18: 0.004004390557 | M18: 0.003669596368 | N18: 0.00353461373 | P18: ='PL Volumes data inputs'!D16 -> 48 | Q18: ='PL Volumes data inputs'!E16 -> 48 | R18: ='PL Volumes data inputs'!F16 -> 48 | S18: ='PL Volumes data inputs'!G16 -> 48 | T18: ='PL Volumes data inputs'!H16 -> 48 | U18: ='PL Volumes data inputs'!I16 -> 48 | X18: 29.62 | Y18: 22.65144295 | Z18: =Y18*(1-AO$8)*(1+'Cost data inputs'!F$4) -> 23.22298119 | AA18: =Z18*(1-AP$8)*(1+'Cost data inputs'!G$4) -> 24.04159127 | AB18: =AA18*(1-AQ$8)*(1+'Cost data inputs'!H$4) -> 24.01424396 | AC18: =AB18*(1-AR$8)*(1+'Cost data inputs'!I$4) -> 23.27310436 | AE18: 0.0052036416 | AF18: 0.003968532805 | AG18: 0.004068666304 | AH18: 0.004212086791 | AI18: 0.004218822379 | AJ18: 0.004077447883
A19: ='Annuity Prices'!A118 -> 1x40W Fluorescent | B19: ='Cost data inputs'!B202 -> 25.325 | C19: ='Summary Real $2011-12'!C19*'Cost data inputs'!E$6 -> 22.8750375 | D19: ='Summary Real $2011-12'!D19*'Cost data inputs'!F$6 -> 23.01300531 | E19: ='Summary Real $2011-12'!E19*'Cost data inputs'!G$6 -> 22.72159897 | F19: ='Summary Real $2011-12'!F19*'Cost data inputs'!H$6 -> 20.75008316 | G19: ='Summary Real $2011-12'!G19*'Cost data inputs'!I$6 -> 20.03341474 | I19: 0.0041710275 | J19: 0.003757224909 | K19: 0.003779886123 | L19: 0.00373202263 | M19: 0.003417538697 | N19: 0.003290488371 | P19: ='PL Volumes data inputs'!D17 -> 45 | Q19: ='PL Volumes data inputs'!E17 -> 45 | R19: ='PL Volumes data inputs'!F17 -> 45 | S19: ='PL Volumes data inputs'!G17 -> 45 | T19: ='PL Volumes data inputs'!H17 -> 45 | U19: ='PL Volumes data inputs'!I17 -> 45 | X19: 25.325 | Y19: 22.52537002 | Z19: =Y19*(1-AO$8)*(1+'Cost data inputs'!F$4) -> 23.09372719 | AA19: =Z19*(1-AP$8)*(1+'Cost data inputs'!G$4) -> 23.90778108 | AB19: =AA19*(1-AQ$8)*(1+'Cost data inputs'!H$4) -> 23.88058598 | AC19: =AB19*(1-AR$8)*(1+'Cost data inputs'!I$4) -> 23.14357139 | AE19: 0.0041710275 | AF19: 0.003699792025 | AG19: 0.003793144692 | AH19: 0.003926853042 | AI19: 0.00393313251 | AJ19: 0.003801331601
A20: ='Annuity Prices'!A126 -> 2x40W Fluorescent | B20: ='Cost data inputs'!B203 -> 39.62 | C20: ='Summary Real $2011-12'!C20*'Cost data inputs'!E$6 -> 24.0665425 | D20: ='Summary Real $2011-12'!D20*'Cost data inputs'!F$6 -> 24.20254856 | E20: ='Summary Real $2011-12'!E20*'Cost data inputs'!G$6 -> 23.90508338 | F20: ='Summary Real $2011-12'!F20*'Cost data inputs'!H$6 -> 21.91423154 | G20: ='Summary Real $2011-12'!G20*'Cost data inputs'!I$6 -> 21.18107936 | I20: 0.0001450092 | J20: 8.784288013e-05 | K20: 8.833930225e-05 | L20: 8.725355432e-05 | M20: 8.020608744e-05 | N20: 7.731093965e-05 | P20: ='PL Volumes data inputs'!D18 -> 1 | Q20: ='PL Volumes data inputs'!E18 -> 1 | R20: ='PL Volumes data inputs'!F18 -> 1 | S20: ='PL Volumes data inputs'!G18 -> 1 | T20: ='PL Volumes data inputs'!H18 -> 1 | U20: ='PL Volumes data inputs'!I18 -> 1 | X20: 39.62 | Y20: 23.69866169 | Z20: =Y20*(1-AO$8)*(1+'Cost data inputs'!F$4) -> 24.29662321 | AA20: =Z20*(1-AP$8)*(1+'Cost data inputs'!G$4) -> 25.15307918 | AB20: =AA20*(1-AQ$8)*(1+'Cost data inputs'!H$4) -> 25.12446755 | AC20: =AB20*(1-AR$8)*(1+'Cost data inputs'!I$4) -> 24.34906367 | AE20: 0.0001450092 | AF20: 8.650011516e-05 | AG20: 8.868267471e-05 | AH20: 9.180873899e-05 | AI20: 9.195555123e-05 | AJ20: 8.887408239e-05
A21: ='Annuity Prices'!A134 -> 3x40W Fluorescent | B21: ='Cost data inputs'!B204 -> 52.158 | C21: ='Summary Real $2011-12'!C21*'Cost data inputs'!E$6 -> 24.212125 | D21: ='Summary Real $2011-12'!D21*'Cost data inputs'!F$6 -> 24.35177063 | E21: ='Summary Real $2011-12'!E21*'Cost data inputs'!G$6 -> 24.05803599 | F21: ='Summary Real $2011-12'!F21*'Cost data inputs'!H$6 -> 22.07100797 | G21: ='Summary Real $2011-12'!G21*'Cost data inputs'!I$6 -> 21.3417752 | I21: 0.00019089828 | J21: 8.837425625e-05 | K21: 8.888396278e-05 | L21: 8.781183137e-05 | M21: 8.077988917e-05 | N21: 7.789747947e-05 | P21: ='PL Volumes data inputs'!D19 -> 1 | Q21: ='PL Volumes data inputs'!E19 -> 1 | R21: ='PL Volumes data inputs'!F19 -> 1 | S21: ='PL Volumes data inputs'!G19 -> 1 | T21: ='PL Volumes data inputs'!H19 -> 1 | U21: ='PL Volumes data inputs'!I19 -> 1 | X21: 52.158 | Y21: 23.84201882 | Z21: =Y21*(1-AO$8)*(1+'Cost data inputs'!F$4) -> 24.4435975 | AA21: =Z21*(1-AP$8)*(1+'Cost data inputs'!G$4) -> 25.30523432 | AB21: =AA21*(1-AQ$8)*(1+'Cost data inputs'!H$4) -> 25.27644961 | AC21: =AB21*(1-AR$8)*(1+'Cost data inputs'!I$4) -> 24.49635519 | AE21: 0.00019089828 | AF21: 8.702336868e-05 | AG21: 8.921913089e-05 | AH21: 9.236410525e-05 | AI21: 9.251180558e-05 | AJ21: 8.941169643e-05
A22: ='Annuity Prices'!A142 -> 4x40W Fluorescent | B22: ='Cost data inputs'!B205 -> 64.743 | C22: ='Summary Real $2011-12'!C22*'Cost data inputs'!E$6 -> 25.170285 | D22: ='Summary Real $2011-12'!D22*'Cost data inputs'!F$6 -> 25.33388462 | E22: ='Summary Real $2011-12'!E22*'Cost data inputs'!G$6 -> 25.06470284 | F22: ='Summary Real $2011-12'!F22*'Cost data inputs'!H$6 -> 23.1017296 | G22: ='Summary Real $2011-12'!G22*'Cost data inputs'!I$6 -> 22.4039633 | I22: 0.00023695938 | J22: 9.187154025e-05 | K22: 9.246867888e-05 | L22: 9.148616537e-05 | M22: 8.455233034e-05 | N22: 8.177446605e-05 | P22: ='PL Volumes data inputs'!D20 -> 1 | Q22: ='PL Volumes data inputs'!E20 -> 1 | R22: ='PL Volumes data inputs'!F20 -> 1 | S22: ='PL Volumes data inputs'!G20 -> 1 | T22: ='PL Volumes data inputs'!H20 -> 1 | U22: ='PL Volumes data inputs'!I20 -> 1 | X22: 64.743 | Y22: 24.7855324 | Z22: =Y22*(1-AO$8)*(1+'Cost data inputs'!F$4) -> 25.4109177 | AA22: =Z22*(1-AP$8)*(1+'Cost data inputs'!G$4) -> 26.30665254 | AB22: =AA22*(1-AQ$8)*(1+'Cost data inputs'!H$4) -> 26.27672873 | AC22: =AB22*(1-AR$8)*(1+'Cost data inputs'!I$4) -> 25.46576319 | AE22: 0.00023695938 | AF22: 9.046719324e-05 | AG22: 9.274984959e-05 | AH22: 9.601928178e-05 | AI22: 9.617282714e-05 | AJ22: 9.295003563e-05
A23: ='Annuity Prices'!A150 -> 60W Incandescent | B23: ='Cost data inputs'!B206 -> 53.74 | C23: ='Summary Real $2011-12'!C23*'Cost data inputs'!E$6 -> 22.7883075 | D23: ='Summary Real $2011-12'!D23*'Cost data inputs'!F$6 -> 22.92410706 | E23: ='Summary Real $2011-12'!E23*'Cost data inputs'!G$6 -> 22.63047826 | F23: ='Summary Real $2011-12'!F23*'Cost data inputs'!H$6 -> 20.65668444 | G23: ='Summary Real $2011-12'!G23*'Cost data inputs'!I$6 -> 19.93654136 | I23: 0.0027536376 | J23: 0.001164482513 | K23: 0.001171421871 | L23: 0.001156417439 | M23: 0.001058448511 | N23: 0.001018757263 | P23: ='PL Volumes data inputs'!D21 -> 14 | Q23: ='PL Volumes data inputs'!E21 -> 14 | R23: ='PL Volumes data inputs'!F21 -> 14 | S23: ='PL Volumes data inputs'!G21 -> 14 | T23: ='PL Volumes data inputs'!H21 -> 14 | U23: ='PL Volumes data inputs'!I21 -> 14 | X23: 53.74 | Y23: 22.43996577 | Z23: =Y23*(1-AO$8)*(1+'Cost data inputs'!F$4) -> 23.00616804 | AA23: =Z23*(1-AP$8)*(1+'Cost data inputs'!G$4) -> 23.81713546 | AB23: =AA23*(1-AQ$8)*(1+'Cost data inputs'!H$4) -> 23.79004347 | AC23: =AB23*(1-AR$8)*(1+'Cost data inputs'!I$4) -> 23.05582325 | AE23: 0.0027536376 | AF23: 0.001146682251 | AG23: 0.001175615187 | AH23: 0.001217055622 | AI23: 0.001219001827 | AJ23: 0.001178152568
A24: ='Annuity Prices'!A158 -> 100W Incandescent | B24: ='Cost data inputs'!B207 -> 72.831 | C24: ='Summary Real $2011-12'!C24*'Cost data inputs'!E$6 -> 23.83423 | D24: ='Summary Real $2011-12'!D24*'Cost data inputs'!F$6 -> 23.96442825 | E24: ='Summary Real $2011-12'!E24*'Cost data inputs'!G$6 -> 23.66101006 | F24: ='Summary Real $2011-12'!F24*'Cost data inputs'!H$6 -> 21.66405639 | G24: ='Summary Real $2011-12'!G24*'Cost data inputs'!I$6 -> 20.92351014 | I24: 0.00293217606 | J24: 0.0009569443345 | K24: 0.0009621717942 | L24: 0.0009499895538 | M24: 0.0008721949102 | N24: 0.000840078932 | P24: ='PL Volumes data inputs'!D22 -> 11 | Q24: ='PL Volumes data inputs'!E22 -> 11 | R24: ='PL Volumes data inputs'!F22 -> 11 | S24: ='PL Volumes data inputs'!G22 -> 11 | T24: ='PL Volumes data inputs'!H22 -> 11 | U24: ='PL Volumes data inputs'!I22 -> 11 | X24: 72.831 | Y24: 23.46990031 | Z24: =Y24*(1-AO$8)*(1+'Cost data inputs'!F$4) -> 24.06208976 | AA24: =Z24*(1-AP$8)*(1+'Cost data inputs'!G$4) -> 24.91027842 | AB24: =AA24*(1-AQ$8)*(1+'Cost data inputs'!H$4) -> 24.88194298 | AC24: =AB24*(1-AR$8)*(1+'Cost data inputs'!I$4) -> 24.11402401 | AE24: 0.00293217606 | AF24: 0.0009423164976 | AG24: 0.0009660929037 | AH24: 0.001000147679 | AI24: 0.001001747024 | AJ24: 0.0009681780641
A25: ='Annuity Prices'!A167 -> Pole Surcharge | B25: ='Cost data inputs'!B208 -> 27.164 | C25: ='Summary Real $2011-12'!C25*'Cost data inputs'!E$6 -> 24.89977 | D25: ='Summary Real $2011-12'!D25*'Cost data inputs'!F$6 -> 25.52226425 | E25: ='Summary Real $2011-12'!E25*'Cost data inputs'!G$6 -> 26.16032086 | F25: ='Summary Real $2011-12'!F25*'Cost data inputs'!H$6 -> 26.74094417 | G25: ='Summary Real $2011-12'!G25*'Cost data inputs'!I$6 -> 27.4846871 | I25: 0.1063796568 | J25: 0.09724605174 | K25: 0.09967720303 | L25: 0.1021691331 | M25: 0.1047228855 | N25: 0.1073414455 | P25: ='PL Volumes data inputs'!C27 -> 1070 | Q25: ='PL Volumes data inputs'!D27 -> 1070 | R25: ='PL Volumes data inputs'!E27 -> 1070 | S25: ='PL Volumes data inputs'!F27 -> 1070 | T25: ='PL Volumes data inputs'!G27 -> 1070 | U25: ='PL Volumes data inputs'!H27 -> 1070 | X25: 27.164 | Y25: 24.51915248 | Z25: =Y25*(1-AO$8)*(1+'Cost data inputs'!F$4) -> 25.13781652 | AA25: =Z25*(1-AP$8)*(1+'Cost data inputs'!G$4) -> 26.02392455 | AB25: =AA25*(1-AQ$8)*(1+'Cost data inputs'!H$4) -> 25.99432234 | AC25: =AB25*(1-AR$8)*(1+'Cost data inputs'!I$4) -> 25.19207257 | AE25: 0.1063796568 | AF25: 0.09575955003 | AG25: 0.09817574242 | AH25: 0.1016364373 | AI25: 0.1017989651 | AJ25: 0.0983876394
I26: =SUM(I5:I25) -> 0.5041869966 | J26: =SUM(J5:J25) -> 0.255626041 | K26: =SUM(K5:K25) -> 0.2589929686 | L26: 0.2595324447 | M26: 0.2492139832 | N26: 0.2465957029 | P26: =SUM(P5:P24) -> 1837 | Q26: =SUM(Q5:Q24) -> 1837 | R26: =SUM(R5:R24) -> 1837 | S26: 1837 | T26: 1837 | U26: 1837 | AE26: =SUM(AE5:AE25) -> 0.5041869966 | AF26: =SUM(AF5:AF25) -> 0.2517185451 | AG26: =SUM(AG5:AG25) -> 0.2580698744 | AH26: 0.2671668375 | AI26: 0.2675940665 | AJ26: 0.2586268779
A28: Public Road Lights | B28: 2011/12 | C28: 2012-13 | D28: 2013-14 | E28: 2014-15 | F28: 2015-16 | G28: 2016-17 | I28: 2011/12 | J28: 2012-13 | K28: 2013-14 | L28: 2014-15 | M28: 2015-16 | N28: 2016-17 | P28: 2011/12 | Q28: 2012-13 | R28: 2013-14 | S28: 2014-15 | T28: 2015-16 | U28: 2016-17 | X28: =X4 -> 2011/12 | Y28: =Y4 -> 2012-13 | Z28: 2013-14 | AA28: 2014-15 | AB28: 2015-16 | AC28: 2016-17 | AE28: =AE4 -> 2011/12 | AF28: =AF4 -> 2012-13 | AG28: 2013-14 | AH28: 2014-15 | AI28: 2015-16 | AJ28: 2016-17
A29: ='Annuity Prices'!A171 -> 50W Mercury Vapour | B29: ='Cost data inputs'!B211 -> 30.251 | C29: ='Summary Real $2011-12'!C29*'Cost data inputs'!E$6 -> 35.0502775 | D29: ='Summary Real $2011-12'!D29*'Cost data inputs'!F$6 -> 35.43971069 | E29: ='Summary Real $2011-12'!E29*'Cost data inputs'!G$6 -> 35.34290155 | F29: ='Summary Real $2011-12'!F29*'Cost data inputs'!H$6 -> 33.48677819 | G29: ='Summary Real $2011-12'!G29*'Cost data inputs'!I$6 -> 32.95974253 | I29: =B29*P29*I$3/100/10^6 -> 0.3932726803 | J29: 0.462223782 | K29: 0.4751207093 | L29: 0.4815629379 | M29: 0.4648761798 | N29: 0.4635276911 | P29: ='PL Volumes data inputs'!D33 -> 3552 | Q29: ='PL Volumes data inputs'!E33 -> 3613 | R29: ='PL Volumes data inputs'!F33 -> 3673 | S29: ='PL Volumes data inputs'!G33 -> 3733 | T29: ='PL Volumes data inputs'!H33 -> 3793 | U29: ='PL Volumes data inputs'!I33 -> 3853 | X29: =B29 -> 30.251 | Y29: =C29*(1+$AM$15) -> 34.51449948 | Z29: =Y29*(1-AO$8)*(1+'Cost data inputs'!F$4) -> 35.3853648 | AA29: =Z29*(1-AP$8)*(1+'Cost data inputs'!G$4) -> 36.6326989 | AB29: =AA29*(1-AQ$8)*(1+'Cost data inputs'!H$4) -> 36.59102921 | AC29: =AB29*(1-AR$8)*(1+'Cost data inputs'!I$4) -> 35.46173857 | AE29: =X29*P29*I$3/100/10^6 -> 0.3932726803 | AF29: =Y29*Q29*J$3/100/10^6 -> 0.4551582361 | AG29: =Z29*R29*K$3/100/10^6 -> 0.4743921239 | AH29: 0.4991370073 | AI29: 0.5079705721 | AJ29: 0.4987143873
A30: ='Annuity Prices'!A182 -> 80W Mercury Vapour Aeroscreen | B30: ='Cost data inputs'!B212 -> 29.787 | C30: ='Summary Real $2011-12'!C30*'Cost data inputs'!E$6 -> 35.0502775 | D30: ='Summary Real $2011-12'!D30*'Cost data inputs'!F$6 -> 35.43971069 | E30: ='Summary Real $2011-12'!E30*'Cost data inputs'!G$6 -> 35.34290155 | F30: ='Summary Real $2011-12'!F30*'Cost data inputs'!H$6 -> 33.48677819 | G30: ='Summary Real $2011-12'!G30*'Cost data inputs'!I$6 -> 32.95974253 | I30: 3.439485231 | J30: 4.105130561 | K30: 4.219946338 | L30: 4.277434743 | M30: 4.129468264 | N30: 4.117733146 | P30: ='PL Volumes data inputs'!D34 -> 31549 | Q30: ='PL Volumes data inputs'!E34 -> 32088 | R30: ='PL Volumes data inputs'!F34 -> 32623 | S30: ='PL Volumes data inputs'!G34 -> 33158 | T30: ='PL Volumes data inputs'!H34 -> 33693 | U30: ='PL Volumes data inputs'!I34 -> 34228 | X30: =B30 -> 29.787 | Y30: 34.51449948 | Z30: =Y30*(1-AO$8)*(1+'Cost data inputs'!F$4) -> 35.3853648 | AA30: =Z30*(1-AP$8)*(1+'Cost data inputs'!G$4) -> 36.6326989 | AB30: =AA30*(1-AQ$8)*(1+'Cost data inputs'!H$4) -> 36.59102921 | AC30: =AB30*(1-AR$8)*(1+'Cost data inputs'!I$4) -> 35.46173857 | AE30: =X30*P30*I$3/100/10^6 -> 3.439485231 | AF30: =Y30*Q30*J$3/100/10^6 -> 4.042379596 | AG30: =Z30*R30*K$3/100/10^6 -> 4.213475158 | AH30: =AA30*S30*L$3/100/10^6 -> 4.433534661 | AI30: =AB30*T30*M$3/100/10^6 -> 4.512273263 | AJ30: =AC30*U30*N$3/100/10^6 -> 4.430313015
A31: ='Annuity Prices'!A193 -> 80W Mercury Vapour Art decorative | B31: ='Cost data inputs'!B213 -> 53.27 | C31: ='Summary Real $2011-12'!C31*'Cost data inputs'!E$6 -> 56.4684575 | D31: ='Summary Real $2011-12'!D31*'Cost data inputs'!F$6 -> 57.3944035 | E31: ='Summary Real $2011-12'!E31*'Cost data inputs'!G$6 -> 57.85405508 | F31: ='Summary Real $2011-12'!F31*'Cost data inputs'!H$6 -> 56.53068953 | G31: ='Summary Real $2011-12'!G31*'Cost data inputs'!I$6 -> 56.69486003 | I31: 0.030220071 | J31: 0.03235924957 | K31: 0.03351833164 | L31: 0.03442027007 | M31: 0.03434578573 | N31: 0.03497222441 | P31: ='PL Volumes data inputs'!D35 -> 155 | Q31: ='PL Volumes data inputs'!E35 -> 157 | R31: ='PL Volumes data inputs'!F35 -> 160 | S31: ='PL Volumes data inputs'!G35 -> 163 | T31: ='PL Volumes data inputs'!H35 -> 166 | U31: ='PL Volumes data inputs'!I35 -> 169 | X31: 53.27 | Y31: 55.60528149 | Z31: =Y31*(1-AO$8)*(1+'Cost data inputs'!F$4) -> 57.00830666 | AA31: =Z31*(1-AP$8)*(1+'Cost data inputs'!G$4) -> 59.01784947 | AB31: =AA31*(1-AQ$8)*(1+'Cost data inputs'!H$4) -> 58.95071666 | AC31: =AB31*(1-AR$8)*(1+'Cost data inputs'!I$4) -> 57.13135017 | AE31: 0.030220071 | AF31: 0.03186460656 | AG31: 0.03329285109 | AH31: 0.03511266954 | AI31: 0.03581609742 | AJ31: 0.03524147335
A32: ='Annuity Prices'!A204 -> 125W Mercury Vapour | B32: ='Cost data inputs'!B214 -> 35.842 | C32: ='Summary Real $2011-12'!C32*'Cost data inputs'!E$6 -> 40.8880325 | D32: ='Summary Real $2011-12'!D32*'Cost data inputs'!F$6 -> 41.33980287 | E32: ='Summary Real $2011-12'!E32*'Cost data inputs'!G$6 -> 41.27117131 | F32: ='Summary Real $2011-12'!F32*'Cost data inputs'!H$6 -> 39.38424047 | G32: ='Summary Real $2011-12'!G32*'Cost data inputs'!I$6 -> 38.84736459 | I32: 0.02138262036 | J32: 0.02477405889 | K32: 0.0255004574 | L32: 0.02591004135 | M32: 0.02522560602 | N32: 0.02523913277 | P32: ='PL Volumes data inputs'!D36 -> 163 | Q32: ='PL Volumes data inputs'!E36 -> 166 | R32: ='PL Volumes data inputs'!F36 -> 169 | S32: ='PL Volumes data inputs'!G36 -> 172 | T32: ='PL Volumes data inputs'!H36 -> 175 | U32: ='PL Volumes data inputs'!I36 -> 178 | X32: 35.842 | Y32: 40.26301864 | Z32: =Y32*(1-AO$8)*(1+'Cost data inputs'!F$4) -> 41.27892984 | AA32: =Z32*(1-AP$8)*(1+'Cost data inputs'!G$4) -> 42.73401212 | AB32: =AA32*(1-AQ$8)*(1+'Cost data inputs'!H$4) -> 42.68540218 | AC32: =AB32*(1-AR$8)*(1+'Cost data inputs'!I$4) -> 41.36802395 | AE32: 0.02138262036 | AF32: 0.02439536299 | AG32: 0.02546290787 | AH32: 0.02682841281 | AI32: 0.0273400001 | AJ32: 0.02687680516
A33: ='Annuity Prices'!A215 -> 250W Mercury Vapour | B33: ='Cost data inputs'!B215 -> 28.35 | C33: ='Summary Real $2011-12'!C33*'Cost data inputs'!E$6 -> 41.405315 | D33: ='Summary Real $2011-12'!D33*'Cost data inputs'!F$6 -> 41.86895912 | E33: ='Summary Real $2011-12'!E33*'Cost data inputs'!G$6 -> 41.81464124 | F33: ='Summary Real $2011-12'!F33*'Cost data inputs'!H$6 -> 39.94018526 | G33: ='Summary Real $2011-12'!G33*'Cost data inputs'!I$6 -> 39.41948737 | I33: 0.127210986 | J33: 0.1884583615 | K33: 0.1937779166 | L33: 0.1967316148 | M33: 0.1914972122 | N33: 0.1915057826 | P33: ='PL Volumes data inputs'!D37 -> 1226 | Q33: ='PL Volumes data inputs'!E37 -> 1247 | R33: ='PL Volumes data inputs'!F37 -> 1268 | S33: ='PL Volumes data inputs'!G37 -> 1289 | T33: ='PL Volumes data inputs'!H37 -> 1310 | U33: ='PL Volumes data inputs'!I37 -> 1331 | X33: 28.35 | Y33: 40.77239397 | Z33: =Y33*(1-AO$8)*(1+'Cost data inputs'!F$4) -> 41.80115766 | AA33: =Z33*(1-AP$8)*(1+'Cost data inputs'!G$4) -> 43.27464847 | AB33: =AA33*(1-AQ$8)*(1+'Cost data inputs'!H$4) -> 43.22542355 | AC33: =AB33*(1-AR$8)*(1+'Cost data inputs'!I$4) -> 41.89137892 | AE33: 0.127210986 | AF33: 0.1855775898 | AG33: 0.1934641179 | AH33: 0.2036007298 | AI33: 0.2072486158 | AJ33: 0.2035146025
A34: ='Annuity Prices'!A226 -> 400W Mercury Vapour | B34: ='Cost data inputs'!B216 -> 0.481 | C34: ='Summary Real $2011-12'!C34*'Cost data inputs'!E$6 -> 46.4119075 | D34: ='Summary Real $2011-12'!D34*'Cost data inputs'!F$6 -> 47.00177475 | E34: ='Summary Real $2011-12'!E34*'Cost data inputs'!G$6 -> 47.07686202 | F34: ='Summary Real $2011-12'!F34*'Cost data inputs'!H$6 -> 45.32729022 | G34: ='Summary Real $2011-12'!G34*'Cost data inputs'!I$6 -> 44.96862245 | I34: 0.00181855518 | J34: 0.1778736355 | K34: 0.1832223183 | L34: 0.1866079734 | M34: 0.183151262 | N34: 0.1841599995 | P34: ='PL Volumes data inputs'!D38 -> 1033 | Q34: ='PL Volumes data inputs'!E38 -> 1050 | R34: ='PL Volumes data inputs'!F38 -> 1068 | S34: ='PL Volumes data inputs'!G38 -> 1086 | T34: ='PL Volumes data inputs'!H38 -> 1104 | U34: ='PL Volumes data inputs'!I38 -> 1122 | X34: 0.481 | Y34: 45.70245577 | Z34: =Y34*(1-AO$8)*(1+'Cost data inputs'!F$4) -> 46.85561413 | AA34: =Z34*(1-AP$8)*(1+'Cost data inputs'!G$4) -> 48.50727453 | AB34: =AA34*(1-AQ$8)*(1+'Cost data inputs'!H$4) -> 48.45209751 | AC34: =AB34*(1-AR$8)*(1+'Cost data inputs'!I$4) -> 46.95674465 | AE34: 0.00181855518 | AF34: 0.1751546617 | AG34: 0.182652555 | AH34: 0.1922779855 | AI34: 0.1957774833 | AJ34: 0.1923019563
A35: ='Annuity Prices'!A237 -> 70W Sodium Vapour | B35: ='Cost data inputs'!B217 -> 33.098 | C35: ='Summary Real $2011-12'!C35*'Cost data inputs'!E$6 -> 37.5695775 | D35: ='Summary Real $2011-12'!D35*'Cost data inputs'!F$6 -> 38.02093488 | E35: ='Summary Real $2011-12'!E35*'Cost data inputs'!G$6 -> 37.98974111 | F35: ='Summary Real $2011-12'!F35*'Cost data inputs'!H$6 -> 36.19645307 | G35: ='Summary Real $2011-12'!G35*'Cost data inputs'!I$6 -> 35.75083553 | I35: 0.02313748788 | J35: 0.02674014679 | K35: 0.02747772963 | L35: 0.02787117357 | M35: 0.02702571972 | N35: 0.02701154378 | P35: ='PL Volumes data inputs'!D39 -> 191 | Q35: ='PL Volumes data inputs'!E39 -> 195 | R35: ='PL Volumes data inputs'!F39 -> 198 | S35: ='PL Volumes data inputs'!G39 -> 201 | T35: ='PL Volumes data inputs'!H39 -> 204 | U35: ='PL Volumes data inputs'!I39 -> 207 | X35: 33.098 | Y35: 36.99528949 | Z35: =Y35*(1-AO$8)*(1+'Cost data inputs'!F$4) -> 37.92874978 | AA35: =Z35*(1-AP$8)*(1+'Cost data inputs'!G$4) -> 39.26573821 | AB35: =AA35*(1-AQ$8)*(1+'Cost data inputs'!H$4) -> 39.22107343 | AC35: =AB35*(1-AR$8)*(1+'Cost data inputs'!I$4) -> 38.01061306 | AE35: 0.02313748788 | AF35: 0.0263313973 | AG35: 0.02741110747 | AH35: 0.02880730884 | AI35: 0.02928402227 | AJ35: 0.02871891869
A36: ='Annuity Prices'!A248 -> 100W Sodium Vapour | B36: ='Cost data inputs'!B218 -> 36.546 | C36: ='Summary Real $2011-12'!C36*'Cost data inputs'!E$6 -> 37.721355 | D36: ='Summary Real $2011-12'!D36*'Cost data inputs'!F$6 -> 38.14581575 | E36: ='Summary Real $2011-12'!E36*'Cost data inputs'!G$6 -> 38.08086182 | F36: ='Summary Real $2011-12'!F36*'Cost data inputs'!H$6 -> 36.24315243 | G36: ='Summary Real $2011-12'!G36*'Cost data inputs'!I$6 -> 35.74741647 | I36: 0.04775173452 | J36: 0.04997890931 | K36: 0.05137669194 | L36: 0.05212317962 | M36: 0.05053962634 | N36: 0.05049501313 | P36: ='PL Volumes data inputs'!D40 -> 357 | Q36: ='PL Volumes data inputs'!E40 -> 363 | R36: ='PL Volumes data inputs'!F40 -> 369 | S36: ='PL Volumes data inputs'!G40 -> 375 | T36: ='PL Volumes data inputs'!H40 -> 381 | U36: ='PL Volumes data inputs'!I40 -> 387 | X36: 36.546 | Y36: 37.14474693 | Z36: =Y36*(1-AO$8)*(1+'Cost data inputs'!F$4) -> 38.0819783 | AA36: =Z36*(1-AP$8)*(1+'Cost data inputs'!G$4) -> 39.42436804 | AB36: =AA36*(1-AQ$8)*(1+'Cost data inputs'!H$4) -> 39.37952282 | AC36: =AB36*(1-AR$8)*(1+'Cost data inputs'!I$4) -> 38.1641723 | AE36: 0.04775173452 | AF36: 0.04921493244 | AG36: 0.05129071248 | AH36: 0.05396210375 | AI36: 0.05491316939 | AJ36: 0.05390880158
A37: ='Annuity Prices'!A259 -> 150W Sodium Vapour | B37: ='Cost data inputs'!B219 -> 38.699 | C37: ='Summary Real $2011-12'!C37*'Cost data inputs'!E$6 -> 42.22512 | D37: ='Summary Real $2011-12'!D37*'Cost data inputs'!F$6 -> 42.71031756 | E37: ='Summary Real $2011-12'!E37*'Cost data inputs'!G$6 -> 42.67594886 | F37: ='Summary Real $2011-12'!F37*'Cost data inputs'!H$6 -> 40.82191368 | G37: ='Summary Real $2011-12'!G37*'Cost data inputs'!I$6 -> 40.32895744 | I37: 0.5162717493 | J37: 0.5713290974 | K37: 0.5875594322 | L37: 0.5967441944 | M37: 0.5816461385 | N37: 0.5821787474 | P37: ='PL Volumes data inputs'!D41 -> 3645 | Q37: ='PL Volumes data inputs'!E41 -> 3707 | R37: ='PL Volumes data inputs'!F41 -> 3769 | S37: ='PL Volumes data inputs'!G41 -> 3831 | T37: ='PL Volumes data inputs'!H41 -> 3893 | U37: ='PL Volumes data inputs'!I41 -> 3955 | X37: 38.699 | Y37: 41.57966744 | Z37: =Y37*(1-AO$8)*(1+'Cost data inputs'!F$4) -> 42.62880015 | AA37: =Z37*(1-AP$8)*(1+'Cost data inputs'!G$4) -> 44.13146536 | AB37: =AA37*(1-AQ$8)*(1+'Cost data inputs'!H$4) -> 44.08126581 | AC37: =AB37*(1-AR$8)*(1+'Cost data inputs'!I$4) -> 42.72080775 | AE37: 0.5162717493 | AF37: 0.5625957693 | AG37: 0.5864380093 | AH37: 0.6170968998 | AI37: 0.6280866262 | AJ37: 0.6167069004
A38: ='Annuity Prices'!A270 -> 250W Sodium Vapour | B38: ='Cost data inputs'!B220 -> 38.77 | C38: ='Summary Real $2011-12'!C38*'Cost data inputs'!E$6 -> 42.36554 | D38: ='Summary Real $2011-12'!D38*'Cost data inputs'!F$6 -> 42.85424806 | E38: ='Summary Real $2011-12'!E38*'Cost data inputs'!G$6 -> 42.8245624 | F38: ='Summary Real $2011-12'!F38*'Cost data inputs'!H$6 -> 40.97313067 | G38: ='Summary Real $2011-12'!G38*'Cost data inputs'!I$6 -> 40.48395485 | I38: 0.6063310086 | J38: 0.6718856902 | K38: 0.691054748 | L38: 0.7019866505 | M38: 0.6844250082 | N38: 0.68519296 | P38: ='PL Volumes data inputs'!D42 -> 4273 | Q38: ='PL Volumes data inputs'!E42 -> 4345 | R38: ='PL Volumes data inputs'!F42 -> 4418 | S38: ='PL Volumes data inputs'!G42 -> 4491 | T38: ='PL Volumes data inputs'!H42 -> 4564 | U38: ='PL Volumes data inputs'!I42 -> 4637 | X38: 38.77 | Y38: 41.71794098 | Z38: =Y38*(1-AO$8)*(1+'Cost data inputs'!F$4) -> 42.77056259 | AA38: =Z38*(1-AP$8)*(1+'Cost data inputs'!G$4) -> 44.27822492 | AB38: =AA38*(1-AQ$8)*(1+'Cost data inputs'!H$4) -> 44.22785844 | AC38: =AB38*(1-AR$8)*(1+'Cost data inputs'!I$4) -> 42.86287616 | AE38: 0.6063310086 | AF38: 0.6616152555 | AG38: 0.6897052612 | AH38: 0.7258153047 | AI38: 0.7387927621 | AJ38: 0.7254563222
A39: ='Annuity Prices'!A281 -> 400W Sodium Vapour | B39: ='Cost data inputs'!B221 -> 11.852 | C39: ='Summary Real $2011-12'!C39*'Cost data inputs'!E$6 -> 42.594755 | D39: ='Summary Real $2011-12'!D39*'Cost data inputs'!F$6 -> 43.08919344 | E39: ='Summary Real $2011-12'!E39*'Cost data inputs'!G$6 -> 43.06429664 | F39: ='Summary Real $2011-12'!F39*'Cost data inputs'!H$6 -> 41.21997015 | G39: ='Summary Real $2011-12'!G39*'Cost data inputs'!I$6 -> 40.73810501 | I39: 0.0242918592 | J39: 0.08846291692 | K39: 0.09106254695 | L39: 0.09258177812 | M39: 0.09036818936 | N39: 0.09055469672 | P39: ='PL Volumes data inputs'!D43 -> 560 | Q39: ='PL Volumes data inputs'!E43 -> 569 | R39: ='PL Volumes data inputs'!F43 -> 579 | S39: ='PL Volumes data inputs'!G43 -> 589 | T39: ='PL Volumes data inputs'!H43 -> 599 | U39: ='PL Volumes data inputs'!I43 -> 609 | X39: 11.852 | Y39: 41.94365221 | Z39: =Y39*(1-AO$8)*(1+'Cost data inputs'!F$4) -> 43.00196893 | AA39: =Z39*(1-AP$8)*(1+'Cost data inputs'!G$4) -> 44.51778834 | AB39: =AA39*(1-AQ$8)*(1+'Cost data inputs'!H$4) -> 44.46714935 | AC39: =AB39*(1-AR$8)*(1+'Cost data inputs'!I$4) -> 43.09478195 | AE39: 0.0242918592 | AF39: 0.08711067408 | AG39: 0.09087821104 | AH39: 0.09570656725 | AI39: 0.09748711021 | AJ39: 0.09579323607
A40: ='Annuity Prices'!A292 -> 150W Metal Halide | B40: ='Cost data inputs'!B222 -> 43.65 | C40: ='Summary Real $2011-12'!C40*'Cost data inputs'!E$6 -> 42.22512 | D40: ='Summary Real $2011-12'!D40*'Cost data inputs'!F$6 -> 42.71031756 | E40: ='Summary Real $2011-12'!E40*'Cost data inputs'!G$6 -> 42.67594886 | F40: ='Summary Real $2011-12'!F40*'Cost data inputs'!H$6 -> 40.82191368 | G40: ='Summary Real $2011-12'!G40*'Cost data inputs'!I$6 -> 40.32895744 | I40: 0.001437831 | J40: 0.001387095192 | K40: 0.001403033932 | L40: 0.00140190492 | M40: 0.001344673837 | N40: 0.001324806252 | P40: ='PL Volumes data inputs'!D44 -> 9 | Q40: ='PL Volumes data inputs'!E44 -> 9 | R40: ='PL Volumes data inputs'!F44 -> 9 | S40: ='PL Volumes data inputs'!G44 -> 9 | T40: ='PL Volumes data inputs'!H44 -> 9 | U40: ='PL Volumes data inputs'!I44 -> 9 | X40: 43.65 | Y40: 41.57966744 | Z40: =Y40*(1-AO$8)*(1+'Cost data inputs'!F$4) -> 42.62880015 | AA40: =Z40*(1-AP$8)*(1+'Cost data inputs'!G$4) -> 44.13146536 | AB40: =AA40*(1-AQ$8)*(1+'Cost data inputs'!H$4) -> 44.08126581 | AC40: =AB40*(1-AR$8)*(1+'Cost data inputs'!I$4) -> 42.72080775 | AE40: 0.001437831 | AF40: 0.001365892075 | AG40: 0.001400356085 | AH40: 0.001449718637 | AI40: 0.001452036896 | AJ40: 0.001403378534
A41: ='Annuity Prices'!A303 -> 250W Metal Halide | B41: ='Cost data inputs'!B223 -> 42.156 | C41: ='Summary Real $2011-12'!C41*'Cost data inputs'!E$6 -> 42.36554 | D41: ='Summary Real $2011-12'!D41*'Cost data inputs'!F$6 -> 42.85424806 | E41: ='Summary Real $2011-12'!E41*'Cost data inputs'!G$6 -> 42.8245624 | F41: ='Summary Real $2011-12'!F41*'Cost data inputs'!H$6 -> 40.97313067 | G41: ='Summary Real $2011-12'!G41*'Cost data inputs'!I$6 -> 40.48395485 | I41: 0.00493731072 | J41: 0.004948295072 | K41: 0.005161794179 | L41: 0.005314528193 | M41: 0.005248658038 | N41: 0.005319591667 | P41: ='PL Volumes data inputs'!D45 -> 32 | Q41: ='PL Volumes data inputs'!E45 -> 32 | R41: ='PL Volumes data inputs'!F45 -> 33 | S41: ='PL Volumes data inputs'!G45 -> 34 | T41: ='PL Volumes data inputs'!H45 -> 35 | U41: ='PL Volumes data inputs'!I45 -> 36 | X41: 42.156 | Y41: 41.71794098 | Z41: =Y41*(1-AO$8)*(1+'Cost data inputs'!F$4) -> 42.77056259 | AA41: =Z41*(1-AP$8)*(1+'Cost data inputs'!G$4) -> 44.27822492 | AB41: =AA41*(1-AQ$8)*(1+'Cost data inputs'!H$4) -> 44.22785844 | AC41: =AB41*(1-AR$8)*(1+'Cost data inputs'!I$4) -> 42.86287616 | AE41: 0.00493731072 | AF41: 0.004872655507 | AG41: 0.005151714264 | AH41: 0.005494927713 | AI41: 0.005665588666 | AJ41: 0.005632181928
A42: ='Annuity Prices'!A314 -> 2x20W Fluorescent | B42: ='Cost data inputs'!B224 -> 36.142 | C42: ='Summary Real $2011-12'!C42*'Cost data inputs'!E$6 -> 39.6036025 | D42: ='Summary Real $2011-12'!D42*'Cost data inputs'!F$6 -> 40.10686881 | E42: ='Summary Real $2011-12'!E42*'Cost data inputs'!G$6 -> 40.1278234 | F42: ='Summary Real $2011-12'!F42*'Cost data inputs'!H$6 -> 38.38465175 | G42: ='Summary Real $2011-12'!G42*'Cost data inputs'!I$6 -> 38.00513604 | I42: 0.00119051748 | J42: 0.001300978342 | K42: 0.00131751064 | L42: 0.001318198999 | M42: 0.001264390429 | N42: 0.001248468719 | P42: ='PL Volumes data inputs'!D46 -> 9 | Q42: ='PL Volumes data inputs'!E46 -> 9 | R42: ='PL Volumes data inputs'!F46 -> 9 | S42: ='PL Volumes data inputs'!G46 -> 9 | T42: ='PL Volumes data inputs'!H46 -> 9 | U42: ='PL Volumes data inputs'!I46 -> 9 | X42: 36.142 | Y42: 38.99822242 | Z42: =Y42*(1-AO$8)*(1+'Cost data inputs'!F$4) -> 39.98222045 | AA42: =Z42*(1-AP$8)*(1+'Cost data inputs'!G$4) -> 41.39159372 | AB42: =AA42*(1-AQ$8)*(1+'Cost data inputs'!H$4) -> 41.34451078 | AC42: =AB42*(1-AR$8)*(1+'Cost data inputs'!I$4) -> 40.06851581 | AE42: 0.00119051748 | AF42: 0.001281091606 | AG42: 0.001313415942 | AH42: 0.001359713854 | AI42: 0.001361888185 | AJ42: 0.001316250745
A43: ='Annuity Prices'!A325 -> 2x40W Fluorescent | B43: ='Cost data inputs'!B225 -> 36.142 | C43: ='Summary Real $2011-12'!C43*'Cost data inputs'!E$6 -> 39.1554975 | D43: ='Summary Real $2011-12'!D43*'Cost data inputs'!F$6 -> 39.61581181 | E43: ='Summary Real $2011-12'!E43*'Cost data inputs'!G$6 -> 39.58869255 | F43: ='Summary Real $2011-12'!F43*'Cost data inputs'!H$6 -> 37.78645516 | G43: ='Summary Real $2011-12'!G43*'Cost data inputs'!I$6 -> 37.33727957 | I43: 0.0046297902 | J43: 0.005002114806 | K43: 0.005205517672 | L43: 0.00534645293 | M43: 0.005255340183 | N43: 0.005314961747 | P43: ='PL Volumes data inputs'!D47 -> 35 | Q43: ='PL Volumes data inputs'!E47 -> 35 | R43: ='PL Volumes data inputs'!F47 -> 36 | S43: ='PL Volumes data inputs'!G47 -> 37 | T43: ='PL Volumes data inputs'!H47 -> 38 | U43: ='PL Volumes data inputs'!I47 -> 39 | X43: 36.142 | Y43: 38.55696714 | Z43: =Y43*(1-AO$8)*(1+'Cost data inputs'!F$4) -> 39.52983148 | AA43: =Z43*(1-AP$8)*(1+'Cost data inputs'!G$4) -> 40.92325804 | AB43: =AA43*(1-AQ$8)*(1+'Cost data inputs'!H$4) -> 40.87670783 | AC43: =AB43*(1-AR$8)*(1+'Cost data inputs'!I$4) -> 39.61515044 | AE43: 0.0046297902 | AF43: 0.004925652553 | AG43: 0.005194219856 | AH43: 0.005526685998 | AI43: 0.005685132525 | AJ43: 0.005639216664
A44: ='Annuity Prices'!A336 -> 42W Compact Fluorescent | B44: ='Cost data inputs'!B226 -> 33.97 | C44: ='Summary Real $2011-12'!C44*'Cost data inputs'!E$6 -> 37.5014325 | D44: ='Summary Real $2011-12'!D44*'Cost data inputs'!F$6 -> 37.95214456 | E44: ='Summary Real $2011-12'!E44*'Cost data inputs'!G$6 -> 37.91923104 | F44: ='Summary Real $2011-12'!F44*'Cost data inputs'!H$6 -> 36.12418025 | G44: ='Summary Real $2011-12'!G44*'Cost data inputs'!I$6 -> 35.67675589 | I44: 0.0438885606 | J44: 0.04914000208 | K44: 0.05056174459 | L44: 0.05134832672 | M44: 0.04984486639 | N44: 0.04987432089 | P44: ='PL Volumes data inputs'!D48 -> 353 | Q44: ='PL Volumes data inputs'!E48 -> 359 | R44: ='PL Volumes data inputs'!F48 -> 365 | S44: ='PL Volumes data inputs'!G48 -> 371 | T44: ='PL Volumes data inputs'!H48 -> 377 | U44: ='PL Volumes data inputs'!I48 -> 383 | X44: 33.97 | Y44: 36.92818616 | Z44: =Y44*(1-AO$8)*(1+'Cost data inputs'!F$4) -> 37.8599533 | AA44: =Z44*(1-AP$8)*(1+'Cost data inputs'!G$4) -> 39.19451666 | AB44: =AA44*(1-AQ$8)*(1+'Cost data inputs'!H$4) -> 39.14993289 | AC44: =AB44*(1-AR$8)*(1+'Cost data inputs'!I$4) -> 37.94166809 | AE44: 0.0438885606 | AF44: 0.04838884873 | AG44: 0.05043892279 | AH44: 0.05307525473 | AI44: 0.05401986041 | AJ44: 0.05304055491
A45: ='Annuity Prices'!A347 -> 60W Incandescent | B45: ='Cost data inputs'!B227 -> 44.443 | C45: ='Summary Real $2011-12'!C45*'Cost data inputs'!E$6 -> 34.3337225 | D45: ='Summary Real $2011-12'!D45*'Cost data inputs'!F$6 -> 34.70524181 | E45: ='Summary Real $2011-12'!E45*'Cost data inputs'!G$6 -> 34.59007095 | F45: ='Summary Real $2011-12'!F45*'Cost data inputs'!H$6 -> 32.71623872 | G45: ='Summary Real $2011-12'!G45*'Cost data inputs'!I$6 -> 32.16652051 | I45: 0.00211459794 | J45: 0.001629135133 | K45: 0.001646763724 | L45: 0.001641298867 | M45: 0.001556638638 | N45: 0.001526301398 | P45: ='PL Volumes data inputs'!D49 -> 13 | Q45: ='PL Volumes data inputs'!E49 -> 13 | R45: ='PL Volumes data inputs'!F49 -> 13 | S45: ='PL Volumes data inputs'!G49 -> 13 | T45: ='PL Volumes data inputs'!H49 -> 13 | U45: ='PL Volumes data inputs'!I49 -> 13 | X45: 44.443 | Y45: 33.80889773 | Z45: =Y45*(1-AO$8)*(1+'Cost data inputs'!F$4) -> 34.66195939 | AA45: =Z45*(1-AP$8)*(1+'Cost data inputs'!G$4) -> 35.88379346 | AB45: =AA45*(1-AQ$8)*(1+'Cost data inputs'!H$4) -> 35.84297565 | AC45: =AB45*(1-AR$8)*(1+'Cost data inputs'!I$4) -> 34.73677181 | AE45: 0.00211459794 | AF45: 0.001604232197 | AG45: 0.001644709973 | AH45: 0.001702686 | AI45: 0.001705408781 | AJ45: 0.001648259822
I46: =SUM(I29:I45) -> 5.289372591 | J46: =SUM(J29:J45) -> 6.46262403 | K46: =SUM(K29:K45) -> 6.644913585 | L46: 6.740345268 | M46: 6.52708356 | N46: 6.517179388 | P46: =SUM(P29:P45) -> 47155 | Q46: =SUM(Q29:Q45) -> 47957 | R46: =SUM(R29:R45) -> 48759 | S46: 49561 | T46: 50363 | U46: 51165 | AE46: =SUM(AE29:AE45) -> 5.289372591 | AF46: =SUM(AF29:AF45) -> 6.363836455 | AG46: =SUM(AG29:AG45) -> 6.633606355 | AH46: 6.980488637 | AI46: 7.104879637 | AJ46: 6.976226262
A48: Total | I48: =SUM(I26,I46) -> 5.793559587 | P48: 48992 | Q48: =SUM(Q26,Q46) -> 49794 | R48: =SUM(R26,R46) -> 50596 | S48: =SUM(S26,S46) -> 51398 | T48: =SUM(T26,T46) -> 52200 | U48: =SUM(U26,U46) -> 53002 | AE48: =SUM(AE26,AE46) -> 5.793559587 | AF48: =SUM(AF26,AF46) -> 6.615555 | AG48: 6.891676229 | AH48: 7.247655474 | AI48: 7.372473703 | AJ48: 7.23485314

Sheet Summary Real $2011-12
B2: Price (cents) per Light per day - Real $2011/12 | I2: Revenue ($m) - Real $2011/12 | P2: Volumes | X2: Revised Prices - Real $'s | AE2: Revised Revenues ($M) - Real $'s
I3: ='Cost data inputs'!C183 -> 366 | J3: ='Annuity Prices'!I2 -> 365 | K3: ='Annuity Prices'!J2 -> 365 | L3: ='Annuity Prices'!K2 -> 365 | M3: ='Annuity Prices'!L2 -> 366 | N3: ='Annuity Prices'!M2 -> 365
A4: Private Contract Lights | B4: 2011/12 | C4: 2012-13 | D4: 2013-14 | E4: 2014-15 | F4: 2015-16 | G4: 2016-17 | I4: 2011/12 | J4: 2012-13 | K4: 2013-14 | L4: 2014-15 | M4: 2015-16 | N4: 2016-17 | P4: 2011/12 | Q4: 2012-13 | R4: 2013-14 | S4: 2014-15 | T4: 2015-16 | U4: 2016-17 | X4: 2011/12 | Y4: 2012-13 | Z4: 2013-14 | AA4: 2014-15 | AB4: 2015-16 | AC4: 2016-17 | AE4: 2011/12 | AF4: 2012-13 | AG4: 2013-14 | AH4: 2014-15 | AI4: 2015-16 | AJ4: 2016-17
A5: ='Annuity Prices'!A6 -> 50W Mercury Vapour | B5: ='Cost data inputs'!B188 -> 33.27 | C5: ='Annuity Prices'!I12 -> 22.087 | D5: ='Annuity Prices'!J12 -> 21.676 | E5: ='Annuity Prices'!K12 -> 20.878 | F5: ='Annuity Prices'!L12 -> 18.593 | G5: ='Annuity Prices'!M12 -> 17.509 | I5: =B5*P5*I$3/100/10^6 -> 0.0314161956 | J5: =C5*Q5*J$3/100/10^6 -> 0.0207993279 | K5: =D5*R5*K$3/100/10^6 -> 0.0204122892 | L5: =E5*S5*L$3/100/10^6 -> 0.0196608126 | M5: =F5*T5*M$3/100/10^6 -> 0.01755699804 | N5: =G5*U5*N$3/100/10^6 -> 0.0164882253 | P5: ='PL Volumes data inputs'!D3 -> 258 | Q5: ='PL Volumes data inputs'!E3 -> 258 | R5: ='PL Volumes data inputs'!F3 -> 258 | S5: ='PL Volumes data inputs'!G3 -> 258 | T5: ='PL Volumes data inputs'!H3 -> 258 | U5: ='PL Volumes data inputs'!I3 -> 258 | X5: =B5 -> 33.27 | Y5: ='Summary Nominal $'!Y5/('Cost data inputs'!E$6) -> 21.74937844 | Z5: ='Summary Nominal $'!Z5/('Cost data inputs'!F$6) -> 21.75429844 | AA5: ='Summary Nominal $'!AA5/('Cost data inputs'!G$6) -> 21.97184143 | AB5: ='Summary Nominal $'!AB5/('Cost data inputs'!H$6) -> 21.41155947 | AC5: ='Summary Nominal $'!AC5/('Cost data inputs'!I$6) -> 20.24462948 | AE5: =X5*P5*I$3/100/10^6 -> 0.0314161956 | AF5: =Y5*Q5*J$3/100/10^6 -> 0.02048138968 | AG5: =Z5*R5*K$3/100/10^6 -> 0.02048602285 | AH5: 0.02069088307 | AI5: 0.02021850738 | AJ5: 0.01906436758
A6: ='Annuity Prices'!A14 -> 80W Mercury Vapour Aeroscreen | B6: ='Cost data inputs'!B189 -> 37.809 | C6: ='Annuity Prices'!I20 -> 22.074 | D6: ='Annuity Prices'!J20 -> 21.663 | E6: ='Annuity Prices'!K20 -> 20.865 | F6: ='Annuity Prices'!L20 -> 18.581 | G6: ='Annuity Prices'!M20 -> 17.496 | I6: =B6*P6*I$3/100/10^6 -> 0.055352376 | J6: 0.03222804 | K6: 0.03162798 | L6: 0.0304629 | M6: 0.027202584 | N6: 0.02554416 | P6: ='PL Volumes data inputs'!D4 -> 400 | Q6: ='PL Volumes data inputs'!E4 -> 400 | R6: ='PL Volumes data inputs'!F4 -> 400 | S6: ='PL Volumes data inputs'!G4 -> 400 | T6: ='PL Volumes data inputs'!H4 -> 400 | U6: ='PL Volumes data inputs'!I4 -> 400 | X6: =B6 -> 37.809 | Y6: ='Summary Nominal $'!Y6/('Cost data inputs'!E$6) -> 21.73657716 | Z6: ='Summary Nominal $'!Z6/('Cost data inputs'!F$6) -> 21.74149427 | AA6: ='Summary Nominal $'!AA6/('Cost data inputs'!G$6) -> 21.95890921 | AB6: ='Summary Nominal $'!AB6/('Cost data inputs'!H$6) -> 21.39895702 | AC6: ='Summary Nominal $'!AC6/('Cost data inputs'!I$6) -> 20.23271387 | AE6: =X6*P6*I$3/100/10^6 -> 0.055352376 | AF6: 0.03173540266 | AG6: 0.03174258163 | AH6: 0.03206000745 | AI6: 0.03132807308 | AJ6: 0.02953976225
A7: ='Annuity Prices'!A22 -> 125W Mercury Vapour | B7: ='Cost data inputs'!B190 -> 33.153 | C7: ='Annuity Prices'!I28 -> 23.101 | D7: ='Annuity Prices'!J28 -> 22.661 | E7: ='Annuity Prices'!K28 -> 21.829 | F7: ='Annuity Prices'!L28 -> 19.502 | G7: ='Annuity Prices'!M28 -> 18.376 | I7: 0.03895013358 | J7: 0.02706628665 | K7: 0.02655076065 | L7: 0.02557594785 | M7: 0.02291211972 | N7: 0.0215302404 | P7: ='PL Volumes data inputs'!D5 -> 321 | Q7: ='PL Volumes data inputs'!E5 -> 321 | R7: ='PL Volumes data inputs'!F5 -> 321 | S7: ='PL Volumes data inputs'!G5 -> 321 | T7: ='PL Volumes data inputs'!H5 -> 321 | U7: ='PL Volumes data inputs'!I5 -> 321 | X7: 33.153 | Y7: ='Summary Nominal $'!Y7/('Cost data inputs'!E$6) -> 22.74787846 | Z7: ='Summary Nominal $'!Z7/('Cost data inputs'!F$6) -> 22.75302433 | AA7: ='Summary Nominal $'!AA7/('Cost data inputs'!G$6) -> 22.98055457 | AB7: ='Summary Nominal $'!AB7/('Cost data inputs'!H$6) -> 22.39455043 | AC7: ='Summary Nominal $'!AC7/('Cost data inputs'!I$6) -> 21.17404743 | AE7: 0.03895013358 | AF7: 0.02665255179 | AG7: 0.02665858096 | AH7: 0.02692516677 | AI7: 0.02631046152 | AJ7: 0.02480857268
A8: ='Annuity Prices'!A30 -> 250W Mercury Vapour | B8: ='Cost data inputs'!B191 -> 99.153 | C8: ='Annuity Prices'!I36 -> 23.182 | D8: ='Annuity Prices'!J36 -> 22.742 | E8: ='Annuity Prices'!K36 -> 21.91 | F8: ='Annuity Prices'!L36 -> 19.583 | G8: ='Annuity Prices'!M36 -> 18.458 | I8: 0.0163304991 | J8: 0.0038076435 | K8: 0.0037353735 | L8: 0.0035987175 | M8: 0.0032253201 | N8: 0.0030317265 | P8: ='PL Volumes data inputs'!D6 -> 45 | Q8: ='PL Volumes data inputs'!E6 -> 45 | R8: ='PL Volumes data inputs'!F6 -> 45 | S8: ='PL Volumes data inputs'!G6 -> 45 | T8: ='PL Volumes data inputs'!H6 -> 45 | U8: ='PL Volumes data inputs'!I6 -> 45 | X8: 99.153 | Y8: ='Summary Nominal $'!Y8/('Cost data inputs'!E$6) -> 22.82764029 | Z8: ='Summary Nominal $'!Z8/('Cost data inputs'!F$6) -> 22.83280421 | AA8: ='Summary Nominal $'!AA8/('Cost data inputs'!G$6) -> 23.06113225 | AB8: ='Summary Nominal $'!AB8/('Cost data inputs'!H$6) -> 22.47307338 | AC8: ='Summary Nominal $'!AC8/('Cost data inputs'!I$6) -> 21.24829088 | AE8: 0.0163304991 | AF8: 0.003749439918 | AG8: 0.003750288091 | AH8: 0.003787790972 | AI8: 0.003701315185 | AJ8: 0.003490031777
A9: ='Annuity Prices'!A38 -> 400W Mercury Vapour | B9: ='Cost data inputs'!B192 -> 152.137 | C9: ='Annuity Prices'!I44 -> 23.243 | D9: ='Annuity Prices'!J44 -> 22.804 | E9: ='Annuity Prices'!K44 -> 21.972 | F9: ='Annuity Prices'!L44 -> 19.644 | G9: ='Annuity Prices'!M44 -> 18.519 | I9: 0.02115921396 | J9: 0.0032238041 | K9: 0.0031629148 | L9: 0.0030475164 | M9: 0.00273208752 | N9: 0.0025685853 | P9: ='PL Volumes data inputs'!D7 -> 38 | Q9: ='PL Volumes data inputs'!E7 -> 38 | R9: ='PL Volumes data inputs'!F7 -> 38 | S9: ='PL Volumes data inputs'!G7 -> 38 | T9: ='PL Volumes data inputs'!H7 -> 38 | U9: ='PL Volumes data inputs'!I7 -> 38 | X9: 152.137 | Y9: ='Summary Nominal $'!Y9/('Cost data inputs'!E$6) -> 22.88770785 | Z9: ='Summary Nominal $'!Z9/('Cost data inputs'!F$6) -> 22.89288535 | AA9: ='Summary Nominal $'!AA9/('Cost data inputs'!G$6) -> 23.1218142 | AB9: ='Summary Nominal $'!AB9/('Cost data inputs'!H$6) -> 22.53220794 | AC9: ='Summary Nominal $'!AC9/('Cost data inputs'!I$6) -> 21.30420261 | AE9: 0.02115921396 | AF9: 0.003174525078 | AG9: 0.003175243198 | AH9: 0.00320699563 | AI9: 0.003133779481 | AJ9: 0.002954892902
A10: ='Annuity Prices'!A46 -> 70W Sodium Vapour | B10: ='Cost data inputs'!B193 -> 49.415 | C10: ='Annuity Prices'!I52 -> 22.294 | D10: ='Annuity Prices'!J52 -> 21.884 | E10: ='Annuity Prices'!K52 -> 21.085 | F10: ='Annuity Prices'!L52 -> 18.801 | G10: ='Annuity Prices'!M52 -> 17.717 | I10: 0.0124792641 | J10: 0.0056147439 | K10: 0.0055114854 | L10: 0.00531025725 | M10: 0.00474800454 | N10: 0.00446202645 | P10: ='PL Volumes data inputs'!D8 -> 69 | Q10: ='PL Volumes data inputs'!E8 -> 69 | R10: ='PL Volumes data inputs'!F8 -> 69 | S10: ='PL Volumes data inputs'!G8 -> 69 | T10: ='PL Volumes data inputs'!H8 -> 69 | U10: ='PL Volumes data inputs'!I8 -> 69 | X10: 49.415 | Y10: ='Summary Nominal $'!Y10/('Cost data inputs'!E$6) -> 21.95321425 | Z10: ='Summary Nominal $'!Z10/('Cost data inputs'!F$6) -> 21.95818036 | AA10: ='Summary Nominal $'!AA10/('Cost data inputs'!G$6) -> 22.17776216 | AB10: ='Summary Nominal $'!AB10/('Cost data inputs'!H$6) -> 21.61222922 | AC10: ='Summary Nominal $'!AC10/('Cost data inputs'!I$6) -> 20.43436273 | AE10: 0.0124792641 | AF10: 0.005528917008 | AG10: 0.005530167723 | AH10: 0.0055854694 | AI10: 0.005457952368 | AJ10: 0.005146394254
A11: ='Annuity Prices'!A54 -> 150W Sodium Vapour | B11: ='Cost data inputs'!B194 -> 68.183 | C11: ='Annuity Prices'!I60 -> 23.897 | D11: ='Annuity Prices'!J60 -> 23.457 | E11: ='Annuity Prices'!K60 -> 22.625 | F11: ='Annuity Prices'!L60 -> 20.297 | G11: ='Annuity Prices'!M60 -> 19.175 | I11: 0.04417031106 | J11: 0.01543865685 | K11: 0.01515439485 | L11: 0.01461688125 | M11: 0.01314880254 | N11: 0.01238800875 | P11: ='PL Volumes data inputs'!D9 -> 177 | Q11: ='PL Volumes data inputs'!E9 -> 177 | R11: ='PL Volumes data inputs'!F9 -> 177 | S11: ='PL Volumes data inputs'!G9 -> 177 | T11: ='PL Volumes data inputs'!H9 -> 177 | U11: ='PL Volumes data inputs'!I9 -> 177 | X11: 68.183 | Y11: ='Summary Nominal $'!Y11/('Cost data inputs'!E$6) -> 23.53171081 | Z11: ='Summary Nominal $'!Z11/('Cost data inputs'!F$6) -> 23.537034 | AA11: ='Summary Nominal $'!AA11/('Cost data inputs'!G$6) -> 23.77240434 | AB11: ='Summary Nominal $'!AB11/('Cost data inputs'!H$6) -> 23.16620803 | AC11: ='Summary Nominal $'!AC11/('Cost data inputs'!I$6) -> 21.90364969 | AE11: 0.04417031106 | AF11: 0.01520266177 | AG11: 0.01520610082 | AH11: 0.01535816182 | AI11: 0.01500753289 | AJ11: 0.01415085288
A12: ='Annuity Prices'!A62 -> 250W Sodium Vapour | B12: ='Cost data inputs'!B195 -> 98.828 | C12: ='Annuity Prices'!I68 -> 23.86 | D12: ='Annuity Prices'!J68 -> 23.42 | E12: ='Annuity Prices'!K68 -> 22.588 | F12: ='Annuity Prices'!L68 -> 20.26 | G12: ='Annuity Prices'!M68 -> 19.138 | I12: 0.07632091128 | J12: 0.018375779 | K12: 0.018036913 | L12: 0.0173961482 | M12: 0.0156459876 | N12: 0.0147391307 | P12: ='PL Volumes data inputs'!D10 -> 211 | Q12: ='PL Volumes data inputs'!E10 -> 211 | R12: ='PL Volumes data inputs'!F10 -> 211 | S12: ='PL Volumes data inputs'!G10 -> 211 | T12: ='PL Volumes data inputs'!H10 -> 211 | U12: ='PL Volumes data inputs'!I10 -> 211 | X12: 98.828 | Y12: ='Summary Nominal $'!Y12/('Cost data inputs'!E$6) -> 23.49527639 | Z12: ='Summary Nominal $'!Z12/('Cost data inputs'!F$6) -> 23.50059134 | AA12: ='Summary Nominal $'!AA12/('Cost data inputs'!G$6) -> 23.73559725 | AB12: ='Summary Nominal $'!AB12/('Cost data inputs'!H$6) -> 23.13033952 | AC12: ='Summary Nominal $'!AC12/('Cost data inputs'!I$6) -> 21.86973602 | AE12: 0.07632091128 | AF12: 0.01809488711 | AG12: 0.01809898042 | AH12: 0.01827997022 | AI12: 0.017862636 | AJ12: 0.01684297719
A13: ='Annuity Prices'!A70 -> 400W Sodium Vapour | B13: ='Cost data inputs'!B196 -> 153.56 | C13: ='Annuity Prices'!I76 -> 23.942 | D13: ='Annuity Prices'!J76 -> 23.503 | E13: ='Annuity Prices'!K76 -> 22.671 | F13: ='Annuity Prices'!L76 -> 20.342 | G13: ='Annuity Prices'!M76 -> 19.221 | I13: 0.0685676112 | J13: 0.0106613726 | K13: 0.0104658859 | L13: 0.0100953963 | M13: 0.00908310984 | N13: 0.0085591113 | P13: ='PL Volumes data inputs'!D11 -> 122 | Q13: ='PL Volumes data inputs'!E11 -> 122 | R13: ='PL Volumes data inputs'!F11 -> 122 | S13: ='PL Volumes data inputs'!G11 -> 122 | T13: ='PL Volumes data inputs'!H11 -> 122 | U13: ='PL Volumes data inputs'!I11 -> 122 | X13: 153.56 | Y13: ='Summary Nominal $'!Y13/('Cost data inputs'!E$6) -> 23.57602294 | Z13: ='Summary Nominal $'!Z13/('Cost data inputs'!F$6) -> 23.58135615 | AA13: ='Summary Nominal $'!AA13/('Cost data inputs'!G$6) -> 23.81716972 | AB13: ='Summary Nominal $'!AB13/('Cost data inputs'!H$6) -> 23.20983189 | AC13: ='Summary Nominal $'!AC13/('Cost data inputs'!I$6) -> 21.94489605 | AE13: 0.0685676112 | AF13: 0.01049840302 | AG13: 0.0105007779 | AH13: 0.01060578567 | AI13: 0.01036365413 | AJ13: 0.009772062211
A14: ='Annuity Prices'!A78 -> 150W Metal Halide | B14: ='Cost data inputs'!B197 -> 80.443 | C14: ='Annuity Prices'!I84 -> 23.897 | D14: ='Annuity Prices'!J84 -> 23.457 | E14: ='Annuity Prices'!K84 -> 22.625 | F14: ='Annuity Prices'!L84 -> 20.297 | G14: ='Annuity Prices'!M84 -> 19.175 | I14: 0.0073605345 | J14: 0.00218060125 | K14: 0.00214045125 | L14: 0.00206453125 | M14: 0.0018571755 | N14: 0.00174971875 | P14: ='PL Volumes data inputs'!D12 -> 25 | Q14: ='PL Volumes data inputs'!E12 -> 25 | R14: ='PL Volumes data inputs'!F12 -> 25 | S14: ='PL Volumes data inputs'!G12 -> 25 | T14: ='PL Volumes data inputs'!H12 -> 25 | U14: ='PL Volumes data inputs'!I12 -> 25 | X14: 80.443 | Y14: ='Summary Nominal $'!Y14/('Cost data inputs'!E$6) -> 23.53171081 | Z14: ='Summary Nominal $'!Z14/('Cost data inputs'!F$6) -> 23.537034 | AA14: ='Summary Nominal $'!AA14/('Cost data inputs'!G$6) -> 23.77240434 | AB14: ='Summary Nominal $'!AB14/('Cost data inputs'!H$6) -> 23.16620803 | AC14: ='Summary Nominal $'!AC14/('Cost data inputs'!I$6) -> 21.90364969 | AE14: 0.0073605345 | AF14: 0.002147268612 | AG14: 0.002147754352 | AH14: 0.002169231896 | AI14: 0.002119708035 | AJ14: 0.001998708034
A15: ='Annuity Prices'!A86 -> 250W Metal Halide | B15: ='Cost data inputs'!B198 -> 107.352 | C15: ='Annuity Prices'!I92 -> 23.86 | D15: ='Annuity Prices'!J92 -> 23.42 | E15: ='Annuity Prices'!K92 -> 22.588 | F15: ='Annuity Prices'!L92 -> 20.26 | G15: ='Annuity Prices'!M92 -> 19.138 | I15: 0.00275035824 | J15: 0.000609623 | K15: 0.000598381 | L15: 0.0005771234 | M15: 0.0005190612 | N15: 0.0004889759 | P15: ='PL Volumes data inputs'!D13 -> 7 | Q15: ='PL Volumes data inputs'!E13 -> 7 | R15: ='PL Volumes data inputs'!F13 -> 7 | S15: ='PL Volumes data inputs'!G13 -> 7 | T15: ='PL Volumes data inputs'!H13 -> 7 | U15: ='PL Volumes data inputs'!I13 -> 7 | X15: 107.352 | Y15: ='Summary Nominal $'!Y15/('Cost data inputs'!E$6) -> 23.49527639 | Z15: ='Summary Nominal $'!Z15/('Cost data inputs'!F$6) -> 23.50059134 | AA15: ='Summary Nominal $'!AA15/('Cost data inputs'!G$6) -> 23.73559725 | AB15: ='Summary Nominal $'!AB15/('Cost data inputs'!H$6) -> 23.13033952 | AC15: ='Summary Nominal $'!AC15/('Cost data inputs'!I$6) -> 21.86973602 | AE15: 0.00275035824 | AF15: 0.0006003043118 | AG15: 0.0006004401087 | AH15: 0.0006064445098 | AI15: 0.0005925992986 | AJ15: 0.0005587717553
A16: ='Annuity Prices'!A94 -> 400W Metal Halide | B16: ='Cost data inputs'!B199 -> 145.15 | C16: ='Annuity Prices'!I100 -> 23.86 | D16: ='Annuity Prices'!J100 -> 23.42 | E16: ='Annuity Prices'!K100 -> 22.588 | F16: ='Annuity Prices'!L100 -> 20.26 | G16: ='Annuity Prices'!M100 -> 19.138 | I16: 0.004781241 | J16: 0.000783801 | K16: 0.000769347 | L16: 0.0007420158 | M16: 0.0006673644 | N16: 0.0006286833 | P16: ='PL Volumes data inputs'!D14 -> 9 | Q16: ='PL Volumes data inputs'!E14 -> 9 | R16: ='PL Volumes data inputs'!F14 -> 9 | S16: ='PL Volumes data inputs'!G14 -> 9 | T16: ='PL Volumes data inputs'!H14 -> 9 | U16: ='PL Volumes data inputs'!I14 -> 9 | X16: 145.15 | Y16: ='Summary Nominal $'!Y16/('Cost data inputs'!E$6) -> 23.49527639 | Z16: ='Summary Nominal $'!Z16/('Cost data inputs'!F$6) -> 23.50059134 | AA16: ='Summary Nominal $'!AA16/('Cost data inputs'!G$6) -> 23.73559725 | AB16: ='Summary Nominal $'!AB16/('Cost data inputs'!H$6) -> 23.13033952 | AC16: ='Summary Nominal $'!AC16/('Cost data inputs'!I$6) -> 21.86973602 | AE16: 0.004781241 | AF16: 0.0007718198295 | AG16: 0.0007719944255 | AH16: 0.0007797143697 | AI16: 0.0007619133839 | AJ16: 0.0007184208282
A17: ='Annuity Prices'!A102 -> 1x20W Fluorescent | B17: ='Cost data inputs'!B200 -> 20.374 | C17: ='Annuity Prices'!I108 -> 22.147 | D17: ='Annuity Prices'!J108 -> 21.736 | E17: ='Annuity Prices'!K108 -> 20.938 | F17: ='Annuity Prices'!L108 -> 18.653 | G17: ='Annuity Prices'!M108 -> 17.569 | I17: 0.00253534056 | J17: 0.0027484427 | K17: 0.0026974376 | L17: 0.0025984058 | M17: 0.00232117932 | N17: 0.0021803129 | P17: ='PL Volumes data inputs'!D15 -> 34 | Q17: ='PL Volumes data inputs'!E15 -> 34 | R17: ='PL Volumes data inputs'!F15 -> 34 | S17: ='PL Volumes data inputs'!G15 -> 34 | T17: ='PL Volumes data inputs'!H15 -> 34 | U17: ='PL Volumes data inputs'!I15 -> 34 | X17: 20.374 | Y17: ='Summary Nominal $'!Y17/('Cost data inputs'!E$6) -> 21.80846129 | Z17: ='Summary Nominal $'!Z17/('Cost data inputs'!F$6) -> 21.81339465 | AA17: ='Summary Nominal $'!AA17/('Cost data inputs'!G$6) -> 22.0315286 | AB17: ='Summary Nominal $'!AB17/('Cost data inputs'!H$6) -> 21.46972462 | AC17: ='Summary Nominal $'!AC17/('Cost data inputs'!I$6) -> 20.29962463 | AE17: 0.00253534056 | AF17: 0.002706430046 | AG17: 0.002707042276 | AH17: 0.002734112699 | AI17: 0.002671692532 | AJ17: 0.002519183416
A18: ='Annuity Prices'!A110 -> 2x20W Fluorescent | B18: ='Cost data inputs'!B201 -> 29.62 | C18: ='Annuity Prices'!I116 -> 22.279 | D18: ='Annuity Prices'!J116 -> 21.869 | E18: ='Annuity Prices'!K116 -> 21.07 | F18: ='Annuity Prices'!L116 -> 18.786 | G18: ='Annuity Prices'!M116 -> 17.702 | I18: 0.0052036416 | J18: 0.0039032808 | K18: 0.0038314488 | L18: 0.003691464 | M18: 0.00330032448 | N18: 0.0031013904 | P18: ='PL Volumes data inputs'!D16 -> 48 | Q18: ='PL Volumes data inputs'!E16 -> 48 | R18: ='PL Volumes data inputs'!F16 -> 48 | S18: ='PL Volumes data inputs'!G16 -> 48 | T18: ='PL Volumes data inputs'!H16 -> 48 | U18: ='PL Volumes data inputs'!I16 -> 48 | X18: 29.62 | Y18: ='Summary Nominal $'!Y18/('Cost data inputs'!E$6) -> 21.93844354 | Z18: ='Summary Nominal $'!Z18/('Cost data inputs'!F$6) -> 21.9434063 | AA18: ='Summary Nominal $'!AA18/('Cost data inputs'!G$6) -> 22.16284037 | AB18: ='Summary Nominal $'!AB18/('Cost data inputs'!H$6) -> 21.59768794 | AC18: ='Summary Nominal $'!AC18/('Cost data inputs'!I$6) -> 20.42061395 | AE18: 0.0052036416 | AF18: 0.003843615307 | AG18: 0.003844484785 | AH18: 0.003882929632 | AI18: 0.003794281817 | AJ18: 0.003577691563
A19: ='Annuity Prices'!A118 -> 1x40W Fluorescent | B19: ='Cost data inputs'!B202 -> 25.325 | C19: ='Annuity Prices'!I124 -> 22.155 | D19: ='Annuity Prices'!J124 -> 21.745 | E19: ='Annuity Prices'!K124 -> 20.946 | F19: ='Annuity Prices'!L124 -> 18.662 | G19: ='Annuity Prices'!M124 -> 17.578 | I19: 0.0041710275 | J19: 0.00363895875 | K19: 0.00357161625 | L19: 0.0034403805 | M19: 0.0030736314 | N19: 0.0028871865 | P19: ='PL Volumes data inputs'!D17 -> 45 | Q19: ='PL Volumes data inputs'!E17 -> 45 | R19: ='PL Volumes data inputs'!F17 -> 45 | S19: ='PL Volumes data inputs'!G17 -> 45 | T19: ='PL Volumes data inputs'!H17 -> 45 | U19: ='PL Volumes data inputs'!I17 -> 45 | X19: 25.325 | Y19: ='Summary Nominal $'!Y19/('Cost data inputs'!E$6) -> 21.816339 | Z19: ='Summary Nominal $'!Z19/('Cost data inputs'!F$6) -> 21.82127415 | AA19: ='Summary Nominal $'!AA19/('Cost data inputs'!G$6) -> 22.03948689 | AB19: ='Summary Nominal $'!AB19/('Cost data inputs'!H$6) -> 21.47747997 | AC19: ='Summary Nominal $'!AC19/('Cost data inputs'!I$6) -> 20.30695731 | AE19: 0.0041710275 | AF19: 0.00358333368 | AG19: 0.003584144278 | AH19: 0.003619985721 | AI19: 0.003537340951 | AJ19: 0.003335417739
A20: ='Annuity Prices'!A126 -> 2x40W Fluorescent | B20: ='Cost data inputs'!B203 -> 39.62 | C20: ='Annuity Prices'!I132 -> 23.309 | D20: ='Annuity Prices'!J132 -> 22.869 | E20: ='Annuity Prices'!K132 -> 22.037 | F20: ='Annuity Prices'!L132 -> 19.709 | G20: ='Annuity Prices'!M132 -> 18.585 | I20: 0.0001450092 | J20: 8.507785e-05 | K20: 8.347185e-05 | L20: 8.043505e-05 | M20: 7.213494e-05 | N20: 6.783525e-05 | P20: ='PL Volumes data inputs'!D18 -> 1 | Q20: ='PL Volumes data inputs'!E18 -> 1 | R20: ='PL Volumes data inputs'!F18 -> 1 | S20: ='PL Volumes data inputs'!G18 -> 1 | T20: ='PL Volumes data inputs'!H18 -> 1 | U20: ='PL Volumes data inputs'!I18 -> 1 | X20: 39.62 | Y20: ='Summary Nominal $'!Y20/('Cost data inputs'!E$6) -> 22.95269897 | Z20: ='Summary Nominal $'!Z20/('Cost data inputs'!F$6) -> 22.95789118 | AA20: ='Summary Nominal $'!AA20/('Cost data inputs'!G$6) -> 23.18747009 | AB20: ='Summary Nominal $'!AB20/('Cost data inputs'!H$6) -> 22.5961896 | AC20: ='Summary Nominal $'!AC20/('Cost data inputs'!I$6) -> 21.36469727 | AE20: 0.0001450092 | AF20: 8.377735124e-05 | AG20: 8.37963028e-05 | AH20: 8.463426583e-05 | AI20: 8.270205395e-05 | AJ20: 7.798114503e-05
A21: ='Annuity Prices'!A134 -> 3x40W Fluorescent | B21: ='Cost data inputs'!B204 -> 52.158 | C21: ='Annuity Prices'!I140 -> 23.45 | D21: ='Annuity Prices'!J140 -> 23.01 | E21: ='Annuity Prices'!K140 -> 22.178 | F21: ='Annuity Prices'!L140 -> 19.85 | G21: ='Annuity Prices'!M140 -> 18.726 | I21: 0.00019089828 | J21: 8.55925e-05 | K21: 8.39865e-05 | L21: 8.09497e-05 | M21: 7.2651e-05 | N21: 6.83499e-05 | P21: ='PL Volumes data inputs'!D19 -> 1 | Q21: ='PL Volumes data inputs'!E19 -> 1 | R21: ='PL Volumes data inputs'!F19 -> 1 | S21: ='PL Volumes data inputs'!G19 -> 1 | T21: ='PL Volumes data inputs'!H19 -> 1 | U21: ='PL Volumes data inputs'!I19 -> 1 | X21: 52.158 | Y21: ='Summary Nominal $'!Y21/('Cost data inputs'!E$6) -> 23.09154365 | Z21: ='Summary Nominal $'!Z21/('Cost data inputs'!F$6) -> 23.09676726 | AA21: ='Summary Nominal $'!AA21/('Cost data inputs'!G$6) -> 23.32773494 | AB21: ='Summary Nominal $'!AB21/('Cost data inputs'!H$6) -> 22.73287769 | AC21: ='Summary Nominal $'!AC21/('Cost data inputs'!I$6) -> 21.49393586 | AE21: 0.00019089828 | AF21: 8.428413431e-05 | AG21: 8.430320051e-05 | AH21: 8.514623251e-05 | AI21: 8.320233236e-05 | AJ21: 7.845286589e-05
A22: ='Annuity Prices'!A142 -> 4x40W Fluorescent | B22: ='Cost data inputs'!B205 -> 64.743 | C22: ='Annuity Prices'!I148 -> 24.378 | D22: ='Annuity Prices'!J148 -> 23.938 | E22: ='Annuity Prices'!K148 -> 23.106 | F22: ='Annuity Prices'!L148 -> 20.777 | G22: ='Annuity Prices'!M148 -> 19.658 | I22: 0.00023695938 | J22: 8.89797e-05 | K22: 8.73737e-05 | L22: 8.43369e-05 | M22: 7.604382e-05 | N22: 7.17517e-05 | P22: ='PL Volumes data inputs'!D20 -> 1 | Q22: ='PL Volumes data inputs'!E20 -> 1 | R22: ='PL Volumes data inputs'!F20 -> 1 | S22: ='PL Volumes data inputs'!G20 -> 1 | T22: ='PL Volumes data inputs'!H20 -> 1 | U22: ='PL Volumes data inputs'!I20 -> 1 | X22: 64.743 | Y22: ='Summary Nominal $'!Y22/('Cost data inputs'!E$6) -> 24.00535825 | Z22: ='Summary Nominal $'!Z22/('Cost data inputs'!F$6) -> 24.01078859 | AA22: ='Summary Nominal $'!AA22/('Cost data inputs'!G$6) -> 24.25089647 | AB22: ='Summary Nominal $'!AB22/('Cost data inputs'!H$6) -> 23.63249861 | AC22: ='Summary Nominal $'!AC22/('Cost data inputs'!I$6) -> 22.34452744 | AE22: 0.00023695938 | AF22: 8.761955762e-05 | AG22: 8.763937834e-05 | AH22: 8.851577212e-05 | AI22: 8.649494492e-05 | AJ22: 8.155752515e-05
A23: ='Annuity Prices'!A150 -> 60W Incandescent | B23: ='Cost data inputs'!B206 -> 53.74 | C23: ='Annuity Prices'!I156 -> 22.071 | D23: ='Annuity Prices'!J156 -> 21.661 | E23: ='Annuity Prices'!K156 -> 20.862 | F23: ='Annuity Prices'!L156 -> 18.578 | G23: ='Annuity Prices'!M156 -> 17.493 | I23: 0.0027536376 | J23: 0.0011278281 | K23: 0.0011068771 | L23: 0.0010660482 | M23: 0.00095193672 | N23: 0.0008938923 | P23: ='PL Volumes data inputs'!D21 -> 14 | Q23: ='PL Volumes data inputs'!E21 -> 14 | R23: ='PL Volumes data inputs'!F21 -> 14 | S23: ='PL Volumes data inputs'!G21 -> 14 | T23: ='PL Volumes data inputs'!H21 -> 14 | U23: ='PL Volumes data inputs'!I21 -> 14 | X23: 53.74 | Y23: ='Summary Nominal $'!Y23/('Cost data inputs'!E$6) -> 21.73362302 | Z23: ='Summary Nominal $'!Z23/('Cost data inputs'!F$6) -> 21.73853946 | AA23: ='Summary Nominal $'!AA23/('Cost data inputs'!G$6) -> 21.95592485 | AB23: ='Summary Nominal $'!AB23/('Cost data inputs'!H$6) -> 21.39604877 | AC23: ='Summary Nominal $'!AC23/('Cost data inputs'!I$6) -> 20.22996411 | AE23: 0.0027536376 | AF23: 0.001110588136 | AG23: 0.001110839366 | AH23: 0.00112194776 | AI23: 0.001096333539 | AJ23: 0.001033751166
A24: ='Annuity Prices'!A158 -> 100W Incandescent | B24: ='Cost data inputs'!B207 -> 72.831 | C24: ='Annuity Prices'!I164 -> 23.084 | D24: ='Annuity Prices'!J164 -> 22.644 | E24: ='Annuity Prices'!K164 -> 21.812 | F24: ='Annuity Prices'!L164 -> 19.484 | G24: ='Annuity Prices'!M164 -> 18.359 | I24: 0.00293217606 | J24: 0.0009268226 | K24: 0.0009091566 | L24: 0.0008757518 | M24: 0.00078442584 | N24: 0.00073711385 | P24: ='PL Volumes data inputs'!D22 -> 11 | Q24: ='PL Volumes data inputs'!E22 -> 11 | R24: ='PL Volumes data inputs'!F22 -> 11 | S24: ='PL Volumes data inputs'!G22 -> 11 | T24: ='PL Volumes data inputs'!H22 -> 11 | U24: ='PL Volumes data inputs'!I22 -> 11 | X24: 72.831 | Y24: ='Summary Nominal $'!Y24/('Cost data inputs'!E$6) -> 22.73113832 | Z24: ='Summary Nominal $'!Z24/('Cost data inputs'!F$6) -> 22.7362804 | AA24: ='Summary Nominal $'!AA24/('Cost data inputs'!G$6) -> 22.96364321 | AB24: ='Summary Nominal $'!AB24/('Cost data inputs'!H$6) -> 22.37807031 | AC24: ='Summary Nominal $'!AC24/('Cost data inputs'!I$6) -> 21.15846548 | AE24: 0.00293217606 | AF24: 0.0009126552034 | AG24: 0.0009128616583 | AH24: 0.0009219902748 | AI24: 0.0009009411106 | AJ24: 0.0008495123888
A25: ='Annuity Prices'!A167 -> Pole Surcharge | B25: ='Cost data inputs'!B208 -> 27.164 | C25: ='Annuity Prices'!I167 -> 24.116 | D25: ='Annuity Prices'!J167 -> 24.116 | E25: ='Annuity Prices'!K167 -> 24.116 | F25: ='Annuity Prices'!L167 -> 24.05 | G25: ='Annuity Prices'!M167 -> 24.116 | I25: 0.1063796568 | J25: 0.094185038 | K25: 0.094185038 | L25: 0.094185038 | M25: 0.09418461 | N25: 0.094185038 | P25: ='PL Volumes data inputs'!C27 -> 1070 | Q25: ='PL Volumes data inputs'!D27 -> 1070 | R25: ='PL Volumes data inputs'!E27 -> 1070 | S25: ='PL Volumes data inputs'!F27 -> 1070 | T25: ='PL Volumes data inputs'!G27 -> 1070 | U25: ='PL Volumes data inputs'!H27 -> 1070 | X25: 27.164 | Y25: ='Summary Nominal $'!Y25/('Cost data inputs'!E$6) -> 23.74736318 | Z25: ='Summary Nominal $'!Z25/('Cost data inputs'!F$6) -> 23.75273515 | AA25: ='Summary Nominal $'!AA25/('Cost data inputs'!G$6) -> 23.9902625 | AB25: ='Summary Nominal $'!AB25/('Cost data inputs'!H$6) -> 23.37851081 | AC25: ='Summary Nominal $'!AC25/('Cost data inputs'!I$6) -> 22.10438197 | AE25: 0.1063796568 | AF25: 0.0927453269 | AG25: 0.09276630714 | AH25: 0.09369397021 | AI25: 0.09155492403 | AJ25: 0.08632866379
I26: =SUM(I5:I25) -> 0.5041869966 | J26: =SUM(J5:J25) -> 0.2475797007 | K26: =SUM(K5:K25) -> 0.2447225829 | L26: 0.2392510577 | M26: 0.2241355525 | N26: 0.2163714634 | P26: =SUM(P5:P24) -> 1837 | Q26: =SUM(Q5:Q24) -> 1837 | R26: =SUM(R5:R24) -> 1837 | S26: 1837 | T26: 1837 | U26: 1837 | AE26: =SUM(AE5:AE25) -> 0.5041869966 | AF26: =SUM(AF5:AF25) -> 0.2437952011 | AG26: =SUM(AG5:AG25) -> 0.2438503508 | AH26: 0.2462888543 | AI26: 0.2406660461 | AJ26: 0.2269280259
A28: Public Road Lights | B28: 2011/12 | C28: 2012-13 | D28: 2013-14 | E28: 2014-15 | F28: 2015-16 | G28: 2016-17 | I28: 2011/12 | J28: 2012-13 | K28: 2013-14 | L28: 2014-15 | M28: 2015-16 | N28: 2016-17 | P28: 2011/12 | Q28: 2012-13 | R28: 2013-14 | S28: 2014-15 | T28: 2015-16 | U28: 2016-17 | X28: =X4 -> 2011/12 | Y28: =Y4 -> 2012-13 | Z28: 2013-14 | AA28: 2014-15 | AB28: 2015-16 | AC28: 2016-17 | AE28: =AE4 -> 2011/12 | AF28: =AF4 -> 2012-13 | AG28: 2013-14 | AH28: 2014-15 | AI28: 2015-16 | AJ28: 2016-17
A29: ='Annuity Prices'!A171 -> 50W Mercury Vapour | B29: ='Cost data inputs'!B211 -> 30.251 | C29: ='Annuity Prices'!I180 -> 33.947 | D29: ='Annuity Prices'!J180 -> 33.487 | E29: ='Annuity Prices'!K180 -> 32.581 | F29: ='Annuity Prices'!L180 -> 30.117 | G29: ='Annuity Prices'!M180 -> 28.92 | I29: =B29*P29*I$3/100/10^6 -> 0.3932726803 | J29: =C29*Q29*J$3/100/10^6 -> 0.4476743652 | K29: =D29*R29*K$3/100/10^6 -> 0.4489417911 | L29: =E29*S29*L$3/100/10^6 -> 0.4439307865 | M29: =F29*T29*M$3/100/10^6 -> 0.4180956385 | N29: =G29*U29*N$3/100/10^6 -> 0.406714974 | P29: ='PL Volumes data inputs'!D33 -> 3552 | Q29: ='PL Volumes data inputs'!E33 -> 3613 | R29: ='PL Volumes data inputs'!F33 -> 3673 | S29: ='PL Volumes data inputs'!G33 -> 3733 | T29: ='PL Volumes data inputs'!H33 -> 3793 | U29: ='PL Volumes data inputs'!I33 -> 3853 | X29: =B29 -> 30.251 | Y29: ='Summary Nominal $'!Y29/('Cost data inputs'!E$6) -> 33.42808666 | Z29: ='Summary Nominal $'!Z29/('Cost data inputs'!F$6) -> 33.43564854 | AA29: ='Summary Nominal $'!AA29/('Cost data inputs'!G$6) -> 33.77000503 | AB29: ='Summary Nominal $'!AB29/('Cost data inputs'!H$6) -> 32.9088699 | AC29: ='Summary Nominal $'!AC29/('Cost data inputs'!I$6) -> 31.11533649 | AE29: =X29*P29*I$3/100/10^6 -> 0.3932726803 | AF29: =Y29*Q29*J$3/100/10^6 -> 0.4408312214 | AG29: =Z29*R29*K$3/100/10^6 -> 0.4482533504 | AH29: 0.460131515 | AI29: 0.4568534373 | AJ29: 0.4375889789
A30: ='Annuity Prices'!A182 -> 80W Mercury Vapour Aeroscreen | B30: ='Cost data inputs'!B212 -> 29.787 | C30: ='Annuity Prices'!I191 -> 33.947 | D30: ='Annuity Prices'!J191 -> 33.487 | E30: ='Annuity Prices'!K191 -> 32.581 | F30: ='Annuity Prices'!L191 -> 30.117 | G30: ='Annuity Prices'!M191 -> 28.92 | I30: 3.439485231 | J30: 3.975913376 | K30: 3.987429364 | L30: 3.943170913 | M30: 3.713919416 | N30: 3.613039224 | P30: ='PL Volumes data inputs'!D34 -> 31549 | Q30: ='PL Volumes data inputs'!E34 -> 32088 | R30: ='PL Volumes data inputs'!F34 -> 32623 | S30: ='PL Volumes data inputs'!G34 -> 33158 | T30: ='PL Volumes data inputs'!H34 -> 33693 | U30: ='PL Volumes data inputs'!I34 -> 34228 | X30: =B30 -> 29.787 | Y30: ='Summary Nominal $'!Y30/('Cost data inputs'!E$6) -> 33.42808666 | Z30: ='Summary Nominal $'!Z30/('Cost data inputs'!F$6) -> 33.43564854 | AA30: ='Summary Nominal $'!AA30/('Cost data inputs'!G$6) -> 33.77000503 | AB30: ='Summary Nominal $'!AB30/('Cost data inputs'!H$6) -> 32.9088699 | AC30: ='Summary Nominal $'!AC30/('Cost data inputs'!I$6) -> 31.11533649 | AE30: =X30*P30*I$3/100/10^6 -> 3.439485231 | AF30: 3.915137623 | AG30: 3.981314743 | AH30: 4.087072267 | AI30: 4.058202706 | AJ30: 3.887307441
A31: ='Annuity Prices'!A193 -> 80W Mercury Vapour Art decorative | B31: ='Cost data inputs'!B213 -> 53.27 | C31: ='Annuity Prices'!I202 -> 54.691 | D31: ='Annuity Prices'!J202 -> 54.232 | E31: ='Annuity Prices'!K202 -> 53.333 | F31: ='Annuity Prices'!L202 -> 50.842 | G31: ='Annuity Prices'!M202 -> 49.746 | I31: 0.030220071 | J31: 0.03134067755 | K31: 0.031671488 | L31: 0.03173046835 | M31: 0.03088956552 | N31: 0.0306858201 | P31: ='PL Volumes data inputs'!D35 -> 155 | Q31: ='PL Volumes data inputs'!E35 -> 157 | R31: ='PL Volumes data inputs'!F35 -> 160 | S31: ='PL Volumes data inputs'!G35 -> 163 | T31: ='PL Volumes data inputs'!H35 -> 166 | U31: ='PL Volumes data inputs'!I35 -> 169 | X31: 53.27 | Y31: ='Summary Nominal $'!Y31/('Cost data inputs'!E$6) -> 53.85499418 | Z31: ='Summary Nominal $'!Z31/('Cost data inputs'!F$6) -> 53.8671769 | AA31: ='Summary Nominal $'!AA31/('Cost data inputs'!G$6) -> 54.40584867 | AB31: ='Summary Nominal $'!AB31/('Cost data inputs'!H$6) -> 53.01849953 | AC31: ='Summary Nominal $'!AC31/('Cost data inputs'!I$6) -> 50.12899131 | AE31: 0.030220071 | AF31: 0.03086160442 | AG31: 0.03145843131 | AH31: 0.03236875967 | AI31: 0.03221191957 | AJ31: 0.03092206829
A32: ='Annuity Prices'!A204 -> 125W Mercury Vapour | B32: ='Cost data inputs'!B214 -> 35.842 | C32: ='Annuity Prices'!I213 -> 39.601 | D32: ='Annuity Prices'!J213 -> 39.062 | E32: ='Annuity Prices'!K213 -> 38.046 | F32: ='Annuity Prices'!L213 -> 35.421 | G32: ='Annuity Prices'!M213 -> 34.086 | I32: 0.02138262036 | J32: 0.0239942459 | K32: 0.0240953947 | L32: 0.0238852788 | M32: 0.0226871505 | N32: 0.0221456742 | P32: ='PL Volumes data inputs'!D36 -> 163 | Q32: ='PL Volumes data inputs'!E36 -> 166 | R32: ='PL Volumes data inputs'!F36 -> 169 | S32: ='PL Volumes data inputs'!G36 -> 172 | T32: ='PL Volumes data inputs'!H36 -> 175 | U32: ='PL Volumes data inputs'!I36 -> 178 | X32: 35.842 | Y32: ='Summary Nominal $'!Y32/('Cost data inputs'!E$6) -> 38.9956597 | Z32: ='Summary Nominal $'!Z32/('Cost data inputs'!F$6) -> 39.00448104 | AA32: ='Summary Nominal $'!AA32/('Cost data inputs'!G$6) -> 39.39452585 | AB32: ='Summary Nominal $'!AB32/('Cost data inputs'!H$6) -> 38.38996544 | AC32: ='Summary Nominal $'!AC32/('Cost data inputs'!I$6) -> 36.29771232 | AE32: 0.02138262036 | AF32: 0.02362747021 | AG32: 0.02405991413 | AH32: 0.02473188333 | AI32: 0.02458877286 | AJ32: 0.0235826237
A33: ='Annuity Prices'!A215 -> 250W Mercury Vapour | B33: ='Cost data inputs'!B215 -> 28.35 | C33: ='Annuity Prices'!I224 -> 40.102 | D33: ='Annuity Prices'!J224 -> 39.562 | E33: ='Annuity Prices'!K224 -> 38.547 | F33: ='Annuity Prices'!L224 -> 35.921 | G33: ='Annuity Prices'!M224 -> 34.588 | I33: 0.127210986 | J33: 0.1825262581 | K33: 0.1831008484 | L33: 0.1813578529 | M33: 0.1722268266 | N33: 0.1680336922 | P33: ='PL Volumes data inputs'!D37 -> 1226 | Q33: ='PL Volumes data inputs'!E37 -> 1247 | R33: ='PL Volumes data inputs'!F37 -> 1268 | S33: ='PL Volumes data inputs'!G37 -> 1289 | T33: ='PL Volumes data inputs'!H37 -> 1310 | U33: ='PL Volumes data inputs'!I37 -> 1331 | X33: 28.35 | Y33: ='Summary Nominal $'!Y33/('Cost data inputs'!E$6) -> 39.48900142 | Z33: ='Summary Nominal $'!Z33/('Cost data inputs'!F$6) -> 39.49793436 | AA33: ='Summary Nominal $'!AA33/('Cost data inputs'!G$6) -> 39.89291371 | AB33: ='Summary Nominal $'!AB33/('Cost data inputs'!H$6) -> 38.87564441 | AC33: ='Summary Nominal $'!AC33/('Cost data inputs'!I$6) -> 36.75692179 | AE33: 0.127210986 | AF33: 0.1797361644 | AG33: 0.1828043398 | AH33: 0.187690175 | AI33: 0.1863931647 | AJ33: 0.1785706396
A34: ='Annuity Prices'!A226 -> 400W Mercury Vapour | B34: ='Cost data inputs'!B216 -> 0.481 | C34: ='Annuity Prices'!I235 -> 44.951 | D34: ='Annuity Prices'!J235 -> 44.412 | E34: ='Annuity Prices'!K235 -> 43.398 | F34: ='Annuity Prices'!L235 -> 40.766 | G34: ='Annuity Prices'!M235 -> 39.457 | I34: 0.00181855518 | J34: 0.1722747075 | K34: 0.1731268584 | L34: 0.1720253322 | M34: 0.1647207302 | N34: 0.1615882521 | P34: ='PL Volumes data inputs'!D38 -> 1033 | Q34: ='PL Volumes data inputs'!E38 -> 1050 | R34: ='PL Volumes data inputs'!F38 -> 1068 | S34: ='PL Volumes data inputs'!G38 -> 1086 | T34: ='PL Volumes data inputs'!H38 -> 1104 | U34: ='PL Volumes data inputs'!I38 -> 1122 | X34: 0.481 | Y34: ='Summary Nominal $'!Y34/('Cost data inputs'!E$6) -> 44.26387968 | Z34: ='Summary Nominal $'!Z34/('Cost data inputs'!F$6) -> 44.27389276 | AA34: ='Summary Nominal $'!AA34/('Cost data inputs'!G$6) -> 44.71663169 | AB34: ='Summary Nominal $'!AB34/('Cost data inputs'!H$6) -> 43.57635758 | AC34: ='Summary Nominal $'!AC34/('Cost data inputs'!I$6) -> 41.20144609 | AE34: 0.00181855518 | AF34: 0.1696413189 | AG34: 0.1725884888 | AH34: 0.1772522563 | AI34: 0.1760763735 | AJ34: 0.1687322822
A35: ='Annuity Prices'!A237 -> 70W Sodium Vapour | B35: ='Cost data inputs'!B217 -> 33.098 | C35: ='Annuity Prices'!I246 -> 36.387 | D35: ='Annuity Prices'!J246 -> 35.926 | E35: ='Annuity Prices'!K246 -> 35.021 | F35: ='Annuity Prices'!L246 -> 32.554 | G35: ='Annuity Prices'!M246 -> 31.369 | I35: 0.02313748788 | J35: 0.02589844725 | K35: 0.0259637202 | L35: 0.02569315665 | M35: 0.02430611856 | N35: 0.02370084795 | P35: ='PL Volumes data inputs'!D39 -> 191 | Q35: ='PL Volumes data inputs'!E39 -> 195 | R35: ='PL Volumes data inputs'!F39 -> 198 | S35: ='PL Volumes data inputs'!G39 -> 201 | T35: ='PL Volumes data inputs'!H39 -> 204 | U35: ='PL Volumes data inputs'!I39 -> 207 | X35: 33.098 | Y35: ='Summary Nominal $'!Y35/('Cost data inputs'!E$6) -> 35.83078886 | Z35: ='Summary Nominal $'!Z35/('Cost data inputs'!F$6) -> 35.83889426 | AA35: ='Summary Nominal $'!AA35/('Cost data inputs'!G$6) -> 36.1972832 | AB35: ='Summary Nominal $'!AB35/('Cost data inputs'!H$6) -> 35.27425248 | AC35: ='Summary Nominal $'!AC35/('Cost data inputs'!I$6) -> 33.35180572 | AE35: 0.02313748788 | AF35: 0.02550256397 | AG35: 0.02590076888 | AH35: 0.02655613682 | AI35: 0.02633716787 | AJ35: 0.02519895681
A36: ='Annuity Prices'!A248 -> 100W Sodium Vapour | B36: ='Cost data inputs'!B218 -> 36.546 | C36: ='Annuity Prices'!I257 -> 36.534 | D36: ='Annuity Prices'!J257 -> 36.044 | E36: ='Annuity Prices'!K257 -> 35.105 | F36: ='Annuity Prices'!L257 -> 32.596 | G36: ='Annuity Prices'!M257 -> 31.366 | I36: 0.04775173452 | J36: 0.0484057233 | K36: 0.0485458614 | L36: 0.04804996875 | M36: 0.04545381816 | N36: 0.0443060433 | P36: ='PL Volumes data inputs'!D40 -> 357 | Q36: ='PL Volumes data inputs'!E40 -> 363 | R36: ='PL Volumes data inputs'!F40 -> 369 | S36: ='PL Volumes data inputs'!G40 -> 375 | T36: ='PL Volumes data inputs'!H40 -> 381 | U36: ='PL Volumes data inputs'!I40 -> 387 | X36: 36.546 | Y36: ='Summary Nominal $'!Y36/('Cost data inputs'!E$6) -> 35.97554182 | Z36: ='Summary Nominal $'!Z36/('Cost data inputs'!F$6) -> 35.98367997 | AA36: ='Summary Nominal $'!AA36/('Cost data inputs'!G$6) -> 36.34351676 | AB36: ='Summary Nominal $'!AB36/('Cost data inputs'!H$6) -> 35.41675709 | AC36: ='Summary Nominal $'!AC36/('Cost data inputs'!I$6) -> 33.48654383 | AE36: 0.04775173452 | AF36: 0.04766579413 | AG36: 0.04846461936 | AH36: 0.04974518857 | AI36: 0.04938725109 | AJ36: 0.04730141748
A37: ='Annuity Prices'!A259 -> 150W Sodium Vapour | B37: ='Cost data inputs'!B219 -> 38.699 | C37: ='Annuity Prices'!I268 -> 40.896 | D37: ='Annuity Prices'!J268 -> 40.357 | E37: ='Annuity Prices'!K268 -> 39.341 | F37: ='Annuity Prices'!L268 -> 36.714 | G37: ='Annuity Prices'!M268 -> 35.386 | I37: 0.5162717493 | J37: 0.5533453728 | K37: 0.5551851955 | L37: 0.5501111041 | M37: 0.5231150233 | N37: 0.5108234495 | P37: ='PL Volumes data inputs'!D41 -> 3645 | Q37: ='PL Volumes data inputs'!E41 -> 3707 | R37: ='PL Volumes data inputs'!F41 -> 3769 | S37: ='PL Volumes data inputs'!G41 -> 3831 | T37: ='PL Volumes data inputs'!H41 -> 3893 | U37: ='PL Volumes data inputs'!I41 -> 3955 | X37: 38.699 | Y37: ='Summary Nominal $'!Y37/('Cost data inputs'!E$6) -> 40.27086435 | Z37: ='Summary Nominal $'!Z37/('Cost data inputs'!F$6) -> 40.27997416 | AA37: ='Summary Nominal $'!AA37/('Cost data inputs'!G$6) -> 40.6827739 | AB37: ='Summary Nominal $'!AB37/('Cost data inputs'!H$6) -> 39.64536316 | AC37: ='Summary Nominal $'!AC37/('Cost data inputs'!I$6) -> 37.48469087 | AE37: 0.5162717493 | AF37: 0.5448869436 | AG37: 0.5541255625 | AH37: 0.5688733298 | AI37: 0.5648821996 | AJ37: 0.5411196263
A38: ='Annuity Prices'!A270 -> 250W Sodium Vapour | B38: ='Cost data inputs'!B220 -> 38.77 | C38: ='Annuity Prices'!I279 -> 41.032 | D38: ='Annuity Prices'!J279 -> 40.493 | E38: ='Annuity Prices'!K279 -> 39.478 | F38: ='Annuity Prices'!L279 -> 36.85 | G38: ='Annuity Prices'!M279 -> 35.522 | I38: 0.6063310086 | J38: 0.650736746 | K38: 0.6529779701 | L38: 0.6471292977 | M38: 0.615551244 | N38: 0.6012116261 | P38: ='PL Volumes data inputs'!D42 -> 4273 | Q38: ='PL Volumes data inputs'!E42 -> 4345 | R38: ='PL Volumes data inputs'!F42 -> 4418 | S38: ='PL Volumes data inputs'!G42 -> 4491 | T38: ='PL Volumes data inputs'!H42 -> 4564 | U38: ='PL Volumes data inputs'!I42 -> 4637 | X38: 38.77 | Y38: ='Summary Nominal $'!Y38/('Cost data inputs'!E$6) -> 40.40478545 | Z38: ='Summary Nominal $'!Z38/('Cost data inputs'!F$6) -> 40.41392556 | AA38: ='Summary Nominal $'!AA38/('Cost data inputs'!G$6) -> 40.81806481 | AB38: ='Summary Nominal $'!AB38/('Cost data inputs'!H$6) -> 39.77720416 | AC38: ='Summary Nominal $'!AC38/('Cost data inputs'!I$6) -> 37.60934653 | AE38: 0.6063310086 | AF38: 0.6407895937 | AG38: 0.6517028394 | AH38: 0.6690958411 | AI38: 0.6644479648 | AJ38: 0.6365400706
A39: ='Annuity Prices'!A281 -> 400W Sodium Vapour | B39: ='Cost data inputs'!B221 -> 11.852 | C39: ='Annuity Prices'!I290 -> 41.254 | D39: ='Annuity Prices'!J290 -> 40.715 | E39: ='Annuity Prices'!K290 -> 39.699 | F39: ='Annuity Prices'!L290 -> 37.072 | G39: ='Annuity Prices'!M290 -> 35.745 | I39: 0.0242918592 | J39: 0.0856783699 | K39: 0.08604504525 | L39: 0.08534689515 | M39: 0.08127442848 | N39: 0.07945577325 | P39: ='PL Volumes data inputs'!D43 -> 560 | Q39: ='PL Volumes data inputs'!E43 -> 569 | R39: ='PL Volumes data inputs'!F43 -> 579 | S39: ='PL Volumes data inputs'!G43 -> 589 | T39: ='PL Volumes data inputs'!H43 -> 599 | U39: ='PL Volumes data inputs'!I43 -> 609 | X39: 11.852 | Y39: ='Summary Nominal $'!Y39/('Cost data inputs'!E$6) -> 40.62339197 | Z39: ='Summary Nominal $'!Z39/('Cost data inputs'!F$6) -> 40.63258152 | AA39: ='Summary Nominal $'!AA39/('Cost data inputs'!G$6) -> 41.03890734 | AB39: ='Summary Nominal $'!AB39/('Cost data inputs'!H$6) -> 39.9924152 | AC39: ='Summary Nominal $'!AC39/('Cost data inputs'!I$6) -> 37.81282857 | AE39: 0.0242918592 | AF39: 0.0843686916 | AG39: 0.08587086616 | AH39: 0.08822749494 | AI39: 0.08767697154 | AJ39: 0.08405224599
A40: ='Annuity Prices'!A292 -> 150W Metal Halide | B40: ='Cost data inputs'!B222 -> 43.65 | C40: ='Annuity Prices'!I301 -> 40.896 | D40: ='Annuity Prices'!J301 -> 40.357 | E40: ='Annuity Prices'!K301 -> 39.341 | F40: ='Annuity Prices'!L301 -> 36.714 | G40: ='Annuity Prices'!M301 -> 35.386 | I40: 0.001437831 | J40: 0.0013434336 | K40: 0.00132572745 | L40: 0.00129235185 | M40: 0.00120935916 | N40: 0.0011624301 | P40: ='PL Volumes data inputs'!D44 -> 9 | Q40: ='PL Volumes data inputs'!E44 -> 9 | R40: ='PL Volumes data inputs'!F44 -> 9 | S40: ='PL Volumes data inputs'!G44 -> 9 | T40: ='PL Volumes data inputs'!H44 -> 9 | U40: ='PL Volumes data inputs'!I44 -> 9 | X40: 43.65 | Y40: ='Summary Nominal $'!Y40/('Cost data inputs'!E$6) -> 40.27086435 | Z40: ='Summary Nominal $'!Z40/('Cost data inputs'!F$6) -> 40.27997416 | AA40: ='Summary Nominal $'!AA40/('Cost data inputs'!G$6) -> 40.6827739 | AB40: ='Summary Nominal $'!AB40/('Cost data inputs'!H$6) -> 39.64536316 | AC40: ='Summary Nominal $'!AC40/('Cost data inputs'!I$6) -> 37.48469087 | AE40: 0.001437831 | AF40: 0.001322897894 | AG40: 0.001323197151 | AH40: 0.001336429123 | AI40: 0.001305918263 | AJ40: 0.001231372095
A41: ='Annuity Prices'!A303 -> 250W Metal Halide | B41: ='Cost data inputs'!B223 -> 42.156 | C41: ='Annuity Prices'!I312 -> 41.032 | D41: ='Annuity Prices'!J312 -> 40.493 | E41: ='Annuity Prices'!K312 -> 39.478 | F41: ='Annuity Prices'!L312 -> 36.85 | G41: ='Annuity Prices'!M312 -> 35.522 | I41: 0.00493731072 | J41: 0.0047925376 | K41: 0.00487738185 | L41: 0.0048992198 | M41: 0.004720485 | N41: 0.0046675908 | P41: ='PL Volumes data inputs'!D45 -> 32 | Q41: ='PL Volumes data inputs'!E45 -> 32 | R41: ='PL Volumes data inputs'!F45 -> 33 | S41: ='PL Volumes data inputs'!G45 -> 34 | T41: ='PL Volumes data inputs'!H45 -> 35 | U41: ='PL Volumes data inputs'!I45 -> 36 | X41: 42.156 | Y41: ='Summary Nominal $'!Y41/('Cost data inputs'!E$6) -> 40.40478545 | Z41: ='Summary Nominal $'!Z41/('Cost data inputs'!F$6) -> 40.41392556 | AA41: ='Summary Nominal $'!AA41/('Cost data inputs'!G$6) -> 40.81806481 | AB41: ='Summary Nominal $'!AB41/('Cost data inputs'!H$6) -> 39.77720416 | AC41: ='Summary Nominal $'!AC41/('Cost data inputs'!I$6) -> 37.60934653 | AE41: 0.00493731072 | AF41: 0.004719278941 | AG41: 0.004867857333 | AH41: 0.005065521843 | AI41: 0.005095459853 | AJ41: 0.004941868135
A42: ='Annuity Prices'!A314 -> 2x20W Fluorescent | B42: ='Cost data inputs'!B224 -> 36.142 | C42: ='Annuity Prices'!I323 -> 38.357 | D42: ='Annuity Prices'!J323 -> 37.897 | E42: ='Annuity Prices'!K323 -> 36.992 | F42: ='Annuity Prices'!L323 -> 34.522 | G42: ='Annuity Prices'!M323 -> 33.347 | I42: 0.00119051748 | J42: 0.00126002745 | K42: 0.00124491645 | L42: 0.0012151872 | M42: 0.00113715468 | N42: 0.00109544895 | P42: ='PL Volumes data inputs'!D46 -> 9 | Q42: ='PL Volumes data inputs'!E46 -> 9 | R42: ='PL Volumes data inputs'!F46 -> 9 | S42: ='PL Volumes data inputs'!G46 -> 9 | T42: ='PL Volumes data inputs'!H46 -> 9 | U42: ='PL Volumes data inputs'!I46 -> 9 | X42: 36.142 | Y42: ='Summary Nominal $'!Y42/('Cost data inputs'!E$6) -> 37.77067547 | Z42: ='Summary Nominal $'!Z42/('Cost data inputs'!F$6) -> 37.7792197 | AA42: ='Summary Nominal $'!AA42/('Cost data inputs'!G$6) -> 38.15701189 | AB42: ='Summary Nominal $'!AB42/('Cost data inputs'!H$6) -> 37.18400809 | AC42: ='Summary Nominal $'!AC42/('Cost data inputs'!I$6) -> 35.15747965 | AE42: 0.00119051748 | AF42: 0.001240766689 | AG42: 0.001241047367 | AH42: 0.001253457841 | AI42: 0.001224841227 | AJ42: 0.001154923207
A43: ='Annuity Prices'!A325 -> 2x40W Fluorescent | B43: ='Cost data inputs'!B225 -> 36.142 | C43: ='Annuity Prices'!I334 -> 37.923 | D43: ='Annuity Prices'!J334 -> 37.433 | E43: ='Annuity Prices'!K334 -> 36.495 | F43: ='Annuity Prices'!L334 -> 33.984 | G43: ='Annuity Prices'!M334 -> 32.761 | I43: 0.0046297902 | J43: 0.00484466325 | K43: 0.0049186962 | L43: 0.00492864975 | M43: 0.00472649472 | N43: 0.00466352835 | P43: ='PL Volumes data inputs'!D47 -> 35 | Q43: ='PL Volumes data inputs'!E47 -> 35 | R43: ='PL Volumes data inputs'!F47 -> 36 | S43: ='PL Volumes data inputs'!G47 -> 37 | T43: ='PL Volumes data inputs'!H47 -> 38 | U43: ='PL Volumes data inputs'!I47 -> 39 | X43: 36.142 | Y43: ='Summary Nominal $'!Y43/('Cost data inputs'!E$6) -> 37.34330958 | Z43: ='Summary Nominal $'!Z43/('Cost data inputs'!F$6) -> 37.35175714 | AA43: ='Summary Nominal $'!AA43/('Cost data inputs'!G$6) -> 37.72527471 | AB43: ='Summary Nominal $'!AB43/('Cost data inputs'!H$6) -> 36.76328021 | AC43: ='Summary Nominal $'!AC43/('Cost data inputs'!I$6) -> 34.75968143 | AE43: 0.0046297902 | AF43: 0.004770607799 | AG43: 0.004908020888 | AH43: 0.00509479835 | AI43: 0.005113037011 | AJ43: 0.004948040652
A44: ='Annuity Prices'!A336 -> 42W Compact Fluorescent | B44: ='Cost data inputs'!B226 -> 33.97 | C44: ='Annuity Prices'!I345 -> 36.321 | D44: ='Annuity Prices'!J345 -> 35.861 | E44: ='Annuity Prices'!K345 -> 34.956 | F44: ='Annuity Prices'!L345 -> 32.489 | G44: ='Annuity Prices'!M345 -> 31.304 | I44: 0.0438885606 | J44: 0.04759322235 | K44: 0.04777581725 | L44: 0.0473356674 | M44: 0.04482897198 | N44: 0.0437614268 | P44: ='PL Volumes data inputs'!D48 -> 353 | Q44: ='PL Volumes data inputs'!E48 -> 359 | R44: ='PL Volumes data inputs'!F48 -> 365 | S44: ='PL Volumes data inputs'!G48 -> 371 | T44: ='PL Volumes data inputs'!H48 -> 377 | U44: ='PL Volumes data inputs'!I48 -> 383 | X44: 33.97 | Y44: ='Summary Nominal $'!Y44/('Cost data inputs'!E$6) -> 35.76579773 | Z44: ='Summary Nominal $'!Z44/('Cost data inputs'!F$6) -> 35.77388843 | AA44: ='Summary Nominal $'!AA44/('Cost data inputs'!G$6) -> 36.13162732 | AB44: ='Summary Nominal $'!AB44/('Cost data inputs'!H$6) -> 35.21027082 | AC44: ='Summary Nominal $'!AC44/('Cost data inputs'!I$6) -> 33.29131106 | AE44: 0.0438885606 | AF44: 0.04686571306 | AG44: 0.04765976286 | AH44: 0.04892764313 | AI44: 0.04858383588 | AJ44: 0.0465395883
A45: ='Annuity Prices'!A347 -> 60W Incandescent | B45: ='Cost data inputs'!B227 -> 44.443 | C45: ='Annuity Prices'!I356 -> 33.253 | D45: ='Annuity Prices'!J356 -> 32.793 | E45: ='Annuity Prices'!K356 -> 31.887 | F45: ='Annuity Prices'!L356 -> 29.424 | G45: ='Annuity Prices'!M356 -> 28.224 | I45: 0.00211459794 | J45: 0.00157785485 | K45: 0.00155602785 | L45: 0.00151303815 | M45: 0.00139999392 | N45: 0.0013392288 | P45: ='PL Volumes data inputs'!D49 -> 13 | Q45: ='PL Volumes data inputs'!E49 -> 13 | R45: ='PL Volumes data inputs'!F49 -> 13 | S45: ='PL Volumes data inputs'!G49 -> 13 | T45: ='PL Volumes data inputs'!H49 -> 13 | U45: ='PL Volumes data inputs'!I49 -> 13 | X45: 44.443 | Y45: ='Summary Nominal $'!Y45/('Cost data inputs'!E$6) -> 32.74469513 | Z45: ='Summary Nominal $'!Z45/('Cost data inputs'!F$6) -> 32.75210242 | AA45: ='Summary Nominal $'!AA45/('Cost data inputs'!G$6) -> 33.07962345 | AB45: ='Summary Nominal $'!AB45/('Cost data inputs'!H$6) -> 32.23609305 | AC45: ='Summary Nominal $'!AC45/('Cost data inputs'!I$6) -> 30.47922598 | AE45: 0.00211459794 | AF45: 0.001553735784 | AG45: 0.00155408726 | AH45: 0.001569628133 | AI45: 0.001533793307 | AJ45: 0.001446239273
I46: =SUM(I29:I45) -> 5.289372591 | J46: =SUM(J29:J45) -> 6.259200029 | K46: =SUM(K29:K45) -> 6.278782104 | L46: 6.213615168 | M46: 5.87026242 | N46: 5.71839503 | P46: =SUM(P29:P45) -> 47155 | Q46: =SUM(Q29:Q45) -> 47957 | R46: =SUM(R29:R45) -> 48759 | S46: 49561 | T46: 50363 | U46: 51165 | AE46: =SUM(AE29:AE45) -> 5.289372591 | AF46: =SUM(AF29:AF45) -> 6.16352199 | AG46: =SUM(AG29:AG45) -> 6.268097896 | AH46: 6.434992326 | AI46: 6.389914814 | AJ46: 6.121178383
A48: Total | I48: =SUM(I26,I46) -> 5.793559587 | J48: 6.50677973 | K48: 6.523504687 | L48: 6.452866226 | M48: 6.094397972 | N48: 5.934766494 | P48: =SUM(P26,P46) -> 48992 | Q48: =SUM(Q26,Q46) -> 49794 | R48: 50596 | S48: 51398 | T48: 52200 | U48: 53002 | AE48: =SUM(AE26,AE46) -> 5.793559587 | AF48: =SUM(AF26,AF46) -> 6.407317191 | AG48: 6.511948247 | AH48: 6.681281181 | AI48: 6.63058086 | AJ48: 6.348106409
H50: Total Revenue $2009/10 | J50: =J48/'Cost data inputs'!$D$5 -> 6.157524916 | K50: =K48/'Cost data inputs'!$D$5 -> 6.173352153 | L50: =L48/'Cost data inputs'!$D$5 -> 6.106505248 | M50: =M48/'Cost data inputs'!$D$5 -> 5.767277966 | N50: =N48/'Cost data inputs'!$D$5 -> 5.616214791

Sheet Cost data inputs
A1: Cost data Inputs
B3: 2009/10 | C3: 2010/11 | D3: 2011/12 | E3: 2012-13 | F3: 2013-14 | G3: 2014-15 | H3: 2015-16 | I3: 2016-17
A4: CPI | C4: 0.036 | D4: 0.02 | E4: 0.0325 | F4: 0.025 | G4: 0.025 | H4: 0.025 | I4: 0.025
A5: Cumulative CPI - Convert Real $ 2009/10 to Real $ 2011/12 | B5: 1 | C5: =1+(1*C4) -> 1.036 | D5: =C5+(C5*D4) -> 1.05672
A6: Cumulative CPI - Convert Real $ 2011/12 to Nominal | D6: 1 | E6: =D6*(1+E$4) -> 1.0325 | F6: =E6*(1+F$4) -> 1.0583125 | G6: 1.084770312 | H6: 1.11188957 | I6: 1.13968681
E7: 0.02634
A8: Pre-tax Real WACC Rate | B8: 0.08347419038
A10: Asset Lives (yrs)
A11: Luminaire Fitting Life | B11: 20
A12: Bracket Life | B12: 40
A13: Surcharge Pole | B13: 50
A15: Unit Rate Instal Adjustment Factor
A16: Bracket Instal Cost Component | B16: 0.5
A17: Luminaire Fitting Instal Component | B17: =1-B16 -> 0.5
A19: Surcharge Pole Replacement Costs ($2009/10) | B19: 979.77
A20: Surcharge Pole Volumes (2009/10) | B20: 1070
A22: Non Network CAPEX
A23: Written Down book value - 30 June 2012 | B23: June 12 $'s | C23: Rem Life
A24: Motor Vehicles | B24: 509208.802 | C24: 3.98822308
A25: Minor Assets | B25: 777973.911 | C25: 2.988203734
A26: Non-System Property | B26: 484685.2969 | C26: 19.54956234
A27: Spare Parts | B27: 104823.0241 | C27: 0
A28: NEM Assets | B28: 210895.3031 | C28: 2.02427866
B29: =SUM(B24:B28) -> 2087586.337
D31: 2009/10 Real (escalated) (June 2010 $'s) | I31: June 2012 $'s
A32: Capex Spend | B32: 2012-13 | C32: 2013-14 | D32: 2014-15 | E32: 2015-16 | F32: 2016-17 | G32: Effective Life | I32: 2012-13 | J32: 2013-14 | K32: 2014-15 | L32: 2015-16 | M32: 2016-17
A33: Motor Vehicles | B33: 206333.9451 | C33: 186114.1198 | D33: 147392.5088 | E33: 94265.86642 | F33: 92891.41166 | G33: 6 | I33: =B33*$D$5 -> 218037.2064 | J33: =C33*$D$5 -> 196670.5127 | K33: 155752.6119 | L33: 99612.62636 | M33: 98160.21253
A34: Minor Assets | B34: 143578.1147 | C34: 184957.4988 | D34: 182092.8576 | E34: 161336.8211 | F34: 158786.5283 | G34: 5 | I34: =B34*$D$5 -> 151721.8654 | J34: 195448.2881 | K34: 192421.1644 | L34: 170487.8456 | M34: 167792.9001
A35: Non-System Property | B35: 13527.38 | C35: 14056.48611 | D35: 13970.09146 | E35: 12895.3928 | F35: 12309.94374 | G35: 40 | I35: 14294.65299 | J35: 14853.77 | K35: 14762.47505 | L35: 13626.81948 | M35: 13008.16375
B36: =SUM(B33:B35) -> 363439.4398 | C36: =SUM(C33:C35) -> 385128.1046 | D36: =SUM(D33:D35) -> 343455.4578 | E36: =SUM(E33:E35) -> 268498.0803 | F36: =SUM(F33:F35) -> 263987.8837 | I36: 384053.7248 | J36: 406972.5707 | K36: 362936.2513 | L36: 283727.2914 | M36: 278961.2764
A38: Check | B38: 0 | C38: 0 | D38: 0 | E38: 0 | F38: 0
A40: Direct Opex Alternative Control Public Lighting | C40: 2012-13 | D40: 2013-14 | E40: 2014-15 | F40: 2015-16 | G40: 2016-17
A41: Opex Base Costs $2009/10 | B41: Work Category Code
A42: Inspection of Major Roadlighting - night patrols, condition monitoring and inspections only | B42: RLICM | C42: 43202.16 | D42: 42206.4 | E42: 41801.4 | F42: 41325.84 | G42: 40437.36
A43: Road Light Cable Inspection & Monitoring | B43: RLCIM | C43: 7650.63 | D43: 7479.59 | E43: 7410 | F43: 7328.33 | G43: 7175.69
A44: Major / Minor Road lighting Inspection / Repairs - general | B44: RLREM | C44: 676858.95 | D44: 660744 | E44: 654192.45 | F44: 574687.2 | G44: 561908.4
A45: Replace Road lighting - Major and Minor, bulk lamp replacement (4 year replace cycle) | B45: RLBLR | C45: 1397594.02 | D45: 1308570.77 | E45: 1272191.35 | F45: 1239546 | G45: 1191348.48
A46: Data Services | B46: OTHAP | C46: 5832 | D46: 5832 | E46: 5832 | F46: 5832 | G46: 5832
A47: Licences & Maintenance Agreements | B47: SFTAP | C47: 55489.2 | D47: 55489.2 | E47: 55489.2 | F47: 55489.2 | G47: 55489.2
A48: Opex Base Costs $2009/10 | C48: =SUM(C42:C47) -> 2186626.96 | D48: =SUM(D42:D47) -> 2080321.96 | E48: 2036916.4 | F48: 1924208.57 | G48: 1862191.13
A50: Cost Breakdown
C51: 2012-13 | D51: 2013-14 | E51: 2014-15 | F51: 2015-16 | G51: 2016-17
A52: =A42 -> Inspection of Major Roadlighting - night patrols, condition monitoring and inspections only | B52: =B42 -> RLICM
A53: Labour | C53: 0.7990776229 | D53: 0.8049774034 | E53: 0.8070216197 | F53: 0.8096045308 | G53: 0.8146974532
A54: Materials | C54: 7.049703018e-05 | D54: 6.973565699e-05 | E54: 6.992782075e-05 | F54: 7.037357467e-05 | G54: 6.985618966e-05
A55: Contractors | C55: 0.01595730445 | D55: 0.01567628039 | E55: 0.01573544109 | F55: 0.01575604318 | G55: 0.01564020508
A56: Other | C56: 0.1848945756 | D56: 0.1792765806 | E56: 0.1771730114 | F56: 0.1745690524 | G56: 0.1695924855
A58: =A43 -> Road Light Cable Inspection & Monitoring | B58: =B43 -> RLCIM
A59: Labour | C59: 0.5942713588 | D59: 0.5953071221 | E59: 0.5953191597 | F59: 0.5954619487 | G59: 0.5958372913
A60: Materials | C60: 0.1594278756 | D60: 0.1630712487 | E60: 0.1646021826 | F60: 0.1664363257 | G60: 0.1699746319
A61: Contractors | C61: 0.0619595966 | D61: 0.06273913436 | E61: 0.06323843446 | F61: 0.06378781351 | G61: 0.06469736605
A62: Other | C62: 0.184341169 | D62: 0.1788824949 | E62: 0.1768402232 | F62: 0.1743139121 | G62: 0.1694907107
A64: =A44 -> Major / Minor Road lighting Inspection / Repairs - general | B64: =B44 -> RLREM
A65: Labour | C65: 0.6503489494 | D65: 0.6528191914 | E65: 0.6534079206 | F65: 0.6542511052 | G65: 0.6559884875
A66: Materials | C66: 0.1423282157 | D66: 0.1457939906 | E66: 0.1472533904 | F66: 0.1490042265 | G66: 0.1523889991
A67: Contractors | C67: 0.01647140965 | D67: 0.01619363886 | E67: 0.01625995211 | F67: 0.01628748683 | G67: 0.01617973262
A68: Other | C68: 0.1908514252 | D68: 0.1851931791 | E68: 0.183078737 | F68: 0.1804571814 | G68: 0.1754427807
A70: =A45 -> Replace Road lighting - Major and Minor, bulk lamp replacement (4 year replace cycle) | B70: =B45 -> RLBLR
A71: Labour | C71: 0.5482508538 | D71: 0.5482356934 | E71: 0.5478435904 | F71: 0.5474916665 | G71: 0.5469051742
A72: Materials | C72: 0.2735903245 | D72: 0.2792976765 | E72: 0.2816889157 | F72: 0.2845484574 | G72: 0.2900499218
A73: Contractors | C73: 0.01415438361 | D73: 0.01386814863 | E73: 0.01390494389 | F73: 0.01390454082 | G73: 0.0137667694
A74: Other | C74: 0.1640044381 | D74: 0.1585984815 | E74: 0.15656255 | F74: 0.1540553353 | G74: 0.1492781347
A76: =A46 -> Data Services | B76: =B46 -> OTHAP
A77: Labour | C77: 0 | D77: 0 | E77: 0 | F77: 0 | G77: 0
A78: Materials | C78: 0 | D78: 0 | E78: 0 | F78: 0 | G78: 0
A79: Contractors | C79: 1 | D79: 1 | E79: 1 | F79: 1 | G79: 1
A80: Other | C80: 0 | D80: 0 | E80: 0 | F80: 0 | G80: 0
A82: =A47 -> Licences & Maintenance Agreements | B82: =B47 -> SFTAP
A83: Labour | C83: 0 | D83: 0 | E83: 0 | F83: 0 | G83: 0
A84: Materials | C84: 0 | D84: 0 | E84: 0 | F84: 0 | G84: 0
A85: Contractors | C85: 1 | D85: 1 | E85: 1 | F85: 1 | G85: 1
A86: Other | C86: 0 | D86: 0 | E86: 0 | F86: 0 | G86: 0
A90: Direct Opex Real Escalated Costs $2009/10 | B90: Work Category Code | C90: 2012-13 | D90: 2013-14 | E90: 2014-15 | F90: 2015-16 | G90: 2016-17
A91: =A42 -> Inspection of Major Roadlighting - night patrols, condition monitoring and inspections only | B91: RLICM | C91: =C42*(C53*D$130+C54*D$131+C55*D$132+C56*D$133) -> 43699.81995 | D91: =D42*(D53*E$130+D54*E$131+D55*E$132+D56*E$133) -> 43094.90989 | E91: =E42*(E53*F$130+E54*F$131+E55*F$132+E56*F$133) -> 42258.09219 | F91: =F42*(F53*G$130+F54*G$131+F55*G$132+F56*G$133) -> 41062.47726 | G91: =G42*(G53*H$130+G54*H$131+G55*H$132+G56*H$133) -> 39686.61942
A92: Road Light Cable Inspection & Monitoring | B92: RLCIM | C92: =C43*(C59*D$130+C60*D$131+C61*D$132+C62*D$133) -> 7742.761595 | D92: =D43*(D59*E$130+D60*E$131+D61*E$132+D62*E$133) -> 7619.304537 | E92: =E43*(E59*F$130+E60*F$131+E61*F$132+E62*F$133) -> 7488.210649 | F92: =F43*(F59*G$130+F60*G$131+F61*G$132+F62*G$133) -> 7314.622468 | G92: =G43*(G59*H$130+G60*H$131+G61*H$132+G62*H$133) -> 7105.881858
A93: Major / Minor Road lighting Inspection / Repairs - general | B93: RLREM | C93: =C44*(C65*D$130+C66*D$131+C67*D$132+C68*D$133) -> 685186.5736 | D93: =D44*(D65*E$130+D66*E$131+D67*E$132+D68*E$133) -> 674075.3542 | E93: =E44*(E65*F$130+E66*F$131+E67*F$132+E68*F$133) -> 662079.6806 | F93: =F44*(F65*G$130+F66*G$131+F67*G$132+F68*G$133) -> 573894.6498 | G93: =G44*(G65*H$130+G66*H$131+G67*H$132+G68*H$133) -> 556210.3779
A94: Replace Road lighting - Major and Minor, bulk lamp replacement (4 year replace cycle) | B94: RLBLR | C94: =C45*(C71*D$130+C72*D$131+C73*D$132+C74*D$133) -> 1416487.256 | D94: =D45*(D71*E$130+D72*E$131+D73*E$132+D74*E$133) -> 1335149.63 | E94: =E45*(E71*F$130+E72*F$131+E73*F$132+E74*F$133) -> 1289544.608 | F94: =F45*(F71*G$130+F72*G$131+F73*G$132+F74*G$133) -> 1243259.048 | G94: =G45*(G71*H$130+G72*H$131+G73*H$132+G74*H$133) -> 1187536.488
A95: Data Services | B95: OTHAP | C95: =C46*(C77*D$130+C78*D$131+C79*D$132+C80*D$133) -> 5856.671009 | D95: =D46*(D77*E$130+D78*E$131+D79*E$132+D80*E$133) -> 5787.459816 | E95: =E46*(E77*F$130+E78*F$131+E79*F$132+E80*F$133) -> 5698.252636 | F95: =F46*(F77*G$130+F78*G$131+F79*G$132+F80*G$133) -> 5663.237021 | G95: =G46*(G77*H$130+G78*H$131+G79*H$132+G80*H$133) -> 5652.756371
A96: Licences & Maintenance Agreements | B96: SFTAP | C96: =C47*(C83*D$130+C84*D$131+C85*D$132+C86*D$133) -> 55723.93501 | D96: =D47*(D83*E$130+D84*E$131+D85*E$132+D86*E$133) -> 55065.41756 | E96: =E47*(E83*F$130+E84*F$131+E85*F$132+E86*F$133) -> 54216.64612 | F96: =F47*(F83*G$130+F84*G$131+F85*G$132+F86*G$133) -> 53883.48623 | G96: =G47*(G83*H$130+G84*H$131+G85*H$132+G86*H$133) -> 53783.76695
A97: Direct Opex Real Escalated Costs $2009/10 | C97: =SUM(C91:C96) -> 2214697.017 | D97: =SUM(D91:D96) -> 2120792.076 | E97: 2061285.49 | F97: 1925077.521 | G97: 1849975.89
A100: Direct Opex Real Escalated Costs $2011/12 | B100: Work Category Code
A101: =A91 -> Inspection of Major Roadlighting - night patrols, condition monitoring and inspections only | B101: RLICM | C101: =C91*$D$5 -> 46178.47374 | D101: 45539.25318 | E101: 44654.97118 | F101: 43391.54097 | G101: 41937.64448
A102: Road Light Cable Inspection & Monitoring | B102: RLCIM | C102: 8181.931032 | D102: 8051.47149 | E102: 7912.941957 | F102: 7729.507854 | G102: 7508.927477
A103: Major / Minor Road lighting Inspection / Repairs - general | B103: RLREM | C103: 724050.3561 | D103: 712308.9083 | E103: 699632.8401 | F103: 606445.9543 | G103: 587758.6305
A104: Replace Road lighting - Major and Minor, bulk lamp replacement (4 year replace cycle) | B104: RLBLR | C104: 1496830.413 | D104: 1410879.317 | E104: 1362687.578 | F104: 1313776.701 | G104: 1254893.557
A105: Data Services | B105: OTHAP | C105: 6188.861389 | D105: 6115.724536 | E105: 6021.457525 | F105: 5984.455824 | G105: 5973.380712
A106: Licences & Maintenance Agreements | B106: SFTAP | C106: 58884.5966 | D106: 58188.72804 | E106: 57291.81429 | F106: 56939.75757 | G106: 56834.38221
A107: Direct Opex Real Escalated Costs $2011/12 | C107: =SUM(C101:C106) -> 2340314.632 | D107: =SUM(D101:D106) -> 2241083.402 | E107: 2178201.603 | F107: 2034267.918 | G107: 1954906.523
A110: Direct Opex Real Escalated Costs $2011/12 | B110: Work Category Code
A111: Total Opex | C111: =C107 -> 2340314.632 | D111: =D107 -> 2241083.402 | E111: 2178201.603 | F111: 2034267.918 | G111: 1954906.523
A112: =A101 -> Inspection of Major Roadlighting - night patrols, condition monitoring and inspections only | B112: RLICM | C112: 46178.47374 | D112: 45539.25318 | E112: 44654.97118 | F112: 43391.54097 | G112: 41937.64448
A114: Direct Opex Real Escalated Costs $2011/12 Allocated to all Forms of Lighting | C114: =C111-C112 -> 2294136.158 | D114: =D111-D112 -> 2195544.149 | E114: 2133546.632 | F114: 1990876.377 | G114: 1912968.878
A115: Direct Opex Real Escalated Costs $2011/12 per Light | C115: =C114/'PL Volumes data inputs'!E57 -> 46.07254203 | D115: =D114/'PL Volumes data inputs'!F57 -> 43.3936309 | E115: =E114/'PL Volumes data inputs'!G57 -> 41.51030453 | F115: =F114/'PL Volumes data inputs'!H57 -> 38.13939419 | G115: =G114/'PL Volumes data inputs'!I57 -> 36.09239044
A117: Direct Opex Real Escalated Costs $2011/12 Allocated to Major Lighting Only | C117: =C112 -> 46178.47374 | D117: =D112 -> 45539.25318 | E117: 44654.97118 | F117: 43391.54097 | G117: 41937.64448
A118: Direct Opex Real Escalated Costs $2011/12 per Major Light | C118: =C117/'PL Volumes data inputs'!E59 -> 3.696643751 | D118: =D117/'PL Volumes data inputs'!F59 -> 3.589442199 | E118: =E117/'PL Volumes data inputs'!G59 -> 3.466462597 | F118: =F117/'PL Volumes data inputs'!H59 -> 3.318157144 | G118: =G117/'PL Volumes data inputs'!I59 -> 3.159858686
A121: Opex Overheads Public Lighting Alternative Control | B121: NPV
A122: Opex Overheads Real Escalated Costs $2009/10 | C122: 1045013.16 | D122: 1051580.97 | E122: 1050251.392 | F122: 985890.0205 | G122: 948517.2882
A123: Opex Overheads Real Escalated Costs $2011/12 | B123: =NPV($B$8,C123:G123) -> 4265650.853 | C123: =C122*'Cost data inputs'!$D$5 -> 1104286.306 | D123: =D122*'Cost data inputs'!$D$5 -> 1111226.642 | E123: =E122*'Cost data inputs'!$D$5 -> 1109821.651 | F123: =F122*'Cost data inputs'!$D$5 -> 1041809.703 | G123: =G122*'Cost data inputs'!$D$5 -> 1002317.189
A124: Opex Overheads Real Escalated Costs $2011/12 - Smoothed | B124: =NPV($B$8,C124:G124) -> 4265650.853 | C124: =-PMT($B$8,5,$B$123) -> 1078160.434 | D124: =-PMT($B$8,5,$B$123) -> 1078160.434 | E124: =-PMT($B$8,5,$B$123) -> 1078160.434 | F124: =-PMT($B$8,5,$B$123) -> 1078160.434 | G124: =-PMT($B$8,5,$B$123) -> 1078160.434
A125: Opex Overheads Real Escalated Costs $2011/12 per Light | C125: =C124/'PL Volumes data inputs'!E57 -> 21.65241664 | D125: =D124/'PL Volumes data inputs'!F57 -> 21.30920298 | E125: =E124/'PL Volumes data inputs'!G57 -> 20.97670015 | F125: =F124/'PL Volumes data inputs'!H57 -> 20.65441445 | G125: =G124/'PL Volumes data inputs'!I57 -> 20.34188208
A128: Real Cost Escalators - Opex categories | B128: 2010-11 | C128: 2011-12 | D128: 2012-13 | E128: 2013-14 | F128: 2014-15 | G128: 2015-16 | H128: 2016-17
A129: Cumulative
A130: Labour | B130: 1 | C130: 1.0025 | D130: 1.0143295 | E130: 1.026298588 | F130: 1.013983005 | G130: 0.9926893619 | H130: 0.9777990215
A131: Materials | B131: 1.01852478 | C131: 1.011816345 | D131: 1.020477196 | E131: 1.021480505 | F131: 1.022360958 | G131: 1.026007398 | H131: 1.03228829
A132: Contractors | B132: 1 | C132: 1.005926038 | D132: 1.004230283 | E132: 0.9923627942 | F132: 0.9770666385 | G132: 0.9710625893 | H132: 0.9692654957
A133: Other | B133: 1 | C133: 1 | D133: 1 | E133: 1 | F133: 1 | G133: 1 | H133: 1
A136: Public Lighting Installation Cost (Excluding Unit Rate Material Component)
A137: Capex Unit Rates ($2009/10) | H137: Category Split
A138: Work Category Code | B138: 2012-13 | C138: 2013-14 | D138: 2014-15 | E138: 2015-16 | F138: 2016-17 | H138: Labour | I138: Materials | J138: Contractors | K138: Other | L138: Check
A139: RLMAJ | B139: 505.25 | C139: 494.34 | D139: 487.68 | E139: 479.34 | F139: 467.93 | H139: 0.4630183078 | I139: 0.4225235032 | J139: 0 | K139: 0.114458189 | L139: =SUM(H139:K139) -> 1
A140: RLMIN | B140: 353.37 | C140: 346.56 | D140: 342.39 | E140: 337.19 | F140: 330.05 | H140: 0.4137589495 | I140: 0.4839686448 | J140: 0 | K140: 0.1022724057 | L140: =SUM(H140:K140) -> 1
A144: Public Lighting Replacement Cost (Unit Rate Material Component) ($2009/10)
A145: Light Description | B145: Work Category Code | C145: Bracket (Material Cost) | D145: Lamp Price (Material Cost) | E145: Luminaire Price (Material Cost) | F145: Energy Rating (watts)
A146: 50W Mercury Vapour | B146: RLMIN | C146: 184.84 | D146: 2.35 | E146: 68.49 | F146: 65
A147: 80W Mercury Vapour Aeroscreen | B147: RLMIN | C147: 184.84 | D147: 1.93 | E147: 68.49 | F147: 95.8
A148: 80W Mercury Vapour Art decorative | B148: RLMIN | C148: 184.84 | D148: 1.93 | E148: 744.87 | F148: 95.8
A149: 125W Mercury Vapour | B149: RLMAJ | C149: 184.84 | D149: 2.41 | E149: 119.8 | F149: 142
A150: 250W Mercury Vapour | B150: RLMAJ | C150: 184.84 | D150: 5.05 | E150: 136.11 | F150: 270
A151: 400W Mercury Vapour | B151: RLMAJ | C151: 184.84 | D151: 7.05 | E151: 294.23 | F151: 440
A152: 70W Sodium Vapour | B152: RLMIN | C152: 184.84 | D152: 9.12 | E152: 148.03 | F152: 86
A153: 100W Sodium Vapour | B153: RLMIN | C153: 184.84 | D153: 33.18 | E153: 119.8 | F153: 120
A154: 150W Sodium Vapour | B154: RLMAJ | C154: 184.84 | D154: 28.35 | E154: 162.01 | F154: 173
A155: 250W Sodium Vapour | B155: RLMAJ | C155: 184.84 | D155: 27.15 | E155: 166.45 | F155: 273
A156: 400W Sodium Vapour | B156: RLMAJ | C156: 184.84 | D156: 29.84 | E156: 173.68 | F156: 440
A157: 150W Metal Halide | B157: RLMAJ | C157: 184.84 | D157: 28.35 | E157: 162.01 | F157: 168
A158: 250W Metal Halide | B158: RLMAJ | C158: 184.84 | D158: 27.15 | E158: 166.45 | F158: 268
A159: 400W Metal Halide | B159: RLMAJ | C159: 184.84 | D159: 27.15 | E159: 166.45 | F159: 268
A160: 1x20W Fluorescent | B160: RLMIN | C160: 184.84 | D160: 4.31 | E160: 212.27 | F160: 23.5
A161: 2x20W Fluorescent | B161: RLMIN | C161: 184.84 | D161: 8.62 | E161: 212.27 | F161: 47
A162: 1x40W Fluorescent | B162: RLMIN | C162: 184.84 | D162: 4.59 | E162: 165.11 | F162: 50
A163: 2x40W Fluorescent | B163: RLMIN | C163: 184.84 | D163: 9.18 | E163: 165.11 | F163: 100
A164: 3x40W Fluorescent | B164: RLMIN | C164: 184.84 | D164: 13.77 | E164: 165.11 | F164: 150
A165: 4x40W Fluorescent | B165: RLMIN | C165: 184.84 | D165: 44.04 | E165: 229.33 | F165: 200
A166: 42W Compact Fluorescent | B166: RLMIN | C166: 184.84 | D166: 12.93 | E166: 145.91 | F166: 46.4
A167: 60W Incandescent | B167: RLMIN | C167: 184.84 | D167: 1.84 | E167: 45.87 | F167: 60
A168: 100W Incandescent | B168: RLMIN | C168: 184.84 | D168: 1.84 | E168: 45.87 | F168: 100
A172: Real Cost Escalators - Capex | B172: 2010-11 | C172: 2011-12 | D172: 2012-13 | E172: 2013-14 | F172: 2014-15 | G172: 2015-16 | H172: 2016-17
A173: Cumulative
A174: Streetlighting | B174: 1.006230834 | C174: 1.009208447 | D174: 1.013712901 | E174: 1.013819358 | F174: 1.014127329 | G174: 1.015557371 | H174: 1.017722767
A181: Prices for Period 1 July 2011 to 30 June 2012
B182: 2011-06-30 | C182: 2012-06-30
C183: =C182-B182 -> 366
A184: ='Summary Real $2011-12'!B2 -> Price (cents) per Light per day - Real $2011/12
A186: ='Summary Real $2011-12'!A4 -> Private Contract Lights | B186: Aurora info request response 17 August 2011
B187: Cents per day | C187: Annual Charge
A188: ='Summary Real $2011-12'!A5 -> 50W Mercury Vapour | B188: =ROUND(C188/$C$183*100,3) -> 33.27 | C188: 121.77
A189: ='Summary Real $2011-12'!A6 -> 80W Mercury Vapour Aeroscreen | B189: 37.809 | C189: 138.38
A190: ='Summary Real $2011-12'!A7 -> 125W Mercury Vapour | B190: 33.153 | C190: 121.34
A191: ='Summary Real $2011-12'!A8 -> 250W Mercury Vapour | B191: 99.153 | C191: 362.9
A192: ='Summary Real $2011-12'!A9 -> 400W Mercury Vapour | B192: 152.137 | C192: 556.82
A193: ='Summary Real $2011-12'!A10 -> 70W Sodium Vapour | B193: 49.415 | C193: 180.86
A194: ='Summary Real $2011-12'!A11 -> 150W Sodium Vapour | B194: 68.183 | C194: 249.55
A195: ='Summary Real $2011-12'!A12 -> 250W Sodium Vapour | B195: 98.828 | C195: 361.71
A196: ='Summary Real $2011-12'!A13 -> 400W Sodium Vapour | B196: 153.56 | C196: 562.03
A197: ='Summary Real $2011-12'!A14 -> 150W Metal Halide | B197: 80.443 | C197: 294.42
A198: ='Summary Real $2011-12'!A15 -> 250W Metal Halide | B198: 107.352 | C198: 392.91
A199: ='Summary Real $2011-12'!A16 -> 400W Metal Halide | B199: 145.15 | C199: 531.25
A200: ='Summary Real $2011-12'!A17 -> 1x20W Fluorescent | B200: 20.374 | C200: 74.57
A201: ='Summary Real $2011-12'!A18 -> 2x20W Fluorescent | B201: 29.62 | C201: 108.41
A202: ='Summary Real $2011-12'!A19 -> 1x40W Fluorescent | B202: 25.325 | C202: 92.69
A203: ='Summary Real $2011-12'!A20 -> 2x40W Fluorescent | B203: 39.62 | C203: 145.01
A204: ='Summary Real $2011-12'!A21 -> 3x40W Fluorescent | B204: 52.158 | C204: 190.9
A205: ='Summary Real $2011-12'!A22 -> 4x40W Fluorescent | B205: 64.743 | C205: 236.96
A206: ='Summary Real $2011-12'!A23 -> 60W Incandescent | B206: 53.74 | C206: 196.69
A207: ='Summary Real $2011-12'!A24 -> 100W Incandescent | B207: 72.831 | C207: 266.56
A208: ='Summary Real $2011-12'!A25 -> Pole Surcharge | B208: 27.164 | C208: 99.42
A210: ='Summary Real $2011-12'!A28 -> Public Road Lights
A211: ='Summary Real $2011-12'!A29 -> 50W Mercury Vapour | B211: =ROUND(C211/$C$183*100,3) -> 30.251 | C211: 110.72
A212: ='Summary Real $2011-12'!A30 -> 80W Mercury Vapour Aeroscreen | B212: 29.787 | C212: 109.02
A213: ='Summary Real $2011-12'!A31 -> 80W Mercury Vapour Art decorative | B213: 53.27 | C213: 194.97
A214: ='Summary Real $2011-12'!A32 -> 125W Mercury Vapour | B214: 35.842 | C214: 131.18
A215: ='Summary Real $2011-12'!A33 -> 250W Mercury Vapour | B215: 28.35 | C215: 103.76
A216: ='Summary Real $2011-12'!A34 -> 400W Mercury Vapour | B216: 0.481 | C216: 1.76
A217: ='Summary Real $2011-12'!A35 -> 70W Sodium Vapour | B217: 33.098 | C217: 121.14
A218: ='Summary Real $2011-12'!A36 -> 100W Sodium Vapour | B218: 36.546 | C218: 133.76
A219: ='Summary Real $2011-12'!A37 -> 150W Sodium Vapour | B219: 38.699 | C219: 141.64
A220: ='Summary Real $2011-12'!A38 -> 250W Sodium Vapour | B220: 38.77 | C220: 141.9
A221: ='Summary Real $2011-12'!A39 -> 400W Sodium Vapour | B221: 11.852 | C221: 43.38
A222: ='Summary Real $2011-12'!A40 -> 150W Metal Halide | B222: 43.65 | C222: 159.76
A223: ='Summary Real $2011-12'!A41 -> 250W Metal Halide | B223: 42.156 | C223: 154.29
A224: ='Summary Real $2011-12'!A42 -> 2x20W Fluorescent | B224: 36.142 | C224: 132.28
A225: ='Summary Real $2011-12'!A43 -> 2x40W Fluorescent | B225: 36.142 | C225: 132.28
A226: ='Summary Real $2011-12'!A44 -> 42W Compact Fluorescent | B226: 33.97 | C226: 124.33
A227: ='Summary Real $2011-12'!A45 -> 60W Incandescent | B227: 44.443 | C227: 162.66

Sheet PL Volumes data inputs
A1: Private Contract Lights
A2: Light Description | B2: ='Cost data inputs'!F$145 -> Energy Rating (watts) | C2: 2010/11 | D2: 2011/12 | E2: 2012/13 | F2: 2013/14 | G2: 2014/15 | H2: 2015/16 | I2: 2016/17
A3: 50W Mercury Vapour | B3: ='Cost data inputs'!F146 -> 65 | C3: 258 | D3: =C3 -> 258 | E3: =D3 -> 258 | F3: 258 | G3: 258 | H3: 258 | I3: 258
A4: 80W Mercury Vapour Aeroscreen | B4: ='Cost data inputs'!F147 -> 95.8 | C4: 400 | D4: =C4 -> 400 | E4: 400 | F4: 400 | G4: 400 | H4: 400 | I4: 400
A5: 125W Mercury Vapour | B5: ='Cost data inputs'!F149 -> 142 | C5: 321 | D5: =C5 -> 321 | E5: 321 | F5: 321 | G5: 321 | H5: 321 | I5: 321
A6: 250W Mercury Vapour | B6: ='Cost data inputs'!F150 -> 270 | C6: 45 | D6: =C6 -> 45 | E6: 45 | F6: 45 | G6: 45 | H6: 45 | I6: 45
A7: 400W Mercury Vapour | B7: ='Cost data inputs'!F151 -> 440 | C7: 38 | D7: =C7 -> 38 | E7: 38 | F7: 38 | G7: 38 | H7: 38 | I7: 38
A8: 70W Sodium Vapour | B8: ='Cost data inputs'!F152 -> 86 | C8: 69 | D8: =C8 -> 69 | E8: 69 | F8: 69 | G8: 69 | H8: 69 | I8: 69
A9: 150W Sodium Vapour | B9: ='Cost data inputs'!F153 -> 120 | C9: 177 | D9: =C9 -> 177 | E9: 177 | F9: 177 | G9: 177 | H9: 177 | I9: 177
A10: 250W Sodium Vapour | B10: ='Cost data inputs'!F154 -> 173 | C10: 211 | D10: =C10 -> 211 | E10: 211 | F10: 211 | G10: 211 | H10: 211 | I10: 211
A11: 400W Sodium Vapour | B11: ='Cost data inputs'!F155 -> 273 | C11: 122 | D11: =C11 -> 122 | E11: 122 | F11: 122 | G11: 122 | H11: 122 | I11: 122
A12: 150W Metal Halide | B12: ='Cost data inputs'!F157 -> 168 | C12: 25 | D12: =C12 -> 25 | E12: 25 | F12: 25 | G12: 25 | H12: 25 | I12: 25
A13: 250W Metal Halide | B13: ='Cost data inputs'!F158 -> 268 | C13: 7 | D13: =C13 -> 7 | E13: 7 | F13: 7 | G13: 7 | H13: 7 | I13: 7
A14: 400W Metal Halide | B14: ='Cost data inputs'!F159 -> 268 | C14: 9 | D14: =C14 -> 9 | E14: 9 | F14: 9 | G14: 9 | H14: 9 | I14: 9
A15: 1x20W Fluorescent | B15: ='Cost data inputs'!F160 -> 23.5 | C15: 34 | D15: =C15 -> 34 | E15: 34 | F15: 34 | G15: 34 | H15: 34 | I15: 34
A16: 2x20W Fluorescent | B16: ='Cost data inputs'!F161 -> 47 | C16: 48 | D16: =C16 -> 48 | E16: 48 | F16: 48 | G16: 48 | H16: 48 | I16: 48
A17: 1x40W Fluorescent | B17: ='Cost data inputs'!F162 -> 50 | C17: 45 | D17: =C17 -> 45 | E17: 45 | F17: 45 | G17: 45 | H17: 45 | I17: 45
A18: 2x40W Fluorescent | B18: ='Cost data inputs'!F163 -> 100 | C18: 1 | D18: =C18 -> 1 | E18: 1 | F18: 1 | G18: 1 | H18: 1 | I18: 1
A19: 3x40W Fluorescent | B19: ='Cost data inputs'!F164 -> 150 | C19: 1 | D19: =C19 -> 1 | E19: 1 | F19: 1 | G19: 1 | H19: 1 | I19: 1
A20: 4x40W Fluorescent | B20: ='Cost data inputs'!F165 -> 200 | C20: 1 | D20: =C20 -> 1 | E20: 1 | F20: 1 | G20: 1 | H20: 1 | I20: 1
A21: 60W Incandescent | B21: ='Cost data inputs'!F167 -> 60 | C21: 14 | D21: =C21 -> 14 | E21: 14 | F21: 14 | G21: 14 | H21: 14 | I21: 14
A22: 100W Incandescent | B22: ='Cost data inputs'!F168 -> 100 | C22: 11 | D22: =C22 -> 11 | E22: 11 | F22: 11 | G22: 11 | H22: 11 | I22: 11
A23: Total Lights | C23: =SUM(C3:C22) -> 1837 | D23: =SUM(D3:D22) -> 1837 | E23: 1837 | F23: 1837 | G23: 1837 | H23: 1837 | I23: 1837
A25: Total Major Lights | B25: >=100 | C25: =SUMIF($B3:$B22,">=100",C$3:C$22) -> 969 | D25: =SUMIF($B3:$B22,">=100",D$3:D$22) -> 969 | E25: 969 | F25: 969 | G25: 969 | H25: 969 | I25: 969
A27: Surcharge Pole Volumes | C27: ='Cost data inputs'!B20 -> 1070 | D27: =C27 -> 1070 | E27: =D27 -> 1070 | F27: =E27 -> 1070 | G27: =F27 -> 1070 | H27: =G27 -> 1070 | I27: =H27 -> 1070
A30: Public Road Lights
A31: Public Lighting Growth | D31: 802 | E31: 802 | F31: 802 | G31: 802 | H31: 802 | I31: 802
A32: Light Description | B32: ='Cost data inputs'!F$145 -> Energy Rating (watts) | C32: 2010/11 | D32: 2011/12 | E32: 2012/13 | F32: 2013/14 | G32: 2014/15 | H32: 2015/16 | I32: 2016/17
A33: 50W Mercury Vapour | B33: =B3 -> 65 | C33: 3492 | D33: =ROUND(C33*(D$31+C$50)/C$50,0) -> 3552 | E33: =ROUND(C33*(D$31+E$31+C$50)/C$50,0) -> 3613 | F33: =ROUND(E33*(F$31+E$50)/E$50,0) -> 3673 | G33: =ROUND(F33*(G$31+F$50)/F$50,0) -> 3733 | H33: =ROUND(G33*(H$31+G$50)/G$50,0) -> 3793 | I33: =ROUND(H33*(I$31+H$50)/H$50,0) -> 3853
A34: 80W Mercury Vapour Aeroscreen | B34: =B4 -> 95.8 | C34: 31014 | D34: =C50+D31-SUM(D33,D35:D49) -> 31549 | E34: =D50+E31-SUM(E33,E35:E49) -> 32088 | F34: =E50+F31-SUM(F33,F35:F49) -> 32623 | G34: 33158 | H34: 33693 | I34: 34228
A35: 80W Mercury Vapour Art decorative | B35: ='Cost data inputs'!F148 -> 95.8 | C35: 152 | D35: =ROUND(C35*(D$31+C$50)/C$50,0) -> 155 | E35: =ROUND(C35*(D$31+E$31+C$50)/C$50,0) -> 157 | F35: =ROUND(E35*(F$31+E$50)/E$50,0) -> 160 | G35: 163 | H35: 166 | I35: 169
A36: 125W Mercury Vapour | B36: =B5 -> 142 | C36: 160 | D36: 163 | E36: 166 | F36: 169 | G36: 172 | H36: 175 | I36: 178
A37: 250W Mercury Vapour | B37: =B6 -> 270 | C37: 1205 | D37: 1226 | E37: 1247 | F37: 1268 | G37: 1289 | H37: 1310 | I37: 1331
A38: 400W Mercury Vapour | B38: =B7 -> 440 | C38: 1015 | D38: 1033 | E38: 1050 | F38: 1068 | G38: 1086 | H38: 1104 | I38: 1122
A39: 70W Sodium Vapour | B39: =B8 -> 86 | C39: 188 | D39: 191 | E39: 195 | F39: 198 | G39: 201 | H39: 204 | I39: 207
A40: 100W Sodium Vapour | B40: ='Cost data inputs'!F153 -> 120 | C40: 351 | D40: 357 | E40: 363 | F40: 369 | G40: 375 | H40: 381 | I40: 387
A41: 150W Sodium Vapour | B41: =B9 -> 120 | C41: 3583 | D41: 3645 | E41: 3707 | F41: 3769 | G41: 3831 | H41: 3893 | I41: 3955
A42: 250W Sodium Vapour | B42: =B10 -> 173 | C42: 4200 | D42: 4273 | E42: 4345 | F42: 4418 | G42: 4491 | H42: 4564 | I42: 4637
A43: 400W Sodium Vapour | B43: =B11 -> 273 | C43: 550 | D43: 560 | E43: 569 | F43: 579 | G43: 589 | H43: 599 | I43: 609
A44: 150W Metal Halide | B44: =B12 -> 168 | C44: 9 | D44: 9 | E44: 9 | F44: 9 | G44: 9 | H44: 9 | I44: 9
A45: 250W Metal Halide | B45: =B13 -> 268 | C45: 31 | D45: 32 | E45: 32 | F45: 33 | G45: 34 | H45: 35 | I45: 36
A46: 2x20W Fluorescent | B46: =B16 -> 47 | C46: 9 | D46: 9 | E46: 9 | F46: 9 | G46: 9 | H46: 9 | I46: 9
A47: 2x40W Fluorescent | B47: =B18 -> 100 | C47: 34 | D47: 35 | E47: 35 | F47: 36 | G47: 37 | H47: 38 | I47: 39
A48: 42W Compact Fluorescent | B48: ='Cost data inputs'!F166 -> 46.4 | C48: 347 | D48: 353 | E48: 359 | F48: 365 | G48: 371 | H48: 377 | I48: 383
A49: 60W Incandescent | B49: =B21 -> 60 | C49: 13 | D49: 13 | E49: 13 | F49: 13 | G49: 13 | H49: 13 | I49: 13
A50: Total Lights | C50: =SUM(C33:C49) -> 46353 | D50: 47155 | E50: 47957 | F50: 48759 | G50: 49561 | H50: 50363 | I50: 51165
A51: Check | D51: =D50-C50-D31 -> 0 | E51: 0 | F51: 0 | G51: 0 | H51: 0 | I51: 0
A52: Total Major Lights | B52: >=100 | C52: =SUMIF($B33:$B49,">=100",C$33:C$49) -> 11138 | D52: =SUMIF($B33:$B49,">=100",D$33:D$49) -> 11333 | E52: 11523 | F52: 11718 | G52: 11913 | H52: 12108 | I52: 12303
A55: Total number of lights Lights | B55: ='Cost data inputs'!F$145 -> Energy Rating (watts) | C55: 2010/11 | D55: 2011/12 | E55: 2012/13 | F55: 2013/14 | G55: 2014/15 | H55: 2015/16 | I55: 2016/17
A57: Total Lights | C57: =SUM(C23,C50) -> 48190 | D57: 48992 | E57: 49794 | F57: 50596 | G57: 51398 | H57: 52200 | I57: 53002
A59: Total Major Lights | B59: >=100 | C59: =SUM(C25,C52) -> 12107 | D59: 12302 | E59: 12492 | F59: 12687 | G59: 12882 | H59: 13077 | I59: 13272

Sheet PL Annuity calcs
A2: Public Lighting Capital Cost | C2: Base Costs $2009/10 | I2: Real Escalation applied ($2009/10) | O2: CPI Escalation applied ($2011/12) | U2: Annuity calculation
A3: Light Description | B3: Work Category Code | C3: 2012/13 | D3: 2013/14 | E3: 2014/15 | F3: 2015/16 | G3: 2016/17 | I3: 2012/13 | J3: 2013/14 | K3: 2014/15 | L3: 2015/16 | M3: 2016/17 | O3: 2012/13 | P3: 2013/14 | Q3: 2014/15 | R3: 2015/16 | S3: 2016/17 | U3: 2012/13 | V3: 2013/14 | W3: 2014/15 | X3: 2015/16 | Y3: 2016/17
A4: ='Cost data inputs'!A146 -> 50W Mercury Vapour | B4: ='Cost data inputs'!B146 -> RLMIN
A5: ='Cost data inputs'!$C$145 -> Bracket (Material Cost) | C5: ='Cost data inputs'!C146 -> 184.84 | D5: =C5 -> 184.84 | E5: =D5 -> 184.84 | F5: 184.84 | G5: 184.84 | I5: =C5*E$196 -> 187.3746926 | J5: 187.3943701 | K5: 187.4512955 | L5: 187.7156245 | M5: 188.1158762 | O5: =I5*'Cost data inputs'!$D$5 -> 198.0025851 | P5: =J5*'Cost data inputs'!$D$5 -> 198.0233788 | Q5: =K5*'Cost data inputs'!$D$5 -> 198.083533 | R5: =L5*'Cost data inputs'!$D$5 -> 198.3628547 | S5: =M5*'Cost data inputs'!$D$5 -> 198.7858087 | U5: =-PMT('Cost data inputs'!$B$8,'Cost data inputs'!$B$12,O5) -> 17.22541716 | V5: =-PMT('Cost data inputs'!$B$8,'Cost data inputs'!$B$12,P5) -> 17.22722612 | W5: =-PMT('Cost data inputs'!$B$8,'Cost data inputs'!$B$12,Q5) -> 17.23245929 | X5: =-PMT('Cost data inputs'!$B$8,'Cost data inputs'!$B$12,R5) -> 17.25675914 | Y5: =-PMT('Cost data inputs'!$B$8,'Cost data inputs'!$B$12,S5) -> 17.29355441
A6: ='Cost data inputs'!$D$145 -> Lamp Price (Material Cost) | C6: ='Cost data inputs'!D146 -> 2.35 | D6: =C6 -> 2.35 | E6: 2.35 | F6: 2.35 | G6: 2.35 | I6: 2.382225317 | J6: 2.382475491 | K6: 2.383199223 | L6: 2.386559823 | M6: 2.391648502 | O6: =I6*'Cost data inputs'!$D$5 -> 2.517345137 | P6: =J6*'Cost data inputs'!$D$5 -> 2.517609501 | Q6: =K6*'Cost data inputs'!$D$5 -> 2.518374283 | R6: =L6*'Cost data inputs'!$D$5 -> 2.521925496 | S6: =M6*'Cost data inputs'!$D$5 -> 2.527302805 | U6: =-PMT('Cost data inputs'!$B$8,'Cost data inputs'!$B$11,O6) -> 0.2630613699 | V6: =-PMT('Cost data inputs'!$B$8,'Cost data inputs'!$B$11,P6) -> 0.2630889958 | W6: =-PMT('Cost data inputs'!$B$8,'Cost data inputs'!$B$11,Q6) -> 0.2631689152 | X6: =-PMT('Cost data inputs'!$B$8,'Cost data inputs'!$B$11,R6) -> 0.2635400152 | Y6: =-PMT('Cost data inputs'!$B$8,'Cost data inputs'!$B$11,S6) -> 0.2641019415
A7: ='Cost data inputs'!$E$145 -> Luminaire Price (Material Cost) | C7: ='Cost data inputs'!E146 -> 68.49 | D7: =C7 -> 68.49 | E7: 68.49 | F7: 68.49 | G7: 68.49 | I7: 69.42919657 | J7: 69.43648782 | K7: 69.45758077 | L7: 69.55552436 | M7: 69.7038323 | O7: =I7*'Cost data inputs'!$D$5 -> 73.3672206 | P7: =J7*'Cost data inputs'!$D$5 -> 73.37492541 | Q7: =K7*'Cost data inputs'!$D$5 -> 73.39721475 | R7: =L7*'Cost data inputs'!$D$5 -> 73.5007137 | S7: =M7*'Cost data inputs'!$D$5 -> 73.65743367 | U7: =-PMT('Cost data inputs'!$B$8,'Cost data inputs'!$B$11,O7) -> 7.66683967 | V7: =-PMT('Cost data inputs'!$B$8,'Cost data inputs'!$B$11,P7) -> 7.667644819 | W7: =-PMT('Cost data inputs'!$B$8,'Cost data inputs'!$B$11,Q7) -> 7.669974044 | X7: =-PMT('Cost data inputs'!$B$8,'Cost data inputs'!$B$11,R7) -> 7.680789636 | Y7: =-PMT('Cost data inputs'!$B$8,'Cost data inputs'!$B$11,S7) -> 7.697166798
A8: Installation cost - Bracket | C8: =IF($B4=$A$176,C$176,C$177)*'Cost data inputs'!$B$16 -> 91.175 | D8: =IF($B4=$A$176,D$176,D$177)*'Cost data inputs'!$B$16 -> 89.41791324 | E8: =IF($B4=$A$176,E$176,E$177)*'Cost data inputs'!$B$16 -> 88.34198786 | F8: =IF($B4=$A$176,F$176,F$177)*'Cost data inputs'!$B$16 -> 87.00030634 | G8: =IF($B4=$A$176,G$176,G$177)*'Cost data inputs'!$B$16 -> 85.1580744 | I8: =IF($B4=$A$172,I$176,I$177)*'Cost data inputs'!$B$16 -> 92.2225581 | J8: =IF($B4=$A$172,J$176,J$177)*'Cost data inputs'!$B$16 -> 91.30342077 | K8: =IF($B4=$A$172,K$176,K$177)*'Cost data inputs'!$B$16 -> 89.33245254 | L8: =IF($B4=$A$172,L$176,L$177)*'Cost data inputs'!$B$16 -> 86.49033311 | M8: =IF($B4=$A$172,M$176,M$177)*'Cost data inputs'!$B$16 -> 83.64217892 | O8: =I8*'Cost data inputs'!$D$5 -> 97.45342159 | P8: =J8*'Cost data inputs'!$D$5 -> 96.4821508 | Q8: =K8*'Cost data inputs'!$D$5 -> 94.39938924 | R8: =L8*'Cost data inputs'!$D$5 -> 91.39606481 | S8: =M8*'Cost data inputs'!$D$5 -> 88.38636331 | U8: =-PMT('Cost data inputs'!$B$8,'Cost data inputs'!$B$12,O8) -> 8.478050118 | V8: =-PMT('Cost data inputs'!$B$8,'Cost data inputs'!$B$12,P8) -> 8.393553522 | W8: =-PMT('Cost data inputs'!$B$8,'Cost data inputs'!$B$12,Q8) -> 8.212361763 | X8: =-PMT('Cost data inputs'!$B$8,'Cost data inputs'!$B$12,R8) -> 7.951084789 | Y8: =-PMT('Cost data inputs'!$B$8,'Cost data inputs'!$B$12,S8) -> 7.689253036
A9: Installation cost - Luminaire | C9: =IF($B4=$A$176,C$176,C$177)*'Cost data inputs'!$B$17 -> 91.175 | D9: =IF($B4=$A$176,D$176,D$177)*'Cost data inputs'!$B$17 -> 89.41791324 | E9: =IF($B4=$A$176,E$176,E$177)*'Cost data inputs'!$B$17 -> 88.34198786 | F9: =IF($B4=$A$176,F$176,F$177)*'Cost data inputs'!$B$17 -> 87.00030634 | G9: =IF($B4=$A$176,G$176,G$177)*'Cost data inputs'!$B$17 -> 85.1580744 | I9: =IF($B4=$A$172,I$176,I$177)*'Cost data inputs'!$B$17 -> 92.2225581 | J9: =IF($B4=$A$172,J$176,J$177)*'Cost data inputs'!$B$17 -> 91.30342077 | K9: =IF($B4=$A$172,K$176,K$177)*'Cost data inputs'!$B$17 -> 89.33245254 | L9: =IF($B4=$A$172,L$176,L$177)*'Cost data inputs'!$B$17 -> 86.49033311 | M9: =IF($B4=$A$172,M$176,M$177)*'Cost data inputs'!$B$17 -> 83.64217892 | O9: =I9*'Cost data inputs'!$D$5 -> 97.45342159 | P9: =J9*'Cost data inputs'!$D$5 -> 96.4821508 | Q9: =K9*'Cost data inputs'!$D$5 -> 94.39938924 | R9: =L9*'Cost data inputs'!$D$5 -> 91.39606481 | S9: =M9*'Cost data inputs'!$D$5 -> 88.38636331 | U9: =-PMT('Cost data inputs'!$B$8,'Cost data inputs'!$B$11,O9) -> 10.18383622 | V9: =-PMT('Cost data inputs'!$B$8,'Cost data inputs'!$B$11,P9) -> 10.08233889 | W9: =-PMT('Cost data inputs'!$B$8,'Cost data inputs'!$B$11,Q9) -> 9.864691293 | X9: =-PMT('Cost data inputs'!$B$8,'Cost data inputs'!$B$11,R9) -> 9.550845317 | Y9: =-PMT('Cost data inputs'!$B$8,'Cost data inputs'!$B$11,S9) -> 9.236332942
A11: ='Cost data inputs'!A147 -> 80W Mercury Vapour Aeroscreen | B11: ='Cost data inputs'!B147 -> RLMIN
A12: ='Cost data inputs'!$C$145 -> Bracket (Material Cost) | C12: ='Cost data inputs'!C147 -> 184.84 | D12: =C12 -> 184.84 | E12: =D12 -> 184.84 | F12: 184.84 | G12: 184.84 | I12: =C12*E$196 -> 187.3746926 | J12: 187.3943701 | K12: 187.4512955 | L12: 187.7156245 | M12: 188.1158762 | O12: =I12*'Cost data inputs'!$D$5 -> 198.0025851 | P12: =J12*'Cost data inputs'!$D$5 -> 198.0233788 | Q12: =K12*'Cost data inputs'!$D$5 -> 198.083533 | R12: =L12*'Cost data inputs'!$D$5 -> 198.3628547 | S12: =M12*'Cost data inputs'!$D$5 -> 198.7858087 | U12: =-PMT('Cost data inputs'!$B$8,'Cost data inputs'!$B$12,O12) -> 17.22541716 | V12: =-PMT('Cost data inputs'!$B$8,'Cost data inputs'!$B$12,P12) -> 17.22722612 | W12: =-PMT('Cost data inputs'!$B$8,'Cost data inputs'!$B$12,Q12) -> 17.23245929 | X12: =-PMT('Cost data inputs'!$B$8,'Cost data inputs'!$B$12,R12) -> 17.25675914 | Y12: =-PMT('Cost data inputs'!$B$8,'Cost data inputs'!$B$12,S12) -> 17.29355441
A13: ='Cost data inputs'!$D$145 -> Lamp Price (Material Cost) | C13: ='Cost data inputs'!D147 -> 1.93 | D13: =C13 -> 1.93 | E13: 1.93 | F13: 1.93 | G13: 1.93 | I13: 1.956465898 | J13: 1.956671361 | K13: 1.957265745 | L13: 1.960025727 | M13: 1.96420494 | O13: =I13*'Cost data inputs'!$D$5 -> 2.067436644 | P13: =J13*'Cost data inputs'!$D$5 -> 2.06765376 | Q13: =K13*'Cost data inputs'!$D$5 -> 2.068281858 | R13: =L13*'Cost data inputs'!$D$5 -> 2.071198386 | S13: =M13*'Cost data inputs'!$D$5 -> 2.075614644 | U13: =-PMT('Cost data inputs'!$B$8,'Cost data inputs'!$B$11,O13) -> 0.2160461464 | V13: =-PMT('Cost data inputs'!$B$8,'Cost data inputs'!$B$11,P13) -> 0.2160688349 | W13: =-PMT('Cost data inputs'!$B$8,'Cost data inputs'!$B$11,Q13) -> 0.2161344708 | X13: =-PMT('Cost data inputs'!$B$8,'Cost data inputs'!$B$11,R13) -> 0.2164392466 | Y13: =-PMT('Cost data inputs'!$B$8,'Cost data inputs'!$B$11,S13) -> 0.2169007435
A14: ='Cost data inputs'!$E$145 -> Luminaire Price (Material Cost) | C14: ='Cost data inputs'!E147 -> 68.49 | D14: =C14 -> 68.49 | E14: 68.49 | F14: 68.49 | G14: 68.49 | I14: 69.42919657 | J14: 69.43648782 | K14: 69.45758077 | L14: 69.55552436 | M14: 69.7038323 | O14: =I14*'Cost data inputs'!$D$5 -> 73.3672206 | P14: =J14*'Cost data inputs'!$D$5 -> 73.37492541 | Q14: =K14*'Cost data inputs'!$D$5 -> 73.39721475 | R14: =L14*'Cost data inputs'!$D$5 -> 73.5007137 | S14: =M14*'Cost data inputs'!$D$5 -> 73.65743367 | U14: =-PMT('Cost data inputs'!$B$8,'Cost data inputs'!$B$11,O14) -> 7.66683967 | V14: =-PMT('Cost data inputs'!$B$8,'Cost data inputs'!$B$11,P14) -> 7.667644819 | W14: =-PMT('Cost data inputs'!$B$8,'Cost data inputs'!$B$11,Q14) -> 7.669974044 | X14: =-PMT('Cost data inputs'!$B$8,'Cost data inputs'!$B$11,R14) -> 7.680789636 | Y14: =-PMT('Cost data inputs'!$B$8,'Cost data inputs'!$B$11,S14) -> 7.697166798
A15: Installation cost - Bracket | C15: =IF($B11=$A$176,C$176,C$177)*'Cost data inputs'!$B$16 -> 91.175 | D15: =IF($B11=$A$176,D$176,D$177)*'Cost data inputs'!$B$16 -> 89.41791324 | E15: =IF($B11=$A$176,E$176,E$177)*'Cost data inputs'!$B$16 -> 88.34198786 | F15: =IF($B11=$A$176,F$176,F$177)*'Cost data inputs'!$B$16 -> 87.00030634 | G15: =IF($B11=$A$176,G$176,G$177)*'Cost data inputs'!$B$16 -> 85.1580744 | I15: =IF($B11=$A$172,I$176,I$177)*'Cost data inputs'!$B$16 -> 92.2225581 | J15: =IF($B11=$A$172,J$176,J$177)*'Cost data inputs'!$B$16 -> 91.30342077 | K15: =IF($B11=$A$172,K$176,K$177)*'Cost data inputs'!$B$16 -> 89.33245254 | L15: =IF($B11=$A$172,L$176,L$177)*'Cost data inputs'!$B$16 -> 86.49033311 | M15: =IF($B11=$A$172,M$176,M$177)*'Cost data inputs'!$B$16 -> 83.64217892 | O15: =I15*'Cost data inputs'!$D$5 -> 97.45342159 | P15: =J15*'Cost data inputs'!$D$5 -> 96.4821508 | Q15: =K15*'Cost data inputs'!$D$5 -> 94.39938924 | R15: =L15*'Cost data inputs'!$D$5 -> 91.39606481 | S15: =M15*'Cost data inputs'!$D$5 -> 88.38636331 | U15: =-PMT('Cost data inputs'!$B$8,'Cost data inputs'!$B$12,O15) -> 8.478050118 | V15: =-PMT('Cost data inputs'!$B$8,'Cost data inputs'!$B$12,P15) -> 8.393553522 | W15: =-PMT('Cost data inputs'!$B$8,'Cost data inputs'!$B$12,Q15) -> 8.212361763 | X15: =-PMT('Cost data inputs'!$B$8,'Cost data inputs'!$B$12,R15) -> 7.951084789 | Y15: =-PMT('Cost data inputs'!$B$8,'Cost data inputs'!$B$12,S15) -> 7.689253036
A16: Installation cost - Luminaire | C16: =IF($B11=$A$176,C$176,C$177)*'Cost data inputs'!$B$17 -> 91.175 | D16: =IF($B11=$A$176,D$176,D$177)*'Cost data inputs'!$B$17 -> 89.41791324 | E16: =IF($B11=$A$176,E$176,E$177)*'Cost data inputs'!$B$17 -> 88.34198786 | F16: =IF($B11=$A$176,F$176,F$177)*'Cost data inputs'!$B$17 -> 87.00030634 | G16: =IF($B11=$A$176,G$176,G$177)*'Cost data inputs'!$B$17 -> 85.1580744 | I16: =IF($B11=$A$172,I$176,I$177)*'Cost data inputs'!$B$17 -> 92.2225581 | J16: =IF($B11=$A$172,J$176,J$177)*'Cost data inputs'!$B$17 -> 91.30342077 | K16: =IF($B11=$A$172,K$176,K$177)*'Cost data inputs'!$B$17 -> 89.33245254 | L16: =IF($B11=$A$172,L$176,L$177)*'Cost data inputs'!$B$17 -> 86.49033311 | M16: =IF($B11=$A$172,M$176,M$177)*'Cost data inputs'!$B$17 -> 83.64217892 | O16: =I16*'Cost data inputs'!$D$5 -> 97.45342159 | P16: =J16*'Cost data inputs'!$D$5 -> 96.4821508 | Q16: =K16*'Cost data inputs'!$D$5 -> 94.39938924 | R16: =L16*'Cost data inputs'!$D$5 -> 91.39606481 | S16: =M16*'Cost data inputs'!$D$5 -> 88.38636331 | U16: =-PMT('Cost data inputs'!$B$8,'Cost data inputs'!$B$11,O16) -> 10.18383622 | V16: =-PMT('Cost data inputs'!$B$8,'Cost data inputs'!$B$11,P16) -> 10.08233889 | W16: =-PMT('Cost data inputs'!$B$8,'Cost data inputs'!$B$11,Q16) -> 9.864691293 | X16: =-PMT('Cost data inputs'!$B$8,'Cost data inputs'!$B$11,R16) -> 9.550845317 | Y16: =-PMT('Cost data inputs'!$B$8,'Cost data inputs'!$B$11,S16) -> 9.236332942
A18: ='Cost data inputs'!A148 -> 80W Mercury Vapour Art decorative | B18: ='Cost data inputs'!B148 -> RLMIN
A19: ='Cost data inputs'!$C$145 -> Bracket (Material Cost) | C19: ='Cost data inputs'!C148 -> 184.84 | D19: =C19 -> 184.84 | E19: =D19 -> 184.84 | F19: 184.84 | G19: 184.84 | I19: =C19*E$196 -> 187.3746926 | J19: 187.3943701 | K19: 187.4512955 | L19: 187.7156245 | M19: 188.1158762 | O19: =I19*'Cost data inputs'!$D$5 -> 198.0025851 | P19: =J19*'Cost data inputs'!$D$5 -> 198.0233788 | Q19: =K19*'Cost data inputs'!$D$5 -> 198.083533 | R19: =L19*'Cost data inputs'!$D$5 -> 198.3628547 | S19: =M19*'Cost data inputs'!$D$5 -> 198.7858087 | U19: =-PMT('Cost data inputs'!$B$8,'Cost data inputs'!$B$12,O19) -> 17.22541716 | V19: =-PMT('Cost data inputs'!$B$8,'Cost data inputs'!$B$12,P19) -> 17.22722612 | W19: =-PMT('Cost data inputs'!$B$8,'Cost data inputs'!$B$12,Q19) -> 17.23245929 | X19: =-PMT('Cost data inputs'!$B$8,'Cost data inputs'!$B$12,R19) -> 17.25675914 | Y19: =-PMT('Cost data inputs'!$B$8,'Cost data inputs'!$B$12,S19) -> 17.29355441
A20: ='Cost data inputs'!$D$145 -> Lamp Price (Material Cost) | C20: ='Cost data inputs'!D148 -> 1.93 | D20: =C20 -> 1.93 | E20: 1.93 | F20: 1.93 | G20: 1.93 | I20: 1.956465898 | J20: 1.956671361 | K20: 1.957265745 | L20: 1.960025727 | M20: 1.96420494 | O20: =I20*'Cost data inputs'!$D$5 -> 2.067436644 | P20: =J20*'Cost data inputs'!$D$5 -> 2.06765376 | Q20: =K20*'Cost data inputs'!$D$5 -> 2.068281858 | R20: =L20*'Cost data inputs'!$D$5 -> 2.071198386 | S20: =M20*'Cost data inputs'!$D$5 -> 2.075614644 | U20: =-PMT('Cost data inputs'!$B$8,'Cost data inputs'!$B$11,O20) -> 0.2160461464 | V20: =-PMT('Cost data inputs'!$B$8,'Cost data inputs'!$B$11,P20) -> 0.2160688349 | W20: =-PMT('Cost data inputs'!$B$8,'Cost data inputs'!$B$11,Q20) -> 0.2161344708 | X20: =-PMT('Cost data inputs'!$B$8,'Cost data inputs'!$B$11,R20) -> 0.2164392466 | Y20: =-PMT('Cost data inputs'!$B$8,'Cost data inputs'!$B$11,S20) -> 0.2169007435
A21: ='Cost data inputs'!$E$145 -> Luminaire Price (Material Cost) | C21: ='Cost data inputs'!E148 -> 744.87 | D21: =C21 -> 744.87 | E21: 744.87 | F21: 744.87 | G21: 744.87 | I21: 755.0843284 | J21: 755.1636251 | K21: 755.3930236 | L21: 756.4582192 | M21: 758.0711574 | O21: =I21*'Cost data inputs'!$D$5 -> 797.9127115 | P21: =J21*'Cost data inputs'!$D$5 -> 797.9965059 | Q21: =K21*'Cost data inputs'!$D$5 -> 798.2389159 | R21: =L21*'Cost data inputs'!$D$5 -> 799.3645293 | S21: =M21*'Cost data inputs'!$D$5 -> 801.0689534 | U21: =-PMT('Cost data inputs'!$B$8,'Cost data inputs'!$B$11,O21) -> 83.38149898 | V21: =-PMT('Cost data inputs'!$B$8,'Cost data inputs'!$B$11,P21) -> 83.39025546 | W21: =-PMT('Cost data inputs'!$B$8,'Cost data inputs'!$B$11,Q21) -> 83.41558719 | X21: =-PMT('Cost data inputs'!$B$8,'Cost data inputs'!$B$11,R21) -> 83.53321326 | Y21: =-PMT('Cost data inputs'!$B$8,'Cost data inputs'!$B$11,S21) -> 83.71132476
A22: Installation cost - Bracket | C22: =IF($B18=$A$176,C$176,C$177)*'Cost data inputs'!$B$16 -> 91.175 | D22: =IF($B18=$A$176,D$176,D$177)*'Cost data inputs'!$B$16 -> 89.41791324 | E22: =IF($B18=$A$176,E$176,E$177)*'Cost data inputs'!$B$16 -> 88.34198786 | F22: =IF($B18=$A$176,F$176,F$177)*'Cost data inputs'!$B$16 -> 87.00030634 | G22: =IF($B18=$A$176,G$176,G$177)*'Cost data inputs'!$B$16 -> 85.1580744 | I22: =IF($B18=$A$172,I$176,I$177)*'Cost data inputs'!$B$16 -> 92.2225581 | J22: =IF($B18=$A$172,J$176,J$177)*'Cost data inputs'!$B$16 -> 91.30342077 | K22: =IF($B18=$A$172,K$176,K$177)*'Cost data inputs'!$B$16 -> 89.33245254 | L22: =IF($B18=$A$172,L$176,L$177)*'Cost data inputs'!$B$16 -> 86.49033311 | M22: =IF($B18=$A$172,M$176,M$177)*'Cost data inputs'!$B$16 -> 83.64217892 | O22: =I22*'Cost data inputs'!$D$5 -> 97.45342159 | P22: =J22*'Cost data inputs'!$D$5 -> 96.4821508 | Q22: =K22*'Cost data inputs'!$D$5 -> 94.39938924 | R22: =L22*'Cost data inputs'!$D$5 -> 91.39606481 | S22: =M22*'Cost data inputs'!$D$5 -> 88.38636331 | U22: =-PMT('Cost data inputs'!$B$8,'Cost data inputs'!$B$12,O22) -> 8.478050118 | V22: =-PMT('Cost data inputs'!$B$8,'Cost data inputs'!$B$12,P22) -> 8.393553522 | W22: =-PMT('Cost data inputs'!$B$8,'Cost data inputs'!$B$12,Q22) -> 8.212361763 | X22: =-PMT('Cost data inputs'!$B$8,'Cost data inputs'!$B$12,R22) -> 7.951084789 | Y22: =-PMT('Cost data inputs'!$B$8,'Cost data inputs'!$B$12,S22) -> 7.689253036
A23: Installation cost - Luminaire | C23: =IF($B18=$A$176,C$176,C$177)*'Cost data inputs'!$B$17 -> 91.175 | D23: =IF($B18=$A$176,D$176,D$177)*'Cost data inputs'!$B$17 -> 89.41791324 | E23: =IF($B18=$A$176,E$176,E$177)*'Cost data inputs'!$B$17 -> 88.34198786 | F23: =IF($B18=$A$176,F$176,F$177)*'Cost data inputs'!$B$17 -> 87.00030634 | G23: =IF($B18=$A$176,G$176,G$177)*'Cost data inputs'!$B$17 -> 85.1580744 | I23: =IF($B18=$A$172,I$176,I$177)*'Cost data inputs'!$B$17 -> 92.2225581 | J23: =IF($B18=$A$172,J$176,J$177)*'Cost data inputs'!$B$17 -> 91.30342077 | K23: =IF($B18=$A$172,K$176,K$177)*'Cost data inputs'!$B$17 -> 89.33245254 | L23: =IF($B18=$A$172,L$176,L$177)*'Cost data inputs'!$B$17 -> 86.49033311 | M23: =IF($B18=$A$172,M$176,M$177)*'Cost data inputs'!$B$17 -> 83.64217892 | O23: =I23*'Cost data inputs'!$D$5 -> 97.45342159 | P23: =J23*'Cost data inputs'!$D$5 -> 96.4821508 | Q23: =K23*'Cost data inputs'!$D$5 -> 94.39938924 | R23: =L23*'Cost data inputs'!$D$5 -> 91.39606481 | S23: =M23*'Cost data inputs'!$D$5 -> 88.38636331 | U23: =-PMT('Cost data inputs'!$B$8,'Cost data inputs'!$B$11,O23) -> 10.18383622 | V23: =-PMT('Cost data inputs'!$B$8,'Cost data inputs'!$B$11,P23) -> 10.08233889 | W23: =-PMT('Cost data inputs'!$B$8,'Cost data inputs'!$B$11,Q23) -> 9.864691293 | X23: =-PMT('Cost data inputs'!$B$8,'Cost data inputs'!$B$11,R23) -> 9.550845317 | Y23: =-PMT('Cost data inputs'!$B$8,'Cost data inputs'!$B$11,S23) -> 9.236332942
A25: ='Cost data inputs'!A149 -> 125W Mercury Vapour | B25: ='Cost data inputs'!B149 -> RLMAJ
A26: ='Cost data inputs'!$C$145 -> Bracket (Material Cost) | C26: ='Cost data inputs'!C149 -> 184.84 | D26: =C26 -> 184.84 | E26: =D26 -> 184.84 | F26: 184.84 | G26: 184.84 | I26: =C26*E$196 -> 187.3746926 | J26: 187.3943701 | K26: 187.4512955 | L26: 187.7156245 | M26: 188.1158762 | O26: =I26*'Cost data inputs'!$D$5 -> 198.0025851 | P26: =J26*'Cost data inputs'!$D$5 -> 198.0233788 | Q26: =K26*'Cost data inputs'!$D$5 -> 198.083533 | R26: =L26*'Cost data inputs'!$D$5 -> 198.3628547 | S26: =M26*'Cost data inputs'!$D$5 -> 198.7858087 | U26: =-PMT('Cost data inputs'!$B$8,'Cost data inputs'!$B$12,O26) -> 17.22541716 | V26: =-PMT('Cost data inputs'!$B$8,'Cost data inputs'!$B$12,P26) -> 17.22722612 | W26: =-PMT('Cost data inputs'!$B$8,'Cost data inputs'!$B$12,Q26) -> 17.23245929 | X26: =-PMT('Cost data inputs'!$B$8,'Cost data inputs'!$B$12,R26) -> 17.25675914 | Y26: =-PMT('Cost data inputs'!$B$8,'Cost data inputs'!$B$12,S26) -> 17.29355441
A27: ='Cost data inputs'!$D$145 -> Lamp Price (Material Cost) | C27: ='Cost data inputs'!D149 -> 2.41 | D27: =C27 -> 2.41 | E27: 2.41 | F27: 2.41 | G27: 2.41 | I27: 2.443048091 | J27: 2.443304652 | K27: 2.444046863 | L27: 2.447493265 | M27: 2.452711868 | O27: =I27*'Cost data inputs'!$D$5 -> 2.581617779 | P27: =J27*'Cost data inputs'!$D$5 -> 2.581888892 | Q27: =K27*'Cost data inputs'!$D$5 -> 2.582673201 | R27: =L27*'Cost data inputs'!$D$5 -> 2.586315083 | S27: =M27*'Cost data inputs'!$D$5 -> 2.591829685 | U27: =-PMT('Cost data inputs'!$B$8,'Cost data inputs'!$B$11,O27) -> 0.2697778304 | V27: =-PMT('Cost data inputs'!$B$8,'Cost data inputs'!$B$11,P27) -> 0.2698061617 | W27: =-PMT('Cost data inputs'!$B$8,'Cost data inputs'!$B$11,Q27) -> 0.2698881216 | X27: =-PMT('Cost data inputs'!$B$8,'Cost data inputs'!$B$11,R27) -> 0.2702686965 | Y27: =-PMT('Cost data inputs'!$B$8,'Cost data inputs'!$B$11,S27) -> 0.2708449698
A28: ='Cost data inputs'!$E$145 -> Luminaire Price (Material Cost) | C28: ='Cost data inputs'!E149 -> 119.8 | D28: =C28 -> 119.8 | E28: 119.8 | F28: 119.8 | G28: 119.8 | I28: 121.4428055 | J28: 121.4555591 | K28: 121.492454 | L28: 121.6637731 | M28: 121.9231875 | O28: =I28*'Cost data inputs'!$D$5 -> 128.3310414 | P28: =J28*'Cost data inputs'!$D$5 -> 128.3445184 | Q28: =K28*'Cost data inputs'!$D$5 -> 128.383506 | R28: =L28*'Cost data inputs'!$D$5 -> 128.5645423 | S28: =M28*'Cost data inputs'!$D$5 -> 128.8386707 | U28: =-PMT('Cost data inputs'!$B$8,'Cost data inputs'!$B$11,O28) -> 13.41053281 | V28: =-PMT('Cost data inputs'!$B$8,'Cost data inputs'!$B$11,P28) -> 13.41194115 | W28: =-PMT('Cost data inputs'!$B$8,'Cost data inputs'!$B$11,Q28) -> 13.41601534 | X28: =-PMT('Cost data inputs'!$B$8,'Cost data inputs'!$B$11,R28) -> 13.43493354 | Y28: =-PMT('Cost data inputs'!$B$8,'Cost data inputs'!$B$11,S28) -> 13.46357983
A29: Installation cost - Bracket | C29: =IF($B25=$A$176,C$176,C$177)*'Cost data inputs'!$B$16 -> 145.885 | D29: =IF($B25=$A$176,D$176,D$177)*'Cost data inputs'!$B$16 -> 142.7348657 | E29: =IF($B25=$A$176,E$176,E$177)*'Cost data inputs'!$B$16 -> 140.811869 | F29: =IF($B25=$A$176,F$176,F$177)*'Cost data inputs'!$B$16 -> 138.403792 | G29: =IF($B25=$A$176,G$176,G$177)*'Cost data inputs'!$B$16 -> 135.1092886 | I29: =IF($B25=$A$172,I$176,I$177)*'Cost data inputs'!$B$16 -> 147.5611216 | J29: =IF($B25=$A$172,J$176,J$177)*'Cost data inputs'!$B$16 -> 145.7445875 | K29: =IF($B25=$A$172,K$176,K$177)*'Cost data inputs'!$B$16 -> 142.3905836 | L29: =IF($B25=$A$172,L$176,L$177)*'Cost data inputs'!$B$16 -> 137.5925188 | M29: =IF($B25=$A$172,M$176,M$177)*'Cost data inputs'!$B$16 -> 132.7042548 | O29: =I29*'Cost data inputs'!$D$5 -> 155.9307884 | P29: =J29*'Cost data inputs'!$D$5 -> 154.0112205 | Q29: =K29*'Cost data inputs'!$D$5 -> 150.4669775 | R29: =L29*'Cost data inputs'!$D$5 -> 145.3967665 | S29: =M29*'Cost data inputs'!$D$5 -> 140.2312402 | U29: =-PMT('Cost data inputs'!$B$8,'Cost data inputs'!$B$12,O29) -> 13.56534248 | V29: =-PMT('Cost data inputs'!$B$8,'Cost data inputs'!$B$12,P29) -> 13.3983479 | W29: =-PMT('Cost data inputs'!$B$8,'Cost data inputs'!$B$12,Q29) -> 13.09001321 | X29: =-PMT('Cost data inputs'!$B$8,'Cost data inputs'!$B$12,R29) -> 12.64892554 | Y29: =-PMT('Cost data inputs'!$B$8,'Cost data inputs'!$B$12,S29) -> 12.19954582
A30: Installation cost - Luminaire | C30: =IF($B25=$A$176,C$176,C$177)*'Cost data inputs'!$B$17 -> 145.885 | D30: =IF($B25=$A$176,D$176,D$177)*'Cost data inputs'!$B$17 -> 142.7348657 | E30: =IF($B25=$A$176,E$176,E$177)*'Cost data inputs'!$B$17 -> 140.811869 | F30: =IF($B25=$A$176,F$176,F$177)*'Cost data inputs'!$B$17 -> 138.403792 | G30: =IF($B25=$A$176,G$176,G$177)*'Cost data inputs'!$B$17 -> 135.1092886 | I30: =IF($B25=$A$172,I$176,I$177)*'Cost data inputs'!$B$17 -> 147.5611216 | J30: =IF($B25=$A$172,J$176,J$177)*'Cost data inputs'!$B$17 -> 145.7445875 | K30: =IF($B25=$A$172,K$176,K$177)*'Cost data inputs'!$B$17 -> 142.3905836 | L30: =IF($B25=$A$172,L$176,L$177)*'Cost data inputs'!$B$17 -> 137.5925188 | M30: =IF($B25=$A$172,M$176,M$177)*'Cost data inputs'!$B$17 -> 132.7042548 | O30: =I30*'Cost data inputs'!$D$5 -> 155.9307884 | P30: =J30*'Cost data inputs'!$D$5 -> 154.0112205 | Q30: =K30*'Cost data inputs'!$D$5 -> 150.4669775 | R30: =L30*'Cost data inputs'!$D$5 -> 145.3967665 | S30: =M30*'Cost data inputs'!$D$5 -> 140.2312402 | U30: =-PMT('Cost data inputs'!$B$8,'Cost data inputs'!$B$11,O30) -> 16.29469325 | V30: =-PMT('Cost data inputs'!$B$8,'Cost data inputs'!$B$11,P30) -> 16.09409932 | W30: =-PMT('Cost data inputs'!$B$8,'Cost data inputs'!$B$11,Q30) -> 15.72372761 | X30: =-PMT('Cost data inputs'!$B$8,'Cost data inputs'!$B$11,R30) -> 15.19389297 | Y30: =-PMT('Cost data inputs'!$B$8,'Cost data inputs'!$B$11,S30) -> 14.65409792
A32: ='Cost data inputs'!A150 -> 250W Mercury Vapour | B32: ='Cost data inputs'!B150 -> RLMAJ
A33: ='Cost data inputs'!$C$145 -> Bracket (Material Cost) | C33: ='Cost data inputs'!C150 -> 184.84 | D33: =C33 -> 184.84 | E33: =D33 -> 184.84 | F33: 184.84 | G33: 184.84 | I33: =C33*E$196 -> 187.3746926 | J33: 187.3943701 | K33: 187.4512955 | L33: 187.7156245 | M33: 188.1158762 | O33: =I33*'Cost data inputs'!$D$5 -> 198.0025851 | P33: =J33*'Cost data inputs'!$D$5 -> 198.0233788 | Q33: =K33*'Cost data inputs'!$D$5 -> 198.083533 | R33: =L33*'Cost data inputs'!$D$5 -> 198.3628547 | S33: =M33*'Cost data inputs'!$D$5 -> 198.7858087 | U33: =-PMT('Cost data inputs'!$B$8,'Cost data inputs'!$B$12,O33) -> 17.22541716 | V33: =-PMT('Cost data inputs'!$B$8,'Cost data inputs'!$B$12,P33) -> 17.22722612 | W33: =-PMT('Cost data inputs'!$B$8,'Cost data inputs'!$B$12,Q33) -> 17.23245929 | X33: =-PMT('Cost data inputs'!$B$8,'Cost data inputs'!$B$12,R33) -> 17.25675914 | Y33: =-PMT('Cost data inputs'!$B$8,'Cost data inputs'!$B$12,S33) -> 17.29355441
A34: ='Cost data inputs'!$D$145 -> Lamp Price (Material Cost) | C34: ='Cost data inputs'!D150 -> 5.05 | D34: =C34 -> 5.05 | E34: 5.05 | F34: 5.05 | G34: 5.05 | I34: 5.119250149 | J34: 5.119787757 | K34: 5.121343012 | L34: 5.128564725 | M34: 5.139499973 | O34: =I34*'Cost data inputs'!$D$5 -> 5.409614017 | P34: =J34*'Cost data inputs'!$D$5 -> 5.410182119 | Q34: =K34*'Cost data inputs'!$D$5 -> 5.411825588 | R34: =L34*'Cost data inputs'!$D$5 -> 5.419456916 | S34: =M34*'Cost data inputs'!$D$5 -> 5.431012411 | U34: =-PMT('Cost data inputs'!$B$8,'Cost data inputs'!$B$11,O34) -> 0.5653020928 | V34: =-PMT('Cost data inputs'!$B$8,'Cost data inputs'!$B$11,P34) -> 0.5653614591 | W34: =-PMT('Cost data inputs'!$B$8,'Cost data inputs'!$B$11,Q34) -> 0.5655332008 | X34: =-PMT('Cost data inputs'!$B$8,'Cost data inputs'!$B$11,R34) -> 0.566330671 | Y34: =-PMT('Cost data inputs'!$B$8,'Cost data inputs'!$B$11,S34) -> 0.5675382148
A35: ='Cost data inputs'!$E$145 -> Luminaire Price (Material Cost) | C35: ='Cost data inputs'!E150 -> 136.11 | D35: =C35 -> 136.11 | E35: 136.11 | F35: 136.11 | G35: 136.11 | I35: 137.9764629 | J35: 137.9909528 | K35: 138.0328708 | L35: 138.2275138 | M35: 138.5222458 | O35: =I35*'Cost data inputs'!$D$5 -> 145.8024879 | P35: =J35*'Cost data inputs'!$D$5 -> 145.8177996 | Q35: =K35*'Cost data inputs'!$D$5 -> 145.8620952 | R35: =L35*'Cost data inputs'!$D$5 -> 146.0677784 | S35: =M35*'Cost data inputs'!$D$5 -> 146.3792276 | U35: =-PMT('Cost data inputs'!$B$8,'Cost data inputs'!$B$11,O35) -> 15.23629066 | V35: =-PMT('Cost data inputs'!$B$8,'Cost data inputs'!$B$11,P35) -> 15.23789073 | W35: =-PMT('Cost data inputs'!$B$8,'Cost data inputs'!$B$11,Q35) -> 15.2425196 | X35: =-PMT('Cost data inputs'!$B$8,'Cost data inputs'!$B$11,R35) -> 15.26401339 | Y35: =-PMT('Cost data inputs'!$B$8,'Cost data inputs'!$B$11,S35) -> 15.29655969
A36: Installation cost - Bracket | C36: =IF($B32=$A$176,C$176,C$177)*'Cost data inputs'!$B$16 -> 145.885 | D36: =IF($B32=$A$176,D$176,D$177)*'Cost data inputs'!$B$16 -> 142.7348657 | E36: =IF($B32=$A$176,E$176,E$177)*'Cost data inputs'!$B$16 -> 140.811869 | F36: =IF($B32=$A$176,F$176,F$177)*'Cost data inputs'!$B$16 -> 138.403792 | G36: =IF($B32=$A$176,G$176,G$177)*'Cost data inputs'!$B$16 -> 135.1092886 | I36: =IF($B32=$A$172,I$176,I$177)*'Cost data inputs'!$B$16 -> 147.5611216 | J36: =IF($B32=$A$172,J$176,J$177)*'Cost data inputs'!$B$16 -> 145.7445875 | K36: =IF($B32=$A$172,K$176,K$177)*'Cost data inputs'!$B$16 -> 142.3905836 | L36: =IF($B32=$A$172,L$176,L$177)*'Cost data inputs'!$B$16 -> 137.5925188 | M36: =IF($B32=$A$172,M$176,M$177)*'Cost data inputs'!$B$16 -> 132.7042548 | O36: =I36*'Cost data inputs'!$D$5 -> 155.9307884 | P36: =J36*'Cost data inputs'!$D$5 -> 154.0112205 | Q36: =K36*'Cost data inputs'!$D$5 -> 150.4669775 | R36: =L36*'Cost data inputs'!$D$5 -> 145.3967665 | S36: =M36*'Cost data inputs'!$D$5 -> 140.2312402 | U36: =-PMT('Cost data inputs'!$B$8,'Cost data inputs'!$B$12,O36) -> 13.56534248 | V36: =-PMT('Cost data inputs'!$B$8,'Cost data inputs'!$B$12,P36) -> 13.3983479 | W36: =-PMT('Cost data inputs'!$B$8,'Cost data inputs'!$B$12,Q36) -> 13.09001321 | X36: =-PMT('Cost data inputs'!$B$8,'Cost data inputs'!$B$12,R36) -> 12.64892554 | Y36: =-PMT('Cost data inputs'!$B$8,'Cost data inputs'!$B$12,S36) -> 12.19954582
A37: Installation cost - Luminaire | C37: =IF($B32=$A$176,C$176,C$177)*'Cost data inputs'!$B$17 -> 145.885 | D37: =IF($B32=$A$176,D$176,D$177)*'Cost data inputs'!$B$17 -> 142.7348657 | E37: =IF($B32=$A$176,E$176,E$177)*'Cost data inputs'!$B$17 -> 140.811869 | F37: =IF($B32=$A$176,F$176,F$177)*'Cost data inputs'!$B$17 -> 138.403792 | G37: =IF($B32=$A$176,G$176,G$177)*'Cost data inputs'!$B$17 -> 135.1092886 | I37: =IF($B32=$A$172,I$176,I$177)*'Cost data inputs'!$B$17 -> 147.5611216 | J37: =IF($B32=$A$172,J$176,J$177)*'Cost data inputs'!$B$17 -> 145.7445875 | K37: =IF($B32=$A$172,K$176,K$177)*'Cost data inputs'!$B$17 -> 142.3905836 | L37: =IF($B32=$A$172,L$176,L$177)*'Cost data inputs'!$B$17 -> 137.5925188 | M37: =IF($B32=$A$172,M$176,M$177)*'Cost data inputs'!$B$17 -> 132.7042548 | O37: =I37*'Cost data inputs'!$D$5 -> 155.9307884 | P37: =J37*'Cost data inputs'!$D$5 -> 154.0112205 | Q37: =K37*'Cost data inputs'!$D$5 -> 150.4669775 | R37: =L37*'Cost data inputs'!$D$5 -> 145.3967665 | S37: =M37*'Cost data inputs'!$D$5 -> 140.2312402 | U37: =-PMT('Cost data inputs'!$B$8,'Cost data inputs'!$B$11,O37) -> 16.29469325 | V37: =-PMT('Cost data inputs'!$B$8,'Cost data inputs'!$B$11,P37) -> 16.09409932 | W37: =-PMT('Cost data inputs'!$B$8,'Cost data inputs'!$B$11,Q37) -> 15.72372761 | X37: =-PMT('Cost data inputs'!$B$8,'Cost data inputs'!$B$11,R37) -> 15.19389297 | Y37: =-PMT('Cost data inputs'!$B$8,'Cost data inputs'!$B$11,S37) -> 14.65409792
A39: ='Cost data inputs'!A151 -> 400W Mercury Vapour | B39: ='Cost data inputs'!B151 -> RLMAJ
A40: ='Cost data inputs'!$C$145 -> Bracket (Material Cost) | C40: ='Cost data inputs'!C151 -> 184.84 | D40: =C40 -> 184.84 | E40: =D40 -> 184.84 | F40: 184.84 | G40: 184.84 | I40: =C40*E$196 -> 187.3746926 | J40: 187.3943701 | K40: 187.4512955 | L40: 187.7156245 | M40: 188.1158762 | O40: =I40*'Cost data inputs'!$D$5 -> 198.0025851 | P40: =J40*'Cost data inputs'!$D$5 -> 198.0233788 | Q40: =K40*'Cost data inputs'!$D$5 -> 198.083533 | R40: =L40*'Cost data inputs'!$D$5 -> 198.3628547 | S40: =M40*'Cost data inputs'!$D$5 -> 198.7858087 | U40: =-PMT('Cost data inputs'!$B$8,'Cost data inputs'!$B$12,O40) -> 17.22541716 | V40: =-PMT('Cost data inputs'!$B$8,'Cost data inputs'!$B$12,P40) -> 17.22722612 | W40: =-PMT('Cost data inputs'!$B$8,'Cost data inputs'!$B$12,Q40) -> 17.23245929 | X40: =-PMT('Cost data inputs'!$B$8,'Cost data inputs'!$B$12,R40) -> 17.25675914 | Y40: =-PMT('Cost data inputs'!$B$8,'Cost data inputs'!$B$12,S40) -> 17.29355441
A41: ='Cost data inputs'!$D$145 -> Lamp Price (Material Cost) | C41: ='Cost data inputs'!D151 -> 7.05 | D41: =C41 -> 7.05 | E41: 7.05 | F41: 7.05 | G41: 7.05 | I41: 7.14667595 | J41: 7.147426473 | K41: 7.14959767 | L41: 7.159679468 | M41: 7.174945506 | O41: =I41*'Cost data inputs'!$D$5 -> 7.55203541 | P41: =J41*'Cost data inputs'!$D$5 -> 7.552828502 | Q41: =K41*'Cost data inputs'!$D$5 -> 7.55512285 | R41: =L41*'Cost data inputs'!$D$5 -> 7.565776487 | S41: =M41*'Cost data inputs'!$D$5 -> 7.581908415 | U41: =-PMT('Cost data inputs'!$B$8,'Cost data inputs'!$B$11,O41) -> 0.7891841097 | V41: =-PMT('Cost data inputs'!$B$8,'Cost data inputs'!$B$11,P41) -> 0.7892669875 | W41: =-PMT('Cost data inputs'!$B$8,'Cost data inputs'!$B$11,Q41) -> 0.7895067457 | X41: =-PMT('Cost data inputs'!$B$8,'Cost data inputs'!$B$11,R41) -> 0.7906200457 | Y41: =-PMT('Cost data inputs'!$B$8,'Cost data inputs'!$B$11,S41) -> 0.7923058246
A42: ='Cost data inputs'!$E$145 -> Luminaire Price (Material Cost) | C42: ='Cost data inputs'!E151 -> 294.23 | D42: =C42 -> 294.23 | E42: 294.23 | F42: 294.23 | G42: 294.23 | I42: 298.2647468 | J42: 298.2960697 | K42: 298.386684 | L42: 298.8074454 | M42: 299.4445697 | O42: =I42*'Cost data inputs'!$D$5 -> 315.1823232 | P42: =J42*'Cost data inputs'!$D$5 -> 315.2154227 | Q42: =K42*'Cost data inputs'!$D$5 -> 315.3111768 | R42: =L42*'Cost data inputs'!$D$5 -> 315.7558037 | S42: =M42*'Cost data inputs'!$D$5 -> 316.4290657 | U42: =-PMT('Cost data inputs'!$B$8,'Cost data inputs'!$B$11,O42) -> 32.93640292 | V42: =-PMT('Cost data inputs'!$B$8,'Cost data inputs'!$B$11,P42) -> 32.93986181 | W42: =-PMT('Cost data inputs'!$B$8,'Cost data inputs'!$B$11,Q42) -> 32.94986805 | X42: =-PMT('Cost data inputs'!$B$8,'Cost data inputs'!$B$11,R42) -> 32.99633135 | Y42: =-PMT('Cost data inputs'!$B$8,'Cost data inputs'!$B$11,S42) -> 33.06668692
A43: Installation cost - Bracket | C43: =IF($B39=$A$176,C$176,C$177)*'Cost data inputs'!$B$16 -> 145.885 | D43: =IF($B39=$A$176,D$176,D$177)*'Cost data inputs'!$B$16 -> 142.7348657 | E43: =IF($B39=$A$176,E$176,E$177)*'Cost data inputs'!$B$16 -> 140.811869 | F43: =IF($B39=$A$176,F$176,F$177)*'Cost data inputs'!$B$16 -> 138.403792 | G43: =IF($B39=$A$176,G$176,G$177)*'Cost data inputs'!$B$16 -> 135.1092886 | I43: =IF($B39=$A$172,I$176,I$177)*'Cost data inputs'!$B$16 -> 147.5611216 | J43: =IF($B39=$A$172,J$176,J$177)*'Cost data inputs'!$B$16 -> 145.7445875 | K43: =IF($B39=$A$172,K$176,K$177)*'Cost data inputs'!$B$16 -> 142.3905836 | L43: =IF($B39=$A$172,L$176,L$177)*'Cost data inputs'!$B$16 -> 137.5925188 | M43: =IF($B39=$A$172,M$176,M$177)*'Cost data inputs'!$B$16 -> 132.7042548 | O43: =I43*'Cost data inputs'!$D$5 -> 155.9307884 | P43: =J43*'Cost data inputs'!$D$5 -> 154.0112205 | Q43: =K43*'Cost data inputs'!$D$5 -> 150.4669775 | R43: =L43*'Cost data inputs'!$D$5 -> 145.3967665 | S43: =M43*'Cost data inputs'!$D$5 -> 140.2312402 | U43: =-PMT('Cost data inputs'!$B$8,'Cost data inputs'!$B$12,O43) -> 13.56534248 | V43: =-PMT('Cost data inputs'!$B$8,'Cost data inputs'!$B$12,P43) -> 13.3983479 | W43: =-PMT('Cost data inputs'!$B$8,'Cost data inputs'!$B$12,Q43) -> 13.09001321 | X43: =-PMT('Cost data inputs'!$B$8,'Cost data inputs'!$B$12,R43) -> 12.64892554 | Y43: =-PMT('Cost data inputs'!$B$8,'Cost data inputs'!$B$12,S43) -> 12.19954582
A44: Installation cost - Luminaire | C44: =IF($B39=$A$176,C$176,C$177)*'Cost data inputs'!$B$17 -> 145.885 | D44: =IF($B39=$A$176,D$176,D$177)*'Cost data inputs'!$B$17 -> 142.7348657 | E44: =IF($B39=$A$176,E$176,E$177)*'Cost data inputs'!$B$17 -> 140.811869 | F44: =IF($B39=$A$176,F$176,F$177)*'Cost data inputs'!$B$17 -> 138.403792 | G44: =IF($B39=$A$176,G$176,G$177)*'Cost data inputs'!$B$17 -> 135.1092886 | I44: =IF($B39=$A$172,I$176,I$177)*'Cost data inputs'!$B$17 -> 147.5611216 | J44: =IF($B39=$A$172,J$176,J$177)*'Cost data inputs'!$B$17 -> 145.7445875 | K44: =IF($B39=$A$172,K$176,K$177)*'Cost data inputs'!$B$17 -> 142.3905836 | L44: =IF($B39=$A$172,L$176,L$177)*'Cost data inputs'!$B$17 -> 137.5925188 | M44: =IF($B39=$A$172,M$176,M$177)*'Cost data inputs'!$B$17 -> 132.7042548 | O44: =I44*'Cost data inputs'!$D$5 -> 155.9307884 | P44: =J44*'Cost data inputs'!$D$5 -> 154.0112205 | Q44: =K44*'Cost data inputs'!$D$5 -> 150.4669775 | R44: =L44*'Cost data inputs'!$D$5 -> 145.3967665 | S44: =M44*'Cost data inputs'!$D$5 -> 140.2312402 | U44: =-PMT('Cost data inputs'!$B$8,'Cost data inputs'!$B$11,O44) -> 16.29469325 | V44: =-PMT('Cost data inputs'!$B$8,'Cost data inputs'!$B$11,P44) -> 16.09409932 | W44: =-PMT('Cost data inputs'!$B$8,'Cost data inputs'!$B$11,Q44) -> 15.72372761 | X44: =-PMT('Cost data inputs'!$B$8,'Cost data inputs'!$B$11,R44) -> 15.19389297 | Y44: =-PMT('Cost data inputs'!$B$8,'Cost data inputs'!$B$11,S44) -> 14.65409792
A46: ='Cost data inputs'!A152 -> 70W Sodium Vapour | B46: ='Cost data inputs'!B152 -> RLMIN
A47: ='Cost data inputs'!$C$145 -> Bracket (Material Cost) | C47: ='Cost data inputs'!C152 -> 184.84 | D47: =C47 -> 184.84 | E47: =D47 -> 184.84 | F47: 184.84 | G47: 184.84 | I47: =C47*E$196 -> 187.3746926 | J47: 187.3943701 | K47: 187.4512955 | L47: 187.7156245 | M47: 188.1158762 | O47: =I47*'Cost data inputs'!$D$5 -> 198.0025851 | P47: =J47*'Cost data inputs'!$D$5 -> 198.0233788 | Q47: =K47*'Cost data inputs'!$D$5 -> 198.083533 | R47: =L47*'Cost data inputs'!$D$5 -> 198.3628547 | S47: =M47*'Cost data inputs'!$D$5 -> 198.7858087 | U47: =-PMT('Cost data inputs'!$B$8,'Cost data inputs'!$B$12,O47) -> 17.22541716 | V47: =-PMT('Cost data inputs'!$B$8,'Cost data inputs'!$B$12,P47) -> 17.22722612 | W47: =-PMT('Cost data inputs'!$B$8,'Cost data inputs'!$B$12,Q47) -> 17.23245929 | X47: =-PMT('Cost data inputs'!$B$8,'Cost data inputs'!$B$12,R47) -> 17.25675914 | Y47: =-PMT('Cost data inputs'!$B$8,'Cost data inputs'!$B$12,S47) -> 17.29355441
A48: ='Cost data inputs'!$D$145 -> Lamp Price (Material Cost) | C48: ='Cost data inputs'!D152 -> 9.12 | D48: =C48 -> 9.12 | E48: 9.12 | F48: 9.12 | G48: 9.12 | I48: 9.245061655 | J48: 9.246032544 | K48: 9.248841241 | L48: 9.261883226 | M48: 9.281631634 | O48: =I48*'Cost data inputs'!$D$5 -> 9.769441552 | P48: =J48*'Cost data inputs'!$D$5 -> 9.77046751 | Q48: =K48*'Cost data inputs'!$D$5 -> 9.773435516 | R48: =L48*'Cost data inputs'!$D$5 -> 9.787217243 | S48: =M48*'Cost data inputs'!$D$5 -> 9.80808578 | U48: =-PMT('Cost data inputs'!$B$8,'Cost data inputs'!$B$11,O48) -> 1.020901997 | V48: =-PMT('Cost data inputs'!$B$8,'Cost data inputs'!$B$11,P48) -> 1.021009209 | W48: =-PMT('Cost data inputs'!$B$8,'Cost data inputs'!$B$11,Q48) -> 1.021319365 | X48: =-PMT('Cost data inputs'!$B$8,'Cost data inputs'!$B$11,R48) -> 1.022759548 | Y48: =-PMT('Cost data inputs'!$B$8,'Cost data inputs'!$B$11,S48) -> 1.024940301
A49: ='Cost data inputs'!$E$145 -> Luminaire Price (Material Cost) | C49: ='Cost data inputs'!E152 -> 148.03 | D49: =C49 -> 148.03 | E49: 148.03 | F49: 148.03 | G49: 148.03 | I49: 150.0599207 | J49: 150.0756795 | K49: 150.1212685 | L49: 150.3329577 | M49: 150.6535012 | O49: =I49*'Cost data inputs'!$D$5 -> 158.5713194 | P49: =J49*'Cost data inputs'!$D$5 -> 158.5879721 | Q49: =K49*'Cost data inputs'!$D$5 -> 158.6361469 | R49: =L49*'Cost data inputs'!$D$5 -> 158.859843 | S49: =M49*'Cost data inputs'!$D$5 -> 159.1985678 | U49: =-PMT('Cost data inputs'!$B$8,'Cost data inputs'!$B$11,O49) -> 16.57062748 | V49: =-PMT('Cost data inputs'!$B$8,'Cost data inputs'!$B$11,P49) -> 16.57236768 | W49: =-PMT('Cost data inputs'!$B$8,'Cost data inputs'!$B$11,Q49) -> 16.57740192 | X49: =-PMT('Cost data inputs'!$B$8,'Cost data inputs'!$B$11,R49) -> 16.60077807 | Y49: =-PMT('Cost data inputs'!$B$8,'Cost data inputs'!$B$11,S49) -> 16.63617464
A50: Installation cost - Bracket | C50: =IF($B46=$A$176,C$176,C$177)*'Cost data inputs'!$B$16 -> 91.175 | D50: =IF($B46=$A$176,D$176,D$177)*'Cost data inputs'!$B$16 -> 89.41791324 | E50: =IF($B46=$A$176,E$176,E$177)*'Cost data inputs'!$B$16 -> 88.34198786 | F50: =IF($B46=$A$176,F$176,F$177)*'Cost data inputs'!$B$16 -> 87.00030634 | G50: =IF($B46=$A$176,G$176,G$177)*'Cost data inputs'!$B$16 -> 85.1580744 | I50: =IF($B46=$A$172,I$176,I$177)*'Cost data inputs'!$B$16 -> 92.2225581 | J50: =IF($B46=$A$172,J$176,J$177)*'Cost data inputs'!$B$16 -> 91.30342077 | K50: =IF($B46=$A$172,K$176,K$177)*'Cost data inputs'!$B$16 -> 89.33245254 | L50: =IF($B46=$A$172,L$176,L$177)*'Cost data inputs'!$B$16 -> 86.49033311 | M50: =IF($B46=$A$172,M$176,M$177)*'Cost data inputs'!$B$16 -> 83.64217892 | O50: =I50*'Cost data inputs'!$D$5 -> 97.45342159 | P50: =J50*'Cost data inputs'!$D$5 -> 96.4821508 | Q50: =K50*'Cost data inputs'!$D$5 -> 94.39938924 | R50: =L50*'Cost data inputs'!$D$5 -> 91.39606481 | S50: =M50*'Cost data inputs'!$D$5 -> 88.38636331 | U50: =-PMT('Cost data inputs'!$B$8,'Cost data inputs'!$B$12,O50) -> 8.478050118 | V50: =-PMT('Cost data inputs'!$B$8,'Cost data inputs'!$B$12,P50) -> 8.393553522 | W50: =-PMT('Cost data inputs'!$B$8,'Cost data inputs'!$B$12,Q50) -> 8.212361763 | X50: =-PMT('Cost data inputs'!$B$8,'Cost data inputs'!$B$12,R50) -> 7.951084789 | Y50: =-PMT('Cost data inputs'!$B$8,'Cost data inputs'!$B$12,S50) -> 7.689253036
A51: Installation cost - Luminaire | C51: =IF($B46=$A$176,C$176,C$177)*'Cost data inputs'!$B$17 -> 91.175 | D51: =IF($B46=$A$176,D$176,D$177)*'Cost data inputs'!$B$17 -> 89.41791324 | E51: =IF($B46=$A$176,E$176,E$177)*'Cost data inputs'!$B$17 -> 88.34198786 | F51: =IF($B46=$A$176,F$176,F$177)*'Cost data inputs'!$B$17 -> 87.00030634 | G51: =IF($B46=$A$176,G$176,G$177)*'Cost data inputs'!$B$17 -> 85.1580744 | I51: =IF($B46=$A$172,I$176,I$177)*'Cost data inputs'!$B$17 -> 92.2225581 | J51: =IF($B46=$A$172,J$176,J$177)*'Cost data inputs'!$B$17 -> 91.30342077 | K51: =IF($B46=$A$172,K$176,K$177)*'Cost data inputs'!$B$17 -> 89.33245254 | L51: =IF($B46=$A$172,L$176,L$177)*'Cost data inputs'!$B$17 -> 86.49033311 | M51: =IF($B46=$A$172,M$176,M$177)*'Cost data inputs'!$B$17 -> 83.64217892 | O51: =I51*'Cost data inputs'!$D$5 -> 97.45342159 | P51: =J51*'Cost data inputs'!$D$5 -> 96.4821508 | Q51: =K51*'Cost data inputs'!$D$5 -> 94.39938924 | R51: =L51*'Cost data inputs'!$D$5 -> 91.39606481 | S51: =M51*'Cost data inputs'!$D$5 -> 88.38636331 | U51: =-PMT('Cost data inputs'!$B$8,'Cost data inputs'!$B$11,O51) -> 10.18383622 | V51: =-PMT('Cost data inputs'!$B$8,'Cost data inputs'!$B$11,P51) -> 10.08233889 | W51: =-PMT('Cost data inputs'!$B$8,'Cost data inputs'!$B$11,Q51) -> 9.864691293 | X51: =-PMT('Cost data inputs'!$B$8,'Cost data inputs'!$B$11,R51) -> 9.550845317 | Y51: =-PMT('Cost data inputs'!$B$8,'Cost data inputs'!$B$11,S51) -> 9.236332942
A53: ='Cost data inputs'!A153 -> 100W Sodium Vapour | B53: ='Cost data inputs'!B153 -> RLMIN
A54: ='Cost data inputs'!$C$145 -> Bracket (Material Cost) | C54: ='Cost data inputs'!C153 -> 184.84 | D54: =C54 -> 184.84 | E54: =D54 -> 184.84 | F54: 184.84 | G54: 184.84 | I54: =C54*E$196 -> 187.3746926 | J54: 187.3943701 | K54: 187.4512955 | L54: 187.7156245 | M54: 188.1158762 | O54: =I54*'Cost data inputs'!$D$5 -> 198.0025851 | P54: =J54*'Cost data inputs'!$D$5 -> 198.0233788 | Q54: =K54*'Cost data inputs'!$D$5 -> 198.083533 | R54: =L54*'Cost data inputs'!$D$5 -> 198.3628547 | S54: =M54*'Cost data inputs'!$D$5 -> 198.7858087 | U54: =-PMT('Cost data inputs'!$B$8,'Cost data inputs'!$B$12,O54) -> 17.22541716 | V54: =-PMT('Cost data inputs'!$B$8,'Cost data inputs'!$B$12,P54) -> 17.22722612 | W54: =-PMT('Cost data inputs'!$B$8,'Cost data inputs'!$B$12,Q54) -> 17.23245929 | X54: =-PMT('Cost data inputs'!$B$8,'Cost data inputs'!$B$12,R54) -> 17.25675914 | Y54: =-PMT('Cost data inputs'!$B$8,'Cost data inputs'!$B$12,S54) -> 17.29355441
A55: ='Cost data inputs'!$D$145 -> Lamp Price (Material Cost) | C55: ='Cost data inputs'!D153 -> 33.18 | D55: =C55 -> 33.18 | E55: 33.18 | F55: 33.18 | G55: 33.18 | I55: 33.63499405 | J55: 33.63852629 | K55: 33.64874478 | L55: 33.69619358 | M55: 33.7680414 | O55: =I55*'Cost data inputs'!$D$5 -> 35.54277091 | P55: =J55*'Cost data inputs'!$D$5 -> 35.54650351 | Q55: =K55*'Cost data inputs'!$D$5 -> 35.55730158 | R55: =L55*'Cost data inputs'!$D$5 -> 35.60744168 | S55: =M55*'Cost data inputs'!$D$5 -> 35.68336471 | U55: =-PMT('Cost data inputs'!$B$8,'Cost data inputs'!$B$11,O55) -> 3.714202661 | V55: =-PMT('Cost data inputs'!$B$8,'Cost data inputs'!$B$11,P55) -> 3.714592716 | W55: =-PMT('Cost data inputs'!$B$8,'Cost data inputs'!$B$11,Q55) -> 3.71572111 | X55: =-PMT('Cost data inputs'!$B$8,'Cost data inputs'!$B$11,R55) -> 3.720960726 | Y55: =-PMT('Cost data inputs'!$B$8,'Cost data inputs'!$B$11,S55) -> 3.728894647
A56: ='Cost data inputs'!$E$145 -> Luminaire Price (Material Cost) | C56: ='Cost data inputs'!E153 -> 119.8 | D56: =C56 -> 119.8 | E56: 119.8 | F56: 119.8 | G56: 119.8 | I56: 121.4428055 | J56: 121.4555591 | K56: 121.492454 | L56: 121.6637731 | M56: 121.9231875 | O56: =I56*'Cost data inputs'!$D$5 -> 128.3310414 | P56: =J56*'Cost data inputs'!$D$5 -> 128.3445184 | Q56: =K56*'Cost data inputs'!$D$5 -> 128.383506 | R56: =L56*'Cost data inputs'!$D$5 -> 128.5645423 | S56: =M56*'Cost data inputs'!$D$5 -> 128.8386707 | U56: =-PMT('Cost data inputs'!$B$8,'Cost data inputs'!$B$11,O56) -> 13.41053281 | V56: =-PMT('Cost data inputs'!$B$8,'Cost data inputs'!$B$11,P56) -> 13.41194115 | W56: =-PMT('Cost data inputs'!$B$8,'Cost data inputs'!$B$11,Q56) -> 13.41601534 | X56: =-PMT('Cost data inputs'!$B$8,'Cost data inputs'!$B$11,R56) -> 13.43493354 | Y56: =-PMT('Cost data inputs'!$B$8,'Cost data inputs'!$B$11,S56) -> 13.46357983
A57: Installation cost - Bracket | C57: =IF($B53=$A$176,C$176,C$177)*'Cost data inputs'!$B$16 -> 91.175 | D57: =IF($B53=$A$176,D$176,D$177)*'Cost data inputs'!$B$16 -> 89.41791324 | E57: =IF($B53=$A$176,E$176,E$177)*'Cost data inputs'!$B$16 -> 88.34198786 | F57: =IF($B53=$A$176,F$176,F$177)*'Cost data inputs'!$B$16 -> 87.00030634 | G57: =IF($B53=$A$176,G$176,G$177)*'Cost data inputs'!$B$16 -> 85.1580744 | I57: =IF($B53=$A$172,I$176,I$177)*'Cost data inputs'!$B$16 -> 92.2225581 | J57: =IF($B53=$A$172,J$176,J$177)*'Cost data inputs'!$B$16 -> 91.30342077 | K57: =IF($B53=$A$172,K$176,K$177)*'Cost data inputs'!$B$16 -> 89.33245254 | L57: =IF($B53=$A$172,L$176,L$177)*'Cost data inputs'!$B$16 -> 86.49033311 | M57: =IF($B53=$A$172,M$176,M$177)*'Cost data inputs'!$B$16 -> 83.64217892 | O57: =I57*'Cost data inputs'!$D$5 -> 97.45342159 | P57: =J57*'Cost data inputs'!$D$5 -> 96.4821508 | Q57: =K57*'Cost data inputs'!$D$5 -> 94.39938924 | R57: =L57*'Cost data inputs'!$D$5 -> 91.39606481 | S57: =M57*'Cost data inputs'!$D$5 -> 88.38636331 | U57: =-PMT('Cost data inputs'!$B$8,'Cost data inputs'!$B$12,O57) -> 8.478050118 | V57: =-PMT('Cost data inputs'!$B$8,'Cost data inputs'!$B$12,P57) -> 8.393553522 | W57: =-PMT('Cost data inputs'!$B$8,'Cost data inputs'!$B$12,Q57) -> 8.212361763 | X57: =-PMT('Cost data inputs'!$B$8,'Cost data inputs'!$B$12,R57) -> 7.951084789 | Y57: =-PMT('Cost data inputs'!$B$8,'Cost data inputs'!$B$12,S57) -> 7.689253036
A58: Installation cost - Luminaire | C58: =IF($B53=$A$176,C$176,C$177)*'Cost data inputs'!$B$17 -> 91.175 | D58: =IF($B53=$A$176,D$176,D$177)*'Cost data inputs'!$B$17 -> 89.41791324 | E58: =IF($B53=$A$176,E$176,E$177)*'Cost data inputs'!$B$17 -> 88.34198786 | F58: =IF($B53=$A$176,F$176,F$177)*'Cost data inputs'!$B$17 -> 87.00030634 | G58: =IF($B53=$A$176,G$176,G$177)*'Cost data inputs'!$B$17 -> 85.1580744 | I58: =IF($B53=$A$172,I$176,I$177)*'Cost data inputs'!$B$17 -> 92.2225581 | J58: =IF($B53=$A$172,J$176,J$177)*'Cost data inputs'!$B$17 -> 91.30342077 | K58: =IF($B53=$A$172,K$176,K$177)*'Cost data inputs'!$B$17 -> 89.33245254 | L58: =IF($B53=$A$172,L$176,L$177)*'Cost data inputs'!$B$17 -> 86.49033311 | M58: =IF($B53=$A$172,M$176,M$177)*'Cost data inputs'!$B$17 -> 83.64217892 | O58: =I58*'Cost data inputs'!$D$5 -> 97.45342159 | P58: =J58*'Cost data inputs'!$D$5 -> 96.4821508 | Q58: =K58*'Cost data inputs'!$D$5 -> 94.39938924 | R58: =L58*'Cost data inputs'!$D$5 -> 91.39606481 | S58: =M58*'Cost data inputs'!$D$5 -> 88.38636331 | U58: =-PMT('Cost data inputs'!$B$8,'Cost data inputs'!$B$11,O58) -> 10.18383622 | V58: =-PMT('Cost data inputs'!$B$8,'Cost data inputs'!$B$11,P58) -> 10.08233889 | W58: =-PMT('Cost data inputs'!$B$8,'Cost data inputs'!$B$11,Q58) -> 9.864691293 | X58: =-PMT('Cost data inputs'!$B$8,'Cost data inputs'!$B$11,R58) -> 9.550845317 | Y58: =-PMT('Cost data inputs'!$B$8,'Cost data inputs'!$B$11,S58) -> 9.236332942
A60: ='Cost data inputs'!A154 -> 150W Sodium Vapour | B60: ='Cost data inputs'!B154 -> RLMAJ
A61: ='Cost data inputs'!$C$145 -> Bracket (Material Cost) | C61: ='Cost data inputs'!C154 -> 184.84 | D61: =C61 -> 184.84 | E61: =D61 -> 184.84 | F61: 184.84 | G61: 184.84 | I61: =C61*E$196 -> 187.3746926 | J61: 187.3943701 | K61: 187.4512955 | L61: 187.7156245 | M61: 188.1158762 | O61: =I61*'Cost data inputs'!$D$5 -> 198.0025851 | P61: =J61*'Cost data inputs'!$D$5 -> 198.0233788 | Q61: =K61*'Cost data inputs'!$D$5 -> 198.083533 | R61: =L61*'Cost data inputs'!$D$5 -> 198.3628547 | S61: =M61*'Cost data inputs'!$D$5 -> 198.7858087 | U61: =-PMT('Cost data inputs'!$B$8,'Cost data inputs'!$B$12,O61) -> 17.22541716 | V61: =-PMT('Cost data inputs'!$B$8,'Cost data inputs'!$B$12,P61) -> 17.22722612 | W61: =-PMT('Cost data inputs'!$B$8,'Cost data inputs'!$B$12,Q61) -> 17.23245929 | X61: =-PMT('Cost data inputs'!$B$8,'Cost data inputs'!$B$12,R61) -> 17.25675914 | Y61: =-PMT('Cost data inputs'!$B$8,'Cost data inputs'!$B$12,S61) -> 17.29355441
A62: ='Cost data inputs'!$D$145 -> Lamp Price (Material Cost) | C62: ='Cost data inputs'!D154 -> 28.35 | D62: =C62 -> 28.35 | E62: 28.35 | F62: 28.35 | G62: 28.35 | I62: 28.73876074 | J62: 28.7417788 | K62: 28.75050978 | L62: 28.79105148 | M62: 28.85244044 | O62: =I62*'Cost data inputs'!$D$5 -> 30.36882325 | P62: =J62*'Cost data inputs'!$D$5 -> 30.37201249 | Q62: =K62*'Cost data inputs'!$D$5 -> 30.38123869 | R62: =L62*'Cost data inputs'!$D$5 -> 30.42407992 | S62: =M62*'Cost data inputs'!$D$5 -> 30.48895086 | U62: =-PMT('Cost data inputs'!$B$8,'Cost data inputs'!$B$11,O62) -> 3.17352759 | V62: =-PMT('Cost data inputs'!$B$8,'Cost data inputs'!$B$11,P62) -> 3.173860865 | W62: =-PMT('Cost data inputs'!$B$8,'Cost data inputs'!$B$11,Q62) -> 3.174824999 | X62: =-PMT('Cost data inputs'!$B$8,'Cost data inputs'!$B$11,R62) -> 3.179301886 | Y62: =-PMT('Cost data inputs'!$B$8,'Cost data inputs'!$B$11,S62) -> 3.186080869
A63: ='Cost data inputs'!$E$145 -> Luminaire Price (Material Cost) | C63: ='Cost data inputs'!E154 -> 162.01 | D63: =C63 -> 162.01 | E63: 162.01 | F63: 162.01 | G63: 162.01 | I63: 164.2316271 | J63: 164.2488742 | K63: 164.2987686 | L63: 164.5304497 | M63: 164.8812655 | O63: =I63*'Cost data inputs'!$D$5 -> 173.5468449 | P63: =J63*'Cost data inputs'!$D$5 -> 173.5650703 | Q63: =K63*'Cost data inputs'!$D$5 -> 173.6177947 | R63: =L63*'Cost data inputs'!$D$5 -> 173.8626168 | S63: =M63*'Cost data inputs'!$D$5 -> 174.2333308 | U63: =-PMT('Cost data inputs'!$B$8,'Cost data inputs'!$B$11,O63) -> 18.13556278 | V63: =-PMT('Cost data inputs'!$B$8,'Cost data inputs'!$B$11,P63) -> 18.13746732 | W63: =-PMT('Cost data inputs'!$B$8,'Cost data inputs'!$B$11,Q63) -> 18.142977 | X63: =-PMT('Cost data inputs'!$B$8,'Cost data inputs'!$B$11,R63) -> 18.1685608 | Y63: =-PMT('Cost data inputs'!$B$8,'Cost data inputs'!$B$11,S63) -> 18.20730023
A64: Installation cost - Bracket | C64: =IF($B60=$A$176,C$176,C$177)*'Cost data inputs'!$B$16 -> 145.885 | D64: =IF($B60=$A$176,D$176,D$177)*'Cost data inputs'!$B$16 -> 142.7348657 | E64: =IF($B60=$A$176,E$176,E$177)*'Cost data inputs'!$B$16 -> 140.811869 | F64: =IF($B60=$A$176,F$176,F$177)*'Cost data inputs'!$B$16 -> 138.403792 | G64: =IF($B60=$A$176,G$176,G$177)*'Cost data inputs'!$B$16 -> 135.1092886 | I64: =IF($B60=$A$172,I$176,I$177)*'Cost data inputs'!$B$16 -> 147.5611216 | J64: =IF($B60=$A$172,J$176,J$177)*'Cost data inputs'!$B$16 -> 145.7445875 | K64: =IF($B60=$A$172,K$176,K$177)*'Cost data inputs'!$B$16 -> 142.3905836 | L64: =IF($B60=$A$172,L$176,L$177)*'Cost data inputs'!$B$16 -> 137.5925188 | M64: =IF($B60=$A$172,M$176,M$177)*'Cost data inputs'!$B$16 -> 132.7042548 | O64: =I64*'Cost data inputs'!$D$5 -> 155.9307884 | P64: =J64*'Cost data inputs'!$D$5 -> 154.0112205 | Q64: =K64*'Cost data inputs'!$D$5 -> 150.4669775 | R64: =L64*'Cost data inputs'!$D$5 -> 145.3967665 | S64: =M64*'Cost data inputs'!$D$5 -> 140.2312402 | U64: =-PMT('Cost data inputs'!$B$8,'Cost data inputs'!$B$12,O64) -> 13.56534248 | V64: =-PMT('Cost data inputs'!$B$8,'Cost data inputs'!$B$12,P64) -> 13.3983479 | W64: =-PMT('Cost data inputs'!$B$8,'Cost data inputs'!$B$12,Q64) -> 13.09001321 | X64: =-PMT('Cost data inputs'!$B$8,'Cost data inputs'!$B$12,R64) -> 12.64892554 | Y64: =-PMT('Cost data inputs'!$B$8,'Cost data inputs'!$B$12,S64) -> 12.19954582
A65: Installation cost - Luminaire | C65: =IF($B60=$A$176,C$176,C$177)*'Cost data inputs'!$B$17 -> 145.885 | D65: =IF($B60=$A$176,D$176,D$177)*'Cost data inputs'!$B$17 -> 142.7348657 | E65: =IF($B60=$A$176,E$176,E$177)*'Cost data inputs'!$B$17 -> 140.811869 | F65: =IF($B60=$A$176,F$176,F$177)*'Cost data inputs'!$B$17 -> 138.403792 | G65: =IF($B60=$A$176,G$176,G$177)*'Cost data inputs'!$B$17 -> 135.1092886 | I65: =IF($B60=$A$172,I$176,I$177)*'Cost data inputs'!$B$17 -> 147.5611216 | J65: =IF($B60=$A$172,J$176,J$177)*'Cost data inputs'!$B$17 -> 145.7445875 | K65: =IF($B60=$A$172,K$176,K$177)*'Cost data inputs'!$B$17 -> 142.3905836 | L65: =IF($B60=$A$172,L$176,L$177)*'Cost data inputs'!$B$17 -> 137.5925188 | M65: =IF($B60=$A$172,M$176,M$177)*'Cost data inputs'!$B$17 -> 132.7042548 | O65: =I65*'Cost data inputs'!$D$5 -> 155.9307884 | P65: =J65*'Cost data inputs'!$D$5 -> 154.0112205 | Q65: =K65*'Cost data inputs'!$D$5 -> 150.4669775 | R65: =L65*'Cost data inputs'!$D$5 -> 145.3967665 | S65: =M65*'Cost data inputs'!$D$5 -> 140.2312402 | U65: =-PMT('Cost data inputs'!$B$8,'Cost data inputs'!$B$11,O65) -> 16.29469325 | V65: =-PMT('Cost data inputs'!$B$8,'Cost data inputs'!$B$11,P65) -> 16.09409932 | W65: =-PMT('Cost data inputs'!$B$8,'Cost data inputs'!$B$11,Q65) -> 15.72372761 | X65: =-PMT('Cost data inputs'!$B$8,'Cost data inputs'!$B$11,R65) -> 15.19389297 | Y65: =-PMT('Cost data inputs'!$B$8,'Cost data inputs'!$B$11,S65) -> 14.65409792
A67: ='Cost data inputs'!A155 -> 250W Sodium Vapour | B67: ='Cost data inputs'!B155 -> RLMAJ
A68: ='Cost data inputs'!$C$145 -> Bracket (Material Cost) | C68: ='Cost data inputs'!C155 -> 184.84 | D68: =C68 -> 184.84 | E68: =D68 -> 184.84 | F68: 184.84 | G68: 184.84 | I68: =C68*E$196 -> 187.3746926 | J68: 187.3943701 | K68: 187.4512955 | L68: 187.7156245 | M68: 188.1158762 | O68: =I68*'Cost data inputs'!$D$5 -> 198.0025851 | P68: =J68*'Cost data inputs'!$D$5 -> 198.0233788 | Q68: =K68*'Cost data inputs'!$D$5 -> 198.083533 | R68: =L68*'Cost data inputs'!$D$5 -> 198.3628547 | S68: =M68*'Cost data inputs'!$D$5 -> 198.7858087 | U68: =-PMT('Cost data inputs'!$B$8,'Cost data inputs'!$B$12,O68) -> 17.22541716 | V68: =-PMT('Cost data inputs'!$B$8,'Cost data inputs'!$B$12,P68) -> 17.22722612 | W68: =-PMT('Cost data inputs'!$B$8,'Cost data inputs'!$B$12,Q68) -> 17.23245929 | X68: =-PMT('Cost data inputs'!$B$8,'Cost data inputs'!$B$12,R68) -> 17.25675914 | Y68: =-PMT('Cost data inputs'!$B$8,'Cost data inputs'!$B$12,S68) -> 17.29355441
A69: ='Cost data inputs'!$D$145 -> Lamp Price (Material Cost) | C69: ='Cost data inputs'!D155 -> 27.15 | D69: =C69 -> 27.15 | E69: 27.15 | F69: 27.15 | G69: 27.15 | I69: 27.52230526 | J69: 27.52519557 | K69: 27.53355698 | L69: 27.57238263 | M69: 27.63117312 | O69: =I69*'Cost data inputs'!$D$5 -> 29.08337041 | P69: =J69*'Cost data inputs'!$D$5 -> 29.08642466 | Q69: =K69*'Cost data inputs'!$D$5 -> 29.09526034 | R69: =L69*'Cost data inputs'!$D$5 -> 29.13628817 | S69: =M69*'Cost data inputs'!$D$5 -> 29.19841326 | U69: =-PMT('Cost data inputs'!$B$8,'Cost data inputs'!$B$11,O69) -> 3.03919838 | V69: =-PMT('Cost data inputs'!$B$8,'Cost data inputs'!$B$11,P69) -> 3.039517548 | W69: =-PMT('Cost data inputs'!$B$8,'Cost data inputs'!$B$11,Q69) -> 3.040440872 | X69: =-PMT('Cost data inputs'!$B$8,'Cost data inputs'!$B$11,R69) -> 3.044728261 | Y69: =-PMT('Cost data inputs'!$B$8,'Cost data inputs'!$B$11,S69) -> 3.051220303
A70: ='Cost data inputs'!$E$145 -> Luminaire Price (Material Cost) | C70: ='Cost data inputs'!E155 -> 166.45 | D70: =C70 -> 166.45 | E70: 166.45 | F70: 166.45 | G70: 166.45 | I70: 168.7325123 | J70: 168.7502321 | K70: 168.8014939 | L70: 169.0395245 | M70: 169.3999545 | O70: =I70*'Cost data inputs'!$D$5 -> 178.3030204 | P70: =J70*'Cost data inputs'!$D$5 -> 178.3217453 | Q70: =K70*'Cost data inputs'!$D$5 -> 178.3759147 | R70: =L70*'Cost data inputs'!$D$5 -> 178.6274463 | S70: =M70*'Cost data inputs'!$D$5 -> 179.00832 | U70: =-PMT('Cost data inputs'!$B$8,'Cost data inputs'!$B$11,O70) -> 18.63258086 | V70: =-PMT('Cost data inputs'!$B$8,'Cost data inputs'!$B$11,P70) -> 18.6345376 | W70: =-PMT('Cost data inputs'!$B$8,'Cost data inputs'!$B$11,Q70) -> 18.64019827 | X70: =-PMT('Cost data inputs'!$B$8,'Cost data inputs'!$B$11,R70) -> 18.66648321 | Y70: =-PMT('Cost data inputs'!$B$8,'Cost data inputs'!$B$11,S70) -> 18.70628433
A71: Installation cost - Bracket | C71: =IF($B67=$A$176,C$176,C$177)*'Cost data inputs'!$B$16 -> 145.885 | D71: =IF($B67=$A$176,D$176,D$177)*'Cost data inputs'!$B$16 -> 142.7348657 | E71: =IF($B67=$A$176,E$176,E$177)*'Cost data inputs'!$B$16 -> 140.811869 | F71: =IF($B67=$A$176,F$176,F$177)*'Cost data inputs'!$B$16 -> 138.403792 | G71: =IF($B67=$A$176,G$176,G$177)*'Cost data inputs'!$B$16 -> 135.1092886 | I71: =IF($B67=$A$172,I$176,I$177)*'Cost data inputs'!$B$16 -> 147.5611216 | J71: =IF($B67=$A$172,J$176,J$177)*'Cost data inputs'!$B$16 -> 145.7445875 | K71: =IF($B67=$A$172,K$176,K$177)*'Cost data inputs'!$B$16 -> 142.3905836 | L71: =IF($B67=$A$172,L$176,L$177)*'Cost data inputs'!$B$16 -> 137.5925188 | M71: =IF($B67=$A$172,M$176,M$177)*'Cost data inputs'!$B$16 -> 132.7042548 | O71: =I71*'Cost data inputs'!$D$5 -> 155.9307884 | P71: =J71*'Cost data inputs'!$D$5 -> 154.0112205 | Q71: =K71*'Cost data inputs'!$D$5 -> 150.4669775 | R71: =L71*'Cost data inputs'!$D$5 -> 145.3967665 | S71: =M71*'Cost data inputs'!$D$5 -> 140.2312402 | U71: =-PMT('Cost data inputs'!$B$8,'Cost data inputs'!$B$12,O71) -> 13.56534248 | V71: =-PMT('Cost data inputs'!$B$8,'Cost data inputs'!$B$12,P71) -> 13.3983479 | W71: =-PMT('Cost data inputs'!$B$8,'Cost data inputs'!$B$12,Q71) -> 13.09001321 | X71: =-PMT('Cost data inputs'!$B$8,'Cost data inputs'!$B$12,R71) -> 12.64892554 | Y71: =-PMT('Cost data inputs'!$B$8,'Cost data inputs'!$B$12,S71) -> 12.19954582
A72: Installation cost - Luminaire | C72: =IF($B67=$A$176,C$176,C$177)*'Cost data inputs'!$B$17 -> 145.885 | D72: =IF($B67=$A$176,D$176,D$177)*'Cost data inputs'!$B$17 -> 142.7348657 | E72: =IF($B67=$A$176,E$176,E$177)*'Cost data inputs'!$B$17 -> 140.811869 | F72: =IF($B67=$A$176,F$176,F$177)*'Cost data inputs'!$B$17 -> 138.403792 | G72: =IF($B67=$A$176,G$176,G$177)*'Cost data inputs'!$B$17 -> 135.1092886 | I72: =IF($B67=$A$172,I$176,I$177)*'Cost data inputs'!$B$17 -> 147.5611216 | J72: =IF($B67=$A$172,J$176,J$177)*'Cost data inputs'!$B$17 -> 145.7445875 | K72: =IF($B67=$A$172,K$176,K$177)*'Cost data inputs'!$B$17 -> 142.3905836 | L72: =IF($B67=$A$172,L$176,L$177)*'Cost data inputs'!$B$17 -> 137.5925188 | M72: =IF($B67=$A$172,M$176,M$177)*'Cost data inputs'!$B$17 -> 132.7042548 | O72: =I72*'Cost data inputs'!$D$5 -> 155.9307884 | P72: =J72*'Cost data inputs'!$D$5 -> 154.0112205 | Q72: =K72*'Cost data inputs'!$D$5 -> 150.4669775 | R72: =L72*'Cost data inputs'!$D$5 -> 145.3967665 | S72: =M72*'Cost data inputs'!$D$5 -> 140.2312402 | U72: =-PMT('Cost data inputs'!$B$8,'Cost data inputs'!$B$11,O72) -> 16.29469325 | V72: =-PMT('Cost data inputs'!$B$8,'Cost data inputs'!$B$11,P72) -> 16.09409932 | W72: =-PMT('Cost data inputs'!$B$8,'Cost data inputs'!$B$11,Q72) -> 15.72372761 | X72: =-PMT('Cost data inputs'!$B$8,'Cost data inputs'!$B$11,R72) -> 15.19389297 | Y72: =-PMT('Cost data inputs'!$B$8,'Cost data inputs'!$B$11,S72) -> 14.65409792
A74: ='Cost data inputs'!A156 -> 400W Sodium Vapour | B74: ='Cost data inputs'!B156 -> RLMAJ
A75: ='Cost data inputs'!$C$145 -> Bracket (Material Cost) | C75: ='Cost data inputs'!C156 -> 184.84 | D75: =C75 -> 184.84 | E75: =D75 -> 184.84 | F75: 184.84 | G75: 184.84 | I75: =C75*E$196 -> 187.3746926 | J75: 187.3943701 | K75: 187.4512955 | L75: 187.7156245 | M75: 188.1158762 | O75: =I75*'Cost data inputs'!$D$5 -> 198.0025851 | P75: =J75*'Cost data inputs'!$D$5 -> 198.0233788 | Q75: =K75*'Cost data inputs'!$D$5 -> 198.083533 | R75: =L75*'Cost data inputs'!$D$5 -> 198.3628547 | S75: =M75*'Cost data inputs'!$D$5 -> 198.7858087 | U75: =-PMT('Cost data inputs'!$B$8,'Cost data inputs'!$B$12,O75) -> 17.22541716 | V75: =-PMT('Cost data inputs'!$B$8,'Cost data inputs'!$B$12,P75) -> 17.22722612 | W75: =-PMT('Cost data inputs'!$B$8,'Cost data inputs'!$B$12,Q75) -> 17.23245929 | X75: =-PMT('Cost data inputs'!$B$8,'Cost data inputs'!$B$12,R75) -> 17.25675914 | Y75: =-PMT('Cost data inputs'!$B$8,'Cost data inputs'!$B$12,S75) -> 17.29355441
A76: ='Cost data inputs'!$D$145 -> Lamp Price (Material Cost) | C76: ='Cost data inputs'!D156 -> 29.84 | D76: =C76 -> 29.84 | E76: 29.84 | F76: 29.84 | G76: 29.84 | I76: 30.24919296 | J76: 30.25236964 | K76: 30.2615595 | L76: 30.30423196 | M76: 30.36884736 | O76: =I76*'Cost data inputs'!$D$5 -> 31.96492718 | P76: =J76*'Cost data inputs'!$D$5 -> 31.96828404 | Q76: =K76*'Cost data inputs'!$D$5 -> 31.97799515 | R76: =L76*'Cost data inputs'!$D$5 -> 32.023088 | S76: =M76*'Cost data inputs'!$D$5 -> 32.09136839 | U76: =-PMT('Cost data inputs'!$B$8,'Cost data inputs'!$B$11,O76) -> 3.340319693 | V76: =-PMT('Cost data inputs'!$B$8,'Cost data inputs'!$B$11,P76) -> 3.340670483 | W76: =-PMT('Cost data inputs'!$B$8,'Cost data inputs'!$B$11,Q76) -> 3.34168529 | X76: =-PMT('Cost data inputs'!$B$8,'Cost data inputs'!$B$11,R76) -> 3.34639747 | Y76: =-PMT('Cost data inputs'!$B$8,'Cost data inputs'!$B$11,S76) -> 3.353532738
A77: ='Cost data inputs'!$E$145 -> Luminaire Price (Material Cost) | C77: ='Cost data inputs'!E156 -> 173.68 | D77: =C77 -> 173.68 | E77: 173.68 | F77: 173.68 | G77: 173.68 | I77: 176.0616566 | J77: 176.0801461 | K77: 176.1336345 | L77: 176.3820042 | M77: 176.7580901 | O77: =I77*'Cost data inputs'!$D$5 -> 186.0478738 | P77: =J77*'Cost data inputs'!$D$5 -> 186.067412 | Q77: =K77*'Cost data inputs'!$D$5 -> 186.1239343 | R77: =L77*'Cost data inputs'!$D$5 -> 186.3863915 | S77: =M77*'Cost data inputs'!$D$5 -> 186.783809 | U77: =-PMT('Cost data inputs'!$B$8,'Cost data inputs'!$B$11,O77) -> 19.44191435 | V77: =-PMT('Cost data inputs'!$B$8,'Cost data inputs'!$B$11,P77) -> 19.44395608 | W77: =-PMT('Cost data inputs'!$B$8,'Cost data inputs'!$B$11,Q77) -> 19.44986264 | X77: =-PMT('Cost data inputs'!$B$8,'Cost data inputs'!$B$11,R77) -> 19.4772893 | Y77: =-PMT('Cost data inputs'!$B$8,'Cost data inputs'!$B$11,S77) -> 19.51881924
A78: Installation cost - Bracket | C78: =IF($B74=$A$176,C$176,C$177)*'Cost data inputs'!$B$16 -> 145.885 | D78: =IF($B74=$A$176,D$176,D$177)*'Cost data inputs'!$B$16 -> 142.7348657 | E78: =IF($B74=$A$176,E$176,E$177)*'Cost data inputs'!$B$16 -> 140.811869 | F78: =IF($B74=$A$176,F$176,F$177)*'Cost data inputs'!$B$16 -> 138.403792 | G78: =IF($B74=$A$176,G$176,G$177)*'Cost data inputs'!$B$16 -> 135.1092886 | I78: =IF($B74=$A$172,I$176,I$177)*'Cost data inputs'!$B$16 -> 147.5611216 | J78: =IF($B74=$A$172,J$176,J$177)*'Cost data inputs'!$B$16 -> 145.7445875 | K78: =IF($B74=$A$172,K$176,K$177)*'Cost data inputs'!$B$16 -> 142.3905836 | L78: =IF($B74=$A$172,L$176,L$177)*'Cost data inputs'!$B$16 -> 137.5925188 | M78: =IF($B74=$A$172,M$176,M$177)*'Cost data inputs'!$B$16 -> 132.7042548 | O78: =I78*'Cost data inputs'!$D$5 -> 155.9307884 | P78: =J78*'Cost data inputs'!$D$5 -> 154.0112205 | Q78: =K78*'Cost data inputs'!$D$5 -> 150.4669775 | R78: =L78*'Cost data inputs'!$D$5 -> 145.3967665 | S78: =M78*'Cost data inputs'!$D$5 -> 140.2312402 | U78: =-PMT('Cost data inputs'!$B$8,'Cost data inputs'!$B$12,O78) -> 13.56534248 | V78: =-PMT('Cost data inputs'!$B$8,'Cost data inputs'!$B$12,P78) -> 13.3983479 | W78: =-PMT('Cost data inputs'!$B$8,'Cost data inputs'!$B$12,Q78) -> 13.09001321 | X78: =-PMT('Cost data inputs'!$B$8,'Cost data inputs'!$B$12,R78) -> 12.64892554 | Y78: =-PMT('Cost data inputs'!$B$8,'Cost data inputs'!$B$12,S78) -> 12.19954582
A79: Installation cost - Luminaire | C79: =IF($B74=$A$176,C$176,C$177)*'Cost data inputs'!$B$17 -> 145.885 | D79: =IF($B74=$A$176,D$176,D$177)*'Cost data inputs'!$B$17 -> 142.7348657 | E79: =IF($B74=$A$176,E$176,E$177)*'Cost data inputs'!$B$17 -> 140.811869 | F79: =IF($B74=$A$176,F$176,F$177)*'Cost data inputs'!$B$17 -> 138.403792 | G79: =IF($B74=$A$176,G$176,G$177)*'Cost data inputs'!$B$17 -> 135.1092886 | I79: =IF($B74=$A$172,I$176,I$177)*'Cost data inputs'!$B$17 -> 147.5611216 | J79: =IF($B74=$A$172,J$176,J$177)*'Cost data inputs'!$B$17 -> 145.7445875 | K79: =IF($B74=$A$172,K$176,K$177)*'Cost data inputs'!$B$17 -> 142.3905836 | L79: =IF($B74=$A$172,L$176,L$177)*'Cost data inputs'!$B$17 -> 137.5925188 | M79: =IF($B74=$A$172,M$176,M$177)*'Cost data inputs'!$B$17 -> 132.7042548 | O79: =I79*'Cost data inputs'!$D$5 -> 155.9307884 | P79: =J79*'Cost data inputs'!$D$5 -> 154.0112205 | Q79: =K79*'Cost data inputs'!$D$5 -> 150.4669775 | R79: =L79*'Cost data inputs'!$D$5 -> 145.3967665 | S79: =M79*'Cost data inputs'!$D$5 -> 140.2312402 | U79: =-PMT('Cost data inputs'!$B$8,'Cost data inputs'!$B$11,O79) -> 16.29469325 | V79: =-PMT('Cost data inputs'!$B$8,'Cost data inputs'!$B$11,P79) -> 16.09409932 | W79: =-PMT('Cost data inputs'!$B$8,'Cost data inputs'!$B$11,Q79) -> 15.72372761 | X79: =-PMT('Cost data inputs'!$B$8,'Cost data inputs'!$B$11,R79) -> 15.19389297 | Y79: =-PMT('Cost data inputs'!$B$8,'Cost data inputs'!$B$11,S79) -> 14.65409792
A81: ='Cost data inputs'!A157 -> 150W Metal Halide | B81: ='Cost data inputs'!B157 -> RLMAJ
A82: ='Cost data inputs'!$C$145 -> Bracket (Material Cost) | C82: ='Cost data inputs'!C157 -> 184.84 | D82: =C82 -> 184.84 | E82: =D82 -> 184.84 | F82: 184.84 | G82: 184.84 | I82: =C82*E$196 -> 187.3746926 | J82: 187.3943701 | K82: 187.4512955 | L82: 187.7156245 | M82: 188.1158762 | O82: =I82*'Cost data inputs'!$D$5 -> 198.0025851 | P82: =J82*'Cost data inputs'!$D$5 -> 198.0233788 | Q82: =K82*'Cost data inputs'!$D$5 -> 198.083533 | R82: =L82*'Cost data inputs'!$D$5 -> 198.3628547 | S82: =M82*'Cost data inputs'!$D$5 -> 198.7858087 | U82: =-PMT('Cost data inputs'!$B$8,'Cost data inputs'!$B$12,O82) -> 17.22541716 | V82: =-PMT('Cost data inputs'!$B$8,'Cost data inputs'!$B$12,P82) -> 17.22722612 | W82: =-PMT('Cost data inputs'!$B$8,'Cost data inputs'!$B$12,Q82) -> 17.23245929 | X82: =-PMT('Cost data inputs'!$B$8,'Cost data inputs'!$B$12,R82) -> 17.25675914 | Y82: =-PMT('Cost data inputs'!$B$8,'Cost data inputs'!$B$12,S82) -> 17.29355441
A83: ='Cost data inputs'!$D$145 -> Lamp Price (Material Cost) | C83: ='Cost data inputs'!D157 -> 28.35 | D83: =C83 -> 28.35 | E83: 28.35 | F83: 28.35 | G83: 28.35 | I83: 28.73876074 | J83: 28.7417788 | K83: 28.75050978 | L83: 28.79105148 | M83: 28.85244044 | O83: =I83*'Cost data inputs'!$D$5 -> 30.36882325 | P83: =J83*'Cost data inputs'!$D$5 -> 30.37201249 | Q83: =K83*'Cost data inputs'!$D$5 -> 30.38123869 | R83: =L83*'Cost data inputs'!$D$5 -> 30.42407992 | S83: =M83*'Cost data inputs'!$D$5 -> 30.48895086 | U83: =-PMT('Cost data inputs'!$B$8,'Cost data inputs'!$B$11,O83) -> 3.17352759 | V83: =-PMT('Cost data inputs'!$B$8,'Cost data inputs'!$B$11,P83) -> 3.173860865 | W83: =-PMT('Cost data inputs'!$B$8,'Cost data inputs'!$B$11,Q83) -> 3.174824999 | X83: =-PMT('Cost data inputs'!$B$8,'Cost data inputs'!$B$11,R83) -> 3.179301886 | Y83: =-PMT('Cost data inputs'!$B$8,'Cost data inputs'!$B$11,S83) -> 3.186080869
A84: ='Cost data inputs'!$E$145 -> Luminaire Price (Material Cost) | C84: ='Cost data inputs'!E157 -> 162.01 | D84: =C84 -> 162.01 | E84: 162.01 | F84: 162.01 | G84: 162.01 | I84: 164.2316271 | J84: 164.2488742 | K84: 164.2987686 | L84: 164.5304497 | M84: 164.8812655 | O84: =I84*'Cost data inputs'!$D$5 -> 173.5468449 | P84: =J84*'Cost data inputs'!$D$5 -> 173.5650703 | Q84: =K84*'Cost data inputs'!$D$5 -> 173.6177947 | R84: =L84*'Cost data inputs'!$D$5 -> 173.8626168 | S84: =M84*'Cost data inputs'!$D$5 -> 174.2333308 | U84: =-PMT('Cost data inputs'!$B$8,'Cost data inputs'!$B$11,O84) -> 18.13556278 | V84: =-PMT('Cost data inputs'!$B$8,'Cost data inputs'!$B$11,P84) -> 18.13746732 | W84: =-PMT('Cost data inputs'!$B$8,'Cost data inputs'!$B$11,Q84) -> 18.142977 | X84: =-PMT('Cost data inputs'!$B$8,'Cost data inputs'!$B$11,R84) -> 18.1685608 | Y84: =-PMT('Cost data inputs'!$B$8,'Cost data inputs'!$B$11,S84) -> 18.20730023
A85: Installation cost - Bracket | C85: =IF($B81=$A$176,C$176,C$177)*'Cost data inputs'!$B$16 -> 145.885 | D85: =IF($B81=$A$176,D$176,D$177)*'Cost data inputs'!$B$16 -> 142.7348657 | E85: =IF($B81=$A$176,E$176,E$177)*'Cost data inputs'!$B$16 -> 140.811869 | F85: =IF($B81=$A$176,F$176,F$177)*'Cost data inputs'!$B$16 -> 138.403792 | G85: =IF($B81=$A$176,G$176,G$177)*'Cost data inputs'!$B$16 -> 135.1092886 | I85: =IF($B81=$A$172,I$176,I$177)*'Cost data inputs'!$B$16 -> 147.5611216 | J85: =IF($B81=$A$172,J$176,J$177)*'Cost data inputs'!$B$16 -> 145.7445875 | K85: =IF($B81=$A$172,K$176,K$177)*'Cost data inputs'!$B$16 -> 142.3905836 | L85: =IF($B81=$A$172,L$176,L$177)*'Cost data inputs'!$B$16 -> 137.5925188 | M85: =IF($B81=$A$172,M$176,M$177)*'Cost data inputs'!$B$16 -> 132.7042548 | O85: =I85*'Cost data inputs'!$D$5 -> 155.9307884 | P85: =J85*'Cost data inputs'!$D$5 -> 154.0112205 | Q85: =K85*'Cost data inputs'!$D$5 -> 150.4669775 | R85: =L85*'Cost data inputs'!$D$5 -> 145.3967665 | S85: =M85*'Cost data inputs'!$D$5 -> 140.2312402 | U85: =-PMT('Cost data inputs'!$B$8,'Cost data inputs'!$B$12,O85) -> 13.56534248 | V85: =-PMT('Cost data inputs'!$B$8,'Cost data inputs'!$B$12,P85) -> 13.3983479 | W85: =-PMT('Cost data inputs'!$B$8,'Cost data inputs'!$B$12,Q85) -> 13.09001321 | X85: =-PMT('Cost data inputs'!$B$8,'Cost data inputs'!$B$12,R85) -> 12.64892554 | Y85: =-PMT('Cost data inputs'!$B$8,'Cost data inputs'!$B$12,S85) -> 12.19954582
A86: Installation cost - Luminaire | C86: =IF($B81=$A$176,C$176,C$177)*'Cost data inputs'!$B$17 -> 145.885 | D86: =IF($B81=$A$176,D$176,D$177)*'Cost data inputs'!$B$17 -> 142.7348657 | E86: =IF($B81=$A$176,E$176,E$177)*'Cost data inputs'!$B$17 -> 140.811869 | F86: =IF($B81=$A$176,F$176,F$177)*'Cost data inputs'!$B$17 -> 138.403792 | G86: =IF($B81=$A$176,G$176,G$177)*'Cost data inputs'!$B$17 -> 135.1092886 | I86: =IF($B81=$A$172,I$176,I$177)*'Cost data inputs'!$B$17 -> 147.5611216 | J86: =IF($B81=$A$172,J$176,J$177)*'Cost data inputs'!$B$17 -> 145.7445875 | K86: =IF($B81=$A$172,K$176,K$177)*'Cost data inputs'!$B$17 -> 142.3905836 | L86: =IF($B81=$A$172,L$176,L$177)*'Cost data inputs'!$B$17 -> 137.5925188 | M86: =IF($B81=$A$172,M$176,M$177)*'Cost data inputs'!$B$17 -> 132.7042548 | O86: =I86*'Cost data inputs'!$D$5 -> 155.9307884 | P86: =J86*'Cost data inputs'!$D$5 -> 154.0112205 | Q86: =K86*'Cost data inputs'!$D$5 -> 150.4669775 | R86: =L86*'Cost data inputs'!$D$5 -> 145.3967665 | S86: =M86*'Cost data inputs'!$D$5 -> 140.2312402 | U86: =-PMT('Cost data inputs'!$B$8,'Cost data inputs'!$B$11,O86) -> 16.29469325 | V86: =-PMT('Cost data inputs'!$B$8,'Cost data inputs'!$B$11,P86) -> 16.09409932 | W86: =-PMT('Cost data inputs'!$B$8,'Cost data inputs'!$B$11,Q86) -> 15.72372761 | X86: =-PMT('Cost data inputs'!$B$8,'Cost data inputs'!$B$11,R86) -> 15.19389297 | Y86: =-PMT('Cost data inputs'!$B$8,'Cost data inputs'!$B$11,S86) -> 14.65409792
A88: ='Cost data inputs'!A158 -> 250W Metal Halide | B88: ='Cost data inputs'!B158 -> RLMAJ
A89: ='Cost data inputs'!$C$145 -> Bracket (Material Cost) | C89: ='Cost data inputs'!C158 -> 184.84 | D89: =C89 -> 184.84 | E89: =D89 -> 184.84 | F89: 184.84 | G89: 184.84 | I89: =C89*E$196 -> 187.3746926 | J89: 187.3943701 | K89: 187.4512955 | L89: 187.7156245 | M89: 188.1158762 | O89: =I89*'Cost data inputs'!$D$5 -> 198.0025851 | P89: =J89*'Cost data inputs'!$D$5 -> 198.0233788 | Q89: =K89*'Cost data inputs'!$D$5 -> 198.083533 | R89: =L89*'Cost data inputs'!$D$5 -> 198.3628547 | S89: =M89*'Cost data inputs'!$D$5 -> 198.7858087 | U89: =-PMT('Cost data inputs'!$B$8,'Cost data inputs'!$B$12,O89) -> 17.22541716 | V89: =-PMT('Cost data inputs'!$B$8,'Cost data inputs'!$B$12,P89) -> 17.22722612 | W89: =-PMT('Cost data inputs'!$B$8,'Cost data inputs'!$B$12,Q89) -> 17.23245929 | X89: =-PMT('Cost data inputs'!$B$8,'Cost data inputs'!$B$12,R89) -> 17.25675914 | Y89: =-PMT('Cost data inputs'!$B$8,'Cost data inputs'!$B$12,S89) -> 17.29355441
A90: ='Cost data inputs'!$D$145 -> Lamp Price (Material Cost) | C90: ='Cost data inputs'!D158 -> 27.15 | D90: =C90 -> 27.15 | E90: 27.15 | F90: 27.15 | G90: 27.15 | I90: 27.52230526 | J90: 27.52519557 | K90: 27.53355698 | L90: 27.57238263 | M90: 27.63117312 | O90: =I90*'Cost data inputs'!$D$5 -> 29.08337041 | P90: =J90*'Cost data inputs'!$D$5 -> 29.08642466 | Q90: =K90*'Cost data inputs'!$D$5 -> 29.09526034 | R90: =L90*'Cost data inputs'!$D$5 -> 29.13628817 | S90: =M90*'Cost data inputs'!$D$5 -> 29.19841326 | U90: =-PMT('Cost data inputs'!$B$8,'Cost data inputs'!$B$11,O90) -> 3.03919838 | V90: =-PMT('Cost data inputs'!$B$8,'Cost data inputs'!$B$11,P90) -> 3.039517548 | W90: =-PMT('Cost data inputs'!$B$8,'Cost data inputs'!$B$11,Q90) -> 3.040440872 | X90: =-PMT('Cost data inputs'!$B$8,'Cost data inputs'!$B$11,R90) -> 3.044728261 | Y90: =-PMT('Cost data inputs'!$B$8,'Cost data inputs'!$B$11,S90) -> 3.051220303
A91: ='Cost data inputs'!$E$145 -> Luminaire Price (Material Cost) | C91: ='Cost data inputs'!E158 -> 166.45 | D91: =C91 -> 166.45 | E91: 166.45 | F91: 166.45 | G91: 166.45 | I91: 168.7325123 | J91: 168.7502321 | K91: 168.8014939 | L91: 169.0395245 | M91: 169.3999545 | O91: =I91*'Cost data inputs'!$D$5 -> 178.3030204 | P91: =J91*'Cost data inputs'!$D$5 -> 178.3217453 | Q91: =K91*'Cost data inputs'!$D$5 -> 178.3759147 | R91: =L91*'Cost data inputs'!$D$5 -> 178.6274463 | S91: =M91*'Cost data inputs'!$D$5 -> 179.00832 | U91: =-PMT('Cost data inputs'!$B$8,'Cost data inputs'!$B$11,O91) -> 18.63258086 | V91: =-PMT('Cost data inputs'!$B$8,'Cost data inputs'!$B$11,P91) -> 18.6345376 | W91: =-PMT('Cost data inputs'!$B$8,'Cost data inputs'!$B$11,Q91) -> 18.64019827 | X91: =-PMT('Cost data inputs'!$B$8,'Cost data inputs'!$B$11,R91) -> 18.66648321 | Y91: =-PMT('Cost data inputs'!$B$8,'Cost data inputs'!$B$11,S91) -> 18.70628433
A92: Installation cost - Bracket | C92: =IF($B88=$A$176,C$176,C$177)*'Cost data inputs'!$B$16 -> 145.885 | D92: =IF($B88=$A$176,D$176,D$177)*'Cost data inputs'!$B$16 -> 142.7348657 | E92: =IF($B88=$A$176,E$176,E$177)*'Cost data inputs'!$B$16 -> 140.811869 | F92: =IF($B88=$A$176,F$176,F$177)*'Cost data inputs'!$B$16 -> 138.403792 | G92: =IF($B88=$A$176,G$176,G$177)*'Cost data inputs'!$B$16 -> 135.1092886 | I92: =IF($B88=$A$172,I$176,I$177)*'Cost data inputs'!$B$16 -> 147.5611216 | J92: =IF($B88=$A$172,J$176,J$177)*'Cost data inputs'!$B$16 -> 145.7445875 | K92: =IF($B88=$A$172,K$176,K$177)*'Cost data inputs'!$B$16 -> 142.3905836 | L92: =IF($B88=$A$172,L$176,L$177)*'Cost data inputs'!$B$16 -> 137.5925188 | M92: =IF($B88=$A$172,M$176,M$177)*'Cost data inputs'!$B$16 -> 132.7042548 | O92: =I92*'Cost data inputs'!$D$5 -> 155.9307884 | P92: =J92*'Cost data inputs'!$D$5 -> 154.0112205 | Q92: =K92*'Cost data inputs'!$D$5 -> 150.4669775 | R92: =L92*'Cost data inputs'!$D$5 -> 145.3967665 | S92: =M92*'Cost data inputs'!$D$5 -> 140.2312402 | U92: =-PMT('Cost data inputs'!$B$8,'Cost data inputs'!$B$12,O92) -> 13.56534248 | V92: =-PMT('Cost data inputs'!$B$8,'Cost data inputs'!$B$12,P92) -> 13.3983479 | W92: =-PMT('Cost data inputs'!$B$8,'Cost data inputs'!$B$12,Q92) -> 13.09001321 | X92: =-PMT('Cost data inputs'!$B$8,'Cost data inputs'!$B$12,R92) -> 12.64892554 | Y92: =-PMT('Cost data inputs'!$B$8,'Cost data inputs'!$B$12,S92) -> 12.19954582
A93: Installation cost - Luminaire | C93: =IF($B88=$A$176,C$176,C$177)*'Cost data inputs'!$B$17 -> 145.885 | D93: =IF($B88=$A$176,D$176,D$177)*'Cost data inputs'!$B$17 -> 142.7348657 | E93: =IF($B88=$A$176,E$176,E$177)*'Cost data inputs'!$B$17 -> 140.811869 | F93: =IF($B88=$A$176,F$176,F$177)*'Cost data inputs'!$B$17 -> 138.403792 | G93: =IF($B88=$A$176,G$176,G$177)*'Cost data inputs'!$B$17 -> 135.1092886 | I93: =IF($B88=$A$172,I$176,I$177)*'Cost data inputs'!$B$17 -> 147.5611216 | J93: =IF($B88=$A$172,J$176,J$177)*'Cost data inputs'!$B$17 -> 145.7445875 | K93: =IF($B88=$A$172,K$176,K$177)*'Cost data inputs'!$B$17 -> 142.3905836 | L93: =IF($B88=$A$172,L$176,L$177)*'Cost data inputs'!$B$17 -> 137.5925188 | M93: =IF($B88=$A$172,M$176,M$177)*'Cost data inputs'!$B$17 -> 132.7042548 | O93: =I93*'Cost data inputs'!$D$5 -> 155.9307884 | P93: =J93*'Cost data inputs'!$D$5 -> 154.0112205 | Q93: =K93*'Cost data inputs'!$D$5 -> 150.4669775 | R93: =L93*'Cost data inputs'!$D$5 -> 145.3967665 | S93: =M93*'Cost data inputs'!$D$5 -> 140.2312402 | U93: =-PMT('Cost data inputs'!$B$8,'Cost data inputs'!$B$11,O93) -> 16.29469325 | V93: =-PMT('Cost data inputs'!$B$8,'Cost data inputs'!$B$11,P93) -> 16.09409932 | W93: =-PMT('Cost data inputs'!$B$8,'Cost data inputs'!$B$11,Q93) -> 15.72372761 | X93: =-PMT('Cost data inputs'!$B$8,'Cost data inputs'!$B$11,R93) -> 15.19389297 | Y93: =-PMT('Cost data inputs'!$B$8,'Cost data inputs'!$B$11,S93) -> 14.65409792
A95: ='Cost data inputs'!A159 -> 400W Metal Halide | B95: ='Cost data inputs'!B159 -> RLMAJ
A96: ='Cost data inputs'!$C$145 -> Bracket (Material Cost) | C96: ='Cost data inputs'!C159 -> 184.84 | D96: =C96 -> 184.84 | E96: =D96 -> 184.84 | F96: 184.84 | G96: 184.84 | I96: =C96*E$196 -> 187.3746926 | J96: 187.3943701 | K96: 187.4512955 | L96: 187.7156245 | M96: 188.1158762 | O96: =I96*'Cost data inputs'!$D$5 -> 198.0025851 | P96: =J96*'Cost data inputs'!$D$5 -> 198.0233788 | Q96: =K96*'Cost data inputs'!$D$5 -> 198.083533 | R96: =L96*'Cost data inputs'!$D$5 -> 198.3628547 | S96: =M96*'Cost data inputs'!$D$5 -> 198.7858087 | U96: =-PMT('Cost data inputs'!$B$8,'Cost data inputs'!$B$12,O96) -> 17.22541716 | V96: =-PMT('Cost data inputs'!$B$8,'Cost data inputs'!$B$12,P96) -> 17.22722612 | W96: =-PMT('Cost data inputs'!$B$8,'Cost data inputs'!$B$12,Q96) -> 17.23245929 | X96: =-PMT('Cost data inputs'!$B$8,'Cost data inputs'!$B$12,R96) -> 17.25675914 | Y96: =-PMT('Cost data inputs'!$B$8,'Cost data inputs'!$B$12,S96) -> 17.29355441
A97: ='Cost data inputs'!$D$145 -> Lamp Price (Material Cost) | C97: ='Cost data inputs'!D159 -> 27.15 | D97: =C97 -> 27.15 | E97: 27.15 | F97: 27.15 | G97: 27.15 | I97: 27.52230526 | J97: 27.52519557 | K97: 27.53355698 | L97: 27.57238263 | M97: 27.63117312 | O97: =I97*'Cost data inputs'!$D$5 -> 29.08337041 | P97: =J97*'Cost data inputs'!$D$5 -> 29.08642466 | Q97: =K97*'Cost data inputs'!$D$5 -> 29.09526034 | R97: =L97*'Cost data inputs'!$D$5 -> 29.13628817 | S97: =M97*'Cost data inputs'!$D$5 -> 29.19841326 | U97: =-PMT('Cost data inputs'!$B$8,'Cost data inputs'!$B$11,O97) -> 3.03919838 | V97: =-PMT('Cost data inputs'!$B$8,'Cost data inputs'!$B$11,P97) -> 3.039517548 | W97: =-PMT('Cost data inputs'!$B$8,'Cost data inputs'!$B$11,Q97) -> 3.040440872 | X97: =-PMT('Cost data inputs'!$B$8,'Cost data inputs'!$B$11,R97) -> 3.044728261 | Y97: =-PMT('Cost data inputs'!$B$8,'Cost data inputs'!$B$11,S97) -> 3.051220303
A98: ='Cost data inputs'!$E$145 -> Luminaire Price (Material Cost) | C98: ='Cost data inputs'!E159 -> 166.45 | D98: =C98 -> 166.45 | E98: 166.45 | F98: 166.45 | G98: 166.45 | I98: 168.7325123 | J98: 168.7502321 | K98: 168.8014939 | L98: 169.0395245 | M98: 169.3999545 | O98: =I98*'Cost data inputs'!$D$5 -> 178.3030204 | P98: =J98*'Cost data inputs'!$D$5 -> 178.3217453 | Q98: =K98*'Cost data inputs'!$D$5 -> 178.3759147 | R98: =L98*'Cost data inputs'!$D$5 -> 178.6274463 | S98: =M98*'Cost data inputs'!$D$5 -> 179.00832 | U98: =-PMT('Cost data inputs'!$B$8,'Cost data inputs'!$B$11,O98) -> 18.63258086 | V98: =-PMT('Cost data inputs'!$B$8,'Cost data inputs'!$B$11,P98) -> 18.6345376 | W98: =-PMT('Cost data inputs'!$B$8,'Cost data inputs'!$B$11,Q98) -> 18.64019827 | X98: =-PMT('Cost data inputs'!$B$8,'Cost data inputs'!$B$11,R98) -> 18.66648321 | Y98: =-PMT('Cost data inputs'!$B$8,'Cost data inputs'!$B$11,S98) -> 18.70628433
A99: Installation cost - Bracket | C99: =IF($B95=$A$176,C$176,C$177)*'Cost data inputs'!$B$16 -> 145.885 | D99: =IF($B95=$A$176,D$176,D$177)*'Cost data inputs'!$B$16 -> 142.7348657 | E99: =IF($B95=$A$176,E$176,E$177)*'Cost data inputs'!$B$16 -> 140.811869 | F99: =IF($B95=$A$176,F$176,F$177)*'Cost data inputs'!$B$16 -> 138.403792 | G99: =IF($B95=$A$176,G$176,G$177)*'Cost data inputs'!$B$16 -> 135.1092886 | I99: =IF($B95=$A$172,I$176,I$177)*'Cost data inputs'!$B$16 -> 147.5611216 | J99: =IF($B95=$A$172,J$176,J$177)*'Cost data inputs'!$B$16 -> 145.7445875 | K99: =IF($B95=$A$172,K$176,K$177)*'Cost data inputs'!$B$16 -> 142.3905836 | L99: =IF($B95=$A$172,L$176,L$177)*'Cost data inputs'!$B$16 -> 137.5925188 | M99: =IF($B95=$A$172,M$176,M$177)*'Cost data inputs'!$B$16 -> 132.7042548 | O99: =I99*'Cost data inputs'!$D$5 -> 155.9307884 | P99: =J99*'Cost data inputs'!$D$5 -> 154.0112205 | Q99: =K99*'Cost data inputs'!$D$5 -> 150.4669775 | R99: =L99*'Cost data inputs'!$D$5 -> 145.3967665 | S99: =M99*'Cost data inputs'!$D$5 -> 140.2312402 | U99: =-PMT('Cost data inputs'!$B$8,'Cost data inputs'!$B$12,O99) -> 13.56534248 | V99: =-PMT('Cost data inputs'!$B$8,'Cost data inputs'!$B$12,P99) -> 13.3983479 | W99: =-PMT('Cost data inputs'!$B$8,'Cost data inputs'!$B$12,Q99) -> 13.09001321 | X99: =-PMT('Cost data inputs'!$B$8,'Cost data inputs'!$B$12,R99) -> 12.64892554 | Y99: =-PMT('Cost data inputs'!$B$8,'Cost data inputs'!$B$12,S99) -> 12.19954582
A100: Installation cost - Luminaire | C100: =IF($B95=$A$176,C$176,C$177)*'Cost data inputs'!$B$17 -> 145.885 | D100: =IF($B95=$A$176,D$176,D$177)*'Cost data inputs'!$B$17 -> 142.7348657 | E100: =IF($B95=$A$176,E$176,E$177)*'Cost data inputs'!$B$17 -> 140.811869 | F100: =IF($B95=$A$176,F$176,F$177)*'Cost data inputs'!$B$17 -> 138.403792 | G100: =IF($B95=$A$176,G$176,G$177)*'Cost data inputs'!$B$17 -> 135.1092886 | I100: =IF($B95=$A$172,I$176,I$177)*'Cost data inputs'!$B$17 -> 147.5611216 | J100: =IF($B95=$A$172,J$176,J$177)*'Cost data inputs'!$B$17 -> 145.7445875 | K100: =IF($B95=$A$172,K$176,K$177)*'Cost data inputs'!$B$17 -> 142.3905836 | L100: =IF($B95=$A$172,L$176,L$177)*'Cost data inputs'!$B$17 -> 137.5925188 | M100: =IF($B95=$A$172,M$176,M$177)*'Cost data inputs'!$B$17 -> 132.7042548 | O100: =I100*'Cost data inputs'!$D$5 -> 155.9307884 | P100: =J100*'Cost data inputs'!$D$5 -> 154.0112205 | Q100: =K100*'Cost data inputs'!$D$5 -> 150.4669775 | R100: =L100*'Cost data inputs'!$D$5 -> 145.3967665 | S100: =M100*'Cost data inputs'!$D$5 -> 140.2312402 | U100: =-PMT('Cost data inputs'!$B$8,'Cost data inputs'!$B$11,O100) -> 16.29469325 | V100: =-PMT('Cost data inputs'!$B$8,'Cost data inputs'!$B$11,P100) -> 16.09409932 | W100: =-PMT('Cost data inputs'!$B$8,'Cost data inputs'!$B$11,Q100) -> 15.72372761 | X100: =-PMT('Cost data inputs'!$B$8,'Cost data inputs'!$B$11,R100) -> 15.19389297 | Y100: =-PMT('Cost data inputs'!$B$8,'Cost data inputs'!$B$11,S100) -> 14.65409792
A102: ='Cost data inputs'!A160 -> 1x20W Fluorescent | B102: ='Cost data inputs'!B160 -> RLMIN
A103: ='Cost data inputs'!$C$145 -> Bracket (Material Cost) | C103: ='Cost data inputs'!C160 -> 184.84 | D103: =C103 -> 184.84 | E103: =D103 -> 184.84 | F103: 184.84 | G103: 184.84 | I103: =C103*E$196 -> 187.3746926 | J103: 187.3943701 | K103: 187.4512955 | L103: 187.7156245 | M103: 188.1158762 | O103: =I103*'Cost data inputs'!$D$5 -> 198.0025851 | P103: =J103*'Cost data inputs'!$D$5 -> 198.0233788 | Q103: =K103*'Cost data inputs'!$D$5 -> 198.083533 | R103: =L103*'Cost data inputs'!$D$5 -> 198.3628547 | S103: =M103*'Cost data inputs'!$D$5 -> 198.7858087 | U103: =-PMT('Cost data inputs'!$B$8,'Cost data inputs'!$B$12,O103) -> 17.22541716 | V103: =-PMT('Cost data inputs'!$B$8,'Cost data inputs'!$B$12,P103) -> 17.22722612 | W103: =-PMT('Cost data inputs'!$B$8,'Cost data inputs'!$B$12,Q103) -> 17.23245929 | X103: =-PMT('Cost data inputs'!$B$8,'Cost data inputs'!$B$12,R103) -> 17.25675914 | Y103: =-PMT('Cost data inputs'!$B$8,'Cost data inputs'!$B$12,S103) -> 17.29355441
A104: ='Cost data inputs'!$D$145 -> Lamp Price (Material Cost) | C104: ='Cost data inputs'!D160 -> 4.31 | D104: =C104 -> 4.31 | E104: 4.31 | F104: 4.31 | G104: 4.31 | I104: 4.369102602 | J104: 4.369561432 | K104: 4.370888788 | L104: 4.37705227 | M104: 4.386385125 | O104: =I104*'Cost data inputs'!$D$5 -> 4.616918102 | P104: =J104*'Cost data inputs'!$D$5 -> 4.617402957 | Q104: =K104*'Cost data inputs'!$D$5 -> 4.6188056 | R104: =L104*'Cost data inputs'!$D$5 -> 4.625318675 | S104: =M104*'Cost data inputs'!$D$5 -> 4.635180889 | U104: =-PMT('Cost data inputs'!$B$8,'Cost data inputs'!$B$11,O104) -> 0.4824657465 | V104: =-PMT('Cost data inputs'!$B$8,'Cost data inputs'!$B$11,P104) -> 0.4825164136 | W104: =-PMT('Cost data inputs'!$B$8,'Cost data inputs'!$B$11,Q104) -> 0.4826629892 | X104: =-PMT('Cost data inputs'!$B$8,'Cost data inputs'!$B$11,R104) -> 0.4833436024 | Y104: =-PMT('Cost data inputs'!$B$8,'Cost data inputs'!$B$11,S104) -> 0.4843741991
A105: ='Cost data inputs'!$E$145 -> Luminaire Price (Material Cost) | C105: ='Cost data inputs'!E160 -> 212.27 | D105: =C105 -> 212.27 | E105: 212.27 | F105: 212.27 | G105: 212.27 | I105: 215.1808374 | J105: 215.2034351 | K105: 215.2688081 | L105: 215.5723632 | M105: 216.0320117 | O105: =I105*'Cost data inputs'!$D$5 -> 227.3858945 | P105: =J105*'Cost data inputs'!$D$5 -> 227.4097739 | Q105: =K105*'Cost data inputs'!$D$5 -> 227.4788549 | R105: =L105*'Cost data inputs'!$D$5 -> 227.7996276 | S105: =M105*'Cost data inputs'!$D$5 -> 228.2853474 | U105: =-PMT('Cost data inputs'!$B$8,'Cost data inputs'!$B$11,O105) -> 23.76171787 | V105: =-PMT('Cost data inputs'!$B$8,'Cost data inputs'!$B$11,P105) -> 23.76421325 | W105: =-PMT('Cost data inputs'!$B$8,'Cost data inputs'!$B$11,Q105) -> 23.77143219 | X105: =-PMT('Cost data inputs'!$B$8,'Cost data inputs'!$B$11,R105) -> 23.80495278 | Y105: =-PMT('Cost data inputs'!$B$8,'Cost data inputs'!$B$11,S105) -> 23.85571027
A106: Installation cost - Bracket | C106: =IF($B102=$A$176,C$176,C$177)*'Cost data inputs'!$B$16 -> 91.175 | D106: =IF($B102=$A$176,D$176,D$177)*'Cost data inputs'!$B$16 -> 89.41791324 | E106: =IF($B102=$A$176,E$176,E$177)*'Cost data inputs'!$B$16 -> 88.34198786 | F106: =IF($B102=$A$176,F$176,F$177)*'Cost data inputs'!$B$16 -> 87.00030634 | G106: =IF($B102=$A$176,G$176,G$177)*'Cost data inputs'!$B$16 -> 85.1580744 | I106: =IF($B102=$A$172,I$176,I$177)*'Cost data inputs'!$B$16 -> 92.2225581 | J106: =IF($B102=$A$172,J$176,J$177)*'Cost data inputs'!$B$16 -> 91.30342077 | K106: =IF($B102=$A$172,K$176,K$177)*'Cost data inputs'!$B$16 -> 89.33245254 | L106: =IF($B102=$A$172,L$176,L$177)*'Cost data inputs'!$B$16 -> 86.49033311 | M106: =IF($B102=$A$172,M$176,M$177)*'Cost data inputs'!$B$16 -> 83.64217892 | O106: =I106*'Cost data inputs'!$D$5 -> 97.45342159 | P106: =J106*'Cost data inputs'!$D$5 -> 96.4821508 | Q106: =K106*'Cost data inputs'!$D$5 -> 94.39938924 | R106: =L106*'Cost data inputs'!$D$5 -> 91.39606481 | S106: =M106*'Cost data inputs'!$D$5 -> 88.38636331 | U106: =-PMT('Cost data inputs'!$B$8,'Cost data inputs'!$B$12,O106) -> 8.478050118 | V106: =-PMT('Cost data inputs'!$B$8,'Cost data inputs'!$B$12,P106) -> 8.393553522 | W106: =-PMT('Cost data inputs'!$B$8,'Cost data inputs'!$B$12,Q106) -> 8.212361763 | X106: =-PMT('Cost data inputs'!$B$8,'Cost data inputs'!$B$12,R106) -> 7.951084789 | Y106: =-PMT('Cost data inputs'!$B$8,'Cost data inputs'!$B$12,S106) -> 7.689253036
A107: Installation cost - Luminaire | C107: =IF($B102=$A$176,C$176,C$177)*'Cost data inputs'!$B$17 -> 91.175 | D107: =IF($B102=$A$176,D$176,D$177)*'Cost data inputs'!$B$17 -> 89.41791324 | E107: =IF($B102=$A$176,E$176,E$177)*'Cost data inputs'!$B$17 -> 88.34198786 | F107: =IF($B102=$A$176,F$176,F$177)*'Cost data inputs'!$B$17 -> 87.00030634 | G107: =IF($B102=$A$176,G$176,G$177)*'Cost data inputs'!$B$17 -> 85.1580744 | I107: =IF($B102=$A$172,I$176,I$177)*'Cost data inputs'!$B$17 -> 92.2225581 | J107: =IF($B102=$A$172,J$176,J$177)*'Cost data inputs'!$B$17 -> 91.30342077 | K107: =IF($B102=$A$172,K$176,K$177)*'Cost data inputs'!$B$17 -> 89.33245254 | L107: =IF($B102=$A$172,L$176,L$177)*'Cost data inputs'!$B$17 -> 86.49033311 | M107: =IF($B102=$A$172,M$176,M$177)*'Cost data inputs'!$B$17 -> 83.64217892 | O107: =I107*'Cost data inputs'!$D$5 -> 97.45342159 | P107: =J107*'Cost data inputs'!$D$5 -> 96.4821508 | Q107: =K107*'Cost data inputs'!$D$5 -> 94.39938924 | R107: =L107*'Cost data inputs'!$D$5 -> 91.39606481 | S107: =M107*'Cost data inputs'!$D$5 -> 88.38636331 | U107: =-PMT('Cost data inputs'!$B$8,'Cost data inputs'!$B$11,O107) -> 10.18383622 | V107: =-PMT('Cost data inputs'!$B$8,'Cost data inputs'!$B$11,P107) -> 10.08233889 | W107: =-PMT('Cost data inputs'!$B$8,'Cost data inputs'!$B$11,Q107) -> 9.864691293 | X107: =-PMT('Cost data inputs'!$B$8,'Cost data inputs'!$B$11,R107) -> 9.550845317 | Y107: =-PMT('Cost data inputs'!$B$8,'Cost data inputs'!$B$11,S107) -> 9.236332942
A109: ='Cost data inputs'!A161 -> 2x20W Fluorescent | B109: ='Cost data inputs'!B161 -> RLMIN
A110: ='Cost data inputs'!$C$145 -> Bracket (Material Cost) | C110: ='Cost data inputs'!C161 -> 184.84 | D110: =C110 -> 184.84 | E110: =D110 -> 184.84 | F110: 184.84 | G110: 184.84 | I110: =C110*E$196 -> 187.3746926 | J110: 187.3943701 | K110: 187.4512955 | L110: 187.7156245 | M110: 188.1158762 | O110: =I110*'Cost data inputs'!$D$5 -> 198.0025851 | P110: =J110*'Cost data inputs'!$D$5 -> 198.0233788 | Q110: =K110*'Cost data inputs'!$D$5 -> 198.083533 | R110: =L110*'Cost data inputs'!$D$5 -> 198.3628547 | S110: =M110*'Cost data inputs'!$D$5 -> 198.7858087 | U110: =-PMT('Cost data inputs'!$B$8,'Cost data inputs'!$B$12,O110) -> 17.22541716 | V110: =-PMT('Cost data inputs'!$B$8,'Cost data inputs'!$B$12,P110) -> 17.22722612 | W110: =-PMT('Cost data inputs'!$B$8,'Cost data inputs'!$B$12,Q110) -> 17.23245929 | X110: =-PMT('Cost data inputs'!$B$8,'Cost data inputs'!$B$12,R110) -> 17.25675914 | Y110: =-PMT('Cost data inputs'!$B$8,'Cost data inputs'!$B$12,S110) -> 17.29355441
A111: ='Cost data inputs'!$D$145 -> Lamp Price (Material Cost) | C111: ='Cost data inputs'!D161 -> 8.62 | D111: =C111 -> 8.62 | E111: 8.62 | F111: 8.62 | G111: 8.62 | I111: 8.738205205 | J111: 8.739122865 | K111: 8.741777577 | L111: 8.754104541 | M111: 8.77277025 | O111: =I111*'Cost data inputs'!$D$5 -> 9.233836204 | P111: =J111*'Cost data inputs'!$D$5 -> 9.234805914 | Q111: =K111*'Cost data inputs'!$D$5 -> 9.237611201 | R111: =L111*'Cost data inputs'!$D$5 -> 9.25063735 | S111: =M111*'Cost data inputs'!$D$5 -> 9.270361779 | U111: =-PMT('Cost data inputs'!$B$8,'Cost data inputs'!$B$11,O111) -> 0.964931493 | V111: =-PMT('Cost data inputs'!$B$8,'Cost data inputs'!$B$11,P111) -> 0.9650328272 | W111: =-PMT('Cost data inputs'!$B$8,'Cost data inputs'!$B$11,Q111) -> 0.9653259784 | X111: =-PMT('Cost data inputs'!$B$8,'Cost data inputs'!$B$11,R111) -> 0.9666872048 | Y111: =-PMT('Cost data inputs'!$B$8,'Cost data inputs'!$B$11,S111) -> 0.9687483983
A112: ='Cost data inputs'!$E$145 -> Luminaire Price (Material Cost) | C112: ='Cost data inputs'!E161 -> 212.27 | D112: =C112 -> 212.27 | E112: 212.27 | F112: 212.27 | G112: 212.27 | I112: 215.1808374 | J112: 215.2034351 | K112: 215.2688081 | L112: 215.5723632 | M112: 216.0320117 | O112: =I112*'Cost data inputs'!$D$5 -> 227.3858945 | P112: =J112*'Cost data inputs'!$D$5 -> 227.4097739 | Q112: =K112*'Cost data inputs'!$D$5 -> 227.4788549 | R112: =L112*'Cost data inputs'!$D$5 -> 227.7996276 | S112: =M112*'Cost data inputs'!$D$5 -> 228.2853474 | U112: =-PMT('Cost data inputs'!$B$8,'Cost data inputs'!$B$11,O112) -> 23.76171787 | V112: =-PMT('Cost data inputs'!$B$8,'Cost data inputs'!$B$11,P112) -> 23.76421325 | W112: =-PMT('Cost data inputs'!$B$8,'Cost data inputs'!$B$11,Q112) -> 23.77143219 | X112: =-PMT('Cost data inputs'!$B$8,'Cost data inputs'!$B$11,R112) -> 23.80495278 | Y112: =-PMT('Cost data inputs'!$B$8,'Cost data inputs'!$B$11,S112) -> 23.85571027
A113: Installation cost - Bracket | C113: =IF($B109=$A$176,C$176,C$177)*'Cost data inputs'!$B$16 -> 91.175 | D113: =IF($B109=$A$176,D$176,D$177)*'Cost data inputs'!$B$16 -> 89.41791324 | E113: =IF($B109=$A$176,E$176,E$177)*'Cost data inputs'!$B$16 -> 88.34198786 | F113: =IF($B109=$A$176,F$176,F$177)*'Cost data inputs'!$B$16 -> 87.00030634 | G113: =IF($B109=$A$176,G$176,G$177)*'Cost data inputs'!$B$16 -> 85.1580744 | I113: =IF($B109=$A$172,I$176,I$177)*'Cost data inputs'!$B$16 -> 92.2225581 | J113: =IF($B109=$A$172,J$176,J$177)*'Cost data inputs'!$B$16 -> 91.30342077 | K113: =IF($B109=$A$172,K$176,K$177)*'Cost data inputs'!$B$16 -> 89.33245254 | L113: =IF($B109=$A$172,L$176,L$177)*'Cost data inputs'!$B$16 -> 86.49033311 | M113: =IF($B109=$A$172,M$176,M$177)*'Cost data inputs'!$B$16 -> 83.64217892 | O113: =I113*'Cost data inputs'!$D$5 -> 97.45342159 | P113: =J113*'Cost data inputs'!$D$5 -> 96.4821508 | Q113: =K113*'Cost data inputs'!$D$5 -> 94.39938924 | R113: =L113*'Cost data inputs'!$D$5 -> 91.39606481 | S113: =M113*'Cost data inputs'!$D$5 -> 88.38636331 | U113: =-PMT('Cost data inputs'!$B$8,'Cost data inputs'!$B$12,O113) -> 8.478050118 | V113: =-PMT('Cost data inputs'!$B$8,'Cost data inputs'!$B$12,P113) -> 8.393553522 | W113: =-PMT('Cost data inputs'!$B$8,'Cost data inputs'!$B$12,Q113) -> 8.212361763 | X113: =-PMT('Cost data inputs'!$B$8,'Cost data inputs'!$B$12,R113) -> 7.951084789 | Y113: =-PMT('Cost data inputs'!$B$8,'Cost data inputs'!$B$12,S113) -> 7.689253036
A114: Installation cost - Luminaire | C114: =IF($B109=$A$176,C$176,C$177)*'Cost data inputs'!$B$17 -> 91.175 | D114: =IF($B109=$A$176,D$176,D$177)*'Cost data inputs'!$B$17 -> 89.41791324 | E114: =IF($B109=$A$176,E$176,E$177)*'Cost data inputs'!$B$17 -> 88.34198786 | F114: =IF($B109=$A$176,F$176,F$177)*'Cost data inputs'!$B$17 -> 87.00030634 | G114: =IF($B109=$A$176,G$176,G$177)*'Cost data inputs'!$B$17 -> 85.1580744 | I114: =IF($B109=$A$172,I$176,I$177)*'Cost data inputs'!$B$17 -> 92.2225581 | J114: =IF($B109=$A$172,J$176,J$177)*'Cost data inputs'!$B$17 -> 91.30342077 | K114: =IF($B109=$A$172,K$176,K$177)*'Cost data inputs'!$B$17 -> 89.33245254 | L114: =IF($B109=$A$172,L$176,L$177)*'Cost data inputs'!$B$17 -> 86.49033311 | M114: =IF($B109=$A$172,M$176,M$177)*'Cost data inputs'!$B$17 -> 83.64217892 | O114: =I114*'Cost data inputs'!$D$5 -> 97.45342159 | P114: =J114*'Cost data inputs'!$D$5 -> 96.4821508 | Q114: =K114*'Cost data inputs'!$D$5 -> 94.39938924 | R114: =L114*'Cost data inputs'!$D$5 -> 91.39606481 | S114: =M114*'Cost data inputs'!$D$5 -> 88.38636331 | U114: =-PMT('Cost data inputs'!$B$8,'Cost data inputs'!$B$11,O114) -> 10.18383622 | V114: =-PMT('Cost data inputs'!$B$8,'Cost data inputs'!$B$11,P114) -> 10.08233889 | W114: =-PMT('Cost data inputs'!$B$8,'Cost data inputs'!$B$11,Q114) -> 9.864691293 | X114: =-PMT('Cost data inputs'!$B$8,'Cost data inputs'!$B$11,R114) -> 9.550845317 | Y114: =-PMT('Cost data inputs'!$B$8,'Cost data inputs'!$B$11,S114) -> 9.236332942
A116: ='Cost data inputs'!A162 -> 1x40W Fluorescent | B116: ='Cost data inputs'!B162 -> RLMIN
A117: ='Cost data inputs'!$C$145 -> Bracket (Material Cost) | C117: ='Cost data inputs'!C162 -> 184.84 | D117: =C117 -> 184.84 | E117: =D117 -> 184.84 | F117: 184.84 | G117: 184.84 | I117: =C117*E$196 -> 187.3746926 | J117: 187.3943701 | K117: 187.4512955 | L117: 187.7156245 | M117: 188.1158762 | O117: =I117*'Cost data inputs'!$D$5 -> 198.0025851 | P117: =J117*'Cost data inputs'!$D$5 -> 198.0233788 | Q117: =K117*'Cost data inputs'!$D$5 -> 198.083533 | R117: =L117*'Cost data inputs'!$D$5 -> 198.3628547 | S117: =M117*'Cost data inputs'!$D$5 -> 198.7858087 | U117: =-PMT('Cost data inputs'!$B$8,'Cost data inputs'!$B$12,O117) -> 17.22541716 | V117: =-PMT('Cost data inputs'!$B$8,'Cost data inputs'!$B$12,P117) -> 17.22722612 | W117: =-PMT('Cost data inputs'!$B$8,'Cost data inputs'!$B$12,Q117) -> 17.23245929 | X117: =-PMT('Cost data inputs'!$B$8,'Cost data inputs'!$B$12,R117) -> 17.25675914 | Y117: =-PMT('Cost data inputs'!$B$8,'Cost data inputs'!$B$12,S117) -> 17.29355441
A118: ='Cost data inputs'!$D$145 -> Lamp Price (Material Cost) | C118: ='Cost data inputs'!D162 -> 4.59 | D118: =C118 -> 4.59 | E118: 4.59 | F118: 4.59 | G118: 4.59 | I118: 4.652942215 | J118: 4.653430853 | K118: 4.65484444 | L118: 4.661408334 | M118: 4.6713475 | O118: =I118*'Cost data inputs'!$D$5 -> 4.916857097 | P118: =J118*'Cost data inputs'!$D$5 -> 4.917373451 | Q118: =K118*'Cost data inputs'!$D$5 -> 4.918867217 | R118: =L118*'Cost data inputs'!$D$5 -> 4.925803415 | S118: =M118*'Cost data inputs'!$D$5 -> 4.93630633 | U118: =-PMT('Cost data inputs'!$B$8,'Cost data inputs'!$B$11,O118) -> 0.5138092289 | V118: =-PMT('Cost data inputs'!$B$8,'Cost data inputs'!$B$11,P118) -> 0.5138631876 | W118: =-PMT('Cost data inputs'!$B$8,'Cost data inputs'!$B$11,Q118) -> 0.5140192855 | X118: =-PMT('Cost data inputs'!$B$8,'Cost data inputs'!$B$11,R118) -> 0.5147441149 | Y118: =-PMT('Cost data inputs'!$B$8,'Cost data inputs'!$B$11,S118) -> 0.5158416645
A119: ='Cost data inputs'!$E$145 -> Luminaire Price (Material Cost) | C119: ='Cost data inputs'!E162 -> 165.11 | D119: =C119 -> 165.11 | E119: 165.11 | F119: 165.11 | G119: 165.11 | I119: 167.374137 | J119: 167.3917142 | K119: 167.4425633 | L119: 167.6786776 | M119: 168.036206 | O119: =I119*'Cost data inputs'!$D$5 -> 176.8675981 | P119: =J119*'Cost data inputs'!$D$5 -> 176.8861722 | Q119: =K119*'Cost data inputs'!$D$5 -> 176.9399055 | R119: =L119*'Cost data inputs'!$D$5 -> 177.1894122 | S119: =M119*'Cost data inputs'!$D$5 -> 177.5672196 | U119: =-PMT('Cost data inputs'!$B$8,'Cost data inputs'!$B$11,O119) -> 18.48257991 | V119: =-PMT('Cost data inputs'!$B$8,'Cost data inputs'!$B$11,P119) -> 18.48452089 | W119: =-PMT('Cost data inputs'!$B$8,'Cost data inputs'!$B$11,Q119) -> 18.490136 | X119: =-PMT('Cost data inputs'!$B$8,'Cost data inputs'!$B$11,R119) -> 18.51620933 | Y119: =-PMT('Cost data inputs'!$B$8,'Cost data inputs'!$B$11,S119) -> 18.55569003
A120: Installation cost - Bracket | C120: =IF($B116=$A$176,C$176,C$177)*'Cost data inputs'!$B$16 -> 91.175 | D120: =IF($B116=$A$176,D$176,D$177)*'Cost data inputs'!$B$16 -> 89.41791324 | E120: =IF($B116=$A$176,E$176,E$177)*'Cost data inputs'!$B$16 -> 88.34198786 | F120: =IF($B116=$A$176,F$176,F$177)*'Cost data inputs'!$B$16 -> 87.00030634 | G120: =IF($B116=$A$176,G$176,G$177)*'Cost data inputs'!$B$16 -> 85.1580744 | I120: =IF($B116=$A$172,I$176,I$177)*'Cost data inputs'!$B$16 -> 92.2225581 | J120: =IF($B116=$A$172,J$176,J$177)*'Cost data inputs'!$B$16 -> 91.30342077 | K120: =IF($B116=$A$172,K$176,K$177)*'Cost data inputs'!$B$16 -> 89.33245254 | L120: =IF($B116=$A$172,L$176,L$177)*'Cost data inputs'!$B$16 -> 86.49033311 | M120: =IF($B116=$A$172,M$176,M$177)*'Cost data inputs'!$B$16 -> 83.64217892 | O120: =I120*'Cost data inputs'!$D$5 -> 97.45342159 | P120: =J120*'Cost data inputs'!$D$5 -> 96.4821508 | Q120: =K120*'Cost data inputs'!$D$5 -> 94.39938924 | R120: =L120*'Cost data inputs'!$D$5 -> 91.39606481 | S120: =M120*'Cost data inputs'!$D$5 -> 88.38636331 | U120: =-PMT('Cost data inputs'!$B$8,'Cost data inputs'!$B$12,O120) -> 8.478050118 | V120: =-PMT('Cost data inputs'!$B$8,'Cost data inputs'!$B$12,P120) -> 8.393553522 | W120: =-PMT('Cost data inputs'!$B$8,'Cost data inputs'!$B$12,Q120) -> 8.212361763 | X120: =-PMT('Cost data inputs'!$B$8,'Cost data inputs'!$B$12,R120) -> 7.951084789 | Y120: =-PMT('Cost data inputs'!$B$8,'Cost data inputs'!$B$12,S120) -> 7.689253036
A121: Installation cost - Luminaire | C121: =IF($B116=$A$176,C$176,C$177)*'Cost data inputs'!$B$17 -> 91.175 | D121: =IF($B116=$A$176,D$176,D$177)*'Cost data inputs'!$B$17 -> 89.41791324 | E121: =IF($B116=$A$176,E$176,E$177)*'Cost data inputs'!$B$17 -> 88.34198786 | F121: =IF($B116=$A$176,F$176,F$177)*'Cost data inputs'!$B$17 -> 87.00030634 | G121: =IF($B116=$A$176,G$176,G$177)*'Cost data inputs'!$B$17 -> 85.1580744 | I121: =IF($B116=$A$172,I$176,I$177)*'Cost data inputs'!$B$17 -> 92.2225581 | J121: =IF($B116=$A$172,J$176,J$177)*'Cost data inputs'!$B$17 -> 91.30342077 | K121: =IF($B116=$A$172,K$176,K$177)*'Cost data inputs'!$B$17 -> 89.33245254 | L121: =IF($B116=$A$172,L$176,L$177)*'Cost data inputs'!$B$17 -> 86.49033311 | M121: =IF($B116=$A$172,M$176,M$177)*'Cost data inputs'!$B$17 -> 83.64217892 | O121: =I121*'Cost data inputs'!$D$5 -> 97.45342159 | P121: =J121*'Cost data inputs'!$D$5 -> 96.4821508 | Q121: =K121*'Cost data inputs'!$D$5 -> 94.39938924 | R121: =L121*'Cost data inputs'!$D$5 -> 91.39606481 | S121: =M121*'Cost data inputs'!$D$5 -> 88.38636331 | U121: =-PMT('Cost data inputs'!$B$8,'Cost data inputs'!$B$11,O121) -> 10.18383622 | V121: =-PMT('Cost data inputs'!$B$8,'Cost data inputs'!$B$11,P121) -> 10.08233889 | W121: =-PMT('Cost data inputs'!$B$8,'Cost data inputs'!$B$11,Q121) -> 9.864691293 | X121: =-PMT('Cost data inputs'!$B$8,'Cost data inputs'!$B$11,R121) -> 9.550845317 | Y121: =-PMT('Cost data inputs'!$B$8,'Cost data inputs'!$B$11,S121) -> 9.236332942
A123: ='Cost data inputs'!A163 -> 2x40W Fluorescent | B123: ='Cost data inputs'!B163 -> RLMIN
A124: ='Cost data inputs'!$C$145 -> Bracket (Material Cost) | C124: ='Cost data inputs'!C163 -> 184.84 | D124: =C124 -> 184.84 | E124: =D124 -> 184.84 | F124: 184.84 | G124: 184.84 | I124: =C124*E$196 -> 187.3746926 | J124: 187.3943701 | K124: 187.4512955 | L124: 187.7156245 | M124: 188.1158762 | O124: =I124*'Cost data inputs'!$D$5 -> 198.0025851 | P124: =J124*'Cost data inputs'!$D$5 -> 198.0233788 | Q124: =K124*'Cost data inputs'!$D$5 -> 198.083533 | R124: =L124*'Cost data inputs'!$D$5 -> 198.3628547 | S124: =M124*'Cost data inputs'!$D$5 -> 198.7858087 | U124: =-PMT('Cost data inputs'!$B$8,'Cost data inputs'!$B$12,O124) -> 17.22541716 | V124: =-PMT('Cost data inputs'!$B$8,'Cost data inputs'!$B$12,P124) -> 17.22722612 | W124: =-PMT('Cost data inputs'!$B$8,'Cost data inputs'!$B$12,Q124) -> 17.23245929 | X124: =-PMT('Cost data inputs'!$B$8,'Cost data inputs'!$B$12,R124) -> 17.25675914 | Y124: =-PMT('Cost data inputs'!$B$8,'Cost data inputs'!$B$12,S124) -> 17.29355441
A125: ='Cost data inputs'!$D$145 -> Lamp Price (Material Cost) | C125: ='Cost data inputs'!D163 -> 9.18 | D125: =C125 -> 9.18 | E125: 9.18 | F125: 9.18 | G125: 9.18 | I125: 9.305884429 | J125: 9.306861705 | K125: 9.309688881 | L125: 9.322816669 | M125: 9.342695 | O125: =I125*'Cost data inputs'!$D$5 -> 9.833714194 | P125: =J125*'Cost data inputs'!$D$5 -> 9.834746901 | Q125: =K125*'Cost data inputs'!$D$5 -> 9.837734434 | R125: =L125*'Cost data inputs'!$D$5 -> 9.85160683 | S125: =M125*'Cost data inputs'!$D$5 -> 9.87261266 | U125: =-PMT('Cost data inputs'!$B$8,'Cost data inputs'!$B$11,O125) -> 1.027618458 | V125: =-PMT('Cost data inputs'!$B$8,'Cost data inputs'!$B$11,P125) -> 1.027726375 | W125: =-PMT('Cost data inputs'!$B$8,'Cost data inputs'!$B$11,Q125) -> 1.028038571 | X125: =-PMT('Cost data inputs'!$B$8,'Cost data inputs'!$B$11,R125) -> 1.02948823 | Y125: =-PMT('Cost data inputs'!$B$8,'Cost data inputs'!$B$11,S125) -> 1.031683329
A126: ='Cost data inputs'!$E$145 -> Luminaire Price (Material Cost) | C126: ='Cost data inputs'!E163 -> 165.11 | D126: =C126 -> 165.11 | E126: 165.11 | F126: 165.11 | G126: 165.11 | I126: 167.374137 | J126: 167.3917142 | K126: 167.4425633 | L126: 167.6786776 | M126: 168.036206 | O126: =I126*'Cost data inputs'!$D$5 -> 176.8675981 | P126: =J126*'Cost data inputs'!$D$5 -> 176.8861722 | Q126: =K126*'Cost data inputs'!$D$5 -> 176.9399055 | R126: =L126*'Cost data inputs'!$D$5 -> 177.1894122 | S126: =M126*'Cost data inputs'!$D$5 -> 177.5672196 | U126: =-PMT('Cost data inputs'!$B$8,'Cost data inputs'!$B$11,O126) -> 18.48257991 | V126: =-PMT('Cost data inputs'!$B$8,'Cost data inputs'!$B$11,P126) -> 18.48452089 | W126: =-PMT('Cost data inputs'!$B$8,'Cost data inputs'!$B$11,Q126) -> 18.490136 | X126: =-PMT('Cost data inputs'!$B$8,'Cost data inputs'!$B$11,R126) -> 18.51620933 | Y126: =-PMT('Cost data inputs'!$B$8,'Cost data inputs'!$B$11,S126) -> 18.55569003
A127: Installation cost - Bracket | C127: =IF($B123=$A$176,C$176,C$177)*'Cost data inputs'!$B$16 -> 91.175 | D127: =IF($B123=$A$176,D$176,D$177)*'Cost data inputs'!$B$16 -> 89.41791324 | E127: =IF($B123=$A$176,E$176,E$177)*'Cost data inputs'!$B$16 -> 88.34198786 | F127: =IF($B123=$A$176,F$176,F$177)*'Cost data inputs'!$B$16 -> 87.00030634 | G127: =IF($B123=$A$176,G$176,G$177)*'Cost data inputs'!$B$16 -> 85.1580744 | I127: =IF($B123=$A$172,I$176,I$177)*'Cost data inputs'!$B$16 -> 92.2225581 | J127: =IF($B123=$A$172,J$176,J$177)*'Cost data inputs'!$B$16 -> 91.30342077 | K127: =IF($B123=$A$172,K$176,K$177)*'Cost data inputs'!$B$16 -> 89.33245254 | L127: =IF($B123=$A$172,L$176,L$177)*'Cost data inputs'!$B$16 -> 86.49033311 | M127: =IF($B123=$A$172,M$176,M$177)*'Cost data inputs'!$B$16 -> 83.64217892 | O127: =I127*'Cost data inputs'!$D$5 -> 97.45342159 | P127: =J127*'Cost data inputs'!$D$5 -> 96.4821508 | Q127: =K127*'Cost data inputs'!$D$5 -> 94.39938924 | R127: =L127*'Cost data inputs'!$D$5 -> 91.39606481 | S127: =M127*'Cost data inputs'!$D$5 -> 88.38636331 | U127: =-PMT('Cost data inputs'!$B$8,'Cost data inputs'!$B$12,O127) -> 8.478050118 | V127: =-PMT('Cost data inputs'!$B$8,'Cost data inputs'!$B$12,P127) -> 8.393553522 | W127: =-PMT('Cost data inputs'!$B$8,'Cost data inputs'!$B$12,Q127) -> 8.212361763 | X127: =-PMT('Cost data inputs'!$B$8,'Cost data inputs'!$B$12,R127) -> 7.951084789 | Y127: =-PMT('Cost data inputs'!$B$8,'Cost data inputs'!$B$12,S127) -> 7.689253036
A128: Installation cost - Luminaire | C128: =IF($B123=$A$176,C$176,C$177)*'Cost data inputs'!$B$17 -> 91.175 | D128: =IF($B123=$A$176,D$176,D$177)*'Cost data inputs'!$B$17 -> 89.41791324 | E128: =IF($B123=$A$176,E$176,E$177)*'Cost data inputs'!$B$17 -> 88.34198786 | F128: =IF($B123=$A$176,F$176,F$177)*'Cost data inputs'!$B$17 -> 87.00030634 | G128: =IF($B123=$A$176,G$176,G$177)*'Cost data inputs'!$B$17 -> 85.1580744 | I128: =IF($B123=$A$172,I$176,I$177)*'Cost data inputs'!$B$17 -> 92.2225581 | J128: =IF($B123=$A$172,J$176,J$177)*'Cost data inputs'!$B$17 -> 91.30342077 | K128: =IF($B123=$A$172,K$176,K$177)*'Cost data inputs'!$B$17 -> 89.33245254 | L128: =IF($B123=$A$172,L$176,L$177)*'Cost data inputs'!$B$17 -> 86.49033311 | M128: =IF($B123=$A$172,M$176,M$177)*'Cost data inputs'!$B$17 -> 83.64217892 | O128: =I128*'Cost data inputs'!$D$5 -> 97.45342159 | P128: =J128*'Cost data inputs'!$D$5 -> 96.4821508 | Q128: =K128*'Cost data inputs'!$D$5 -> 94.39938924 | R128: =L128*'Cost data inputs'!$D$5 -> 91.39606481 | S128: =M128*'Cost data inputs'!$D$5 -> 88.38636331 | U128: =-PMT('Cost data inputs'!$B$8,'Cost data inputs'!$B$11,O128) -> 10.18383622 | V128: =-PMT('Cost data inputs'!$B$8,'Cost data inputs'!$B$11,P128) -> 10.08233889 | W128: =-PMT('Cost data inputs'!$B$8,'Cost data inputs'!$B$11,Q128) -> 9.864691293 | X128: =-PMT('Cost data inputs'!$B$8,'Cost data inputs'!$B$11,R128) -> 9.550845317 | Y128: =-PMT('Cost data inputs'!$B$8,'Cost data inputs'!$B$11,S128) -> 9.236332942
A130: ='Cost data inputs'!A164 -> 3x40W Fluorescent | B130: ='Cost data inputs'!B164 -> RLMIN
A131: ='Cost data inputs'!$C$145 -> Bracket (Material Cost) | C131: ='Cost data inputs'!C164 -> 184.84 | D131: =C131 -> 184.84 | E131: =D131 -> 184.84 | F131: 184.84 | G131: 184.84 | I131: =C131*E$196 -> 187.3746926 | J131: 187.3943701 | K131: 187.4512955 | L131: 187.7156245 | M131: 188.1158762 | O131: =I131*'Cost data inputs'!$D$5 -> 198.0025851 | P131: =J131*'Cost data inputs'!$D$5 -> 198.0233788 | Q131: =K131*'Cost data inputs'!$D$5 -> 198.083533 | R131: =L131*'Cost data inputs'!$D$5 -> 198.3628547 | S131: =M131*'Cost data inputs'!$D$5 -> 198.7858087 | U131: =-PMT('Cost data inputs'!$B$8,'Cost data inputs'!$B$12,O131) -> 17.22541716 | V131: =-PMT('Cost data inputs'!$B$8,'Cost data inputs'!$B$12,P131) -> 17.22722612 | W131: =-PMT('Cost data inputs'!$B$8,'Cost data inputs'!$B$12,Q131) -> 17.23245929 | X131: =-PMT('Cost data inputs'!$B$8,'Cost data inputs'!$B$12,R131) -> 17.25675914 | Y131: =-PMT('Cost data inputs'!$B$8,'Cost data inputs'!$B$12,S131) -> 17.29355441
A132: ='Cost data inputs'!$D$145 -> Lamp Price (Material Cost) | C132: ='Cost data inputs'!D164 -> 13.77 | D132: =C132 -> 13.77 | E132: 13.77 | F132: 13.77 | G132: 13.77 | I132: 13.95882664 | J132: 13.96029256 | K132: 13.96453332 | L132: 13.984225 | M132: 14.0140425 | O132: =I132*'Cost data inputs'!$D$5 -> 14.75057129 | P132: =J132*'Cost data inputs'!$D$5 -> 14.75212035 | Q132: =K132*'Cost data inputs'!$D$5 -> 14.75660165 | R132: =L132*'Cost data inputs'!$D$5 -> 14.77741024 | S132: =M132*'Cost data inputs'!$D$5 -> 14.80891899 | U132: =-PMT('Cost data inputs'!$B$8,'Cost data inputs'!$B$11,O132) -> 1.541427687 | V132: =-PMT('Cost data inputs'!$B$8,'Cost data inputs'!$B$11,P132) -> 1.541589563 | W132: =-PMT('Cost data inputs'!$B$8,'Cost data inputs'!$B$11,Q132) -> 1.542057856 | X132: =-PMT('Cost data inputs'!$B$8,'Cost data inputs'!$B$11,R132) -> 1.544232345 | Y132: =-PMT('Cost data inputs'!$B$8,'Cost data inputs'!$B$11,S132) -> 1.547524994
A133: ='Cost data inputs'!$E$145 -> Luminaire Price (Material Cost) | C133: ='Cost data inputs'!E164 -> 165.11 | D133: =C133 -> 165.11 | E133: 165.11 | F133: 165.11 | G133: 165.11 | I133: 167.374137 | J133: 167.3917142 | K133: 167.4425633 | L133: 167.6786776 | M133: 168.036206 | O133: =I133*'Cost data inputs'!$D$5 -> 176.8675981 | P133: =J133*'Cost data inputs'!$D$5 -> 176.8861722 | Q133: =K133*'Cost data inputs'!$D$5 -> 176.9399055 | R133: =L133*'Cost data inputs'!$D$5 -> 177.1894122 | S133: =M133*'Cost data inputs'!$D$5 -> 177.5672196 | U133: =-PMT('Cost data inputs'!$B$8,'Cost data inputs'!$B$11,O133) -> 18.48257991 | V133: =-PMT('Cost data inputs'!$B$8,'Cost data inputs'!$B$11,P133) -> 18.48452089 | W133: =-PMT('Cost data inputs'!$B$8,'Cost data inputs'!$B$11,Q133) -> 18.490136 | X133: =-PMT('Cost data inputs'!$B$8,'Cost data inputs'!$B$11,R133) -> 18.51620933 | Y133: =-PMT('Cost data inputs'!$B$8,'Cost data inputs'!$B$11,S133) -> 18.55569003
A134: Installation cost - Bracket | C134: =IF($B130=$A$176,C$176,C$177)*'Cost data inputs'!$B$16 -> 91.175 | D134: =IF($B130=$A$176,D$176,D$177)*'Cost data inputs'!$B$16 -> 89.41791324 | E134: =IF($B130=$A$176,E$176,E$177)*'Cost data inputs'!$B$16 -> 88.34198786 | F134: =IF($B130=$A$176,F$176,F$177)*'Cost data inputs'!$B$16 -> 87.00030634 | G134: =IF($B130=$A$176,G$176,G$177)*'Cost data inputs'!$B$16 -> 85.1580744 | I134: =IF($B130=$A$172,I$176,I$177)*'Cost data inputs'!$B$16 -> 92.2225581 | J134: =IF($B130=$A$172,J$176,J$177)*'Cost data inputs'!$B$16 -> 91.30342077 | K134: =IF($B130=$A$172,K$176,K$177)*'Cost data inputs'!$B$16 -> 89.33245254 | L134: =IF($B130=$A$172,L$176,L$177)*'Cost data inputs'!$B$16 -> 86.49033311 | M134: =IF($B130=$A$172,M$176,M$177)*'Cost data inputs'!$B$16 -> 83.64217892 | O134: =I134*'Cost data inputs'!$D$5 -> 97.45342159 | P134: =J134*'Cost data inputs'!$D$5 -> 96.4821508 | Q134: =K134*'Cost data inputs'!$D$5 -> 94.39938924 | R134: =L134*'Cost data inputs'!$D$5 -> 91.39606481 | S134: =M134*'Cost data inputs'!$D$5 -> 88.38636331 | U134: =-PMT('Cost data inputs'!$B$8,'Cost data inputs'!$B$12,O134) -> 8.478050118 | V134: =-PMT('Cost data inputs'!$B$8,'Cost data inputs'!$B$12,P134) -> 8.393553522 | W134: =-PMT('Cost data inputs'!$B$8,'Cost data inputs'!$B$12,Q134) -> 8.212361763 | X134: =-PMT('Cost data inputs'!$B$8,'Cost data inputs'!$B$12,R134) -> 7.951084789 | Y134: =-PMT('Cost data inputs'!$B$8,'Cost data inputs'!$B$12,S134) -> 7.689253036
A135: Installation cost - Luminaire | C135: =IF($B130=$A$176,C$176,C$177)*'Cost data inputs'!$B$17 -> 91.175 | D135: =IF($B130=$A$176,D$176,D$177)*'Cost data inputs'!$B$17 -> 89.41791324 | E135: =IF($B130=$A$176,E$176,E$177)*'Cost data inputs'!$B$17 -> 88.34198786 | F135: =IF($B130=$A$176,F$176,F$177)*'Cost data inputs'!$B$17 -> 87.00030634 | G135: =IF($B130=$A$176,G$176,G$177)*'Cost data inputs'!$B$17 -> 85.1580744 | I135: =IF($B130=$A$172,I$176,I$177)*'Cost data inputs'!$B$17 -> 92.2225581 | J135: =IF($B130=$A$172,J$176,J$177)*'Cost data inputs'!$B$17 -> 91.30342077 | K135: =IF($B130=$A$172,K$176,K$177)*'Cost data inputs'!$B$17 -> 89.33245254 | L135: =IF($B130=$A$172,L$176,L$177)*'Cost data inputs'!$B$17 -> 86.49033311 | M135: =IF($B130=$A$172,M$176,M$177)*'Cost data inputs'!$B$17 -> 83.64217892 | O135: =I135*'Cost data inputs'!$D$5 -> 97.45342159 | P135: =J135*'Cost data inputs'!$D$5 -> 96.4821508 | Q135: =K135*'Cost data inputs'!$D$5 -> 94.39938924 | R135: =L135*'Cost data inputs'!$D$5 -> 91.39606481 | S135: =M135*'Cost data inputs'!$D$5 -> 88.38636331 | U135: =-PMT('Cost data inputs'!$B$8,'Cost data inputs'!$B$11,O135) -> 10.18383622 | V135: =-PMT('Cost data inputs'!$B$8,'Cost data inputs'!$B$11,P135) -> 10.08233889 | W135: =-PMT('Cost data inputs'!$B$8,'Cost data inputs'!$B$11,Q135) -> 9.864691293 | X135: =-PMT('Cost data inputs'!$B$8,'Cost data inputs'!$B$11,R135) -> 9.550845317 | Y135: =-PMT('Cost data inputs'!$B$8,'Cost data inputs'!$B$11,S135) -> 9.236332942
A137: ='Cost data inputs'!A165 -> 4x40W Fluorescent | B137: ='Cost data inputs'!B165 -> RLMIN
A138: ='Cost data inputs'!$C$145 -> Bracket (Material Cost) | C138: ='Cost data inputs'!C165 -> 184.84 | D138: =C138 -> 184.84 | E138: =D138 -> 184.84 | F138: 184.84 | G138: 184.84 | I138: =C138*E$196 -> 187.3746926 | J138: 187.3943701 | K138: 187.4512955 | L138: 187.7156245 | M138: 188.1158762 | O138: =I138*'Cost data inputs'!$D$5 -> 198.0025851 | P138: =J138*'Cost data inputs'!$D$5 -> 198.0233788 | Q138: =K138*'Cost data inputs'!$D$5 -> 198.083533 | R138: =L138*'Cost data inputs'!$D$5 -> 198.3628547 | S138: =M138*'Cost data inputs'!$D$5 -> 198.7858087 | U138: =-PMT('Cost data inputs'!$B$8,'Cost data inputs'!$B$12,O138) -> 17.22541716 | V138: =-PMT('Cost data inputs'!$B$8,'Cost data inputs'!$B$12,P138) -> 17.22722612 | W138: =-PMT('Cost data inputs'!$B$8,'Cost data inputs'!$B$12,Q138) -> 17.23245929 | X138: =-PMT('Cost data inputs'!$B$8,'Cost data inputs'!$B$12,R138) -> 17.25675914 | Y138: =-PMT('Cost data inputs'!$B$8,'Cost data inputs'!$B$12,S138) -> 17.29355441
A139: ='Cost data inputs'!$D$145 -> Lamp Price (Material Cost) | C139: ='Cost data inputs'!D165 -> 44.04 | D139: =C139 -> 44.04 | E139: 44.04 | F139: 44.04 | G139: 44.04 | I139: 44.64391615 | J139: 44.64860452 | K139: 44.66216757 | L139: 44.72514663 | M139: 44.82051065 | O139: =I139*'Cost data inputs'!$D$5 -> 47.17611907 | P139: =J139*'Cost data inputs'!$D$5 -> 47.18107337 | Q139: =K139*'Cost data inputs'!$D$5 -> 47.19540572 | R139: =L139*'Cost data inputs'!$D$5 -> 47.26195695 | S139: =M139*'Cost data inputs'!$D$5 -> 47.36273002 | U139: =-PMT('Cost data inputs'!$B$8,'Cost data inputs'!$B$11,O139) -> 4.929882013 | V139: =-PMT('Cost data inputs'!$B$8,'Cost data inputs'!$B$11,P139) -> 4.930399735 | W139: =-PMT('Cost data inputs'!$B$8,'Cost data inputs'!$B$11,Q139) -> 4.931897458 | X139: =-PMT('Cost data inputs'!$B$8,'Cost data inputs'!$B$11,R139) -> 4.93885203 | Y139: =-PMT('Cost data inputs'!$B$8,'Cost data inputs'!$B$11,S139) -> 4.949382768
A140: ='Cost data inputs'!$E$145 -> Luminaire Price (Material Cost) | C140: ='Cost data inputs'!E165 -> 229.33 | D140: =C140 -> 229.33 | E140: 229.33 | F140: 229.33 | G140: 229.33 | I140: 232.4747795 | J140: 232.4991933 | K140: 232.5698204 | L140: 232.897772 | M140: 233.3943621 | O140: =I140*'Cost data inputs'!$D$5 -> 245.660749 | P140: =J140*'Cost data inputs'!$D$5 -> 245.6865476 | Q140: =K140*'Cost data inputs'!$D$5 -> 245.7611806 | R140: =L140*'Cost data inputs'!$D$5 -> 246.1077336 | S140: =M140*'Cost data inputs'!$D$5 -> 246.6324903 | U140: =-PMT('Cost data inputs'!$B$8,'Cost data inputs'!$B$11,O140) -> 25.67143147 | V140: =-PMT('Cost data inputs'!$B$8,'Cost data inputs'!$B$11,P140) -> 25.67412741 | W140: =-PMT('Cost data inputs'!$B$8,'Cost data inputs'!$B$11,Q140) -> 25.68192652 | X140: =-PMT('Cost data inputs'!$B$8,'Cost data inputs'!$B$11,R140) -> 25.71814115 | Y140: =-PMT('Cost data inputs'!$B$8,'Cost data inputs'!$B$11,S140) -> 25.77297798
A141: Installation cost - Bracket | C141: =IF($B137=$A$176,C$176,C$177)*'Cost data inputs'!$B$16 -> 91.175 | D141: =IF($B137=$A$176,D$176,D$177)*'Cost data inputs'!$B$16 -> 89.41791324 | E141: =IF($B137=$A$176,E$176,E$177)*'Cost data inputs'!$B$16 -> 88.34198786 | F141: =IF($B137=$A$176,F$176,F$177)*'Cost data inputs'!$B$16 -> 87.00030634 | G141: =IF($B137=$A$176,G$176,G$177)*'Cost data inputs'!$B$16 -> 85.1580744 | I141: =IF($B137=$A$172,I$176,I$177)*'Cost data inputs'!$B$16 -> 92.2225581 | J141: =IF($B137=$A$172,J$176,J$177)*'Cost data inputs'!$B$16 -> 91.30342077 | K141: =IF($B137=$A$172,K$176,K$177)*'Cost data inputs'!$B$16 -> 89.33245254 | L141: =IF($B137=$A$172,L$176,L$177)*'Cost data inputs'!$B$16 -> 86.49033311 | M141: =IF($B137=$A$172,M$176,M$177)*'Cost data inputs'!$B$16 -> 83.64217892 | O141: =I141*'Cost data inputs'!$D$5 -> 97.45342159 | P141: =J141*'Cost data inputs'!$D$5 -> 96.4821508 | Q141: =K141*'Cost data inputs'!$D$5 -> 94.39938924 | R141: =L141*'Cost data inputs'!$D$5 -> 91.39606481 | S141: =M141*'Cost data inputs'!$D$5 -> 88.38636331 | U141: =-PMT('Cost data inputs'!$B$8,'Cost data inputs'!$B$12,O141) -> 8.478050118 | V141: =-PMT('Cost data inputs'!$B$8,'Cost data inputs'!$B$12,P141) -> 8.393553522 | W141: =-PMT('Cost data inputs'!$B$8,'Cost data inputs'!$B$12,Q141) -> 8.212361763 | X141: =-PMT('Cost data inputs'!$B$8,'Cost data inputs'!$B$12,R141) -> 7.951084789 | Y141: =-PMT('Cost data inputs'!$B$8,'Cost data inputs'!$B$12,S141) -> 7.689253036
A142: Installation cost - Luminaire | C142: =IF($B137=$A$176,C$176,C$177)*'Cost data inputs'!$B$17 -> 91.175 | D142: =IF($B137=$A$176,D$176,D$177)*'Cost data inputs'!$B$17 -> 89.41791324 | E142: =IF($B137=$A$176,E$176,E$177)*'Cost data inputs'!$B$17 -> 88.34198786 | F142: =IF($B137=$A$176,F$176,F$177)*'Cost data inputs'!$B$17 -> 87.00030634 | G142: =IF($B137=$A$176,G$176,G$177)*'Cost data inputs'!$B$17 -> 85.1580744 | I142: =IF($B137=$A$172,I$176,I$177)*'Cost data inputs'!$B$17 -> 92.2225581 | J142: =IF($B137=$A$172,J$176,J$177)*'Cost data inputs'!$B$17 -> 91.30342077 | K142: =IF($B137=$A$172,K$176,K$177)*'Cost data inputs'!$B$17 -> 89.33245254 | L142: =IF($B137=$A$172,L$176,L$177)*'Cost data inputs'!$B$17 -> 86.49033311 | M142: =IF($B137=$A$172,M$176,M$177)*'Cost data inputs'!$B$17 -> 83.64217892 | O142: =I142*'Cost data inputs'!$D$5 -> 97.45342159 | P142: =J142*'Cost data inputs'!$D$5 -> 96.4821508 | Q142: =K142*'Cost data inputs'!$D$5 -> 94.39938924 | R142: =L142*'Cost data inputs'!$D$5 -> 91.39606481 | S142: =M142*'Cost data inputs'!$D$5 -> 88.38636331 | U142: =-PMT('Cost data inputs'!$B$8,'Cost data inputs'!$B$11,O142) -> 10.18383622 | V142: =-PMT('Cost data inputs'!$B$8,'Cost data inputs'!$B$11,P142) -> 10.08233889 | W142: =-PMT('Cost data inputs'!$B$8,'Cost data inputs'!$B$11,Q142) -> 9.864691293 | X142: =-PMT('Cost data inputs'!$B$8,'Cost data inputs'!$B$11,R142) -> 9.550845317 | Y142: =-PMT('Cost data inputs'!$B$8,'Cost data inputs'!$B$11,S142) -> 9.236332942
A144: ='Cost data inputs'!A166 -> 42W Compact Fluorescent | B144: ='Cost data inputs'!B166 -> RLMIN
A145: ='Cost data inputs'!$C$145 -> Bracket (Material Cost) | C145: ='Cost data inputs'!C166 -> 184.84 | D145: =C145 -> 184.84 | E145: =D145 -> 184.84 | F145: 184.84 | G145: 184.84 | I145: =C145*E$196 -> 187.3746926 | J145: 187.3943701 | K145: 187.4512955 | L145: 187.7156245 | M145: 188.1158762 | O145: =I145*'Cost data inputs'!$D$5 -> 198.0025851 | P145: =J145*'Cost data inputs'!$D$5 -> 198.0233788 | Q145: =K145*'Cost data inputs'!$D$5 -> 198.083533 | R145: =L145*'Cost data inputs'!$D$5 -> 198.3628547 | S145: =M145*'Cost data inputs'!$D$5 -> 198.7858087 | U145: =-PMT('Cost data inputs'!$B$8,'Cost data inputs'!$B$12,O145) -> 17.22541716 | V145: =-PMT('Cost data inputs'!$B$8,'Cost data inputs'!$B$12,P145) -> 17.22722612 | W145: =-PMT('Cost data inputs'!$B$8,'Cost data inputs'!$B$12,Q145) -> 17.23245929 | X145: =-PMT('Cost data inputs'!$B$8,'Cost data inputs'!$B$12,R145) -> 17.25675914 | Y145: =-PMT('Cost data inputs'!$B$8,'Cost data inputs'!$B$12,S145) -> 17.29355441
A146: ='Cost data inputs'!$D$145 -> Lamp Price (Material Cost) | C146: ='Cost data inputs'!D166 -> 12.93 | D146: =C146 -> 12.93 | E146: 12.93 | F146: 12.93 | G146: 12.93 | I146: 13.10730781 | J146: 13.1086843 | K146: 13.11266637 | L146: 13.13115681 | M146: 13.15915538 | O146: =I146*'Cost data inputs'!$D$5 -> 13.85075431 | P146: =J146*'Cost data inputs'!$D$5 -> 13.85220887 | Q146: =K146*'Cost data inputs'!$D$5 -> 13.8564168 | R146: =L146*'Cost data inputs'!$D$5 -> 13.87595603 | S146: =M146*'Cost data inputs'!$D$5 -> 13.90554267 | U146: =-PMT('Cost data inputs'!$B$8,'Cost data inputs'!$B$11,O146) -> 1.44739724 | V146: =-PMT('Cost data inputs'!$B$8,'Cost data inputs'!$B$11,P146) -> 1.447549241 | W146: =-PMT('Cost data inputs'!$B$8,'Cost data inputs'!$B$11,Q146) -> 1.447988968 | X146: =-PMT('Cost data inputs'!$B$8,'Cost data inputs'!$B$11,R146) -> 1.450030807 | Y146: =-PMT('Cost data inputs'!$B$8,'Cost data inputs'!$B$11,S146) -> 1.453122597
A147: ='Cost data inputs'!$E$145 -> Luminaire Price (Material Cost) | C147: ='Cost data inputs'!E166 -> 145.91 | D147: =C147 -> 145.91 | E147: 145.91 | F147: 145.91 | G147: 145.91 | I147: 147.9108494 | J147: 147.9263825 | K147: 147.9713186 | L147: 148.179976 | M147: 148.4959289 | O147: =I147*'Cost data inputs'!$D$5 -> 156.3003527 | P147: =J147*'Cost data inputs'!$D$5 -> 156.3167669 | Q147: =K147*'Cost data inputs'!$D$5 -> 156.3642518 | R147: =L147*'Cost data inputs'!$D$5 -> 156.5847443 | S147: =M147*'Cost data inputs'!$D$5 -> 156.918618 | U147: =-PMT('Cost data inputs'!$B$8,'Cost data inputs'!$B$11,O147) -> 16.33331255 | V147: =-PMT('Cost data inputs'!$B$8,'Cost data inputs'!$B$11,P147) -> 16.33502782 | W147: =-PMT('Cost data inputs'!$B$8,'Cost data inputs'!$B$11,Q147) -> 16.33998997 | X147: =-PMT('Cost data inputs'!$B$8,'Cost data inputs'!$B$11,R147) -> 16.36303133 | Y147: =-PMT('Cost data inputs'!$B$8,'Cost data inputs'!$B$11,S147) -> 16.39792097
A148: Installation cost - Bracket | C148: =IF($B144=$A$176,C$176,C$177)*'Cost data inputs'!$B$16 -> 91.175 | D148: =IF($B144=$A$176,D$176,D$177)*'Cost data inputs'!$B$16 -> 89.41791324 | E148: =IF($B144=$A$176,E$176,E$177)*'Cost data inputs'!$B$16 -> 88.34198786 | F148: =IF($B144=$A$176,F$176,F$177)*'Cost data inputs'!$B$16 -> 87.00030634 | G148: =IF($B144=$A$176,G$176,G$177)*'Cost data inputs'!$B$16 -> 85.1580744 | I148: =IF($B144=$A$172,I$176,I$177)*'Cost data inputs'!$B$16 -> 92.2225581 | J148: =IF($B144=$A$172,J$176,J$177)*'Cost data inputs'!$B$16 -> 91.30342077 | K148: =IF($B144=$A$172,K$176,K$177)*'Cost data inputs'!$B$16 -> 89.33245254 | L148: =IF($B144=$A$172,L$176,L$177)*'Cost data inputs'!$B$16 -> 86.49033311 | M148: =IF($B144=$A$172,M$176,M$177)*'Cost data inputs'!$B$16 -> 83.64217892 | O148: =I148*'Cost data inputs'!$D$5 -> 97.45342159 | P148: =J148*'Cost data inputs'!$D$5 -> 96.4821508 | Q148: =K148*'Cost data inputs'!$D$5 -> 94.39938924 | R148: =L148*'Cost data inputs'!$D$5 -> 91.39606481 | S148: =M148*'Cost data inputs'!$D$5 -> 88.38636331 | U148: =-PMT('Cost data inputs'!$B$8,'Cost data inputs'!$B$12,O148) -> 8.478050118 | V148: =-PMT('Cost data inputs'!$B$8,'Cost data inputs'!$B$12,P148) -> 8.393553522 | W148: =-PMT('Cost data inputs'!$B$8,'Cost data inputs'!$B$12,Q148) -> 8.212361763 | X148: =-PMT('Cost data inputs'!$B$8,'Cost data inputs'!$B$12,R148) -> 7.951084789 | Y148: =-PMT('Cost data inputs'!$B$8,'Cost data inputs'!$B$12,S148) -> 7.689253036
A149: Installation cost - Luminaire | C149: =IF($B144=$A$176,C$176,C$177)*'Cost data inputs'!$B$17 -> 91.175 | D149: =IF($B144=$A$176,D$176,D$177)*'Cost data inputs'!$B$17 -> 89.41791324 | E149: =IF($B144=$A$176,E$176,E$177)*'Cost data inputs'!$B$17 -> 88.34198786 | F149: =IF($B144=$A$176,F$176,F$177)*'Cost data inputs'!$B$17 -> 87.00030634 | G149: =IF($B144=$A$176,G$176,G$177)*'Cost data inputs'!$B$17 -> 85.1580744 | I149: =IF($B144=$A$172,I$176,I$177)*'Cost data inputs'!$B$17 -> 92.2225581 | J149: =IF($B144=$A$172,J$176,J$177)*'Cost data inputs'!$B$17 -> 91.30342077 | K149: =IF($B144=$A$172,K$176,K$177)*'Cost data inputs'!$B$17 -> 89.33245254 | L149: =IF($B144=$A$172,L$176,L$177)*'Cost data inputs'!$B$17 -> 86.49033311 | M149: =IF($B144=$A$172,M$176,M$177)*'Cost data inputs'!$B$17 -> 83.64217892 | O149: =I149*'Cost data inputs'!$D$5 -> 97.45342159 | P149: =J149*'Cost data inputs'!$D$5 -> 96.4821508 | Q149: =K149*'Cost data inputs'!$D$5 -> 94.39938924 | R149: =L149*'Cost data inputs'!$D$5 -> 91.39606481 | S149: =M149*'Cost data inputs'!$D$5 -> 88.38636331 | U149: =-PMT('Cost data inputs'!$B$8,'Cost data inputs'!$B$11,O149) -> 10.18383622 | V149: =-PMT('Cost data inputs'!$B$8,'Cost data inputs'!$B$11,P149) -> 10.08233889 | W149: =-PMT('Cost data inputs'!$B$8,'Cost data inputs'!$B$11,Q149) -> 9.864691293 | X149: =-PMT('Cost data inputs'!$B$8,'Cost data inputs'!$B$11,R149) -> 9.550845317 | Y149: =-PMT('Cost data inputs'!$B$8,'Cost data inputs'!$B$11,S149) -> 9.236332942
A151: ='Cost data inputs'!A167 -> 60W Incandescent | B151: ='Cost data inputs'!B167 -> RLMIN
A152: ='Cost data inputs'!$C$145 -> Bracket (Material Cost) | C152: ='Cost data inputs'!C167 -> 184.84 | D152: =C152 -> 184.84 | E152: =D152 -> 184.84 | F152: 184.84 | G152: 184.84 | I152: =C152*E$196 -> 187.3746926 | J152: 187.3943701 | K152: 187.4512955 | L152: 187.7156245 | M152: 188.1158762 | O152: =I152*'Cost data inputs'!$D$5 -> 198.0025851 | P152: =J152*'Cost data inputs'!$D$5 -> 198.0233788 | Q152: =K152*'Cost data inputs'!$D$5 -> 198.083533 | R152: =L152*'Cost data inputs'!$D$5 -> 198.3628547 | S152: =M152*'Cost data inputs'!$D$5 -> 198.7858087 | U152: =-PMT('Cost data inputs'!$B$8,'Cost data inputs'!$B$12,O152) -> 17.22541716 | V152: =-PMT('Cost data inputs'!$B$8,'Cost data inputs'!$B$12,P152) -> 17.22722612 | W152: =-PMT('Cost data inputs'!$B$8,'Cost data inputs'!$B$12,Q152) -> 17.23245929 | X152: =-PMT('Cost data inputs'!$B$8,'Cost data inputs'!$B$12,R152) -> 17.25675914 | Y152: =-PMT('Cost data inputs'!$B$8,'Cost data inputs'!$B$12,S152) -> 17.29355441
A153: ='Cost data inputs'!$D$145 -> Lamp Price (Material Cost) | C153: ='Cost data inputs'!D167 -> 1.84 | D153: =C153 -> 1.84 | E153: 1.84 | F153: 1.84 | G153: 1.84 | I153: 1.865231737 | J153: 1.865427618 | K153: 1.865994286 | L153: 1.868625563 | M153: 1.872609891 | O153: =I153*'Cost data inputs'!$D$5 -> 1.971027682 | P153: =J153*'Cost data inputs'!$D$5 -> 1.971234673 | Q153: =K153*'Cost data inputs'!$D$5 -> 1.971833481 | R153: =L153*'Cost data inputs'!$D$5 -> 1.974614005 | S153: =M153*'Cost data inputs'!$D$5 -> 1.978824324 | U153: =-PMT('Cost data inputs'!$B$8,'Cost data inputs'!$B$11,O153) -> 0.2059714556 | V153: =-PMT('Cost data inputs'!$B$8,'Cost data inputs'!$B$11,P153) -> 0.2059930861 | W153: =-PMT('Cost data inputs'!$B$8,'Cost data inputs'!$B$11,Q153) -> 0.2060556613 | X153: =-PMT('Cost data inputs'!$B$8,'Cost data inputs'!$B$11,R153) -> 0.2063462247 | Y153: =-PMT('Cost data inputs'!$B$8,'Cost data inputs'!$B$11,S153) -> 0.206786201
A154: ='Cost data inputs'!$E$145 -> Luminaire Price (Material Cost) | C154: ='Cost data inputs'!E167 -> 45.87 | D154: =C154 -> 45.87 | E154: 45.87 | F154: 45.87 | G154: 45.87 | I154: 46.49901076 | J154: 46.50389395 | K154: 46.51802059 | L154: 46.58361662 | M154: 46.68294332 | O154: =I154*'Cost data inputs'!$D$5 -> 49.13643465 | P154: =J154*'Cost data inputs'!$D$5 -> 49.14159481 | Q154: =K154*'Cost data inputs'!$D$5 -> 49.15652271 | R154: =L154*'Cost data inputs'!$D$5 -> 49.22583936 | S154: =M154*'Cost data inputs'!$D$5 -> 49.33079986 | U154: =-PMT('Cost data inputs'!$B$8,'Cost data inputs'!$B$11,O154) -> 5.134734059 | V154: =-PMT('Cost data inputs'!$B$8,'Cost data inputs'!$B$11,P154) -> 5.135273293 | W154: =-PMT('Cost data inputs'!$B$8,'Cost data inputs'!$B$11,Q154) -> 5.136833252 | X154: =-PMT('Cost data inputs'!$B$8,'Cost data inputs'!$B$11,R154) -> 5.144076808 | Y154: =-PMT('Cost data inputs'!$B$8,'Cost data inputs'!$B$11,S154) -> 5.155045131
A155: Installation cost - Bracket | C155: =IF($B151=$A$176,C$176,C$177)*'Cost data inputs'!$B$16 -> 91.175 | D155: =IF($B151=$A$176,D$176,D$177)*'Cost data inputs'!$B$16 -> 89.41791324 | E155: =IF($B151=$A$176,E$176,E$177)*'Cost data inputs'!$B$16 -> 88.34198786 | F155: =IF($B151=$A$176,F$176,F$177)*'Cost data inputs'!$B$16 -> 87.00030634 | G155: =IF($B151=$A$176,G$176,G$177)*'Cost data inputs'!$B$16 -> 85.1580744 | I155: =IF($B151=$A$172,I$176,I$177)*'Cost data inputs'!$B$16 -> 92.2225581 | J155: =IF($B151=$A$172,J$176,J$177)*'Cost data inputs'!$B$16 -> 91.30342077 | K155: =IF($B151=$A$172,K$176,K$177)*'Cost data inputs'!$B$16 -> 89.33245254 | L155: =IF($B151=$A$172,L$176,L$177)*'Cost data inputs'!$B$16 -> 86.49033311 | M155: =IF($B151=$A$172,M$176,M$177)*'Cost data inputs'!$B$16 -> 83.64217892 | O155: =I155*'Cost data inputs'!$D$5 -> 97.45342159 | P155: =J155*'Cost data inputs'!$D$5 -> 96.4821508 | Q155: =K155*'Cost data inputs'!$D$5 -> 94.39938924 | R155: =L155*'Cost data inputs'!$D$5 -> 91.39606481 | S155: =M155*'Cost data inputs'!$D$5 -> 88.38636331 | U155: =-PMT('Cost data inputs'!$B$8,'Cost data inputs'!$B$12,O155) -> 8.478050118 | V155: =-PMT('Cost data inputs'!$B$8,'Cost data inputs'!$B$12,P155) -> 8.393553522 | W155: =-PMT('Cost data inputs'!$B$8,'Cost data inputs'!$B$12,Q155) -> 8.212361763 | X155: =-PMT('Cost data inputs'!$B$8,'Cost data inputs'!$B$12,R155) -> 7.951084789 | Y155: =-PMT('Cost data inputs'!$B$8,'Cost data inputs'!$B$12,S155) -> 7.689253036
A156: Installation cost - Luminaire | C156: =IF($B151=$A$176,C$176,C$177)*'Cost data inputs'!$B$17 -> 91.175 | D156: =IF($B151=$A$176,D$176,D$177)*'Cost data inputs'!$B$17 -> 89.41791324 | E156: =IF($B151=$A$176,E$176,E$177)*'Cost data inputs'!$B$17 -> 88.34198786 | F156: =IF($B151=$A$176,F$176,F$177)*'Cost data inputs'!$B$17 -> 87.00030634 | G156: =IF($B151=$A$176,G$176,G$177)*'Cost data inputs'!$B$17 -> 85.1580744 | I156: =IF($B151=$A$172,I$176,I$177)*'Cost data inputs'!$B$17 -> 92.2225581 | J156: =IF($B151=$A$172,J$176,J$177)*'Cost data inputs'!$B$17 -> 91.30342077 | K156: =IF($B151=$A$172,K$176,K$177)*'Cost data inputs'!$B$17 -> 89.33245254 | L156: =IF($B151=$A$172,L$176,L$177)*'Cost data inputs'!$B$17 -> 86.49033311 | M156: =IF($B151=$A$172,M$176,M$177)*'Cost data inputs'!$B$17 -> 83.64217892 | O156: =I156*'Cost data inputs'!$D$5 -> 97.45342159 | P156: =J156*'Cost data inputs'!$D$5 -> 96.4821508 | Q156: =K156*'Cost data inputs'!$D$5 -> 94.39938924 | R156: =L156*'Cost data inputs'!$D$5 -> 91.39606481 | S156: =M156*'Cost data inputs'!$D$5 -> 88.38636331 | U156: =-PMT('Cost data inputs'!$B$8,'Cost data inputs'!$B$11,O156) -> 10.18383622 | V156: =-PMT('Cost data inputs'!$B$8,'Cost data inputs'!$B$11,P156) -> 10.08233889 | W156: =-PMT('Cost data inputs'!$B$8,'Cost data inputs'!$B$11,Q156) -> 9.864691293 | X156: =-PMT('Cost data inputs'!$B$8,'Cost data inputs'!$B$11,R156) -> 9.550845317 | Y156: =-PMT('Cost data inputs'!$B$8,'Cost data inputs'!$B$11,S156) -> 9.236332942
A158: ='Cost data inputs'!A168 -> 100W Incandescent | B158: ='Cost data inputs'!B168 -> RLMIN
A159: ='Cost data inputs'!$C$145 -> Bracket (Material Cost) | C159: ='Cost data inputs'!C168 -> 184.84 | D159: =C159 -> 184.84 | E159: =D159 -> 184.84 | F159: 184.84 | G159: 184.84 | I159: =C159*E$196 -> 187.3746926 | J159: 187.3943701 | K159: 187.4512955 | L159: 187.7156245 | M159: 188.1158762 | O159: =I159*'Cost data inputs'!$D$5 -> 198.0025851 | P159: =J159*'Cost data inputs'!$D$5 -> 198.0233788 | Q159: =K159*'Cost data inputs'!$D$5 -> 198.083533 | R159: =L159*'Cost data inputs'!$D$5 -> 198.3628547 | S159: =M159*'Cost data inputs'!$D$5 -> 198.7858087 | U159: =-PMT('Cost data inputs'!$B$8,'Cost data inputs'!$B$12,O159) -> 17.22541716 | V159: =-PMT('Cost data inputs'!$B$8,'Cost data inputs'!$B$12,P159) -> 17.22722612 | W159: =-PMT('Cost data inputs'!$B$8,'Cost data inputs'!$B$12,Q159) -> 17.23245929 | X159: =-PMT('Cost data inputs'!$B$8,'Cost data inputs'!$B$12,R159) -> 17.25675914 | Y159: =-PMT('Cost data inputs'!$B$8,'Cost data inputs'!$B$12,S159) -> 17.29355441
A160: ='Cost data inputs'!$D$145 -> Lamp Price (Material Cost) | C160: ='Cost data inputs'!D168 -> 1.84 | D160: =C160 -> 1.84 | E160: 1.84 | F160: 1.84 | G160: 1.84 | I160: 1.865231737 | J160: 1.865427618 | K160: 1.865994286 | L160: 1.868625563 | M160: 1.872609891 | O160: =I160*'Cost data inputs'!$D$5 -> 1.971027682 | P160: =J160*'Cost data inputs'!$D$5 -> 1.971234673 | Q160: =K160*'Cost data inputs'!$D$5 -> 1.971833481 | R160: =L160*'Cost data inputs'!$D$5 -> 1.974614005 | S160: =M160*'Cost data inputs'!$D$5 -> 1.978824324 | U160: =-PMT('Cost data inputs'!$B$8,'Cost data inputs'!$B$11,O160) -> 0.2059714556 | V160: =-PMT('Cost data inputs'!$B$8,'Cost data inputs'!$B$11,P160) -> 0.2059930861 | W160: =-PMT('Cost data inputs'!$B$8,'Cost data inputs'!$B$11,Q160) -> 0.2060556613 | X160: =-PMT('Cost data inputs'!$B$8,'Cost data inputs'!$B$11,R160) -> 0.2063462247 | Y160: =-PMT('Cost data inputs'!$B$8,'Cost data inputs'!$B$11,S160) -> 0.206786201
A161: ='Cost data inputs'!$E$145 -> Luminaire Price (Material Cost) | C161: ='Cost data inputs'!E168 -> 45.87 | D161: =C161 -> 45.87 | E161: 45.87 | F161: 45.87 | G161: 45.87 | I161: 46.49901076 | J161: 46.50389395 | K161: 46.51802059 | L161: 46.58361662 | M161: 46.68294332 | O161: =I161*'Cost data inputs'!$D$5 -> 49.13643465 | P161: =J161*'Cost data inputs'!$D$5 -> 49.14159481 | Q161: =K161*'Cost data inputs'!$D$5 -> 49.15652271 | R161: =L161*'Cost data inputs'!$D$5 -> 49.22583936 | S161: =M161*'Cost data inputs'!$D$5 -> 49.33079986 | U161: =-PMT('Cost data inputs'!$B$8,'Cost data inputs'!$B$11,O161) -> 5.134734059 | V161: =-PMT('Cost data inputs'!$B$8,'Cost data inputs'!$B$11,P161) -> 5.135273293 | W161: =-PMT('Cost data inputs'!$B$8,'Cost data inputs'!$B$11,Q161) -> 5.136833252 | X161: =-PMT('Cost data inputs'!$B$8,'Cost data inputs'!$B$11,R161) -> 5.144076808 | Y161: =-PMT('Cost data inputs'!$B$8,'Cost data inputs'!$B$11,S161) -> 5.155045131
A162: Installation cost - Bracket | C162: =IF($B158=$A$176,C$176,C$177)*'Cost data inputs'!$B$16 -> 91.175 | D162: =IF($B158=$A$176,D$176,D$177)*'Cost data inputs'!$B$16 -> 89.41791324 | E162: =IF($B158=$A$176,E$176,E$177)*'Cost data inputs'!$B$16 -> 88.34198786 | F162: =IF($B158=$A$176,F$176,F$177)*'Cost data inputs'!$B$16 -> 87.00030634 | G162: =IF($B158=$A$176,G$176,G$177)*'Cost data inputs'!$B$16 -> 85.1580744 | I162: =IF($B158=$A$172,I$176,I$177)*'Cost data inputs'!$B$16 -> 92.2225581 | J162: =IF($B158=$A$172,J$176,J$177)*'Cost data inputs'!$B$16 -> 91.30342077 | K162: =IF($B158=$A$172,K$176,K$177)*'Cost data inputs'!$B$16 -> 89.33245254 | L162: =IF($B158=$A$172,L$176,L$177)*'Cost data inputs'!$B$16 -> 86.49033311 | M162: =IF($B158=$A$172,M$176,M$177)*'Cost data inputs'!$B$16 -> 83.64217892 | O162: =I162*'Cost data inputs'!$D$5 -> 97.45342159 | P162: =J162*'Cost data inputs'!$D$5 -> 96.4821508 | Q162: =K162*'Cost data inputs'!$D$5 -> 94.39938924 | R162: =L162*'Cost data inputs'!$D$5 -> 91.39606481 | S162: =M162*'Cost data inputs'!$D$5 -> 88.38636331 | U162: =-PMT('Cost data inputs'!$B$8,'Cost data inputs'!$B$12,O162) -> 8.478050118 | V162: =-PMT('Cost data inputs'!$B$8,'Cost data inputs'!$B$12,P162) -> 8.393553522 | W162: =-PMT('Cost data inputs'!$B$8,'Cost data inputs'!$B$12,Q162) -> 8.212361763 | X162: =-PMT('Cost data inputs'!$B$8,'Cost data inputs'!$B$12,R162) -> 7.951084789 | Y162: =-PMT('Cost data inputs'!$B$8,'Cost data inputs'!$B$12,S162) -> 7.689253036
A163: Installation cost - Luminaire | C163: =IF($B158=$A$176,C$176,C$177)*'Cost data inputs'!$B$17 -> 91.175 | D163: =IF($B158=$A$176,D$176,D$177)*'Cost data inputs'!$B$17 -> 89.41791324 | E163: =IF($B158=$A$176,E$176,E$177)*'Cost data inputs'!$B$17 -> 88.34198786 | F163: =IF($B158=$A$176,F$176,F$177)*'Cost data inputs'!$B$17 -> 87.00030634 | G163: =IF($B158=$A$176,G$176,G$177)*'Cost data inputs'!$B$17 -> 85.1580744 | I163: =IF($B158=$A$172,I$176,I$177)*'Cost data inputs'!$B$17 -> 92.2225581 | J163: =IF($B158=$A$172,J$176,J$177)*'Cost data inputs'!$B$17 -> 91.30342077 | K163: =IF($B158=$A$172,K$176,K$177)*'Cost data inputs'!$B$17 -> 89.33245254 | L163: =IF($B158=$A$172,L$176,L$177)*'Cost data inputs'!$B$17 -> 86.49033311 | M163: =IF($B158=$A$172,M$176,M$177)*'Cost data inputs'!$B$17 -> 83.64217892 | O163: =I163*'Cost data inputs'!$D$5 -> 97.45342159 | P163: =J163*'Cost data inputs'!$D$5 -> 96.4821508 | Q163: =K163*'Cost data inputs'!$D$5 -> 94.39938924 | R163: =L163*'Cost data inputs'!$D$5 -> 91.39606481 | S163: =M163*'Cost data inputs'!$D$5 -> 88.38636331 | U163: =-PMT('Cost data inputs'!$B$8,'Cost data inputs'!$B$11,O163) -> 10.18383622 | V163: =-PMT('Cost data inputs'!$B$8,'Cost data inputs'!$B$11,P163) -> 10.08233889 | W163: =-PMT('Cost data inputs'!$B$8,'Cost data inputs'!$B$11,Q163) -> 9.864691293 | X163: =-PMT('Cost data inputs'!$B$8,'Cost data inputs'!$B$11,R163) -> 9.550845317 | Y163: =-PMT('Cost data inputs'!$B$8,'Cost data inputs'!$B$11,S163) -> 9.236332942
A165: Surcharge Pole Replacement Costs | C165: ='Cost data inputs'!B19 -> 979.77 | D165: =C165 -> 979.77 | E165: 979.77 | F165: 979.77 | G165: 979.77 | I165: =C165 -> 979.77 | J165: =D165 -> 979.77 | K165: 979.77 | L165: 979.77 | M165: 979.77 | O165: =I165*'Cost data inputs'!$D$5 -> 1035.342554 | P165: =J165*'Cost data inputs'!$D$5 -> 1035.342554 | Q165: =K165*'Cost data inputs'!$D$5 -> 1035.342554 | R165: =L165*'Cost data inputs'!$D$5 -> 1035.342554 | S165: =M165*'Cost data inputs'!$D$5 -> 1035.342554 | U165: =-PMT('Cost data inputs'!$B$8,'Cost data inputs'!$B$13,O165) -> 88.02271064 | V165: =-PMT('Cost data inputs'!$B$8,'Cost data inputs'!$B$13,P165) -> 88.02271064 | W165: =-PMT('Cost data inputs'!$B$8,'Cost data inputs'!$B$13,Q165) -> 88.02271064 | X165: =-PMT('Cost data inputs'!$B$8,'Cost data inputs'!$B$13,R165) -> 88.02271064 | Y165: =-PMT('Cost data inputs'!$B$8,'Cost data inputs'!$B$13,S165) -> 88.02271064
A170: Public Lighting Installation Cost (Excluding Unit Rate Material Component)
A171: Work Category Code | C171: Includes material Cost
A172: ='Cost data inputs'!A139 -> RLMAJ | C172: ='Cost data inputs'!B139 -> 505.25 | D172: ='Cost data inputs'!C139 -> 494.34 | E172: ='Cost data inputs'!D139 -> 487.68 | F172: ='Cost data inputs'!E139 -> 479.34 | G172: ='Cost data inputs'!F139 -> 467.93
A173: ='Cost data inputs'!A140 -> RLMIN | C173: ='Cost data inputs'!B140 -> 353.37 | D173: ='Cost data inputs'!C140 -> 346.56 | E173: ='Cost data inputs'!D140 -> 342.39 | F173: ='Cost data inputs'!E140 -> 337.19 | G173: ='Cost data inputs'!F140 -> 330.05
A175: Work Category Code | C175: Excludes material Cost | I175: Excludes material Cost
A176: =A172 -> RLMAJ | C176: =C172*SUM(C180,C182,C183) -> 291.77 | D176: =D172*SUM(D180,D182,D183) -> 285.4697314 | E176: 281.623738 | F176: 276.807584 | G176: 270.2185771 | I176: =C172*(C180*E$203+C182*E$205+C183*E$206) -> 295.1222432 | J176: =D172*(D180*F$203+D182*F$205+D183*F$206) -> 291.489175 | K176: =E172*(E180*G$203+E182*G$205+E183*G$206) -> 284.7811672 | L176: =F172*(F180*H$203+F182*H$205+F183*H$206) -> 275.1850376 | M176: =G172*(G180*I$203+G182*I$205+G183*I$206) -> 265.4085097
A177: =A173 -> RLMIN | C177: =C173*SUM(C186,C188,C189) -> 182.35 | D177: =D173*SUM(D186,D188,D189) -> 178.8358265 | E177: 176.6839757 | F177: 174.0006127 | G177: 170.3161488 | I177: =C173*(C186*E$203+C188*E$205+C189*E$206) -> 184.4451162 | J177: =D173*(D186*F$203+D188*F$205+D189*F$206) -> 182.6068415 | K177: =E173*(E186*G$203+E188*G$205+E189*G$206) -> 178.6649051 | L177: =F173*(F186*H$203+F188*H$205+F189*H$206) -> 172.9806662 | M177: =G173*(G186*I$203+G188*I$205+G189*I$206) -> 167.2843578
A179: =A172 -> RLMAJ
A180: ='Cost data inputs'!H138 -> Labour | C180: ='Cost data inputs'!H139 -> 0.4630183078 | D180: =C180 -> 0.4630183078 | E180: =D180 -> 0.4630183078 | F180: 0.4630183078 | G180: 0.4630183078
A181: ='Cost data inputs'!I138 -> Materials | C181: ='Cost data inputs'!I139 -> 0.4225235032 | D181: =C181 -> 0.4225235032 | E181: 0.4225235032 | F181: 0.4225235032 | G181: 0.4225235032
A182: ='Cost data inputs'!J138 -> Contractors | C182: ='Cost data inputs'!J139 -> 0 | D182: =C182 -> 0 | E182: 0 | F182: 0 | G182: 0
A183: ='Cost data inputs'!K138 -> Other | C183: ='Cost data inputs'!K139 -> 0.114458189 | D183: =C183 -> 0.114458189 | E183: 0.114458189 | F183: 0.114458189 | G183: 0.114458189
A185: =A173 -> RLMIN
A186: =A180 -> Labour | C186: ='Cost data inputs'!H140 -> 0.4137589495 | D186: =C186 -> 0.4137589495 | E186: 0.4137589495 | F186: 0.4137589495 | G186: 0.4137589495
A187: =A181 -> Materials | C187: ='Cost data inputs'!I140 -> 0.4839686448 | D187: =C187 -> 0.4839686448 | E187: 0.4839686448 | F187: 0.4839686448 | G187: 0.4839686448
A188: Contractors | C188: ='Cost data inputs'!J140 -> 0 | D188: =C188 -> 0 | E188: 0 | F188: 0 | G188: 0
A189: Other | C189: ='Cost data inputs'!K140 -> 0.1022724057 | D189: =C189 -> 0.1022724057 | E189: 0.1022724057 | F189: 0.1022724057 | G189: 0.1022724057
A194: Real Cost Escalators - Capex | C194: 2010-11 | D194: 2011-12 | E194: 2012-13 | F194: 2013-14 | G194: 2014-15 | H194: 2015-16 | I194: 2016-17
A195: Cumulative
A196: Streetlighting | C196: ='Cost data inputs'!B174 -> 1.006230834 | D196: ='Cost data inputs'!C174 -> 1.009208447 | E196: ='Cost data inputs'!D174 -> 1.013712901 | F196: ='Cost data inputs'!E174 -> 1.013819358 | G196: ='Cost data inputs'!F174 -> 1.014127329 | H196: ='Cost data inputs'!G174 -> 1.015557371 | I196: ='Cost data inputs'!H174 -> 1.017722767
A200: Real Cost Escalators - Opex categories | C200: 2010-11 | D200: 2011-12 | E200: 2012-13 | F200: 2013-14 | G200: 2014-15 | H200: 2015-16 | I200: 2016-17
A202: Cumulative
A203: Labour | C203: ='Cost data inputs'!B130 -> 1 | D203: ='Cost data inputs'!C130 -> 1.0025 | E203: ='Cost data inputs'!D130 -> 1.0143295 | F203: ='Cost data inputs'!E130 -> 1.026298588 | G203: ='Cost data inputs'!F130 -> 1.013983005 | H203: ='Cost data inputs'!G130 -> 0.9926893619 | I203: ='Cost data inputs'!H130 -> 0.9777990215
A204: Materials | C204: ='Cost data inputs'!B131 -> 1.01852478 | D204: ='Cost data inputs'!C131 -> 1.011816345 | E204: ='Cost data inputs'!D131 -> 1.020477196 | F204: ='Cost data inputs'!E131 -> 1.021480505 | G204: ='Cost data inputs'!F131 -> 1.022360958 | H204: ='Cost data inputs'!G131 -> 1.026007398 | I204: ='Cost data inputs'!H131 -> 1.03228829
A205: Contractors | C205: ='Cost data inputs'!B132 -> 1 | D205: ='Cost data inputs'!C132 -> 1.005926038 | E205: ='Cost data inputs'!D132 -> 1.004230283 | F205: ='Cost data inputs'!E132 -> 0.9923627942 | G205: ='Cost data inputs'!F132 -> 0.9770666385 | H205: ='Cost data inputs'!G132 -> 0.9710625893 | I205: ='Cost data inputs'!H132 -> 0.9692654957
A206: Other | C206: ='Cost data inputs'!B133 -> 1 | D206: ='Cost data inputs'!C133 -> 1 | E206: ='Cost data inputs'!D133 -> 1 | F206: ='Cost data inputs'!E133 -> 1 | G206: ='Cost data inputs'!F133 -> 1 | H206: ='Cost data inputs'!G133 -> 1 | I206: ='Cost data inputs'!H133 -> 1

Sheet Corp Capex Annuity calcs
E1: Annuity Calculation June 2012 $'s
E2: 2012/13 | F2: 2013/14 | G2: 2014/15 | H2: 2015/16 | I2: 2016/17
A3: Shared Assets | B3: June 2012 $'s | C3: Remaining / Effective Life | D3: Annual Annuity | E3: Annual Annuity | F3: Annual Annuity | G3: Annual Annuity | H3: Annual Annuity | I3: Annual Annuity
C4: Year | D4: 0 | E4: 1 | F4: 2 | G4: 3 | H4: 4 | I4: 5
A5: 30 June 2012 WDBV
A6: ='Cost data inputs'!A24 -> Motor Vehicles | B6: ='Cost data inputs'!B24 -> 509208.802 | C6: ='Cost data inputs'!C24 -> 3.98822308 | D6: =-PMT('Cost data inputs'!$B$8,C6,B6) -> 155319.3915 | E6: =IF($C6<=D$4,"",IF($C6>E$4-0.000001,$D6,$D6*($C6-INT($C6)))) -> 155319.3915 | F6: =IF($C6<=E$4,"",IF($C6>F$4-0.000001,$D6,$D6*($C6-INT($C6)))) -> 155319.3915 | G6: 155319.3915 | H6: 153490.2074
A7: ='Cost data inputs'!A25 -> Minor Assets | B7: ='Cost data inputs'!B25 -> 777973.911 | C7: ='Cost data inputs'!C25 -> 2.988203734 | D7: =-PMT('Cost data inputs'!$B$8,C7,B7) -> 304834.9875 | E7: =IF($C7<=D$4,"",IF($C7>E$4-0.000001,$D7,$D7*($C7-INT($C7)))) -> 304834.9875 | F7: 304834.9875 | G7: 301239.073
A8: ='Cost data inputs'!A26 -> Non-System Property | B8: ='Cost data inputs'!B26 -> 484685.2969 | C8: ='Cost data inputs'!C26 -> 19.54956234 | D8: =-PMT('Cost data inputs'!$B$8,C8,B8) -> 51122.89713 | E8: 51122.89713 | F8: 51122.89713 | G8: 51122.89713 | H8: 51122.89713 | I8: 51122.89713
A9: ='Cost data inputs'!A27 -> Spare Parts | B9: ='Cost data inputs'!B27 -> 104823.0241 | C9: ='Cost data inputs'!C27 -> 0 | D9: =IF(C9=0,"",-PMT('Cost data inputs'!$B$8,C9,B9)) ->  | E9: =IF($C9<=D$4,"",IF($C9>E$4-0.000001,$D9,$D9*($C9-INT($C9)))) ->  | F9: =IF($C9<=E$4,"",IF($C9>F$4-0.000001,$D9,$D9*($C9-INT($C9)))) ->  | G9: =IF($C9<=F$4,"",IF($C9>G$4-0.000001,$D9,$D9*($C9-INT($C9)))) ->  | H9: =IF($C9<=G$4,"",IF($C9>H$4-0.000001,$D9,$D9*($C9-INT($C9)))) ->  | I9: =IF($C9<=H$4,"",IF($C9>I$4-0.000001,$D9,$D9*($C9-INT($C9)))) -> 
A10: ='Cost data inputs'!A28 -> NEM Assets | B10: ='Cost data inputs'!B28 -> 210895.3031 | C10: ='Cost data inputs'!C28 -> 2.02427866 | D10: =-PMT('Cost data inputs'!$B$8,C10,B10) -> 117513.277 | E10: =IF($C10<=D$4,"",IF($C10>E$4-0.000001,$D10,$D10*($C10-INT($C10)))) -> 117513.277 | F10: 117513.277 | G10: 2853.064844
A12: =E2 -> 2012/13
A13: =+A6 -> Motor Vehicles | B13: ='Cost data inputs'!I$33 -> 218037.2064 | C13: ='Cost data inputs'!G33 -> 6 | D13: =-PMT('Cost data inputs'!$B$8,C13,B13) -> 47663.00906 | F13: =IF($C13<=E$4,"",IF($C13>F$4-0.000001,$D13,$D13*($C13-INT($C13)))) -> 47663.00906 | G13: 47663.00906 | H13: 47663.00906 | I13: 47663.00906
A14: =+A7 -> Minor Assets | B14: ='Cost data inputs'!I$34 -> 151721.8654 | C14: ='Cost data inputs'!G34 -> 5 | D14: =-PMT('Cost data inputs'!$B$8,C14,B14) -> 38348.31258 | F14: 38348.31258 | G14: 38348.31258 | H14: 38348.31258 | I14: 38348.31258
A15: =+A8 -> Non-System Property | B15: ='Cost data inputs'!I$35 -> 14294.65299 | C15: ='Cost data inputs'!G35 -> 40 | D15: =-PMT('Cost data inputs'!$B$8,C15,B15) -> 1243.576495 | F15: 1243.576495 | G15: 1243.576495 | H15: 1243.576495 | I15: 1243.576495
A17: =F2 -> 2013/14
A18: =+A6 -> Motor Vehicles | B18: ='Cost data inputs'!J$33 -> 196670.5127 | C18: =C$13 -> 6 | D18: =-PMT('Cost data inputs'!$B$8,C18,B18) -> 42992.24237 | G18: =IF($C18<=F$4,"",IF($C18>G$4-0.000001,$D18,$D18*($C18-INT($C18)))) -> 42992.24237 | H18: 42992.24237 | I18: 42992.24237
A19: =+A7 -> Minor Assets | B19: ='Cost data inputs'!J$34 -> 195448.2881 | C19: =C$14 -> 5 | D19: =-PMT('Cost data inputs'!$B$8,C19,B19) -> 49400.34203 | G19: 49400.34203 | H19: 49400.34203 | I19: 49400.34203
A20: =+A8 -> Non-System Property | B20: ='Cost data inputs'!J$35 -> 14853.77 | C20: =C$15 -> 40 | D20: =-PMT('Cost data inputs'!$B$8,C20,B20) -> 1292.217394 | G20: 1292.217394 | H20: 1292.217394 | I20: 1292.217394
A22: =G2 -> 2014/15
A23: =+A18 -> Motor Vehicles | B23: ='Cost data inputs'!K$33 -> 155752.6119 | C23: =C$13 -> 6 | D23: =-PMT('Cost data inputs'!$B$8,C23,B23) -> 34047.57505 | H23: =IF($C23<=G$4,"",IF($C23>H$4-0.000001,$D23,$D23*($C23-INT($C23)))) -> 34047.57505 | I23: 34047.57505
A24: =+A19 -> Minor Assets | B24: ='Cost data inputs'!K$34 -> 192421.1644 | C24: =C$14 -> 5 | D24: =-PMT('Cost data inputs'!$B$8,C24,B24) -> 48635.22433 | H24: 48635.22433 | I24: 48635.22433
A25: =+A20 -> Non-System Property | B25: ='Cost data inputs'!K$35 -> 14762.47505 | C25: =C$15 -> 40 | D25: =-PMT('Cost data inputs'!$B$8,C25,B25) -> 1284.275106 | H25: 1284.275106 | I25: 1284.275106
A27: =H2 -> 2015/16
A28: =+A23 -> Motor Vehicles | B28: ='Cost data inputs'!L$33 -> 99612.62636 | C28: =C$13 -> 6 | D28: =-PMT('Cost data inputs'!$B$8,C28,B28) -> 21775.35472 | I28: =IF($B28=0,"",IF($C28<=D$4,"",IF($C28>E$4-0.000001,$D28,$D28*($C28-INT($C28))))) -> 21775.35472
A29: =+A24 -> Minor Assets | B29: ='Cost data inputs'!L$34 -> 170487.8456 | C29: =C$14 -> 5 | D29: =-PMT('Cost data inputs'!$B$8,C29,B29) -> 43091.48965 | I29: =IF($B29=0,"",IF($C29<=D$4,"",IF($C29>E$4-0.000001,$D29,$D29*($C29-INT($C29))))) -> 43091.48965
A30: =+A25 -> Non-System Property | B30: ='Cost data inputs'!L$35 -> 13626.81948 | C30: =C$15 -> 40 | D30: =-PMT('Cost data inputs'!$B$8,C30,B30) -> 1185.477704 | I30: 1185.477704
A32: =I2 -> 2016/17
A33: =+A28 -> Motor Vehicles | B33: ='Cost data inputs'!M$33 -> 98160.21253 | C33: =C$13 -> 6 | D33: =-PMT('Cost data inputs'!$B$8,C33,B33) -> 21457.85655
A34: =+A29 -> Minor Assets | B34: ='Cost data inputs'!M$34 -> 167792.9001 | C34: =C$14 -> 5 | D34: =-PMT('Cost data inputs'!$B$8,C34,B34) -> 42410.33134
A35: =+A30 -> Non-System Property | B35: ='Cost data inputs'!M$35 -> 13008.16375 | C35: =C$15 -> 40 | D35: =-PMT('Cost data inputs'!$B$8,C35,B35) -> 1131.65718
A37: Total | B37: =SUM(B6:B36) -> 3804237.452 | D37: =SUM(D6:D36) -> 1024749.495 | E37: 628790.5531 | F37: 716045.4513 | G37: 691474.1264 | H37: 469519.879 | I37: 382081.9936
A38: Check | B38: =B37-SUM('Cost data inputs'!B29,'Cost data inputs'!I36:M36) -> 0
A39: Corp capex annuity per Light | E39: =E37/'PL Volumes data inputs'!E57 -> 12.62783775 | F39: =F37/'PL Volumes data inputs'!F57 -> 14.15221463 | G39: =G37/'PL Volumes data inputs'!G57 -> 13.45332749 | H39: =H37/'PL Volumes data inputs'!H57 -> 8.994633697 | I39: =I37/'PL Volumes data inputs'!I57 -> 7.208822188

Sheet Annuity Prices
H1: 2012-06-30 | I1: 2013-06-30 | J1: 2014-06-30 | K1: 2015-06-30 | L1: 2016-06-30 | M1: 2017-06-30
I2: =I1-H1 -> 365 | J2: =J1-I1 -> 365 | K2: 365 | L2: 366 | M2: 365
A3: $2011/12 | C3: 2012-13 | D3: 2013-14 | E3: 2014-15 | F3: 2015-16 | G3: 2016-17 | I3: 2012-13 | J3: 2013-14 | K3: 2014-15 | L3: 2015-16 | M3: 2016-17
B4: ='Cost data inputs'!F$145 -> Energy Rating (watts) | C4: $ per year | I4: Cents per Day
A5: Private Contract Lights
A6: ='PL Volumes data inputs'!A3 -> 50W Mercury Vapour | B6: ='PL Volumes data inputs'!B3 -> 65
A7: Lamp Price (Material Cost) | C7: ='PL Annuity calcs'!U6 -> 0.2630613699 | D7: ='PL Annuity calcs'!V6 -> 0.2630889958 | E7: ='PL Annuity calcs'!W6 -> 0.2631689152 | F7: ='PL Annuity calcs'!X6 -> 0.2635400152 | G7: ='PL Annuity calcs'!Y6 -> 0.2641019415 | I7: =C7/I$2*100 -> 0.07207160819 | J7: =D7/J$2*100 -> 0.07207917694 | K7: =E7/K$2*100 -> 0.07210107267 | L7: =F7/L$2*100 -> 0.07200546864 | M7: =G7/M$2*100 -> 0.07235669631
A8: Corp capex annuity per light | C8: ='Corp Capex Annuity calcs'!E$39 -> 12.62783775 | D8: ='Corp Capex Annuity calcs'!F$39 -> 14.15221463 | E8: ='Corp Capex Annuity calcs'!G$39 -> 13.45332749 | F8: ='Corp Capex Annuity calcs'!H$39 -> 8.994633697 | G8: ='Corp Capex Annuity calcs'!I$39 -> 7.208822188 | I8: =C8/I$2*100 -> 3.459681576 | J8: 3.877319076 | K8: 3.685843148 | L8: 2.45755019 | M8: 1.975019778
A9: Direct Opex Costs per light | C9: ='Cost data inputs'!C$115 -> 46.07254203 | D9: ='Cost data inputs'!D$115 -> 43.3936309 | E9: ='Cost data inputs'!E$115 -> 41.51030453 | F9: ='Cost data inputs'!F$115 -> 38.13939419 | G9: ='Cost data inputs'!G$115 -> 36.09239044 | I9: 12.62261426 | J9: 11.888666 | K9: 11.37268617 | L9: 10.42059951 | M9: 9.888326149
A10: Direct Opex Costs per major light | C10: =IF($B6<100,0,'Cost data inputs'!C$118) -> 0 | D10: =IF($B6<100,0,'Cost data inputs'!D$118) -> 0 | E10: =IF($B6<100,0,'Cost data inputs'!E$118) -> 0 | F10: =IF($B6<100,0,'Cost data inputs'!F$118) -> 0 | G10: =IF($B6<100,0,'Cost data inputs'!G$118) -> 0 | I10: 0 | J10: 0 | K10: 0 | L10: 0 | M10: 0
A11: Opex Overheads Costs per light | C11: ='Cost data inputs'!C$125 -> 21.65241664 | D11: ='Cost data inputs'!D$125 -> 21.30920298 | E11: ='Cost data inputs'!E$125 -> 20.97670015 | F11: ='Cost data inputs'!F$125 -> 20.65441445 | G11: ='Cost data inputs'!G$125 -> 20.34188208 | I11: 5.932168942 | J11: 5.838137804 | K11: 5.747041136 | L11: 5.643282636 | M11: 5.573118379
C12: =SUM(C7:C11) -> 80.6158578 | D12: =SUM(D7:D11) -> 79.11813751 | E12: 76.20350108 | F12: 68.05198235 | G12: 63.90719665 | I12: =ROUND(C12/I$2*100,3) -> 22.087 | J12: =ROUND(D12/J$2*100,3) -> 21.676 | K12: 20.878 | L12: 18.593 | M12: 17.509
A14: ='PL Volumes data inputs'!A4 -> 80W Mercury Vapour Aeroscreen | B14: ='PL Volumes data inputs'!B4 -> 95.8
A15: Lamp Price (Material Cost) | C15: ='PL Annuity calcs'!U13 -> 0.2160461464 | D15: ='PL Annuity calcs'!V13 -> 0.2160688349 | E15: ='PL Annuity calcs'!W13 -> 0.2161344708 | F15: ='PL Annuity calcs'!X13 -> 0.2164392466 | G15: ='PL Annuity calcs'!Y13 -> 0.2169007435 | I15: =C15/I$2*100 -> 0.05919072503 | J15: =D15/J$2*100 -> 0.05919694106 | K15: =E15/K$2*100 -> 0.05921492351 | L15: =F15/L$2*100 -> 0.05913640616 | M15: =G15/M$2*100 -> 0.05942486122
A16: Corp capex annuity per light | C16: ='Corp Capex Annuity calcs'!E$39 -> 12.62783775 | D16: ='Corp Capex Annuity calcs'!F$39 -> 14.15221463 | E16: ='Corp Capex Annuity calcs'!G$39 -> 13.45332749 | F16: ='Corp Capex Annuity calcs'!H$39 -> 8.994633697 | G16: ='Corp Capex Annuity calcs'!I$39 -> 7.208822188 | I16: 3.459681576 | J16: 3.877319076 | K16: 3.685843148 | L16: 2.45755019 | M16: 1.975019778
A17: Direct Opex Costs per light | C17: ='Cost data inputs'!C$115 -> 46.07254203 | D17: ='Cost data inputs'!D$115 -> 43.3936309 | E17: ='Cost data inputs'!E$115 -> 41.51030453 | F17: ='Cost data inputs'!F$115 -> 38.13939419 | G17: ='Cost data inputs'!G$115 -> 36.09239044 | I17: 12.62261426 | J17: 11.888666 | K17: 11.37268617 | L17: 10.42059951 | M17: 9.888326149
A18: Direct Opex Costs per major light | C18: =IF($B14<100,0,'Cost data inputs'!C$118) -> 0 | D18: =IF($B14<100,0,'Cost data inputs'!D$118) -> 0 | E18: =IF($B14<100,0,'Cost data inputs'!E$118) -> 0 | F18: =IF($B14<100,0,'Cost data inputs'!F$118) -> 0 | G18: =IF($B14<100,0,'Cost data inputs'!G$118) -> 0 | I18: 0 | J18: 0 | K18: 0 | L18: 0 | M18: 0
A19: Opex Overheads Costs per light | C19: ='Cost data inputs'!C$125 -> 21.65241664 | D19: ='Cost data inputs'!D$125 -> 21.30920298 | E19: ='Cost data inputs'!E$125 -> 20.97670015 | F19: ='Cost data inputs'!F$125 -> 20.65441445 | G19: ='Cost data inputs'!G$125 -> 20.34188208 | I19: 5.932168942 | J19: 5.838137804 | K19: 5.747041136 | L19: 5.643282636 | M19: 5.573118379
C20: =SUM(C15:C19) -> 80.56884257 | D20: =SUM(D15:D19) -> 79.07111735 | E20: =SUM(E15:E19) -> 76.15646664 | F20: =SUM(F15:F19) -> 68.00488158 | G20: =SUM(G15:G19) -> 63.85999546 | I20: =ROUND(C20/I$2*100,3) -> 22.074 | J20: =ROUND(D20/J$2*100,3) -> 21.663 | K20: =ROUND(E20/K$2*100,3) -> 20.865 | L20: =ROUND(F20/L$2*100,3) -> 18.581 | M20: =ROUND(G20/M$2*100,3) -> 17.496
A22: ='PL Volumes data inputs'!A5 -> 125W Mercury Vapour | B22: ='PL Volumes data inputs'!B5 -> 142
A23: Lamp Price (Material Cost) | C23: ='PL Annuity calcs'!U27 -> 0.2697778304 | D23: ='PL Annuity calcs'!V27 -> 0.2698061617 | E23: ='PL Annuity calcs'!W27 -> 0.2698881216 | F23: ='PL Annuity calcs'!X27 -> 0.2702686965 | G23: ='PL Annuity calcs'!Y27 -> 0.2708449698 | I23: =C23/I$2*100 -> 0.07391173436 | J23: =D23/J$2*100 -> 0.07391949635 | K23: =E23/K$2*100 -> 0.07394195112 | L23: =F23/L$2*100 -> 0.07384390614 | M23: =G23/M$2*100 -> 0.07420410132
A24: Corp capex annuity per light | C24: ='Corp Capex Annuity calcs'!E$39 -> 12.62783775 | D24: ='Corp Capex Annuity calcs'!F$39 -> 14.15221463 | E24: ='Corp Capex Annuity calcs'!G$39 -> 13.45332749 | F24: ='Corp Capex Annuity calcs'!H$39 -> 8.994633697 | G24: ='Corp Capex Annuity calcs'!I$39 -> 7.208822188 | I24: 3.459681576 | J24: 3.877319076 | K24: 3.685843148 | L24: 2.45755019 | M24: 1.975019778
A25: Direct Opex Costs per light | C25: ='Cost data inputs'!C$115 -> 46.07254203 | D25: ='Cost data inputs'!D$115 -> 43.3936309 | E25: ='Cost data inputs'!E$115 -> 41.51030453 | F25: ='Cost data inputs'!F$115 -> 38.13939419 | G25: ='Cost data inputs'!G$115 -> 36.09239044 | I25: 12.62261426 | J25: 11.888666 | K25: 11.37268617 | L25: 10.42059951 | M25: 9.888326149
A26: Direct Opex Costs per major light | C26: =IF($B22<100,0,'Cost data inputs'!C$118) -> 3.696643751 | D26: =IF($B22<100,0,'Cost data inputs'!D$118) -> 3.589442199 | E26: =IF($B22<100,0,'Cost data inputs'!E$118) -> 3.466462597 | F26: =IF($B22<100,0,'Cost data inputs'!F$118) -> 3.318157144 | G26: =IF($B22<100,0,'Cost data inputs'!G$118) -> 3.159858686 | I26: 1.01277911 | J26: 0.9834088217 | K26: 0.94971578 | L26: 0.9066003125 | M26: 0.8657147084
A27: Opex Overheads Costs per light | C27: ='Cost data inputs'!C$125 -> 21.65241664 | D27: ='Cost data inputs'!D$125 -> 21.30920298 | E27: ='Cost data inputs'!E$125 -> 20.97670015 | F27: ='Cost data inputs'!F$125 -> 20.65441445 | G27: ='Cost data inputs'!G$125 -> 20.34188208 | I27: 5.932168942 | J27: 5.838137804 | K27: 5.747041136 | L27: 5.643282636 | M27: 5.573118379
C28: =SUM(C23:C27) -> 84.31921801 | D28: =SUM(D23:D27) -> 82.71429687 | E28: =SUM(E23:E27) -> 79.67668289 | F28: =SUM(F23:F27) -> 71.37686817 | G28: =SUM(G23:G27) -> 67.07379837 | I28: =ROUND(C28/I$2*100,3) -> 23.101 | J28: =ROUND(D28/J$2*100,3) -> 22.661 | K28: =ROUND(E28/K$2*100,3) -> 21.829 | L28: =ROUND(F28/L$2*100,3) -> 19.502 | M28: =ROUND(G28/M$2*100,3) -> 18.376
A30: ='PL Volumes data inputs'!A6 -> 250W Mercury Vapour | B30: ='PL Volumes data inputs'!B6 -> 270
A31: Lamp Price (Material Cost) | C31: ='PL Annuity calcs'!U34 -> 0.5653020928 | D31: ='PL Annuity calcs'!V34 -> 0.5653614591 | E31: ='PL Annuity calcs'!W34 -> 0.5655332008 | F31: ='PL Annuity calcs'!X34 -> 0.566330671 | G31: ='PL Annuity calcs'!Y34 -> 0.5675382148 | I31: =C31/I$2*100 -> 0.1548772857 | J31: =D31/J$2*100 -> 0.1548935504 | K31: =E31/K$2*100 -> 0.154940603 | L31: =F31/L$2*100 -> 0.154735156 | M31: =G31/M$2*100 -> 0.1554899219
A32: Corp capex annuity per light | C32: ='Corp Capex Annuity calcs'!E$39 -> 12.62783775 | D32: ='Corp Capex Annuity calcs'!F$39 -> 14.15221463 | E32: ='Corp Capex Annuity calcs'!G$39 -> 13.45332749 | F32: ='Corp Capex Annuity calcs'!H$39 -> 8.994633697 | G32: ='Corp Capex Annuity calcs'!I$39 -> 7.208822188 | I32: 3.459681576 | J32: 3.877319076 | K32: 3.685843148 | L32: 2.45755019 | M32: 1.975019778
A33: Direct Opex Costs per light | C33: ='Cost data inputs'!C$115 -> 46.07254203 | D33: ='Cost data inputs'!D$115 -> 43.3936309 | E33: ='Cost data inputs'!E$115 -> 41.51030453 | F33: ='Cost data inputs'!F$115 -> 38.13939419 | G33: ='Cost data inputs'!G$115 -> 36.09239044 | I33: 12.62261426 | J33: 11.888666 | K33: 11.37268617 | L33: 10.42059951 | M33: 9.888326149
A34: Direct Opex Costs per major light | C34: =IF($B30<100,0,'Cost data inputs'!C$118) -> 3.696643751 | D34: =IF($B30<100,0,'Cost data inputs'!D$118) -> 3.589442199 | E34: =IF($B30<100,0,'Cost data inputs'!E$118) -> 3.466462597 | F34: =IF($B30<100,0,'Cost data inputs'!F$118) -> 3.318157144 | G34: =IF($B30<100,0,'Cost data inputs'!G$118) -> 3.159858686 | I34: 1.01277911 | J34: 0.9834088217 | K34: 0.94971578 | L34: 0.9066003125 | M34: 0.8657147084
A35: Opex Overheads Costs per light | C35: ='Cost data inputs'!C$125 -> 21.65241664 | D35: ='Cost data inputs'!D$125 -> 21.30920298 | E35: ='Cost data inputs'!E$125 -> 20.97670015 | F35: ='Cost data inputs'!F$125 -> 20.65441445 | G35: ='Cost data inputs'!G$125 -> 20.34188208 | I35: 5.932168942 | J35: 5.838137804 | K35: 5.747041136 | L35: 5.643282636 | M35: 5.573118379
C36: =SUM(C31:C35) -> 84.61474227 | D36: =SUM(D31:D35) -> 83.00985217 | E36: =SUM(E31:E35) -> 79.97232797 | F36: =SUM(F31:F35) -> 71.67293015 | G36: =SUM(G31:G35) -> 67.37049161 | I36: =ROUND(C36/I$2*100,3) -> 23.182 | J36: =ROUND(D36/J$2*100,3) -> 22.742 | K36: =ROUND(E36/K$2*100,3) -> 21.91 | L36: =ROUND(F36/L$2*100,3) -> 19.583 | M36: =ROUND(G36/M$2*100,3) -> 18.458
A38: ='PL Volumes data inputs'!A7 -> 400W Mercury Vapour | B38: ='PL Volumes data inputs'!B7 -> 440
A39: Lamp Price (Material Cost) | C39: ='PL Annuity calcs'!U41 -> 0.7891841097 | D39: ='PL Annuity calcs'!V41 -> 0.7892669875 | E39: ='PL Annuity calcs'!W41 -> 0.7895067457 | F39: ='PL Annuity calcs'!X41 -> 0.7906200457 | G39: ='PL Annuity calcs'!Y41 -> 0.7923058246 | I39: =C39/I$2*100 -> 0.2162148246 | J39: =D39/J$2*100 -> 0.2162375308 | K39: =E39/K$2*100 -> 0.216303218 | L39: =F39/L$2*100 -> 0.2160164059 | M39: =G39/M$2*100 -> 0.2170700889
A40: Corp capex annuity per light | C40: ='Corp Capex Annuity calcs'!E$39 -> 12.62783775 | D40: ='Corp Capex Annuity calcs'!F$39 -> 14.15221463 | E40: ='Corp Capex Annuity calcs'!G$39 -> 13.45332749 | F40: ='Corp Capex Annuity calcs'!H$39 -> 8.994633697 | G40: ='Corp Capex Annuity calcs'!I$39 -> 7.208822188 | I40: 3.459681576 | J40: 3.877319076 | K40: 3.685843148 | L40: 2.45755019 | M40: 1.975019778
A41: Direct Opex Costs per light | C41: ='Cost data inputs'!C$115 -> 46.07254203 | D41: ='Cost data inputs'!D$115 -> 43.3936309 | E41: ='Cost data inputs'!E$115 -> 41.51030453 | F41: ='Cost data inputs'!F$115 -> 38.13939419 | G41: ='Cost data inputs'!G$115 -> 36.09239044 | I41: 12.62261426 | J41: 11.888666 | K41: 11.37268617 | L41: 10.42059951 | M41: 9.888326149
A42: Direct Opex Costs per major light | C42: =IF($B38<100,0,'Cost data inputs'!C$118) -> 3.696643751 | D42: =IF($B38<100,0,'Cost data inputs'!D$118) -> 3.589442199 | E42: =IF($B38<100,0,'Cost data inputs'!E$118) -> 3.466462597 | F42: =IF($B38<100,0,'Cost data inputs'!F$118) -> 3.318157144 | G42: =IF($B38<100,0,'Cost data inputs'!G$118) -> 3.159858686 | I42: 1.01277911 | J42: 0.9834088217 | K42: 0.94971578 | L42: 0.9066003125 | M42: 0.8657147084
A43: Opex Overheads Costs per light | C43: ='Cost data inputs'!C$125 -> 21.65241664 | D43: ='Cost data inputs'!D$125 -> 21.30920298 | E43: ='Cost data inputs'!E$125 -> 20.97670015 | F43: ='Cost data inputs'!F$125 -> 20.65441445 | G43: ='Cost data inputs'!G$125 -> 20.34188208 | I43: 5.932168942 | J43: 5.838137804 | K43: 5.747041136 | L43: 5.643282636 | M43: 5.573118379
C44: =SUM(C39:C43) -> 84.83862429 | D44: =SUM(D39:D43) -> 83.2337577 | E44: =SUM(E39:E43) -> 80.19630151 | F44: =SUM(F39:F43) -> 71.89721952 | G44: =SUM(G39:G43) -> 67.59525922 | I44: =ROUND(C44/I$2*100,3) -> 23.243 | J44: =ROUND(D44/J$2*100,3) -> 22.804 | K44: =ROUND(E44/K$2*100,3) -> 21.972 | L44: =ROUND(F44/L$2*100,3) -> 19.644 | M44: =ROUND(G44/M$2*100,3) -> 18.519
A46: ='PL Volumes data inputs'!A8 -> 70W Sodium Vapour | B46: ='PL Volumes data inputs'!B8 -> 86
A47: Lamp Price (Material Cost) | C47: ='PL Annuity calcs'!U48 -> 1.020901997 | D47: ='PL Annuity calcs'!V48 -> 1.021009209 | E47: ='PL Annuity calcs'!W48 -> 1.021319365 | F47: ='PL Annuity calcs'!X48 -> 1.022759548 | G47: ='PL Annuity calcs'!Y48 -> 1.024940301 | I47: =C47/I$2*100 -> 0.2796991773 | J47: =D47/J$2*100 -> 0.2797285505 | K47: =E47/K$2*100 -> 0.2798135246 | L47: =F47/L$2*100 -> 0.2794424996 | M47: =G47/M$2*100 -> 0.2808055618
A48: Corp capex annuity per light | C48: ='Corp Capex Annuity calcs'!E$39 -> 12.62783775 | D48: ='Corp Capex Annuity calcs'!F$39 -> 14.15221463 | E48: ='Corp Capex Annuity calcs'!G$39 -> 13.45332749 | F48: ='Corp Capex Annuity calcs'!H$39 -> 8.994633697 | G48: ='Corp Capex Annuity calcs'!I$39 -> 7.208822188 | I48: 3.459681576 | J48: 3.877319076 | K48: 3.685843148 | L48: 2.45755019 | M48: 1.975019778
A49: Direct Opex Costs per light | C49: ='Cost data inputs'!C$115 -> 46.07254203 | D49: ='Cost data inputs'!D$115 -> 43.3936309 | E49: ='Cost data inputs'!E$115 -> 41.51030453 | F49: ='Cost data inputs'!F$115 -> 38.13939419 | G49: ='Cost data inputs'!G$115 -> 36.09239044 | I49: 12.62261426 | J49: 11.888666 | K49: 11.37268617 | L49: 10.42059951 | M49: 9.888326149
A50: Direct Opex Costs per major light | C50: =IF($B46<100,0,'Cost data inputs'!C$118) -> 0 | D50: =IF($B46<100,0,'Cost data inputs'!D$118) -> 0 | E50: =IF($B46<100,0,'Cost data inputs'!E$118) -> 0 | F50: =IF($B46<100,0,'Cost data inputs'!F$118) -> 0 | G50: =IF($B46<100,0,'Cost data inputs'!G$118) -> 0 | I50: 0 | J50: 0 | K50: 0 | L50: 0 | M50: 0
A51: Opex Overheads Costs per light | C51: ='Cost data inputs'!C$125 -> 21.65241664 | D51: ='Cost data inputs'!D$125 -> 21.30920298 | E51: ='Cost data inputs'!E$125 -> 20.97670015 | F51: ='Cost data inputs'!F$125 -> 20.65441445 | G51: ='Cost data inputs'!G$125 -> 20.34188208 | I51: 5.932168942 | J51: 5.838137804 | K51: 5.747041136 | L51: 5.643282636 | M51: 5.573118379
C52: =SUM(C47:C51) -> 81.37369842 | D52: =SUM(D47:D51) -> 79.87605772 | E52: 76.96165153 | F52: 68.81120188 | G52: 64.66803501 | I52: =ROUND(C52/I$2*100,3) -> 22.294 | J52: =ROUND(D52/J$2*100,3) -> 21.884 | K52: =ROUND(E52/K$2*100,3) -> 21.085 | L52: =ROUND(F52/L$2*100,3) -> 18.801 | M52: =ROUND(G52/M$2*100,3) -> 17.717
A54: ='PL Volumes data inputs'!A9 -> 150W Sodium Vapour | B54: ='PL Volumes data inputs'!B9 -> 120
A55: Lamp Price (Material Cost) | C55: ='PL Annuity calcs'!U62 -> 3.17352759 | D55: ='PL Annuity calcs'!V62 -> 3.173860865 | E55: ='PL Annuity calcs'!W62 -> 3.174824999 | F55: ='PL Annuity calcs'!X62 -> 3.179301886 | G55: ='PL Annuity calcs'!Y62 -> 3.186080869 | I55: =C55/I$2*100 -> 0.8694596137 | J55: =D55/J$2*100 -> 0.8695509218 | K55: =E55/K$2*100 -> 0.8698150681 | L55: =F55/L$2*100 -> 0.8686617175 | M55: =G55/M$2*100 -> 0.8728988682
A56: Corp capex annuity per light | C56: ='Corp Capex Annuity calcs'!E$39 -> 12.62783775 | D56: ='Corp Capex Annuity calcs'!F$39 -> 14.15221463 | E56: ='Corp Capex Annuity calcs'!G$39 -> 13.45332749 | F56: ='Corp Capex Annuity calcs'!H$39 -> 8.994633697 | G56: ='Corp Capex Annuity calcs'!I$39 -> 7.208822188 | I56: 3.459681576 | J56: 3.877319076 | K56: 3.685843148 | L56: 2.45755019 | M56: 1.975019778
A57: Direct Opex Costs per light | C57: ='Cost data inputs'!C$115 -> 46.07254203 | D57: ='Cost data inputs'!D$115 -> 43.3936309 | E57: ='Cost data inputs'!E$115 -> 41.51030453 | F57: ='Cost data inputs'!F$115 -> 38.13939419 | G57: ='Cost data inputs'!G$115 -> 36.09239044 | I57: 12.62261426 | J57: 11.888666 | K57: 11.37268617 | L57: 10.42059951 | M57: 9.888326149
A58: Direct Opex Costs per major light | C58: =IF($B54<100,0,'Cost data inputs'!C$118) -> 3.696643751 | D58: =IF($B54<100,0,'Cost data inputs'!D$118) -> 3.589442199 | E58: =IF($B54<100,0,'Cost data inputs'!E$118) -> 3.466462597 | F58: =IF($B54<100,0,'Cost data inputs'!F$118) -> 3.318157144 | G58: =IF($B54<100,0,'Cost data inputs'!G$118) -> 3.159858686 | I58: 1.01277911 | J58: 0.9834088217 | K58: 0.94971578 | L58: 0.9066003125 | M58: 0.8657147084
A59: Opex Overheads Costs per light | C59: ='Cost data inputs'!C$125 -> 21.65241664 | D59: ='Cost data inputs'!D$125 -> 21.30920298 | E59: ='Cost data inputs'!E$125 -> 20.97670015 | F59: ='Cost data inputs'!F$125 -> 20.65441445 | G59: ='Cost data inputs'!G$125 -> 20.34188208 | I59: 5.932168942 | J59: 5.838137804 | K59: 5.747041136 | L59: 5.643282636 | M59: 5.573118379
C60: =SUM(C55:C59) -> 87.22296777 | D60: =SUM(D55:D59) -> 85.61835157 | E60: 82.58161976 | F60: 74.28590136 | G60: 69.98903427 | I60: =ROUND(C60/I$2*100,3) -> 23.897 | J60: =ROUND(D60/J$2*100,3) -> 23.457 | K60: =ROUND(E60/K$2*100,3) -> 22.625 | L60: =ROUND(F60/L$2*100,3) -> 20.297 | M60: =ROUND(G60/M$2*100,3) -> 19.175
A62: ='PL Volumes data inputs'!A10 -> 250W Sodium Vapour | B62: ='PL Volumes data inputs'!B10 -> 173
A63: Lamp Price (Material Cost) | C63: ='PL Annuity calcs'!U69 -> 3.03919838 | D63: ='PL Annuity calcs'!V69 -> 3.039517548 | E63: ='PL Annuity calcs'!W69 -> 3.040440872 | F63: ='PL Annuity calcs'!X69 -> 3.044728261 | G63: ='PL Annuity calcs'!Y69 -> 3.051220303 | I63: =C63/I$2*100 -> 0.8326570904 | J63: =D63/J$2*100 -> 0.8327445336 | K63: =E63/K$2*100 -> 0.8329974991 | L63: =F63/L$2*100 -> 0.8318929675 | M63: =G63/M$2*100 -> 0.835950768
A64: Corp capex annuity per light | C64: ='Corp Capex Annuity calcs'!E$39 -> 12.62783775 | D64: ='Corp Capex Annuity calcs'!F$39 -> 14.15221463 | E64: ='Corp Capex Annuity calcs'!G$39 -> 13.45332749 | F64: ='Corp Capex Annuity calcs'!H$39 -> 8.994633697 | G64: ='Corp Capex Annuity calcs'!I$39 -> 7.208822188 | I64: 3.459681576 | J64: 3.877319076 | K64: 3.685843148 | L64: 2.45755019 | M64: 1.975019778
A65: Direct Opex Costs per light | C65: ='Cost data inputs'!C$115 -> 46.07254203 | D65: ='Cost data inputs'!D$115 -> 43.3936309 | E65: ='Cost data inputs'!E$115 -> 41.51030453 | F65: ='Cost data inputs'!F$115 -> 38.13939419 | G65: ='Cost data inputs'!G$115 -> 36.09239044 | I65: 12.62261426 | J65: 11.888666 | K65: 11.37268617 | L65: 10.42059951 | M65: 9.888326149
A66: Direct Opex Costs per major light | C66: =IF($B62<100,0,'Cost data inputs'!C$118) -> 3.696643751 | D66: =IF($B62<100,0,'Cost data inputs'!D$118) -> 3.589442199 | E66: =IF($B62<100,0,'Cost data inputs'!E$118) -> 3.466462597 | F66: =IF($B62<100,0,'Cost data inputs'!F$118) -> 3.318157144 | G66: =IF($B62<100,0,'Cost data inputs'!G$118) -> 3.159858686 | I66: 1.01277911 | J66: 0.9834088217 | K66: 0.94971578 | L66: 0.9066003125 | M66: 0.8657147084
A67: Opex Overheads Costs per light | C67: ='Cost data inputs'!C$125 -> 21.65241664 | D67: ='Cost data inputs'!D$125 -> 21.30920298 | E67: ='Cost data inputs'!E$125 -> 20.97670015 | F67: ='Cost data inputs'!F$125 -> 20.65441445 | G67: ='Cost data inputs'!G$125 -> 20.34188208 | I67: 5.932168942 | J67: 5.838137804 | K67: 5.747041136 | L67: 5.643282636 | M67: 5.573118379
C68: =SUM(C63:C67) -> 87.08863856 | D68: =SUM(D63:D67) -> 85.48400826 | E68: 82.44723564 | F68: 74.15132774 | G68: 69.8541737 | I68: =ROUND(C68/I$2*100,3) -> 23.86 | J68: =ROUND(D68/J$2*100,3) -> 23.42 | K68: =ROUND(E68/K$2*100,3) -> 22.588 | L68: =ROUND(F68/L$2*100,3) -> 20.26 | M68: =ROUND(G68/M$2*100,3) -> 19.138
A70: ='PL Volumes data inputs'!A11 -> 400W Sodium Vapour | B70: ='PL Volumes data inputs'!B11 -> 273
A71: Lamp Price (Material Cost) | C71: ='PL Annuity calcs'!U76 -> 3.340319693 | D71: ='PL Annuity calcs'!V76 -> 3.340670483 | E71: ='PL Annuity calcs'!W76 -> 3.34168529 | F71: ='PL Annuity calcs'!X76 -> 3.34639747 | G71: ='PL Annuity calcs'!Y76 -> 3.353532738 | I71: =C71/I$2*100 -> 0.9151560802 | J71: =D71/J$2*100 -> 0.9152521872 | K71: =E71/K$2*100 -> 0.9155302163 | L71: =F71/L$2*100 -> 0.9143162487 | M71: =G71/M$2*100 -> 0.9187760927
A72: Corp capex annuity per light | C72: ='Corp Capex Annuity calcs'!E$39 -> 12.62783775 | D72: ='Corp Capex Annuity calcs'!F$39 -> 14.15221463 | E72: ='Corp Capex Annuity calcs'!G$39 -> 13.45332749 | F72: ='Corp Capex Annuity calcs'!H$39 -> 8.994633697 | G72: ='Corp Capex Annuity calcs'!I$39 -> 7.208822188 | I72: 3.459681576 | J72: 3.877319076 | K72: 3.685843148 | L72: 2.45755019 | M72: 1.975019778
A73: Direct Opex Costs per light | C73: ='Cost data inputs'!C$115 -> 46.07254203 | D73: ='Cost data inputs'!D$115 -> 43.3936309 | E73: ='Cost data inputs'!E$115 -> 41.51030453 | F73: ='Cost data inputs'!F$115 -> 38.13939419 | G73: ='Cost data inputs'!G$115 -> 36.09239044 | I73: 12.62261426 | J73: 11.888666 | K73: 11.37268617 | L73: 10.42059951 | M73: 9.888326149
A74: Direct Opex Costs per major light | C74: =IF($B70<100,0,'Cost data inputs'!C$118) -> 3.696643751 | D74: =IF($B70<100,0,'Cost data inputs'!D$118) -> 3.589442199 | E74: =IF($B70<100,0,'Cost data inputs'!E$118) -> 3.466462597 | F74: =IF($B70<100,0,'Cost data inputs'!F$118) -> 3.318157144 | G74: =IF($B70<100,0,'Cost data inputs'!G$118) -> 3.159858686 | I74: 1.01277911 | J74: 0.9834088217 | K74: 0.94971578 | L74: 0.9066003125 | M74: 0.8657147084
A75: Opex Overheads Costs per light | C75: ='Cost data inputs'!C$125 -> 21.65241664 | D75: ='Cost data inputs'!D$125 -> 21.30920298 | E75: ='Cost data inputs'!E$125 -> 20.97670015 | F75: ='Cost data inputs'!F$125 -> 20.65441445 | G75: ='Cost data inputs'!G$125 -> 20.34188208 | I75: 5.932168942 | J75: 5.838137804 | K75: 5.747041136 | L75: 5.643282636 | M75: 5.573118379
C76: =SUM(C71:C75) -> 87.38975987 | D76: =SUM(D71:D75) -> 85.78516119 | E76: 82.74848006 | F76: 74.45299695 | G76: 70.15648614 | I76: =ROUND(C76/I$2*100,3) -> 23.942 | J76: =ROUND(D76/J$2*100,3) -> 23.503 | K76: =ROUND(E76/K$2*100,3) -> 22.671 | L76: =ROUND(F76/L$2*100,3) -> 20.342 | M76: =ROUND(G76/M$2*100,3) -> 19.221
A78: ='PL Volumes data inputs'!A12 -> 150W Metal Halide | B78: ='PL Volumes data inputs'!B12 -> 168
